Workbook

Sheet Index
K2: source sheet
D6: rdim | E6: cdim
A7: dset | B7: RUN | C7: ="Sets!"&ADDRESS(ROW(Sets!AB7),COLUMN(Sets!AB7),4) -> Sets!AB7 | D7: 1
A8: dset | B8: FUELP | C8: ="Sets!"&ADDRESS(ROW(Sets!A7),COLUMN(Sets!A7),4) -> Sets!A7 | D8: 1
A9: dset | B9: FUELPO | C9: ="Sets!"&ADDRESS(ROW(Sets!B7),COLUMN(Sets!B7),4) -> Sets!B7 | D9: 1
A10: dset | B10: FUELPC | C10: ="Sets!"&ADDRESS(ROW(Sets!C7),COLUMN(Sets!C7),4) -> Sets!C7 | D10: 1
A11: dset | B11: FUELPCPWR | C11: ="Sets!"&ADDRESS(ROW(Sets!D7),COLUMN(Sets!D7),4) -> Sets!D7 | D11: 1
A12: dset | B12: FUELPCPWR_CB | C12: ="Sets!"&ADDRESS(ROW(Sets!E7),COLUMN(Sets!E7),4) -> Sets!E7 | D12: 1
A13: dset | B13: FUELPCPWR_A | C13: ="Sets!"&ADDRESS(ROW(Sets!F7),COLUMN(Sets!F7),4) -> Sets!F7 | D13: 1
A14: dset | B14: FUELPG | C14: ="Sets!"&ADDRESS(ROW(Sets!G7),COLUMN(Sets!G7),4) -> Sets!G7 | D14: 1
A15: dset | B15: TECHS | C15: ="Sets!"&ADDRESS(ROW(Sets!H7),COLUMN(Sets!H7),4) -> Sets!H7 | D15: 1
A16: dset | B16: =Sets!I6 -> TECHN | C16: ="Sets!"&ADDRESS(ROW(Sets!I7),COLUMN(Sets!I7),4) -> Sets!I7 | D16: 1
A17: dset | B17: TECHC | C17: ="Sets!"&ADDRESS(ROW(Sets!J7),COLUMN(Sets!J7),4) -> Sets!J7 | D17: 1
A18: dset | B18: TECHP | C18: ="Sets!"&ADDRESS(ROW(Sets!K7),COLUMN(Sets!K7),4) -> Sets!K7 | D18: 1
A19: dset | B19: ETC | C19: ="Sets!"&ADDRESS(ROW(Sets!L7),COLUMN(Sets!L7),4) -> Sets!L7 | D19: 1
A20: dset | B20: ETCA | C20: ="Sets!"&ADDRESS(ROW(Sets!M8),COLUMN(Sets!M8),4) -> Sets!M8 | D20: 1
A21: dset | B21: ETG | C21: ="Sets!"&ADDRESS(ROW(Sets!N7),COLUMN(Sets!N7),4) -> Sets!N7 | D21: 1
A22: dset | B22: ETGIH | C22: ="Sets!"&ADDRESS(ROW(Sets!O7),COLUMN(Sets!O7),4) -> Sets!O7 | D22: 1
A23: dset | B23: ETN | C23: ="Sets!"&ADDRESS(ROW(Sets!P7),COLUMN(Sets!P7),4) -> Sets!P7 | D23: 1
A24: dset | B24: ERH | C24: ="Sets!"&ADDRESS(ROW(Sets!Q7),COLUMN(Sets!Q7),4) -> Sets!Q7 | D24: 1
A25: dset | B25: ERSOLP | C25: ="Sets!"&ADDRESS(ROW(Sets!R7),COLUMN(Sets!R7),4) -> Sets!R7 | D25: 1
A26: dset | B26: ERSOLPC | C26: ="Sets!"&ADDRESS(ROW(Sets!S7),COLUMN(Sets!S7),4) -> Sets!S7 | D26: 1
A27: dset | B27: ERSOLPR | C27: ="Sets!"&ADDRESS(ROW(Sets!T7),COLUMN(Sets!T7),4) -> Sets!T7 | D27: 1
A28: dset | B28: ERSOLT | C28: ="Sets!"&ADDRESS(ROW(Sets!U7),COLUMN(Sets!U7),4) -> Sets!U7 | D28: 1
A29: dset | B29: ERW | C29: ="Sets!"&ADDRESS(ROW(Sets!V7),COLUMN(Sets!V7),4) -> Sets!V7 | D29: 1
A30: dset | B30: ERB | C30: ="Sets!"&ADDRESS(ROW(Sets!W7),COLUMN(Sets!W7),4) -> Sets!W7 | D30: 1
A31: dset | B31: CO2SET | C31: ="Sets!"&ADDRESS(ROW(Sets!X7),COLUMN(Sets!X7),4) -> Sets!X7 | D31: 1
A32: dset | B32: FS | C32: ="Sets!"&ADDRESS(ROW(Sets!Y7),COLUMN(Sets!Y7),4) -> Sets!Y7 | D32: 1
A33: dset | B33: =Sets!Z6 -> FuelPrices | C33: ="Sets!"&ADDRESS(ROW(Sets!Z7),COLUMN(Sets!Z7),4) -> Sets!Z7 | D33: 1
A34: dset | B34: =Sets!AA6 -> UXLE_AB | C34: ="Sets!"&ADDRESS(ROW(Sets!AA7),COLUMN(Sets!AA7),4) -> Sets!AA7 | D34: 1
A35: dset | B35: TIMESCASE | C35: ="Sets!"&ADDRESS(ROW(Sets!AC7),COLUMN(Sets!AC7),4) -> Sets!AC7 | D35: 1
A36: set | B36: MRUNCASE | C36: ="Sets!"&ADDRESS(ROW(Sets!AB7),COLUMN(Sets!AB7),4) -> Sets!AB7 | D36: 2
A37: par | B37: INCLRUN | C37: ="Sets!"&ADDRESS(ROW(Sets!AD7),COLUMN(Sets!AD7),4) -> Sets!AD7 | D37: 1
A38: par | B38: GDP_FS_L | C38: ="StatsSA!"&ADDRESS(ROW(StatsSA!B33),COLUMN(StatsSA!B33),4) -> StatsSA!B33 | D38: 1
A39: par | B39: SIM_GDP_Y | C39: =Scenarios!F5&"!"&ADDRESS(ROW(GDP_Y!A5),COLUMN(GDP_Y!A5),4) -> GDP_Y(S)!A5 | D39: 1 | E39: 1
A40: par | B40: SIM_COM_S | C40: =Scenarios!G5&"!"&ADDRESS(ROW(COM_S!A5),COLUMN(COM_S!A5),4) -> COM_S(S)!A5 | D40: 1 | E40: 1
A41: par | B41: SIM_POP | C41: =Scenarios!H5&"!"&ADDRESS(ROW(POP!A5),COLUMN(POP!A5),4) -> POP(S)!A5 | D41: 1 | E41: 1
A42: par | B42: SIM_GCOAL | C42: =Scenarios!S5&"!"&ADDRESS(ROW(Global_Com!C10),COLUMN(Global_Com!C10),4) -> Global_Com(S)!C10 | D42: 1 | E42: 1
A43: par | B43: SIM_GGAS | C43: =Scenarios!S5&"!"&ADDRESS(ROW(Global_Com!AY10),COLUMN(Global_Com!AY10),4) -> Global_Com(S)!AY10 | D43: 1 | E43: 1
A44: par | B44: SIM_GOIL | C44: =Scenarios!S5&"!"&ADDRESS(ROW(Global_Com!CU10),COLUMN(Global_Com!CU10),4) -> Global_Com(S)!CU10 | D44: 1 | E44: 1
A45: par | B45: COAL_CV | C45: =Scenarios!O5&"!"&ADDRESS(ROW(COAL!A19),COLUMN(COAL!A19),4) -> COAL(S)!A19 | D45: 1
A46: par | B46: SIM_CLE1 | C46: =Scenarios!O5&"!"&ADDRESS(ROW(COAL!BR19),COLUMN(COAL!BR19),4) -> COAL(S)!BR19 | D46: 1 | E46: 1
A47: par | B47: SIM_CLE2 | C47: =Scenarios!O5&"!"&ADDRESS(ROW(COAL!DO19),COLUMN(COAL!DO19),4) -> COAL(S)!DO19 | D47: 1 | E47: 1
A48: par | B48: SIM_CLN | C48: =Scenarios!O5&"!"&ADDRESS(ROW(COAL!FL19),COLUMN(COAL!FL19),4) -> COAL(S)!FL19 | D48: 1 | E48: 1
A49: par | B49: SIM_CLE_A | C49: =Scenarios!O5&"!"&ADDRESS(ROW(COAL!HI19),COLUMN(COAL!HI19),4) -> COAL(S)!HI19 | D49: 1 | E49: 1
A50: par | B50: SIM_CLN_A | C50: =Scenarios!O5&"!"&ADDRESS(ROW(COAL!JF19),COLUMN(COAL!JF19),4) -> COAL(S)!JF19 | D50: 1 | E50: 1
A51: par | B51: SIM_CLNU_A | C51: =Scenarios!O5&"!"&ADDRESS(ROW(COAL!LC19),COLUMN(COAL!LC19),4) -> COAL(S)!LC19 | D51: 1 | E51: 1
A52: par | B52: OCRFAC | C52: ="OIL!"&ADDRESS(ROW(OIL!A5),COLUMN(OIL!A5),4) -> OIL!A5 | D52: 1 | E52: 1
A53: par | B53: SIM_GIH | C53: =Scenarios!P5&"!"&Scenarios!P1 -> GAS(S)!AU8 | D53: 1 | E53: 1
A54: par | B54: PV_CRATIO | C54: =Scenarios!I5&"!"&ADDRESS(ROW(PV!B5),COLUMN(PV!B5),4) -> PV(S)!B5 | D54: 1
A55: par | B55: SIM_PV_MODULE | C55: =Scenarios!I5&"!"&ADDRESS(ROW(PV!E5),COLUMN(PV!E5),4) -> PV(S)!E5 | D55: 1 | E55: 1
A56: par | B56: SIM_PV_BOS | C56: =Scenarios!I5&"!"&ADDRESS(ROW(PV!AW5),COLUMN(PV!AW5),4) -> PV(S)!AW5 | D56: 1 | E56: 1
A57: par | B57: CSP_CRATIO | C57: =Scenarios!J5&"!"&ADDRESS(ROW(CSP!B5),COLUMN(CSP!B5),4) -> CSP(S)!B5 | D57: 1
A58: par | B58: SIM_CSP | C58: =Scenarios!J5&"!"&ADDRESS(ROW(CSP!E5),COLUMN(CSP!E5),4) -> CSP(S)!E5 | D58: 1 | E58: 1
A59: par | B59: SIM_NUCLEAR | C59: =Scenarios!K5&"!"&ADDRESS(ROW(NUC!A13),COLUMN(NUC!A13),4) -> NUC(S)!A13 | D59: 1 | E59: 1
A60: par | B60: SIM_NUCLEARCF | C60: =Scenarios!T5&"!"&ADDRESS(ROW(OPWR!F20),COLUMN(OPWR!F20),4) -> OPWR(S)!F20 | D60: 1
A61: par | B61: SIM_NUCLEARLT | C61: =Scenarios!T5&"!"&ADDRESS(ROW(OPWR!R20),COLUMN(OPWR!R20),4) -> OPWR(S)!R20 | D61: 1
A62: par | B62: SIM_HYDIMP | C62: =Scenarios!T5&"!"&ADDRESS(ROW(OPWR!AD20),COLUMN(OPWR!AD20),4) -> OPWR(S)!AD20 | D62: 1
A63: par | B63: SIM_SOLTPKNT | C63: =Scenarios!T5&"!"&ADDRESS(ROW(OPWR!AQ20),COLUMN(OPWR!AQ20),4) -> OPWR(S)!AQ20 | D63: 1
A64: par | B64: SIM_TRAMOD | C64: =Scenarios!T5&"!"&ADDRESS(ROW(OPWR!BD20),COLUMN(OPWR!BD20),4) -> OPWR(S)!BD20 | D64: 1
A65: par | B65: SIM_CO2CUMUL | C65: =Scenarios!T5&"!"&ADDRESS(ROW(OPWR!BQ20),COLUMN(OPWR!BQ20),4) -> OPWR(S)!BQ20 | D65: 1

Sheet IndexO
D6: rdim | E6: cdim
A7: par | B7: COM_PROJ_BY | C7: DMD!A5 | D7: 1
A8: set | B8: DEM1 | C8: DMD!Q5 | D8: 1

Sheet Sets
B5: Liquid fuel techs | C5: Coal Techs | D5: Coal price power | E5: Coal price power CB | F5: Coal price power Waterberg | H5: Power Plant Sumbsets | I5: Power Techs whose cost change | J5: Power Techs whose cost change | K5: Power Techs whose "PKNT" change | L5: Coal Techs | M5: Waterberg | N5: Gas Techs | O5: Shale | P5: Nuclear | Q5: Hydro | R5: PV techs | S5: Central PV | T5: Rooftop PV | U5: CSP techs | V5: Wind | W5: Biomass | X5: Sectoral Emissions | Y5: Economic Sectors | AA5: Waterberg-CB line | AD5: INCLRUN
A6: FUELP | B6: FUELPO | C6: FUELPC | D6: FUELPCPWR | E6: FUELPCPWR_CB | F6: FUELPCPWR_A | G6: FUELPG | H6: TECHS | I6: TECHN | J6: TECHC | K6: TECHP | L6: ETC | M6: ETCA | N6: ETG | O6: ETGIH | P6: ETN | Q6: ERH | R6: ERSOLP | S6: ERSOLPC | T6: ERSOLPR | U6: ERSOLT | V6: ERW | W6: ERB | X6: CO2SET | Y6: FS | Z6: FuelPrices | AA6: UXLE_AB | AB6: RUN | AC6: SATIMRUN | AD6: RUN | AE6: Include?
A7: MINCLE1 | B7: IMPBID | C7: MINCLE1 | D7: MINCLE1 | E7: MINCLE1 | F7: MINCLE-A | G7: MINGAS | H7: ETC | I7: ETNUC-N | J7: ETNUC-N | K7: ERSOLTC03-N | L7: ETCLDFB-N | M7: ETCLESC-N-A | N7: ETGASCC-N | O7: ETGIHCC-N | P7: ETNUC-E | Q7: ERHYDB-I | R7: ERSOLPCF-N | S7: ERSOLPCF-N | T7: ERSOLPRC-N | U7: ERSOLTC03-N | V7: ERWNDH-N | W7: ERBIG-N | X7: AGRCO2S | Y7: agr | Z7: ELCC | AA7: UXLE-AB | AB7: =IF(ISBLANK(Scenarios!B8),"",Scenarios!B8) -> REF | AC7: =IF(ISBLANK(Scenarios!E8),"",Scenarios!E8) -> TRREFR | AD7: =AB7 -> REF | AE7: =IF(ISBLANK(Scenarios!A8),"",Scenarios!A8) -> 1
A8: MINCLE2 | B8: IMPBIE | C8: MINCLE2 | D8: MINCLE2 | E8: MINCLE2 | F8: MINCLN-A | G8: MINGIB | H8: ETCA | I8: ERSOLPCF-N | J8: ERSOLPCF-N | K8: ERSOLTC06-N | L8: ETCLEIG-N | N8: ETGASCCSS-N | O8: ETGIHGT-N | P8: ETNUC-N | Q8: ERHYD-E | R8: ERSOLPCT-N | S8: ERSOLPCT-N | T8: ERSOLPRR-N | U8: ERSOLTC06-N | V8: ERWNDM-N | W8: ERBIO-N | X8: COMCO2S | Y8: mi | Z8: PWRCLE-A | AA8: UXLE2-AB | AB8: =IF(ISBLANK(Scenarios!B9),"",Scenarios!B9) -> EMSR14 | AC8: =IF(ISBLANK(Scenarios!E9),"",Scenarios!E9) -> TREMSR | AD8: =AB8 -> EMSR14 | AE8: =IF(ISBLANK(Scenarios!A9),"",Scenarios!A9) -> 0
A9: MINCLE3 | B9: IMPOAG | C9: MINCLE3 | D9: MINCLN | E9: MINCLN | G9: MINGIC | H9: ETG | I9: ERSOLPCT-N | J9: ERSOLPCT-N | K9: ERSOLTC09-N | L9: ETCLESC-N | N9: ETGASGT-N | Q9: ERHYDF-I | R9: ERSOLPRC-N | U9: ERSOLTC09-N | X9: INDCO2S | Y9: fb | Z9: PWRCLE | AB9: =IF(ISBLANK(Scenarios!B10),"",Scenarios!B10) -> EMSRH14 | AC9: =IF(ISBLANK(Scenarios!E10),"",Scenarios!E10) -> TREMSRH | AD9: EMSRH14 | AE9: =IF(ISBLANK(Scenarios!A10),"",Scenarios!A10) -> 0
A10: MINCLN | B10: IMPOCR | C10: MINCLN | D10: MINCLE-A | G10: MINGIH | H10: ETGIH | I10: ERSOLPRC-N | J10: ERSOLPRC-N | K10: ERSOLTC12-N | L10: ETCRBSCBO-I | N10: ETGICCC-N | Q10: ERHYDGIE-I | R10: ERSOLPRR-N | U10: ERSOLTC12-N | X10: PWRCO2S | Y10: ot | Z10: PWRGAS | AB10: =IF(ISBLANK(Scenarios!B11),"",Scenarios!B11) -> REFR2020 | AC10: =IF(ISBLANK(Scenarios!E11),"",Scenarios!E11) -> TRREFR-2 | AD10: REFR2020 | AE10: =IF(ISBLANK(Scenarios!A11),"",Scenarios!A11) -> 0
A11: MINCLE-A | B11: IMPODS | C11: MINCLE-A | D11: MINCLN-A | G11: MIRGRM | H11: ETN | I11: ERSOLPRR-N | J11: ERSOLPRR-N | K11: ERSOLTC14-N | L11: ETCRBSCMO-I | N11: ETGICGT-N | Q11: ERHYDGIW-I | U11: ERSOLTC14-N | X11: RESCO2S | Y11: pp | Z11: PWRGIH | AB11: =IF(ISBLANK(Scenarios!B12),"",Scenarios!B12) -> REF14 | AC11: =IF(ISBLANK(Scenarios!E12),"",Scenarios!E12) -> TRREF | AD11: REF14 | AE11: =IF(ISBLANK(Scenarios!A12),"",Scenarios!A12) -> 0
A12: MINCLN-A | B12: IMPOGS | C12: MINCLN-A | G12: MIRGRN | H12: ERH | I12: ERSOLTC03-N | J12: ERSOLTC03-N | K12: ERSOLTT03-N | L12: ETCLEARNO-E | N12: ETGRMCC-N | Q12: ERHYDH-I | U12: ERSOLTT00-N | X12: TRACO2S | Y12: cp | Z12: PWRGIC | AB12: =IF(ISBLANK(Scenarios!B13),"",Scenarios!B13) -> EMS10 | AC12: =IF(ISBLANK(Scenarios!E13),"",Scenarios!E13) -> TREMS | AD12: EMS10 | AE12: =IF(ISBLANK(Scenarios!A13),"",Scenarios!A13) -> 1
A13: MINCLS | B13: IMPOHF | C13: MINCLS | G13: MIRGRS | H13: ERSOLPC | I13: ERSOLTC06-N | J13: ERSOLTC06-N | K13: ERSOLTT06-N | L13: ETCLECAMD-E | N13: ETGRNCC-I | Q13: ERHYD-I | U13: ERSOLTT03-N | X13: UPSCO2S | Y13: nm | Z13: INDCOA | AB13: =IF(ISBLANK(Scenarios!B14),"",Scenarios!B14) -> EMS-H10 | AC13: =IF(ISBLANK(Scenarios!E14),"",Scenarios!E14) -> TREMS-H | AD13: EMS-H10 | AE13: =IF(ISBLANK(Scenarios!A14),"",Scenarios!A14) -> 0
A14: MINCLS-A | B14: IMPOKE | C14: MINCLS-A | G14: IMPGRL | H14: ERSOLPR | I14: ERSOLTC09-N | J14: ERSOLTC09-N | K14: ERSOLTT09-N | L14: ETCLEDUVH-E | Q14: ERHYDI-I | U14: ERSOLTT06-N | X14: CO2S | Y14: is | Z14: INDGAS | AB14: =IF(ISBLANK(Scenarios!B15),"",Scenarios!B15) -> REFR10 | AC14: =IF(ISBLANK(Scenarios!E15),"",Scenarios!E15) -> TRREFR | AD14: REFR10 | AE14: =IF(ISBLANK(Scenarios!A15),"",Scenarios!A15) -> 1
A15: MINCOA | B15: IMPOLP | C15: MINCOA | G15: IMPGWL | H15: ERSOLT | I15: ERSOLTC12-N | J15: ERSOLTC12-N | L15: ETCLEGROO-E | Q15: ERHYDK-I | U15: ERSOLTT09-N | X15: CO2EQS | Y15: nf | Z15: INDELC | AB15: =IF(ISBLANK(Scenarios!B16),"",Scenarios!B16) -> REFT3014 | AC15: =IF(ISBLANK(Scenarios!E16),"",Scenarios!E16) -> TRREFT30 | AD15: REFT3014 | AE15: =IF(ISBLANK(Scenarios!A16),"",Scenarios!A16) -> 0
A16: PEXCME | B16: PEXOAG | C16: PEXCME | G16: PEXGAS | H16: ERW | I16: ERSOLTC14-N | J16: ERSOLTC14-N | L16: ETCLEHEND-E | Q16: ERHYDM-I | Y16: elec | Z16: RESELC | AB16: =IF(ISBLANK(Scenarios!B17),"",Scenarios!B17) -> REFRT14 | AC16: =IF(ISBLANK(Scenarios!E17),"",Scenarios!E17) -> TRREFRT | AD16: REFRT14 | AE16: =IF(ISBLANK(Scenarios!A17),"",Scenarios!A17) -> 0
A17: IMPBID | B17: PEXOCR | H17: ERB | I17: ERSOLTT00-N | J17: ERSOLTT00-N | L17: ETCLEKELA-E | Q17: ERHYD-N | Y17: com | Z17: RESGAS | AB17: =IF(ISBLANK(Scenarios!B18),"",Scenarios!B18) -> REFRHL | AC17: =IF(ISBLANK(Scenarios!E18),"",Scenarios!E18) -> TRREFRH | AD17: REFRHL | AE17: =IF(ISBLANK(Scenarios!A18),"",Scenarios!A18) -> 0
A18: IMPBIE | B18: PEXODS | I18: ERSOLTT03-N | J18: ERSOLTT03-N | L18: ETCLEKELB-E | Y18: tran | Z18: RESOLP | AB18: =IF(ISBLANK(Scenarios!B19),"",Scenarios!B19) -> REFRL | AC18: =IF(ISBLANK(Scenarios!E19),"",Scenarios!E19) -> TRREFR | AD18: REFRL | AE18: =IF(ISBLANK(Scenarios!A19),"",Scenarios!A19) -> 0
A19: IMPOAG | B19: PEXOGS | I19: ERSOLTT06-N | J19: ERSOLTT06-N | L19: ETCLEKEND-E | Z19: COMELC | AB19: =IF(ISBLANK(Scenarios!B20),"",Scenarios!B20) -> EMSR14L | AC19: =IF(ISBLANK(Scenarios!E20),"",Scenarios!E20) -> TREMSR | AD19: EMSR14L | AE19: =IF(ISBLANK(Scenarios!A20),"",Scenarios!A20) -> 0
A20: IMPOCR | B20: PEXOHF | I20: ERSOLTT09-N | J20: ERSOLTT09-N | L20: ETCLEKOMA-E | Z20: COMGAS | AB20: =IF(ISBLANK(Scenarios!B21),"",Scenarios!B21) -> REFT(EV1) | AC20: =IF(ISBLANK(Scenarios!E21),"",Scenarios!E21) -> TRREFTR_EV1 | AD20: REFT(EV1) | AE20: =IF(ISBLANK(Scenarios!A21),"",Scenarios!A21) -> 0
A21: IMPODS | B21: PEXOKE | I21: ETCLDFB-N | L21: ETCLEKRIE-E | Z21: TRAELC | AB21: =IF(ISBLANK(Scenarios!B22),"",Scenarios!B22) -> REFR-UCE | AC21: =IF(ISBLANK(Scenarios!E22),"",Scenarios!E22) -> TRREFR | AD21: =AB21 -> REFR-UCE | AE21: =IF(ISBLANK(Scenarios!A22),"",Scenarios!A22) -> 0
A22: IMPOGS | I22: ETCLEIG-N | L22: ETCLELETH-E | Z22: TRAODS | AB22: =IF(ISBLANK(Scenarios!B23),"",Scenarios!B23) -> REF-UCE(EV1) | AC22: =IF(ISBLANK(Scenarios!E23),"",Scenarios!E23) -> TRREFR_EV1 | AD22: REF-UCE(EV1) | AE22: =IF(ISBLANK(Scenarios!A23),"",Scenarios!A23) -> 0
A23: IMPOHF | L23: ETCLEMAJD-E | Z23: TRAOGS | AB23: =IF(ISBLANK(Scenarios!B24),"",Scenarios!B24) -> REFR2020-UCE | AC23: =IF(ISBLANK(Scenarios!E24),"",Scenarios!E24) -> TRREFR-2 | AD23: REFR2020-UCE | AE23: =IF(ISBLANK(Scenarios!A24),"",Scenarios!A24) -> 0
A24: IMPOKE | I24: ETGASCC-N | L24: ETCLEMAJW-E | Z24: TRAGAS | AB24: =IF(ISBLANK(Scenarios!B25),"",Scenarios!B25) -> REFRH | AC24: =IF(ISBLANK(Scenarios!E25),"",Scenarios!E25) -> TRREFRH | AD24: REFRH | AE24: =IF(ISBLANK(Scenarios!A25),"",Scenarios!A25) -> 0
A25: IMPOLP | I25: ETGASCCSS-N | L25: ETCLEMATI-E | Z25: CME-R | AB25: =IF(ISBLANK(Scenarios!B26),"",Scenarios!B26) -> REFRH-UCE | AC25: =IF(ISBLANK(Scenarios!E26),"",Scenarios!E26) -> TRREFRH | AD25: REFRH-UCE | AE25: =IF(ISBLANK(Scenarios!A26),"",Scenarios!A26) -> 0
A26: PEXOAG | I26: ETGASGT-N | L26: ETCLEMATL-E | Z26: GIHE | AB26: =IF(ISBLANK(Scenarios!B27),"",Scenarios!B27) -> EMSR10 | AC26: =IF(ISBLANK(Scenarios!E27),"",Scenarios!E27) -> TREMSR | AD26: EMSR10 | AE26: =IF(ISBLANK(Scenarios!A27),"",Scenarios!A27) -> 0
A27: PEXOCR | I27: ETGICCC-N | L27: ETCLEPFSI-E | AB27: =IF(ISBLANK(Scenarios!B28),"",Scenarios!B28) -> REFR2020-2 | AC27: =IF(ISBLANK(Scenarios!E28),"",Scenarios!E28) -> TRREFR-2 | AD27: REFR2020-2 | AE27: =IF(ISBLANK(Scenarios!A28),"",Scenarios!A28) -> 0
A28: PEXODS | I28: ETGICGT-N | L28: ETCLEPFSS-E | AB28: =IF(ISBLANK(Scenarios!B29),"",Scenarios!B29) ->  | AC28: =IF(ISBLANK(Scenarios!E29),"",Scenarios!E29) ->  | AE28: =IF(ISBLANK(Scenarios!A29),"",Scenarios!A29) -> 
A29: PEXOGS | I29: ETGRMCC-N | L29: ETCLEPRET-E | AB29: =IF(ISBLANK(Scenarios!B30),"",Scenarios!B30) ->  | AC29: =IF(ISBLANK(Scenarios!E30),"",Scenarios!E30) ->  | AE29: =IF(ISBLANK(Scenarios!A30),"",Scenarios!A30) -> 
A30: PEXOHF | I30: ETGIHCC-N | L30: ETCLEROOI-E | AB30: =IF(ISBLANK(Scenarios!B31),"",Scenarios!B31) ->  | AC30: =IF(ISBLANK(Scenarios!E31),"",Scenarios!E31) ->  | AE30: =IF(ISBLANK(Scenarios!A31),"",Scenarios!A31) -> 
A31: PEXOKE | I31: ETGIHGT-N | L31: ETCLETUTU-E | AB31: =IF(ISBLANK(Scenarios!B32),"",Scenarios!B32) ->  | AC31: =IF(ISBLANK(Scenarios!E32),"",Scenarios!E32) ->  | AE31: =IF(ISBLANK(Scenarios!A32),"",Scenarios!A32) -> 
A32: MINGAS | I32: ETCLESC-N | AB32: =IF(ISBLANK(Scenarios!B39),"",Scenarios!B39) ->  | AC32: =IF(ISBLANK(Scenarios!E33),"",Scenarios!E33) ->  | AD32: =AB32 ->  | AE32: =IF(ISBLANK(Scenarios!A39),"",Scenarios!A39) -> 
A33: MINGIB | AB33: =IF(ISBLANK(Scenarios!B40),"",Scenarios!B40) ->  | AC33: =IF(ISBLANK(Scenarios!E34),"",Scenarios!E34) ->  | AE33: =IF(ISBLANK(Scenarios!A40),"",Scenarios!A40) -> 
A34: MINGIC | AB34: =IF(ISBLANK(Scenarios!B41),"",Scenarios!B41) ->  | AC34: =IF(ISBLANK(Scenarios!E35),"",Scenarios!E35) ->  | AE34: =IF(ISBLANK(Scenarios!A41),"",Scenarios!A41) -> 
A35: MINGIH | AB35: =IF(ISBLANK(Scenarios!B42),"",Scenarios!B42) ->  | AC35: =IF(ISBLANK(Scenarios!E36),"",Scenarios!E36) ->  | AE35: =IF(ISBLANK(Scenarios!A42),"",Scenarios!A42) -> 
A36: MIRGRM | AB36: =IF(ISBLANK(Scenarios!B43),"",Scenarios!B43) ->  | AC36: =IF(ISBLANK(Scenarios!E37),"",Scenarios!E37) ->  | AE36: =IF(ISBLANK(Scenarios!A43),"",Scenarios!A43) -> 
A37: MIRGRN | AB37: =IF(ISBLANK(Scenarios!B44),"",Scenarios!B44) ->  | AC37: =IF(ISBLANK(Scenarios!E38),"",Scenarios!E38) ->  | AE37: =IF(ISBLANK(Scenarios!A44),"",Scenarios!A44) -> 
A38: MIRGRS | AB38: =IF(ISBLANK(Scenarios!B45),"",Scenarios!B45) ->  | AC38: =IF(ISBLANK(Scenarios!E39),"",Scenarios!E39) ->  | AE38: =IF(ISBLANK(Scenarios!A45),"",Scenarios!A45) -> 
A39: IMPGRL | AB39: =IF(ISBLANK(Scenarios!B46),"",Scenarios!B46) ->  | AC39: =IF(ISBLANK(Scenarios!E40),"",Scenarios!E40) ->  | AE39: =IF(ISBLANK(Scenarios!A46),"",Scenarios!A46) -> 
A40: IMPGWL | AB40: =IF(ISBLANK(Scenarios!B47),"",Scenarios!B47) ->  | AC40: =IF(ISBLANK(Scenarios!E41),"",Scenarios!E41) ->  | AE40: =IF(ISBLANK(Scenarios!A47),"",Scenarios!A47) -> 
A41: PEXGAS | AB41: =IF(ISBLANK(Scenarios!B48),"",Scenarios!B48) ->  | AC41: =IF(ISBLANK(Scenarios!E42),"",Scenarios!E42) ->  | AE41: =IF(ISBLANK(Scenarios!A48),"",Scenarios!A48) -> 
AB42: =IF(ISBLANK(Scenarios!B49),"",Scenarios!B49) ->  | AC42: =IF(ISBLANK(Scenarios!E43),"",Scenarios!E43) ->  | AE42: =IF(ISBLANK(Scenarios!A49),"",Scenarios!A49) -> 
AB43: =IF(ISBLANK(Scenarios!B50),"",Scenarios!B50) ->  | AC43: =IF(ISBLANK(Scenarios!E44),"",Scenarios!E44) ->  | AE43: =IF(ISBLANK(Scenarios!A50),"",Scenarios!A50) -> 
AB44: =IF(ISBLANK(Scenarios!B51),"",Scenarios!B51) ->  | AC44: =IF(ISBLANK(Scenarios!E45),"",Scenarios!E45) ->  | AE44: =IF(ISBLANK(Scenarios!A51),"",Scenarios!A51) -> 
AB45: =IF(ISBLANK(Scenarios!B52),"",Scenarios!B52) ->  | AC45: =IF(ISBLANK(Scenarios!E46),"",Scenarios!E46) ->  | AE45: =IF(ISBLANK(Scenarios!A52),"",Scenarios!A52) -> 
AB46: =IF(ISBLANK(Scenarios!B53),"",Scenarios!B53) ->  | AC46: =IF(ISBLANK(Scenarios!E47),"",Scenarios!E47) ->  | AE46: =IF(ISBLANK(Scenarios!A53),"",Scenarios!A53) -> 
AB47: =IF(ISBLANK(Scenarios!B54),"",Scenarios!B54) ->  | AC47: =IF(ISBLANK(Scenarios!E48),"",Scenarios!E48) ->  | AE47: =IF(ISBLANK(Scenarios!A54),"",Scenarios!A54) -> 
AB48: =IF(ISBLANK(Scenarios!B55),"",Scenarios!B55) ->  | AC48: =IF(ISBLANK(Scenarios!E49),"",Scenarios!E49) ->  | AE48: =IF(ISBLANK(Scenarios!A55),"",Scenarios!A55) -> 
AB49: =IF(ISBLANK(Scenarios!B56),"",Scenarios!B56) ->  | AC49: =IF(ISBLANK(Scenarios!E50),"",Scenarios!E50) ->  | AE49: =IF(ISBLANK(Scenarios!A56),"",Scenarios!A56) -> 
AB50: =IF(ISBLANK(Scenarios!B57),"",Scenarios!B57) ->  | AC50: =IF(ISBLANK(Scenarios!E51),"",Scenarios!E51) ->  | AE50: =IF(ISBLANK(Scenarios!A57),"",Scenarios!A57) -> 

Sheet GDP_Y
K1: =MAX(K6:K1005) -> 0.013 | L1: =MAX(L6:L1005) -> 0.011 | M1: 0.011 | N1: 0.07376411639 | O1: 0.06101018066 | P1: 0.07096937732 | Q1: 0.08631082685 | R1: 0.0821170148 | S1: 0.06786444132 | T1: 0.07266239105 | U1: 0.07360556619 | V1: 0.08386069919 | W1: 0.06939318785 | X1: 0.07633098694 | Y1: 0.07409922377 | Z1: 0.07407948609 | AA1: 0.07585482222 | AB1: 0.07136938667 | AC1: 0.07063749671 | AD1: 0.07273335622 | AE1: 0.07288800705 | AF1: 0.07875397777 | AG1: 0.08231901853 | AH1: 0.07872477007 | AI1: 0.07240036272 | AJ1: 0.07674599724 | AK1: 0.07744696437 | AL1: 0.07202659889 | AM1: 0.0701508656 | AN1: 0.07419622596 | AO1: 0.08240894063 | AP1: 0.08037224552 | AQ1: 0.08371032364 | AR1: 0.08400857521 | AS1: 0.07762339732 | AW1: =MAX(AW6:AW1005) -> 0.05546750199
B2: =TRANSPOSE(StatsSA!AD20:AD27) -> 0.0558568889 | C2: 0.03761904889 | D2: -0.01342262447 | E2: 0.03079705535 | F2: 0.03431486036 | G2: 0.02438737423 | H2: 0.01867879138 | J2: 0.6962587948 | K2: =AVERAGE(K6:K1005) -> 0.013 | L2: =AVERAGE(L6:L1005) -> 0.011 | M2: 0.011 | N2: 0.03070514048 | O2: 0.03030931857 | P2: 0.03309557773 | Q2: 0.03364798741 | R2: 0.03368101913 | S2: 0.03339761697 | T2: 0.0337923652 | U2: 0.03347378708 | V2: 0.03335262317 | W2: 0.03289941819 | X2: 0.03380477428 | Y2: 0.03349028674 | Z2: 0.03344910394 | AA2: 0.0336748298 | AB2: 0.03328280542 | AC2: 0.03333928127 | AD2: 0.0329578715 | AE2: 0.03297583871 | AF2: 0.03350632209 | AG2: 0.03392312048 | AH2: 0.03377254196 | AI2: 0.03356722782 | AJ2: 0.03370518217 | AK2: 0.0332694287 | AL2: 0.03335356456 | AM2: 0.03345073092 | AN2: 0.03354136448 | AO2: 0.03409614767 | AP2: 0.03390438599 | AQ2: 0.03423020278 | AR2: 0.0337943773 | AS2: 0.03341220927 | AW2: =AVERAGE(AW6:AW1005) -> 0.03437473341
K3: =MIN(K6:K1005) -> 0.013 | L3: =MIN(L6:L1005) -> 0.011 | M3: 0.011 | N3: 0.003542330012 | O3: 0.002007101237 | P3: -0.00471147756 | Q3: 0.002307049906 | R3: 0.0005680715782 | S3: 0.0006929578325 | T3: -0.006268109764 | U3: -0.00646883106 | V3: -0.007269715646 | W3: -0.007626557193 | X3: -0.004026696974 | Y3: 5.452295042e-05 | Z3: -0.005252280574 | AA3: -0.003769737991 | AB3: -0.0009739413783 | AC3: -0.01302618424 | AD3: -0.005128560033 | AE3: -0.003778704827 | AF3: -0.003166510276 | AG3: 0.0001434309782 | AH3: -0.001483547935 | AI3: -0.001459423014 | AJ3: -0.0007642657521 | AK3: 0.0002233466375 | AL3: -0.01418339968 | AM3: -0.001567505579 | AN3: 0.002516600394 | AO3: -0.006729676219 | AP3: 0.0009749208033 | AQ3: -0.003845317279 | AR3: -0.007360648084 | AS3: -0.007277210177 | AW3: =MIN(AW6:AW1005) -> 0.02046190274
A4: =Index!B39 -> SIM_GDP_Y | AV4: avg growth
B5: 2007 | C5: 2008 | D5: 2009 | E5: 2010 | F5: 2011 | G5: 2012 | H5: 2013 | I5: 2014 | J5: =I5+1 -> 2015 | K5: =J5+1 -> 2016 | L5: 2017 | M5: 2018 | N5: 2019 | O5: 2020 | P5: 2021 | Q5: 2022 | R5: 2023 | S5: 2024 | T5: 2025 | U5: 2026 | V5: 2027 | W5: 2028 | X5: 2029 | Y5: 2030 | Z5: 2031 | AA5: 2032 | AB5: 2033 | AC5: 2034 | AD5: 2035 | AE5: 2036 | AF5: 2037 | AG5: 2038 | AH5: 2039 | AI5: 2040 | AJ5: 2041 | AK5: 2042 | AL5: 2043 | AM5: 2044 | AN5: 2045 | AO5: 2046 | AP5: 2047 | AQ5: 2048 | AR5: 2049 | AS5: 2050
A6: 1 | B6: =B$2 -> 0.0558568889 | C6: 0.03761904889 | D6: -0.01342262447 | E6: 0.03079705535 | F6: 0.03431486036 | G6: 0.02438737423 | H6: 0.01867879138 | I6: 0.015 | J6: =I6 -> 0.015 | K6: 0.013 | L6: 0.011 | M6: =L6 -> 0.011 | N6: 0.01844096545 | O6: 0.01613809357 | P6: 0.0206591418 | Q6: 0.01476766334 | R6: 0.01480770729 | S6: 0.01034080332 | T6: 0.03051483356 | U6: 0.03171687124 | V6: 0.02108965351 | W6: 0.02247963567 | X6: 0.02219255867 | Y6: 0.03104917299 | Z6: 0.04154652388 | AA6: 0.0340634047 | AB6: 0.0321980842 | AC6: 0.008327436021 | AD6: 0.02918442284 | AE6: 0.03872158831 | AF6: 0.04015994296 | AG6: 0.04032716264 | AH6: 0.03592927825 | AI6: 0.03049738914 | AJ6: 0.03099012971 | AK6: 0.03693808679 | AL6: 0.03174562061 | AM6: 0.05310976073 | AN6: 0.05200515463 | AO6: 0.03811832563 | AP6: 0.04148884914 | AQ6: 0.0374597637 | AR6: 0.03195399391 | AS6: 0.03885493668 | AV6: =PRODUCT(N6:AS6+1) -> 2.615305179 | AW6: =AV6^(1/($AS$5-$N$5))-1 -> 0.0314981744
A7: 2 | B7: 0.0558568889 | C7: 0.03761904889 | D7: -0.01342262447 | E7: 0.03079705535 | F7: 0.03431486036 | G7: 0.02438737423 | H7: 0.01867879138 | I7: 0.015 | J7: =I7 -> 0.015 | K7: =K6 -> 0.013 | L7: 0.011 | M7: =L7 -> 0.011 | N7: 0.03855790653 | O7: 0.03646759064 | P7: 0.04284783002 | Q7: 0.04691539529 | R7: 0.02005977836 | S7: 0.04516987261 | T7: 0.02097672304 | U7: 0.02213034074 | V7: 0.03203442201 | W7: 0.03150989364 | X7: 0.02981025537 | Y7: 0.03271152151 | Z7: 0.0331420762 | AA7: 0.03620691692 | AB7: 0.02775838658 | AC7: 0.03052905922 | AD7: 0.009417515452 | AE7: 0.02360684406 | AF7: 0.02799337281 | AG7: 0.02616781402 | AH7: 0.03585420926 | AI7: 0.03915567638 | AJ7: 0.002970161139 | AK7: 0.03277450196 | AL7: 0.02011068491 | AM7: 0.01226066379 | AN7: 0.01511167266 | AO7: 0.01068307872 | AP7: 0.009712210868 | AQ7: 0.0179597688 | AR7: 0.04400940528 | AS7: 0.04120213162 | AV7: =PRODUCT(N7:AS7+1) -> 2.414553695 | AW7: =AV7^(1/($AS$5-$N$5))-1 -> 0.02884411175
A8: 3 | B8: 0.0558568889 | C8: 0.03761904889 | D8: -0.01342262447 | E8: 0.03079705535 | F8: 0.03431486036 | G8: 0.02438737423 | H8: 0.01867879138 | I8: 0.015 | J8: 0.015 | K8: =K7 -> 0.013 | L8: 0.011 | M8: 0.011 | N8: 0.03467226333 | O8: 0.02479736641 | P8: 0.0273472451 | Q8: 0.04460667697 | R8: 0.03607540269 | S8: 0.03447327483 | T8: 0.03462315628 | U8: 0.0257986435 | V8: 0.04082138424 | W8: 0.02460689876 | X8: 0.03426591904 | Y8: 0.02984566045 | Z8: -0.002206225678 | AA8: 0.03928618747 | AB8: 0.03629616976 | AC8: 0.03482620875 | AD8: 0.03230874223 | AE8: 0.0276396217 | AF8: 0.03037275019 | AG8: 0.01332560766 | AH8: 0.02233329228 | AI8: 0.009837800388 | AJ8: 0.02396533224 | AK8: 0.03775512075 | AL8: 0.02443396575 | AM8: 0.02496823672 | AN8: 0.01631875947 | AO8: 0.01814372095 | AP8: 0.02778521178 | AQ8: 0.03321455656 | AR8: 0.03409904474 | AS8: 0.02511060566 | AV8: =PRODUCT(N8:AS8+1) -> 2.430010554 | AW8: 0.029055914
A9: 4 | B9: 0.0558568889 | C9: 0.03761904889 | D9: -0.01342262447 | E9: 0.03079705535 | F9: 0.03431486036 | G9: 0.02438737423 | H9: 0.01867879138 | I9: 0.015 | J9: 0.015 | K9: 0.013 | L9: 0.011 | M9: 0.011 | N9: 0.01813222996 | O9: 0.04550516259 | P9: 0.04714988895 | Q9: 0.04136665878 | R9: 0.03357575136 | S9: 0.02559063713 | T9: 0.02231762573 | U9: 0.02383768402 | V9: 0.02211267541 | W9: 0.02444853598 | X9: 0.04329974087 | Y9: 0.04486808541 | Z9: 0.02951193381 | AA9: 0.04114042307 | AB9: 0.03290158539 | AC9: 0.03811837538 | AD9: 0.04280780407 | AE9: 0.0181667276 | AF9: 0.03323187407 | AG9: 0.03390315838 | AH9: 0.03363866087 | AI9: 0.02296703413 | AJ9: 0.02246138782 | AK9: 0.01987889406 | AL9: 0.02364277778 | AM9: 0.02120808685 | AN9: 0.03218818561 | AO9: 0.03709850698 | AP9: 0.03169523934 | AQ9: 0.0419749123 | AR9: 0.03919202428 | AS9: 0.04090709813 | AV9: =PRODUCT(N9:AS9+1) -> 2.749583854 | AW9: 0.03316551586
A10: 5 | B10: 0.0558568889 | C10: 0.03761904889 | D10: -0.01342262447 | E10: 0.03079705535 | F10: 0.03431486036 | G10: 0.02438737423 | H10: 0.01867879138 | I10: 0.015 | J10: 0.015 | K10: 0.013 | L10: 0.011 | M10: 0.011 | N10: 0.02999482586 | O10: 0.02281467802 | P10: 0.02276862451 | Q10: 0.02847089394 | R10: 0.02849418611 | S10: 0.02847372674 | T10: 0.03344627786 | U10: 0.04366829845 | V10: 0.02622326168 | W10: 0.02596947732 | X10: 0.0227387954 | Y10: 0.0458861608 | Z10: 0.03391638063 | AA10: 0.03135437989 | AB10: 0.01997041642 | AC10: 0.007163555702 | AD10: 0.0302902435 | AE10: 0.04003253131 | AF10: 0.02850616343 | AG10: 0.03538964691 | AH10: 0.0300904226 | AI10: 0.019460188 | AJ10: 0.04759426941 | AK10: 0.03471039792 | AL10: 0.03479483383 | AM10: 0.04304763276 | AN10: 0.02478462604 | AO10: 0.04483443318 | AP10: 0.061224401 | AQ10: 0.03150536068 | AR10: 0.0116004921 | AS10: 0.02376048438 | AV10: =PRODUCT(N10:AS10+1) -> 2.654315529 | AW10: 0.03199094967
A11: 6 | B11: 0.0558568889 | C11: 0.03761904889 | D11: -0.01342262447 | E11: 0.03079705535 | F11: 0.03431486036 | G11: 0.02438737423 | H11: 0.01867879138 | I11: 0.015 | J11: 0.015 | K11: 0.013 | L11: 0.011 | M11: 0.011 | N11: 0.02043534047 | O11: 0.03807202635 | P11: 0.03664004552 | Q11: 0.04259777333 | R11: 0.04476931649 | S11: 0.04022466803 | T11: 0.0496141528 | U11: 0.05105638911 | V11: 0.04583884948 | W11: 0.04424541229 | X11: 0.05515981113 | Y11: 0.05687243502 | Z11: 0.03706677326 | AA11: 0.03943100369 | AB11: 0.04047017939 | AC11: 0.02994501178 | AD11: 0.02620271508 | AE11: 0.06596972285 | AF11: 0.07083976362 | AG11: 0.08231901853 | AH11: 0.05133583357 | AI11: 0.06530058319 | AJ11: 0.06369149357 | AK11: 0.04990055701 | AL11: 0.04843136966 | AM11: 0.06978519596 | AN11: 0.06579679411 | AO11: 0.05861667486 | AP11: 0.04286396853 | AQ11: 0.0438195374 | AR11: 0.04383329911 | AS11: 0.03484919029 | AV11: =PRODUCT(N11:AS11+1) -> 4.556816561 | AW11: 0.05013986823
A12: 7 | B12: 0.0558568889 | C12: 0.03761904889 | D12: -0.01342262447 | E12: 0.03079705535 | F12: 0.03431486036 | G12: 0.02438737423 | H12: 0.01867879138 | I12: 0.015 | J12: 0.015 | K12: 0.013 | L12: 0.011 | M12: 0.011 | N12: 0.03842674416 | O12: 0.02105066775 | P12: 0.02436988725 | Q12: 0.02433129505 | R12: 0.0137603427 | S12: 0.04838568025 | T12: 0.05402486036 | U12: 0.02941768476 | V12: 0.03435065603 | W12: 0.01139272268 | X12: 0.01766720899 | Y12: 0.02457594466 | Z12: 0.02598081826 | AA12: 0.02174422552 | AB12: 0.04154899527 | AC12: 0.04542459176 | AD12: 0.01691565068 | AE12: 0.01812703553 | AF12: 0.03312854774 | AG12: 0.04109617649 | AH12: 0.02952257836 | AI12: 0.04061574324 | AJ12: 0.03655500963 | AK12: 0.04140257669 | AL12: 0.0399262349 | AM12: 0.03658056744 | AN12: 0.04031605752 | AO12: 0.037210868 | AP12: 0.009034839393 | AQ12: 0.02915531249 | AR12: 0.06140548069 | AS12: 0.04698917065 | AV12: =PRODUCT(N12:AS12+1) -> 2.761395454 | AW12: 0.03330838843
A13: 8 | B13: 0.0558568889 | C13: 0.03761904889 | D13: -0.01342262447 | E13: 0.03079705535 | F13: 0.03431486036 | G13: 0.02438737423 | H13: 0.01867879138 | I13: 0.015 | J13: 0.015 | K13: 0.013 | L13: 0.011 | M13: 0.011 | N13: 0.03700583706 | O13: 0.02437907276 | P13: 0.02501534097 | Q13: 0.02775468161 | R13: 0.02808769852 | S13: 0.02856514344 | T13: 0.02853918772 | U13: 0.01499825092 | V13: 0.01497238232 | W13: 0.01490084295 | X13: 0.03096952178 | Y13: 0.01830063064 | Z13: 0.04405485531 | AA13: 0.03979699261 | AB13: 0.04320097691 | AC13: 0.03189280118 | AD13: 0.01638763838 | AE13: 0.02387525354 | AF13: 0.02172103992 | AG13: 0.02290401231 | AH13: 0.02244904943 | AI13: 0.0232959094 | AJ13: 0.03336874333 | AK13: 0.03025576768 | AL13: 0.03047611802 | AM13: 0.03536612114 | AN13: 0.03603374332 | AO13: 0.03755553278 | AP13: 0.03800437225 | AQ13: 0.0352723761 | AR13: 0.03653735989 | AS13: 0.04678799631 | AV13: =PRODUCT(N13:AS13+1) -> 2.529388348 | AW13: 0.03038730776
A14: 9 | B14: 0.0558568889 | C14: 0.03761904889 | D14: -0.01342262447 | E14: 0.03079705535 | F14: 0.03431486036 | G14: 0.02438737423 | H14: 0.01867879138 | I14: 0.015 | J14: 0.015 | K14: 0.013 | L14: 0.011 | M14: 0.011 | N14: 0.03298524497 | O14: 0.008251746408 | P14: 0.02313916076 | Q14: 0.03933759237 | R14: 0.03891139969 | S14: 0.03956271782 | T14: 0.03299334851 | U14: 0.02699062714 | V14: 0.02719514185 | W14: 0.02589856041 | X14: 0.02212657304 | Y14: 0.02224935633 | Z14: 0.03576241846 | AA14: 0.03592745887 | AB14: 0.038224221 | AC14: 0.01113472452 | AD14: 0.04829173269 | AE14: 0.03808162805 | AF14: 0.038067333 | AG14: 0.04455746129 | AH14: 0.04042694583 | AI14: 0.03130527876 | AJ14: 0.02266162885 | AK14: 0.03718243051 | AL14: 0.02675330854 | AM14: 0.01972159583 | AN14: 0.02398145378 | AO14: 0.0359002377 | AP14: 0.007872480824 | AQ14: 0.05773874984 | AR14: 0.04924536057 | AS14: 0.05073272658 | AV14: =PRODUCT(N14:AS14+1) -> 2.758828956 | AW14: 0.03327739454
A15: 10 | B15: 0.0558568889 | C15: 0.03761904889 | D15: -0.01342262447 | E15: 0.03079705535 | F15: 0.03431486036 | G15: 0.02438737423 | H15: 0.01867879138 | I15: 0.015 | J15: 0.015 | K15: 0.013 | L15: 0.011 | M15: 0.011 | N15: 0.02734033868 | O15: 0.02184383978 | P15: 0.03953167695 | Q15: 0.04656583356 | R15: 0.04354678037 | S15: 0.04372491875 | T15: 0.04304925511 | U15: 0.05043899908 | V15: 0.05087052866 | W15: 0.05203603074 | X15: 0.01954570165 | Y15: 0.0414752597 | Z15: 0.03728194026 | AA15: 0.04526231541 | AB15: 0.05134954464 | AC15: 0.04137027691 | AD15: 0.04062344253 | AE15: 0.03494467728 | AF15: 0.03454289209 | AG15: 0.03905827296 | AH15: 0.04238658036 | AI15: 0.04264502223 | AJ15: 0.04516522584 | AK15: 0.04907159687 | AL15: 0.05238403279 | AM15: 0.03997512568 | AN15: 0.0294551859 | AO15: 0.03034483872 | AP15: 0.04375245577 | AQ15: 0.03338075286 | AR15: 0.02566733365 | AS15: 0.02582754676 | AV15: =PRODUCT(N15:AS15+1) -> 3.45197151 | AW15: 0.04077537111
A16: 11 | B16: =B$2 -> 0.0558568889 | C16: 0.03761904889 | D16: -0.01342262447 | E16: 0.03079705535 | F16: 0.03431486036 | G16: 0.02438737423 | H16: 0.01867879138 | I16: 0.015 | J16: 0.015 | K16: 0.013 | L16: 0.011 | M16: 0.011 | N16: 0.02718668584 | O16: 0.02298147762 | P16: 0.05679164065 | Q16: 0.03957668634 | R16: 0.04602019673 | S16: 0.05411840447 | T16: 0.03776988008 | U16: 0.04461874312 | V16: 0.04634639312 | W16: 0.04480341746 | X16: 0.03261347726 | Y16: 0.03189671279 | Z16: 0.04135777345 | AA16: 0.03886488789 | AB16: 0.0516535839 | AC16: 0.04225080117 | AD16: 0.02451343083 | AE16: 0.03913929521 | AF16: 0.03562030264 | AG16: 0.04071007447 | AH16: 0.0165587874 | AI16: 0.02984990011 | AJ16: 0.027484285 | AK16: 0.03787389765 | AL16: 0.04804212258 | AM16: 0.01741109246 | AN16: 0.03041136871 | AO16: 0.04642496328 | AP16: 0.03430367484 | AQ16: 0.03090685245 | AR16: 0.03093953277 | AS16: 0.04381204962 | AV16: =PRODUCT(N16:AS16+1) -> 3.22110093 | AW16: 0.03845393553
A17: 12 | B17: 0.0558568889 | C17: 0.03761904889 | D17: -0.01342262447 | E17: 0.03079705535 | F17: 0.03431486036 | G17: 0.02438737423 | H17: 0.01867879138 | I17: 0.015 | J17: 0.015 | K17: 0.013 | L17: 0.011 | M17: 0.011 | N17: 0.03666610145 | O17: 0.03074218089 | P17: 0.02919128626 | Q17: 0.0131507905 | R17: 0.02007111721 | S17: 0.01886783978 | T17: 0.03303253869 | U17: 0.03380249834 | V17: 0.01570709717 | W17: 0.01709061933 | X17: 0.008721327404 | Y17: 0.008891803817 | Z17: 0.0209383906 | AA17: 0.005064548863 | AB17: -0.0009739413783 | AC17: 0.03406769699 | AD17: 0.02271522014 | AE17: 0.0226107877 | AF17: 0.05283421919 | AG17: 0.01405963678 | AH17: 0.0465205336 | AI17: 0.03643493826 | AJ17: 0.03596956469 | AK17: 0.02426361456 | AL17: 0.02825490733 | AM17: 0.02541536175 | AN17: 0.02467487869 | AO17: 0.02610754088 | AP17: 0.01488727171 | AQ17: 0.0514345163 | AR17: 0.03731697027 | AS17: 0.03492496303 | AV17: =PRODUCT(N17:AS17+1) -> 2.249361754 | AW17: 0.02649479564
A18: 13 | B18: 0.0558568889 | C18: 0.03761904889 | D18: -0.01342262447 | E18: 0.03079705535 | F18: 0.03431486036 | G18: 0.02438737423 | H18: 0.01867879138 | I18: 0.015 | J18: 0.015 | K18: 0.013 | L18: 0.011 | M18: 0.011 | N18: 0.03009806375 | O18: 0.03923925649 | P18: 0.04050704221 | Q18: 0.01829241336 | R18: 0.02370403693 | S18: 0.02409941263 | T18: 0.03502887635 | U18: 0.02840026744 | V18: 0.02785667795 | W18: -0.007626557193 | X18: 0.01842988418 | Y18: 0.02292793254 | Z18: 0.001473605062 | AA18: 0.0194620645 | AB18: 0.02601974231 | AC18: 0.03144927599 | AD18: 0.01026030575 | AE18: 0.02377091437 | AF18: 0.02413896353 | AG18: 0.02247280757 | AH18: 0.0271534062 | AI18: 0.02043400391 | AJ18: 0.03408296449 | AK18: 0.03005650492 | AL18: 0.02486639379 | AM18: 0.03931827402 | AN18: 0.03860243754 | AO18: 0.03260118542 | AP18: 0.03454780177 | AQ18: 0.0355858559 | AR18: 0.0198329967 | AS18: 0.02753549843 | AV18: =PRODUCT(N18:AS18+1) -> 2.253640306 | AW18: 0.02655772207
A19: 14 | B19: 0.0558568889 | C19: 0.03761904889 | D19: -0.01342262447 | E19: 0.03079705535 | F19: 0.03431486036 | G19: 0.02438737423 | H19: 0.01867879138 | I19: 0.015 | J19: 0.015 | K19: 0.013 | L19: 0.011 | M19: 0.011 | N19: 0.017743715 | O19: 0.01595032943 | P19: 0.03224295697 | Q19: 0.03564662582 | R19: 0.02649884122 | S19: 0.02914863089 | T19: 0.03089282512 | U19: 0.04371730902 | V19: 0.04209394943 | W19: 0.03295453572 | X19: 0.02576919474 | Y19: 0.03463879236 | Z19: 0.03922990985 | AA19: 0.03920761254 | AB19: 0.03438503815 | AC19: 0.04075460332 | AD19: 0.05155666744 | AE19: 0.01725227768 | AF19: 0.03084334452 | AG19: 0.03792811522 | AH19: 0.03835257574 | AI19: 0.04456000859 | AJ19: 0.03578466206 | AK19: 0.03463109543 | AL19: 0.02696444505 | AM19: 0.03001162015 | AN19: 0.03035611324 | AO19: 0.02650317049 | AP19: 0.0330037795 | AQ19: 0.01881360155 | AR19: 0.04688222126 | AS19: 0.05300056711 | AV19: =PRODUCT(N19:AS19+1) -> 2.881583501 | AW19: 0.0347294577
A20: 15 | B20: 0.0558568889 | C20: 0.03761904889 | D20: -0.01342262447 | E20: 0.03079705535 | F20: 0.03431486036 | G20: 0.02438737423 | H20: 0.01867879138 | I20: 0.015 | J20: 0.015 | K20: 0.013 | L20: 0.011 | M20: 0.011 | N20: 0.02629692565 | O20: 0.03960999246 | P20: 0.04690012908 | Q20: 0.06177436284 | R20: 0.06219896445 | S20: 0.06233048788 | T20: 0.06474573802 | U20: 0.04789333284 | V20: 0.06786819134 | W20: 0.05225332817 | X20: 0.05500238424 | Y20: 0.05366372633 | Z20: 0.05235691187 | AA20: 0.06643504107 | AB20: 0.05542278928 | AC20: 0.05057747132 | AD20: 0.04852290526 | AE20: 0.03041238107 | AF20: 0.04078344296 | AG20: 0.03714891317 | AH20: 0.02574177855 | AI20: 0.03922401068 | AJ20: 0.05851740735 | AK20: 0.05132827637 | AL20: 0.0499664607 | AM20: 0.04410039696 | AN20: 0.04398721324 | AO20: 0.04813541587 | AP20: 0.0457784674 | AQ20: 0.03196872584 | AR20: 0.0271428298 | AS20: 0.03555497305 | AV20: =PRODUCT(N20:AS20+1) -> 4.4214982 | AW20: 0.04911916593
A21: 16 | B21: 0.0558568889 | C21: 0.03761904889 | D21: -0.01342262447 | E21: 0.03079705535 | F21: 0.03431486036 | G21: 0.02438737423 | H21: 0.01867879138 | I21: 0.015 | J21: 0.015 | K21: 0.013 | L21: 0.011 | M21: 0.011 | N21: 0.01430886422 | O21: 0.03130633297 | P21: 0.04774473478 | Q21: 0.05332809665 | R21: 0.04255703149 | S21: 0.0393403128 | T21: 0.0405670598 | U21: 0.04463837433 | V21: 0.04736527399 | W21: 0.04125869889 | X21: 0.046518861 | Y21: 0.06319372737 | Z21: 0.06129856895 | AA21: 0.05577036289 | AB21: 0.0595115519 | AC21: 0.06199404737 | AD21: 0.02536450949 | AE21: 0.03361524388 | AF21: 0.03312320251 | AG21: 0.04184545422 | AH21: 0.04298943141 | AI21: 0.03684199091 | AJ21: 0.03637246353 | AK21: 0.03826573479 | AL21: 0.04842961113 | AM21: 0.04168214043 | AN21: 0.00796658454 | AO21: 0.04355941023 | AP21: 0.04569220196 | AQ21: 0.03998260129 | AR21: 0.03005376731 | AS21: 0.062976165 | AV21: =PRODUCT(N21:AS21+1) -> 3.777308511 | AW21: 0.04380359656
A22: 17 | B22: 0.0558568889 | C22: 0.03761904889 | D22: -0.01342262447 | E22: 0.03079705535 | F22: 0.03431486036 | G22: 0.02438737423 | H22: 0.01867879138 | I22: 0.015 | J22: 0.015 | K22: 0.013 | L22: 0.011 | M22: 0.011 | N22: 0.0388897352 | O22: 0.0409669748 | P22: 0.007067497486 | Q22: 0.03691748699 | R22: 0.02122358439 | S22: 0.01823700839 | T22: 0.01186009905 | U22: 0.02778117425 | V22: 0.01225558421 | W22: 0.02640894488 | X22: 0.03570414398 | Y22: 0.003561632452 | Z22: 0.01921246304 | AA22: 0.01195782481 | AB22: 0.01017567867 | AC22: 0.03224754764 | AD22: 0.02471401231 | AE22: 0.01149116248 | AF22: 0.02872007013 | AG22: 0.02885263808 | AH22: 0.03927311074 | AI22: 0.03922288764 | AJ22: 0.03955983334 | AK22: 0.03274466383 | AL22: 0.02442743468 | AM22: 0.02063970138 | AN22: 0.04644909814 | AO22: 0.04269670295 | AP22: 0.03592235307 | AQ22: 0.02878642634 | AR22: 0.04407532458 | AS22: 0.02577593184 | AV22: =PRODUCT(N22:AS22+1) -> 2.349420967 | AW22: 0.02793695313
A23: 18 | B23: 0.0558568889 | C23: 0.03761904889 | D23: -0.01342262447 | E23: 0.03079705535 | F23: 0.03431486036 | G23: 0.02438737423 | H23: 0.01867879138 | I23: 0.015 | J23: 0.015 | K23: 0.013 | L23: 0.011 | M23: 0.011 | N23: 0.009598966375 | O23: 0.05237932692 | P23: 0.0397977104 | Q23: 0.02327071342 | R23: 0.02213498528 | S23: 0.02222751749 | T23: 0.02598694142 | U23: 0.01362493215 | V23: 0.02637114385 | W23: 0.03464585299 | X23: 0.04266254372 | Y23: 0.06150714212 | Z23: 0.0465012504 | AA23: 0.04631631893 | AB23: 0.04414238957 | AC23: 0.02546382081 | AD23: 0.02861853207 | AE23: 0.01609486769 | AF23: 0.04893334157 | AG23: 0.03926349274 | AH23: 0.03832322679 | AI23: 0.03815831316 | AJ23: 0.02115625247 | AK23: 0.03203955473 | AL23: 0.0308260921 | AM23: 0.02617882036 | AN23: 0.04174986061 | AO23: 0.0403392959 | AP23: 0.0334709992 | AQ23: 0.03286710386 | AR23: 0.02214401378 | AS23: 0.02153118113 | AV23: =PRODUCT(N23:AS23+1) -> 2.799506222 | AW23: 0.03376537512
A24: 19 | B24: 0.0558568889 | C24: 0.03761904889 | D24: -0.01342262447 | E24: 0.03079705535 | F24: 0.03431486036 | G24: 0.02438737423 | H24: 0.01867879138 | I24: 0.015 | J24: 0.015 | K24: 0.013 | L24: 0.011 | M24: 0.011 | N24: 0.02028774534 | O24: 0.03061652799 | P24: 0.0291654868 | Q24: 0.02495744634 | R24: 0.02677516179 | S24: 0.04004122803 | T24: 0.03970653804 | U24: 0.03995188993 | V24: 0.01356418991 | W24: 0.01634626047 | X24: 0.03800981838 | Y24: 0.04299151297 | Z24: 0.03660431837 | AA24: 0.05117270491 | AB24: 0.04618131298 | AC24: 0.03893709453 | AD24: 0.02352788316 | AE24: 0.02955025797 | AF24: 0.02511665449 | AG24: 0.037542554 | AH24: 0.03805634037 | AI24: 0.04646178317 | AJ24: 0.03621640601 | AK24: 0.03725830006 | AL24: 0.01411481464 | AM24: 0.0406268774 | AN24: 0.03974902812 | AO24: 0.03314457192 | AP24: 0.01332553503 | AQ24: 0.05544429619 | AR24: 0.04200092684 | AS24: 0.02839712388 | AV24: =PRODUCT(N24:AS24+1) -> 2.876155819 | AW24: 0.03466652963
A25: 20 | B25: 0.0558568889 | C25: 0.03761904889 | D25: -0.01342262447 | E25: 0.03079705535 | F25: 0.03431486036 | G25: 0.02438737423 | H25: 0.01867879138 | I25: 0.015 | J25: 0.015 | K25: 0.013 | L25: 0.011 | M25: 0.011 | N25: 0.0233304907 | O25: 0.01596437858 | P25: 0.02783885968 | Q25: 0.02888676639 | R25: 0.02895948371 | S25: 0.01375861282 | T25: 0.02116634314 | U25: 0.02063221754 | V25: 0.01872724998 | W25: 0.02552671649 | X25: 0.02175636834 | Y25: 0.02203100017 | Z25: 0.01786226092 | AA25: 0.03454882847 | AB25: 0.05163938207 | AC25: 0.01035976609 | AD25: 0.009276358866 | AE25: 0.04149210651 | AF25: 0.04106215918 | AG25: 0.04457661725 | AH25: 0.03107779163 | AI25: 0.03312088411 | AJ25: 0.02837219188 | AK25: 0.03827060108 | AL25: 0.03192653795 | AM25: 0.02752215363 | AN25: 0.03615470042 | AO25: 0.04598282732 | AP25: 0.03086435895 | AQ25: 0.01319166056 | AR25: 0.02957851613 | AS25: 0.04805960385 | AV25: =PRODUCT(N25:AS25+1) -> 2.45696538 | AW25: 0.02942217045
A26: 21 | B26: =B$2 -> 0.0558568889 | C26: 0.03761904889 | D26: -0.01342262447 | E26: 0.03079705535 | F26: 0.03431486036 | G26: 0.02438737423 | H26: 0.01867879138 | I26: 0.015 | J26: 0.015 | K26: 0.013 | L26: 0.011 | M26: 0.011 | N26: 0.02849030153 | O26: 0.03580168252 | P26: 0.0373276349 | Q26: 0.04909806121 | R26: 0.03710401601 | S26: 0.02432124983 | T26: 0.02227698895 | U26: 0.03303169975 | V26: 0.02851461919 | W26: 0.03278135224 | X26: 0.03401988735 | Y26: 0.04158434097 | Z26: 0.03962080773 | AA26: 0.0405157663 | AB26: 0.03565809717 | AC26: 0.04602523297 | AD26: 0.04250867906 | AE26: 0.03926067583 | AF26: 0.0284647156 | AG26: 0.02860809423 | AH26: 0.04488419497 | AI26: 0.04479888993 | AJ26: 0.03704856372 | AK26: 0.03770088875 | AL26: 0.03726057931 | AM26: 0.05091432217 | AN26: 0.02333593094 | AO26: 0.05326349892 | AP26: 0.05566840678 | AQ26: 0.03401182045 | AR26: 0.05908512463 | AS26: 0.02353978124 | AV26: =PRODUCT(N26:AS26+1) -> 3.264289586 | AW26: 0.0389001964
A27: 22 | B27: 0.0558568889 | C27: 0.03761904889 | D27: -0.01342262447 | E27: 0.03079705535 | F27: 0.03431486036 | G27: 0.02438737423 | H27: 0.01867879138 | I27: 0.015 | J27: 0.015 | K27: 0.013 | L27: 0.011 | M27: 0.011 | N27: 0.04157104969 | O27: 0.04623706276 | P27: 0.04388842029 | Q27: 0.03631209718 | R27: 0.04855734525 | S27: 0.0517396168 | T27: 0.05090217926 | U27: 0.04576716504 | V27: 0.0355697986 | W27: 0.05176523869 | X27: 0.05279766277 | Y27: 0.03862612686 | Z27: 0.03646145428 | AA27: 0.02664477674 | AB27: 0.04203785179 | AC27: 0.04956882679 | AD27: 0.04141945569 | AE27: 0.04632782687 | AF27: 0.0446911811 | AG27: 0.04006672852 | AH27: 0.03815661307 | AI27: 0.03631879614 | AJ27: 0.04367301781 | AK27: 0.02641198913 | AL27: 0.0269616942 | AM27: 0.02736223597 | AN27: 0.0292326812 | AO27: 0.04703872991 | AP27: 0.03950853777 | AQ27: 0.01595590371 | AR27: 0.03076142828 | AS27: 0.01091175206 | AV27: =PRODUCT(N27:AS27+1) -> 3.380998512 | AW27: 0.04007813632
A28: 23 | B28: 0.0558568889 | C28: 0.03761904889 | D28: -0.01342262447 | E28: 0.03079705535 | F28: 0.03431486036 | G28: 0.02438737423 | H28: 0.01867879138 | I28: 0.015 | J28: 0.015 | K28: 0.013 | L28: 0.011 | M28: 0.011 | N28: 0.0191487013 | O28: 0.03356785864 | P28: 0.03286131025 | Q28: 0.03429018682 | R28: 0.04286272919 | S28: 0.04366875678 | T28: 0.03294913145 | U28: 0.0394943707 | V28: 0.03959529707 | W28: 0.04148741822 | X28: 0.04900526316 | Y28: 0.044650252 | Z28: 0.02831742321 | AA28: 0.0402473795 | AB28: 0.04022235247 | AC28: 0.0266471301 | AD28: 0.01455402588 | AE28: 0.01693887288 | AF28: 0.03232742603 | AG28: 0.03138036788 | AH28: 0.03144074107 | AI28: 0.03030526388 | AJ28: 0.03030133659 | AK28: 0.03133763903 | AL28: 0.02415805483 | AM28: 0.02366254654 | AN28: 0.0259402936 | AO28: 0.0184066625 | AP28: 0.01799541255 | AQ28: 0.02081574376 | AR28: 0.02873674372 | AS28: 0.03808253045 | AV28: =PRODUCT(N28:AS28+1) -> 2.687869044 | AW28: 0.03240921997
A29: 24 | B29: 0.0558568889 | C29: 0.03761904889 | D29: -0.01342262447 | E29: 0.03079705535 | F29: 0.03431486036 | G29: 0.02438737423 | H29: 0.01867879138 | I29: 0.015 | J29: 0.015 | K29: 0.013 | L29: 0.011 | M29: 0.011 | N29: 0.03743053181 | O29: 0.04527701175 | P29: 0.04661192363 | Q29: 0.05040756132 | R29: 0.05822140152 | S29: 0.0476396516 | T29: 0.04638055068 | U29: 0.05453597403 | V29: 0.05346163559 | W29: 0.04258177895 | X29: 0.06634693265 | Y29: 0.04970713233 | Z29: 0.04138278574 | AA29: 0.04078341258 | AB29: 0.07088035457 | AC29: 0.06276011352 | AD29: 0.05831684317 | AE29: 0.02500041868 | AF29: 0.02452010954 | AG29: 0.02122811855 | AH29: 0.02757050796 | AI29: 0.0265020705 | AJ29: 0.03720858847 | AK29: 0.04114203198 | AL29: 0.03561779371 | AM29: 0.03682670268 | AN29: 0.04412064099 | AO29: 0.04097617505 | AP29: 0.03923116115 | AQ29: 0.0469461021 | AR29: 0.03728837088 | AS29: 0.01603272029 | AV29: =PRODUCT(N29:AS29+1) -> 3.826373266 | AW29: 0.04423823609
A30: 25 | B30: 0.0558568889 | C30: 0.03761904889 | D30: -0.01342262447 | E30: 0.03079705535 | F30: 0.03431486036 | G30: 0.02438737423 | H30: 0.01867879138 | I30: 0.015 | J30: 0.015 | K30: 0.013 | L30: 0.011 | M30: 0.011 | N30: 0.03706427427 | O30: 0.02012141444 | P30: 0.02683178584 | Q30: 0.04235804865 | R30: 0.03928035446 | S30: 0.04164144354 | T30: 0.0250883023 | U30: 0.04357424141 | V30: 0.04260329037 | W30: 0.04096810543 | X30: 0.03306046591 | Y30: 0.03815105041 | Z30: 0.03774957612 | AA30: 0.05624453119 | AB30: 0.05247245622 | AC30: 0.03023676891 | AD30: 0.02881833237 | AE30: 0.04129807869 | AF30: 0.04586039869 | AG30: 0.05658766846 | AH30: 0.05544779023 | AI30: 0.06743853629 | AJ30: 0.0692822821 | AK30: 0.03222229759 | AL30: 0.04411967625 | AM30: 0.05901242438 | AN30: 0.05936021287 | AO30: 0.05490895916 | AP30: 0.07358407029 | AQ30: 0.06259151235 | AR30: 0.06909817828 | AS30: 0.07007162446 | AV30: =PRODUCT(N30:AS30+1) -> 4.306634942 | AW30: 0.04822874861
A31: 26 | B31: 0.0558568889 | C31: 0.03761904889 | D31: -0.01342262447 | E31: 0.03079705535 | F31: 0.03431486036 | G31: 0.02438737423 | H31: 0.01867879138 | I31: 0.015 | J31: 0.015 | K31: 0.013 | L31: 0.011 | M31: 0.011 | N31: 0.03774289397 | O31: 0.04249896383 | P31: 0.03838373186 | Q31: 0.03892595812 | R31: 0.02587527715 | S31: 0.02654152279 | T31: 0.0375384022 | U31: 0.03525408049 | V31: 0.01253608797 | W31: 0.03827503605 | X31: 0.02284915337 | Y31: 0.02177157525 | Z31: 0.02471127683 | AA31: 0.02515934526 | AB31: 0.02227441259 | AC31: 0.01737830247 | AD31: 0.005798168149 | AE31: 0.03399968713 | AF31: 0.0360347269 | AG31: 0.0307024099 | AH31: 0.03110196267 | AI31: 0.02928344711 | AJ31: 0.02678221151 | AK31: 0.0245096764 | AL31: 0.03604256043 | AM31: 0.0355847494 | AN31: 0.021083532 | AO31: 0.02063219599 | AP31: 0.01786282452 | AQ31: 0.01979074713 | AR31: 0.007152966093 | AS31: 0.05793158658 | AV31: =PRODUCT(N31:AS31+1) -> 2.429843177 | AW31: 0.02905362745
A32: 27 | B32: 0.0558568889 | C32: 0.03761904889 | D32: -0.01342262447 | E32: 0.03079705535 | F32: 0.03431486036 | G32: 0.02438737423 | H32: 0.01867879138 | I32: 0.015 | J32: 0.015 | K32: 0.013 | L32: 0.011 | M32: 0.011 | N32: 0.02892569933 | O32: 0.03739285121 | P32: 0.02350817429 | Q32: 0.0225553791 | R32: 0.02041199942 | S32: 0.03325310968 | T32: 0.03391825255 | U32: 0.03010474946 | V32: 0.02556418973 | W32: 0.03196528362 | X32: 0.03044265704 | Y32: 0.03329732831 | Z32: 0.03445618297 | AA32: 0.03582195694 | AB32: 0.02396998947 | AC32: 0.03607397998 | AD32: 0.0492498949 | AE32: 0.03756363996 | AF32: 0.03381792757 | AG32: 0.0271181009 | AH32: 0.02755217378 | AI32: 0.03624099699 | AJ32: 0.04011401076 | AK32: 0.04059237601 | AL32: 0.04937213026 | AM32: 0.04629838176 | AN32: 0.04888238646 | AO32: 0.05002421781 | AP32: 0.05503986349 | AQ32: 0.04309014713 | AR32: 0.04229170127 | AS32: 0.01503918183 | AV32: =PRODUCT(N32:AS32+1) -> 3.014157302 | AW32: 0.03623191719
A33: 28 | B33: 0.0558568889 | C33: 0.03761904889 | D33: -0.01342262447 | E33: 0.03079705535 | F33: 0.03431486036 | G33: 0.02438737423 | H33: 0.01867879138 | I33: 0.015 | J33: 0.015 | K33: 0.013 | L33: 0.011 | M33: 0.011 | N33: 0.03054826584 | O33: 0.02052528383 | P33: 0.0244175531 | Q33: 0.03225933271 | R33: 0.03328367939 | S33: 0.03182046506 | T33: 0.03842144015 | U33: 0.03843084851 | V33: 0.02951790826 | W33: 0.02595433553 | X33: 0.02749105529 | Y33: 0.04132389077 | Z33: 0.01485208666 | AA33: 0.02811006863 | AB33: 0.02763836378 | AC33: 0.02674815945 | AD33: 0.018304657 | AE33: 0.02070340464 | AF33: 0.01342140971 | AG33: 0.01849138582 | AH33: 0.0172932682 | AI33: 0.02635274813 | AJ33: 0.02478678295 | AK33: 0.02535829984 | AL33: 0.04216170226 | AM33: 0.03759391768 | AN33: 0.01922791136 | AO33: 0.02788365916 | AP33: 0.03275564802 | AQ33: 0.05358113409 | AR33: 0.04471835327 | AS33: 0.03491855982 | AV33: =PRODUCT(N33:AS33+1) -> 2.495345975 | AW33: 0.02993702299
A34: 29 | B34: 0.0558568889 | C34: 0.03761904889 | D34: -0.01342262447 | E34: 0.03079705535 | F34: 0.03431486036 | G34: 0.02438737423 | H34: 0.01867879138 | I34: 0.015 | J34: 0.015 | K34: 0.013 | L34: 0.011 | M34: 0.011 | N34: 0.03839420359 | O34: 0.04349368244 | P34: 0.04264791942 | Q34: 0.05026966269 | R34: 0.02697511032 | S34: 0.02076313502 | T34: 0.04491295853 | U34: 0.04748066603 | V34: 0.04545280669 | W34: 0.03726959922 | X34: 0.03499678553 | Y34: 0.04511279608 | Z34: 0.03805913074 | AA34: 0.02497490114 | AB34: 0.05286387838 | AC34: 0.05206163928 | AD34: 0.05900519378 | AE34: 0.02692372226 | AF34: 0.03304914314 | AG34: 0.03403221689 | AH34: 0.03396903243 | AI34: 0.03803937903 | AJ34: 0.04646016477 | AK34: 0.01784111153 | AL34: 0.01867945363 | AM34: 0.02499479913 | AN34: 0.009696835439 | AO34: 0.03462737335 | AP34: 0.04212418501 | AQ34: 0.0450542911 | AR34: 0.05226396467 | AS34: 0.03216289466 | AV34: =PRODUCT(N34:AS34+1) -> 3.224997676 | AW34: 0.03849443684
A35: 30 | B35: 0.0558568889 | C35: 0.03761904889 | D35: -0.01342262447 | E35: 0.03079705535 | F35: 0.03431486036 | G35: 0.02438737423 | H35: 0.01867879138 | I35: 0.015 | J35: 0.015 | K35: 0.013 | L35: 0.011 | M35: 0.011 | N35: 0.02210284651 | O35: 0.01402774479 | P35: 0.03326741222 | Q35: 0.03317985325 | R35: 0.03224732304 | S35: 0.02768346102 | T35: 0.04198144074 | U35: 0.03844359657 | V35: 0.01591191309 | W35: 0.01245035421 | X35: 0.02255238632 | Y35: 0.02516233251 | Z35: 0.0188104615 | AA35: 0.0189810711 | AB35: 0.01281195991 | AC35: 0.00830719378 | AD35: 0.01255650823 | AE35: 0.0198306606 | AF35: 0.01502926671 | AG35: 0.01475951185 | AH35: 0.0245031726 | AI35: 0.0380294803 | AJ35: 0.03127006728 | AK35: 0.03202504102 | AL35: 0.02489626704 | AM35: 0.02802005233 | AN35: 0.01750855451 | AO35: 0.0321647046 | AP35: 0.03098059776 | AQ35: 0.03187052664 | AR35: 0.03703730162 | AS35: 0.02353385222 | AV35: =PRODUCT(N35:AS35+1) -> 2.183855276 | AW35: 0.02551662433
A36: 31 | B36: =B$2 -> 0.0558568889 | C36: 0.03761904889 | D36: -0.01342262447 | E36: 0.03079705535 | F36: 0.03431486036 | G36: 0.02438737423 | H36: 0.01867879138 | I36: 0.015 | J36: 0.015 | K36: 0.013 | L36: 0.011 | M36: 0.011 | N36: 0.03544605289 | O36: 0.03575867552 | P36: 0.03001052662 | Q36: 0.03007127926 | R36: 0.05094152919 | S36: 0.01531882763 | T36: 0.05799216059 | U36: 0.0452254324 | V36: 0.04268035642 | W36: 0.03776500153 | X36: 0.03776808456 | Y36: 0.02224083905 | Z36: 0.02492683251 | AA36: 0.02288822505 | AB36: 0.0285673603 | AC36: 0.0337061611 | AD36: 0.04053509847 | AE36: 0.0345684898 | AF36: 0.03971705376 | AG36: 0.0517522089 | AH36: 0.04090626967 | AI36: 0.04143139572 | AJ36: 0.03686423878 | AK36: 0.05411443556 | AL36: 0.05682179369 | AM36: 0.04603473496 | AN36: 0.04611985801 | AO36: 0.03987754227 | AP36: 0.03130253876 | AQ36: 0.02900394007 | AR36: 0.05567265291 | AS36: 0.05210679482 | AV36: =PRODUCT(N36:AS36+1) -> 3.396434993 | AW36: 0.04023098087
A37: 32 | B37: 0.0558568889 | C37: 0.03761904889 | D37: -0.01342262447 | E37: 0.03079705535 | F37: 0.03431486036 | G37: 0.02438737423 | H37: 0.01867879138 | I37: 0.015 | J37: 0.015 | K37: 0.013 | L37: 0.011 | M37: 0.011 | N37: 0.03407875213 | O37: 0.02900079666 | P37: 0.03006267592 | Q37: 0.0268483054 | R37: 0.03175549447 | S37: 0.01819906778 | T37: 0.02922642262 | U37: 0.03350425031 | V37: 0.03623419323 | W37: 0.04242704006 | X37: 0.04705307479 | Y37: 0.02587639478 | Z37: 0.01850573355 | AA37: 0.00575128448 | AB37: 0.01502471125 | AC37: 0.02370764854 | AD37: 0.03374658679 | AE37: 0.02328289289 | AF37: 0.0209383635 | AG37: 0.02069115676 | AH37: 0.01005107234 | AI37: 0.0273201535 | AJ37: 0.02702743786 | AK37: 0.02461640695 | AL37: 0.03055585494 | AM37: 0.0183484642 | AN37: 0.01745942463 | AO37: 0.02304192879 | AP37: 0.02687056855 | AQ37: 0.01400736442 | AR37: 0.02019303684 | AS37: 0.03882282171 | AV37: =PRODUCT(N37:AS37+1) -> 2.253726491 | AW37: 0.02655898845
A38: 33 | B38: 0.0558568889 | C38: 0.03761904889 | D38: -0.01342262447 | E38: 0.03079705535 | F38: 0.03431486036 | G38: 0.02438737423 | H38: 0.01867879138 | I38: 0.015 | J38: 0.015 | K38: 0.013 | L38: 0.011 | M38: 0.011 | N38: 0.03330575219 | O38: 0.02058077302 | P38: 0.01560242623 | Q38: 0.04135226474 | R38: 0.03617424223 | S38: 0.03161871875 | T38: 0.03450983796 | U38: 0.03432026873 | V38: 0.03111266737 | W38: 0.04327653634 | X38: 0.0296466148 | Y38: 0.03084621737 | Z38: 0.0212350294 | AA38: 0.03310845915 | AB38: 0.03751350551 | AC38: 0.03675732329 | AD38: 0.04304643049 | AE38: 0.006049704298 | AF38: 0.01311662151 | AG38: 0.02181423189 | AH38: 0.03273337768 | AI38: 0.02578046379 | AJ38: 0.02636014176 | AK38: 0.03844139353 | AL38: 0.0169237931 | AM38: 0.0169744528 | AN38: 0.02817828247 | AO38: 0.03512529747 | AP38: 0.022275936 | AQ38: 0.01231843642 | AR38: 0.01668544147 | AS38: 0.02431277281 | AV38: =PRODUCT(N38:AS38+1) -> 2.404986115 | AW38: 0.02871235066
A39: 34 | B39: 0.0558568889 | C39: 0.03761904889 | D39: -0.01342262447 | E39: 0.03079705535 | F39: 0.03431486036 | G39: 0.02438737423 | H39: 0.01867879138 | I39: 0.015 | J39: 0.015 | K39: 0.013 | L39: 0.011 | M39: 0.011 | N39: 0.04231058018 | O39: 0.01009508186 | P39: 0.0136477796 | Q39: 0.03937491084 | R39: 0.03441468362 | S39: 0.03396565081 | T39: 0.03331319738 | U39: 0.0361256808 | V39: 0.02968149862 | W39: 0.03235705138 | X39: 0.02877154514 | Y39: 0.02608101799 | Z39: 0.02526955824 | AA39: 0.03034074576 | AB39: 0.01706476863 | AC39: 0.01897495926 | AD39: 0.02124980476 | AE39: 0.03299154356 | AF39: 0.02938126067 | AG39: 0.0551963432 | AH39: 0.0525583484 | AI39: 0.03579211098 | AJ39: 0.04078198506 | AK39: 0.03764145433 | AL39: 0.03651492972 | AM39: 0.03521537555 | AN39: 0.04054368871 | AO39: 0.04564667436 | AP39: 0.02913075675 | AQ39: 0.02318080788 | AR39: 0.02198214559 | AS39: 0.05382708313 | AV39: =PRODUCT(N39:AS39+1) -> 2.787274314 | AW39: 0.03361936166
A40: 35 | B40: 0.0558568889 | C40: 0.03761904889 | D40: -0.01342262447 | E40: 0.03079705535 | F40: 0.03431486036 | G40: 0.02438737423 | H40: 0.01867879138 | I40: 0.015 | J40: 0.015 | K40: 0.013 | L40: 0.011 | M40: 0.011 | N40: 0.02850014232 | O40: 0.025264515 | P40: 0.02272353469 | Q40: 0.01914805838 | R40: 0.01824280213 | S40: 0.0292667751 | T40: 0.01933652558 | U40: 0.01717027792 | V40: 0.02581944035 | W40: 0.02840260969 | X40: 0.03654471957 | Y40: 0.02474621215 | Z40: 0.04113775983 | AA40: 0.04082791685 | AB40: 0.01297814157 | AC40: 0.0351897716 | AD40: 0.03640879756 | AE40: 0.02295997931 | AF40: 0.03275969213 | AG40: 0.03300550967 | AH40: 0.02743624719 | AI40: 0.02742288485 | AJ40: 0.02991276865 | AK40: 0.03101034619 | AL40: 0.02170093708 | AM40: 0.03925830361 | AN40: 0.03419070274 | AO40: 0.04501180148 | AP40: 0.03379403552 | AQ40: 0.0335188705 | AR40: 0.02373333516 | AS40: 0.04568556579 | AV40: =PRODUCT(N40:AS40+1) -> 2.530700478 | AW40: 0.03040454593
A41: 36 | B41: 0.0558568889 | C41: 0.03761904889 | D41: -0.01342262447 | E41: 0.03079705535 | F41: 0.03431486036 | G41: 0.02438737423 | H41: 0.01867879138 | I41: 0.015 | J41: 0.015 | K41: 0.013 | L41: 0.011 | M41: 0.011 | N41: 0.02334312975 | O41: 0.03725473984 | P41: 0.06030029502 | Q41: 0.06052681832 | R41: 0.05002912716 | S41: 0.04754665286 | T41: 0.04829710353 | U41: 0.03187263768 | V41: 0.04080460218 | W41: 0.04624568906 | X41: 0.04661585754 | Y41: 0.05278858789 | Z41: 0.02486338562 | AA41: 0.05554357865 | AB41: 0.04298717044 | AC41: 0.04315197268 | AD41: 0.04972941472 | AE41: 0.01972089175 | AF41: 0.01402835835 | AG41: 0.0334491667 | AH41: 0.04728063739 | AI41: 0.04343531483 | AJ41: 0.02322526844 | AK41: 0.04061454309 | AL41: 0.02811773853 | AM41: 0.01692430059 | AN41: 0.02494165457 | AO41: 0.03488428066 | AP41: 0.0151956906 | AQ41: 0.04168326972 | AR41: 0.04029360148 | AS41: 0.01799546278 | AV41: =PRODUCT(N41:AS41+1) -> 3.251170901 | AW41: 0.0387652505
A42: 37 | B42: 0.0558568889 | C42: 0.03761904889 | D42: -0.01342262447 | E42: 0.03079705535 | F42: 0.03431486036 | G42: 0.02438737423 | H42: 0.01867879138 | I42: 0.015 | J42: 0.015 | K42: 0.013 | L42: 0.011 | M42: 0.011 | N42: 0.0209170758 | O42: 0.02498218688 | P42: 0.02654931572 | Q42: 0.02716288658 | R42: 0.02717018543 | S42: 0.02755750368 | T42: 0.03792570303 | U42: 0.03199350734 | V42: 0.02391712602 | W42: 0.01781229709 | X42: 0.03479635139 | Y42: 0.04525272175 | Z42: 0.03443101968 | AA42: 0.02137410407 | AB42: 0.02270059103 | AC42: 0.04107660595 | AD42: 0.01008634028 | AE42: 0.04050075129 | AF42: 0.03744580124 | AG42: 0.03480258523 | AH42: 0.05157787656 | AI42: 0.03728859694 | AJ42: 0.03717559324 | AK42: 0.04383165123 | AL42: 0.03564407211 | AM42: 0.04631824774 | AN42: 0.04888515389 | AO42: 0.0499951617 | AP42: 0.05533814544 | AQ42: 0.02162848798 | AR42: 0.02070322839 | AS42: 0.01806564207 | AV42: =PRODUCT(N42:AS42+1) -> 2.818000306 | AW42: 0.03398497254
A43: 38 | B43: 0.0558568889 | C43: 0.03761904889 | D43: -0.01342262447 | E43: 0.03079705535 | F43: 0.03431486036 | G43: 0.02438737423 | H43: 0.01867879138 | I43: 0.015 | J43: 0.015 | K43: 0.013 | L43: 0.011 | M43: 0.011 | N43: 0.03862571142 | O43: 0.01644717716 | P43: 0.01621419472 | Q43: 0.01182879052 | R43: 0.02836654085 | S43: 0.01045125169 | T43: 0.0347020992 | U43: 0.03557554145 | V43: 0.0179195203 | W43: 0.01790932403 | X43: 0.02858732159 | Y43: 0.0292685801 | Z43: 0.02749718554 | AA43: 0.02294376788 | AB43: 0.04377880746 | AC43: 0.02832401658 | AD43: 0.01720561489 | AE43: 0.02391269673 | AF43: 0.02726588365 | AG43: 0.02953877187 | AH43: 0.02438560835 | AI43: 0.03181694829 | AJ43: 0.03949779918 | AK43: 0.03049616483 | AL43: 0.04624908547 | AM43: 0.01833410588 | AN43: 0.02838560252 | AO43: 0.02361930581 | AP43: 0.02926067986 | AQ43: 0.03691660533 | AR43: 0.03657182833 | AS43: 0.0557926041 | AV43: =PRODUCT(N43:AS43+1) -> 2.443769604 | AW43: 0.02924335755
A44: 39 | B44: 0.0558568889 | C44: 0.03761904889 | D44: -0.01342262447 | E44: 0.03079705535 | F44: 0.03431486036 | G44: 0.02438737423 | H44: 0.01867879138 | I44: 0.015 | J44: 0.015 | K44: 0.013 | L44: 0.011 | M44: 0.011 | N44: 0.04926133112 | O44: 0.02708113609 | P44: 0.02414045629 | Q44: 0.03839564702 | R44: 0.0329317886 | S44: 0.03468878301 | T44: 0.03471370101 | U44: 0.04682741566 | V44: 0.04462701054 | W44: 0.04290578659 | X44: 0.03352962431 | Y44: 0.03040741306 | Z44: 0.04684181999 | AA44: 0.02891469427 | AB44: 0.02831342489 | AC44: 0.03616065079 | AD44: 0.0487558019 | AE44: 0.04965573932 | AF44: 0.03499441968 | AG44: 0.03741293372 | AH44: 0.05443346154 | AI44: 0.05430927282 | AJ44: 0.05689537156 | AK44: 0.06233809269 | AL44: 0.05763909368 | AM44: 0.06331052394 | AN44: 0.04707257143 | AO44: 0.04481115956 | AP44: 0.02906868421 | AQ44: 0.04262500434 | AR44: 0.03493934214 | AS44: 0.03661172719 | AV44: =PRODUCT(N44:AS44+1) -> 3.691027917 | AW44: 0.04302585767
A45: 40 | B45: 0.0558568889 | C45: 0.03761904889 | D45: -0.01342262447 | E45: 0.03079705535 | F45: 0.03431486036 | G45: 0.02438737423 | H45: 0.01867879138 | I45: 0.015 | J45: 0.015 | K45: 0.013 | L45: 0.011 | M45: 0.011 | N45: 0.03766633208 | O45: 0.02764286084 | P45: 0.02718645753 | Q45: 0.02608922597 | R45: 0.01472702344 | S45: 0.01607445559 | T45: 0.01618823174 | U45: 0.01300790857 | V45: 0.02398363978 | W45: 0.02364962484 | X45: 0.03635751263 | Y45: 0.03628323148 | Z45: 0.03059979654 | AA45: 0.02123440864 | AB45: 0.02006255854 | AC45: 0.04033510586 | AD45: 0.01397509742 | AE45: 0.007388046601 | AF45: 0.02752603274 | AG45: 0.03181748151 | AH45: 0.02484953372 | AI45: 0.0337912028 | AJ45: 0.03409700215 | AK45: 0.04264097196 | AL45: 0.03549221177 | AM45: 0.01190488137 | AN45: 0.02392582435 | AO45: 0.03595786264 | AP45: 0.02290393164 | AQ45: 0.0328740469 | AR45: 0.04161553047 | AS45: 0.01946393247 | AV45: =PRODUCT(N45:AS45+1) -> 2.313723839 | AW45: 0.02742938962
A46: 41 | B46: =B$2 -> 0.0558568889 | C46: 0.03761904889 | D46: -0.01342262447 | E46: 0.03079705535 | F46: 0.03431486036 | G46: 0.02438737423 | H46: 0.01867879138 | I46: 0.015 | J46: 0.015 | K46: 0.013 | L46: 0.011 | M46: 0.011 | N46: 0.03188678497 | O46: 0.01785593181 | P46: 0.01222625698 | Q46: 0.03674821552 | R46: 0.005849117817 | S46: 0.02262874399 | T46: 0.02626628465 | U46: 0.01876506795 | V46: 0.01692712885 | W46: 0.0134564226 | X46: 0.02951741206 | Y46: 0.03623109288 | Z46: 0.03387827497 | AA46: 0.0400681081 | AB46: 0.01160704644 | AC46: 0.02969493253 | AD46: 0.04700146095 | AE46: 0.03976359019 | AF46: 0.03048106976 | AG46: 0.03889071659 | AH46: 0.03934400763 | AI46: 0.0370184217 | AJ46: 0.03730681272 | AK46: 0.03890496982 | AL46: 0.04602473757 | AM46: 0.04650378819 | AN46: 0.02270170677 | AO46: 0.02953173101 | AP46: 0.04510784311 | AQ46: 0.01857746871 | AR46: 0.01300901311 | AS46: 0.03357034212 | AV46: =PRODUCT(N46:AS46+1) -> 2.538584678 | AW46: 0.03050794321
A47: 42 | B47: 0.0558568889 | C47: 0.03761904889 | D47: -0.01342262447 | E47: 0.03079705535 | F47: 0.03431486036 | G47: 0.02438737423 | H47: 0.01867879138 | I47: 0.015 | J47: 0.015 | K47: 0.013 | L47: 0.011 | M47: 0.011 | N47: 0.02542488207 | O47: 0.04599727228 | P47: 0.04598330452 | Q47: 0.02758953598 | R47: 0.02634501057 | S47: 0.0230792143 | T47: 0.04521869576 | U47: 0.03922242065 | V47: 0.03376450294 | W47: 0.03770515182 | X47: 0.04136925708 | Y47: 0.0420072173 | Z47: 0.04303591051 | AA47: 0.0408126341 | AB47: 0.03147437808 | AC47: 0.04947084255 | AD47: 0.02264441147 | AE47: 0.02362631343 | AF47: 0.04862366723 | AG47: 0.04455784794 | AH47: 0.03101133921 | AI47: 0.03368519886 | AJ47: 0.03373257528 | AK47: 0.03958463705 | AL47: 0.03941267036 | AM47: 0.03817972134 | AN47: 0.03820476828 | AO47: 0.04400968645 | AP47: 0.03722503902 | AQ47: 0.05333564852 | AR47: 0.04545462472 | AS47: 0.05099298119 | AV47: =PRODUCT(N47:AS47+1) -> 3.316650886 | AW47: 0.03943363597
A48: 43 | B48: 0.0558568889 | C48: 0.03761904889 | D48: -0.01342262447 | E48: 0.03079705535 | F48: 0.03431486036 | G48: 0.02438737423 | H48: 0.01867879138 | I48: 0.015 | J48: 0.015 | K48: 0.013 | L48: 0.011 | M48: 0.011 | N48: 0.04835338332 | O48: 0.03063845053 | P48: 0.03313994809 | Q48: 0.03328715021 | R48: 0.04054247042 | S48: 0.02846096341 | T48: 0.04292321749 | U48: 0.04630330762 | V48: 0.04354329283 | W48: 0.04518701471 | X48: 0.02597584507 | Y48: 0.03555658939 | Z48: 0.03084044474 | AA48: 0.01681263449 | AB48: 0.02027421686 | AC48: 0.01835542367 | AD48: 0.01301239561 | AE48: 0.06032210208 | AF48: 0.038351306 | AG48: 0.0445852071 | AH48: 0.03263158698 | AI48: 0.03615952564 | AJ48: 0.02875938145 | AK48: 0.0308300336 | AL48: 0.03985286116 | AM48: 0.02575235838 | AN48: 0.05530116379 | AO48: 0.02508933497 | AP48: 0.02516383771 | AQ48: 0.04160571922 | AR48: 0.04152448754 | AS48: 0.05867508887 | AV48: =PRODUCT(N48:AS48+1) -> 3.052888398 | AW48: 0.03665879455
A49: 44 | B49: 0.0558568889 | C49: 0.03761904889 | D49: -0.01342262447 | E49: 0.03079705535 | F49: 0.03431486036 | G49: 0.02438737423 | H49: 0.01867879138 | I49: 0.015 | J49: 0.015 | K49: 0.013 | L49: 0.011 | M49: 0.011 | N49: 0.01618869514 | O49: 0.0130955507 | P49: 0.02707060492 | Q49: 0.02843146553 | R49: 0.02496031464 | S49: 0.01542875223 | T49: 0.01362434798 | U49: 0.02909905261 | V49: 0.0390263924 | W49: 0.03292199553 | X49: 0.04048843661 | Y49: 0.02093139865 | Z49: 0.02049827944 | AA49: 0.02889816957 | AB49: 0.03186477316 | AC49: 0.02470023665 | AD49: 0.005028556434 | AE49: 0.04752047243 | AF49: 0.03039453654 | AG49: 0.03420284625 | AH49: 0.04091385584 | AI49: 0.04427353149 | AJ49: 0.02020515499 | AK49: 0.03544265291 | AL49: 0.04435271886 | AM49: 0.04122093432 | AN49: 0.03013007547 | AO49: 0.02905633807 | AP49: 0.02736271585 | AQ49: 0.02879448682 | AR49: 0.04602119069 | AS49: 0.04843829249 | AV49: =PRODUCT(N49:AS49+1) -> 2.57201371 | AW49: 0.03094292345
A50: 45 | B50: 0.0558568889 | C50: 0.03761904889 | D50: -0.01342262447 | E50: 0.03079705535 | F50: 0.03431486036 | G50: 0.02438737423 | H50: 0.01867879138 | I50: 0.015 | J50: 0.015 | K50: 0.013 | L50: 0.011 | M50: 0.011 | N50: 0.04420941443 | O50: 0.01148097566 | P50: 0.02010860049 | Q50: 0.01607864936 | R50: 0.01657510964 | S50: 0.01220857876 | T50: 0.02841652319 | U50: 0.03478233811 | V50: 0.03275150799 | W50: 0.0106056474 | X50: 0.027723045 | Y50: 0.02279161399 | Z50: 0.02376639655 | AA50: 0.02546339483 | AB50: 0.006890802909 | AC50: 0.01741501355 | AD50: 0.01310766998 | AE50: 0.01325566993 | AF50: 0.01456816182 | AG50: 0.01722458147 | AH50: 0.009440426779 | AI50: 0.00582249503 | AJ50: 0.03331379971 | AK50: 0.03926997157 | AL50: 0.03275956125 | AM50: 0.03196779052 | AN50: 0.03442757291 | AO50: 0.0300072 | AP50: 0.03042976122 | AQ50: 0.02836162965 | AR50: 0.02056694081 | AS50: 0.01693005142 | AV50: =PRODUCT(N50:AS50+1) -> 2.040454321 | AW50: 0.02327223319
A51: 46 | B51: 0.0558568889 | C51: 0.03761904889 | D51: -0.01342262447 | E51: 0.03079705535 | F51: 0.03431486036 | G51: 0.02438737423 | H51: 0.01867879138 | I51: 0.015 | J51: 0.015 | K51: 0.013 | L51: 0.011 | M51: 0.011 | N51: 0.0319673524 | O51: 0.03523694982 | P51: 0.05027610063 | Q51: 0.02778028213 | R51: 0.02503474454 | S51: 0.02638316111 | T51: 0.02663195439 | U51: 0.02692142604 | V51: 0.05328201328 | W51: 0.03339623361 | X51: 0.04222840077 | Y51: 0.0458734482 | Z51: 0.03494782747 | AA51: 0.03342737407 | AB51: 0.03742144387 | AC51: 0.01840742618 | AD51: 0.02153517 | AE51: 0.02471591311 | AF51: 0.02213984457 | AG51: 0.02181513951 | AH51: 0.03817405938 | AI51: 0.0293225504 | AJ51: 0.04491148018 | AK51: 0.0292219786 | AL51: 0.01965187751 | AM51: 0.02857070692 | AN51: 0.05542134532 | AO51: 0.03759888827 | AP51: 0.0459084939 | AQ51: 0.03440736463 | AR51: 0.02409583436 | AS51: 0.04864767848 | AV51: =PRODUCT(N51:AS51+1) -> 2.87531197 | AW51: 0.03465673579
A52: 47 | B52: 0.0558568889 | C52: 0.03761904889 | D52: -0.01342262447 | E52: 0.03079705535 | F52: 0.03431486036 | G52: 0.02438737423 | H52: 0.01867879138 | I52: 0.015 | J52: 0.015 | K52: 0.013 | L52: 0.011 | M52: 0.011 | N52: 0.03910253771 | O52: 0.03282598601 | P52: 0.03225062962 | Q52: 0.0322184051 | R52: 0.0322254111 | S52: 0.03134933132 | T52: 0.03509489533 | U52: 0.02311622435 | V52: 0.02790920685 | W52: 0.0235023202 | X52: 0.03393956365 | Y52: 0.04699009338 | Z52: 0.03803802125 | AA52: 0.01747883527 | AB52: 0.01741589617 | AC52: 0.02162601326 | AD52: 0.02528743924 | AE52: 0.03305587925 | AF52: 0.03213800092 | AG52: 0.02670527871 | AH52: 0.050185232 | AI52: 0.04544754321 | AJ52: 0.0436830644 | AK52: 0.05608476245 | AL52: 0.02945818818 | AM52: 0.02415282244 | AN52: 0.04350664702 | AO52: 0.04110294995 | AP52: 0.04180818559 | AQ52: 0.04732128881 | AR52: 0.02784480438 | AS52: 0.01821731012 | AV52: =PRODUCT(N52:AS52+1) -> 2.863682635 | AW52: 0.03452148001
A53: 48 | B53: 0.0558568889 | C53: 0.03761904889 | D53: -0.01342262447 | E53: 0.03079705535 | F53: 0.03431486036 | G53: 0.02438737423 | H53: 0.01867879138 | I53: 0.015 | J53: 0.015 | K53: 0.013 | L53: 0.011 | M53: 0.011 | N53: 0.03139177961 | O53: 0.03218362489 | P53: 0.04663591315 | Q53: 0.04222913658 | R53: 0.03179488436 | S53: 0.04236378759 | T53: 0.0410204046 | U53: 0.03559004015 | V53: 0.03373661375 | W53: 0.03785100692 | X53: 0.03917781341 | Y53: 0.04952638397 | Z53: 0.03438495483 | AA53: 0.0284797541 | AB53: 0.03309470019 | AC53: 0.04552863449 | AD53: 0.02097754838 | AE53: 0.03116820502 | AF53: 0.02951632858 | AG53: 0.03228356686 | AH53: 0.04336188657 | AI53: 0.04908104305 | AJ53: 0.04375308823 | AK53: 0.03480582618 | AL53: 0.03385184249 | AM53: 0.03972391731 | AN53: 0.03814081356 | AO53: 0.03951499713 | AP53: 0.04009137267 | AQ53: 0.04238218694 | AR53: 0.03331178539 | AS53: 0.03031055925 | AV53: =PRODUCT(N53:AS53+1) -> 3.206427228 | AW53: 0.0383009959
A54: 49 | B54: 0.0558568889 | C54: 0.03761904889 | D54: -0.01342262447 | E54: 0.03079705535 | F54: 0.03431486036 | G54: 0.02438737423 | H54: 0.01867879138 | I54: 0.015 | J54: 0.015 | K54: 0.013 | L54: 0.011 | M54: 0.011 | N54: 0.02323262647 | O54: 0.02669895469 | P54: 0.02798333091 | Q54: 0.03913745952 | R54: 0.02940947403 | S54: 0.03700192466 | T54: 0.03959829003 | U54: 0.03426517612 | V54: 0.02012071064 | W54: 0.02081564219 | X54: 0.0303045977 | Y54: 0.02378008965 | Z54: 0.01878219975 | AA54: 0.02195961419 | AB54: 0.04331645857 | AC54: 0.04543127928 | AD54: 0.06057554944 | AE54: 0.03133017457 | AF54: 0.03682368284 | AG54: 0.03619892728 | AH54: 0.03619976869 | AI54: 0.03542800751 | AJ54: 0.02532401031 | AK54: 0.03211787843 | AL54: 0.0268405318 | AM54: 0.0340814346 | AN54: 0.05512705105 | AO54: 0.0437016083 | AP54: 0.04342165953 | AQ54: 0.03744913495 | AR54: 0.0467440793 | AS54: 0.02867674205 | AV54: =PRODUCT(N54:AS54+1) -> 2.921902645 | AW54: 0.03519335495
A55: 50 | B55: 0.0558568889 | C55: 0.03761904889 | D55: -0.01342262447 | E55: 0.03079705535 | F55: 0.03431486036 | G55: 0.02438737423 | H55: 0.01867879138 | I55: 0.015 | J55: 0.015 | K55: 0.013 | L55: 0.011 | M55: 0.011 | N55: 0.01007873318 | O55: 0.02977100994 | P55: 0.03150073031 | Q55: 0.0474034927 | R55: 0.02119894036 | S55: 0.03915288645 | T55: 0.04034562033 | U55: 0.04126218254 | V55: 0.0127866843 | W55: 0.012719278 | X55: 0.03202798543 | Y55: 0.03259019885 | Z55: 0.03061709891 | AA55: 0.03070530632 | AB55: 0.04404821437 | AC55: 0.04757076113 | AD55: 0.01485742417 | AE55: 0.03566471973 | AF55: 0.032871218 | AG55: 0.03273707112 | AH55: 0.03823012658 | AI55: 0.004657092273 | AJ55: 0.03148540899 | AK55: 0.03502664697 | AL55: 0.02265635722 | AM55: 0.04337237511 | AN55: 0.05065880804 | AO55: 0.01491987222 | AP55: 0.06070059852 | AQ55: 0.01135588203 | AR55: 0.01744789322 | AS55: 0.03357983948 | AV55: =PRODUCT(N55:AS55+1) -> 2.628882056 | AW55: 0.03167047853
A56: 51 | B56: =B$2 -> 0.0558568889 | C56: 0.03761904889 | D56: -0.01342262447 | E56: 0.03079705535 | F56: 0.03431486036 | G56: 0.02438737423 | H56: 0.01867879138 | I56: 0.015 | J56: 0.015 | K56: 0.013 | L56: 0.011 | M56: 0.011 | N56: 0.02079479037 | O56: 0.03404825334 | P56: 0.04844150338 | Q56: 0.02383299022 | R56: 0.01712117939 | S56: 0.02209928758 | T56: 0.03309877286 | U56: 0.02420403534 | V56: 0.02245905586 | W56: 0.02188818629 | X56: 0.01566309551 | Y56: 0.01081222577 | Z56: 0.03284042675 | AA56: 0.003871189756 | AB56: 0.02237742107 | AC56: 0.01995017069 | AD56: 0.02615419085 | AE56: 0.02176068554 | AF56: 0.03857778724 | AG56: 0.04102628564 | AH56: 0.01933680171 | AI56: 0.03268911568 | AJ56: 0.03252013711 | AK56: 0.03167713689 | AL56: 0.03107638006 | AM56: 0.01564575067 | AN56: 0.01553950206 | AO56: 0.01500064713 | AP56: 0.02020982468 | AQ56: 0.03724671737 | AR56: 0.03540779791 | AS56: 0.04030852522 | AV56: =PRODUCT(N56:AS56+1) -> 2.26074273 | AW56: 0.02666192556
A57: 52 | B57: 0.0558568889 | C57: 0.03761904889 | D57: -0.01342262447 | E57: 0.03079705535 | F57: 0.03431486036 | G57: 0.02438737423 | H57: 0.01867879138 | I57: 0.015 | J57: 0.015 | K57: 0.013 | L57: 0.011 | M57: 0.011 | N57: 0.01952189393 | O57: 0.04848478337 | P57: 0.02681027804 | Q57: 0.0269868834 | R57: 0.02819934124 | S57: 0.03382705341 | T57: 0.03127621566 | U57: 0.03274035719 | V57: 0.03835695074 | W57: 0.02845943831 | X57: 0.01628164556 | Y57: 0.02047737217 | Z57: 0.02113528341 | AA57: 0.02144562415 | AB57: 0.03961622547 | AC57: 0.02929128448 | AD57: 0.02519453575 | AE57: 0.02523691282 | AF57: 0.05589939491 | AG57: 0.03372174899 | AH57: 0.03373666665 | AI57: 0.03833581399 | AJ57: 0.05753051714 | AK57: 0.04162540736 | AL57: 0.04171164379 | AM57: 0.0421651701 | AN57: 0.02621158425 | AO57: 0.03819348148 | AP57: 0.04148545657 | AQ57: 0.02811632275 | AR57: 0.03424902867 | AS57: 0.03686915954 | AV57: =PRODUCT(N57:AS57+1) -> 2.841967495 | AW57: 0.03426749149
A58: 53 | B58: 0.0558568889 | C58: 0.03761904889 | D58: -0.01342262447 | E58: 0.03079705535 | F58: 0.03431486036 | G58: 0.02438737423 | H58: 0.01867879138 | I58: 0.015 | J58: 0.015 | K58: 0.013 | L58: 0.011 | M58: 0.011 | N58: 0.01922886308 | O58: 0.04102912798 | P58: 0.02156449735 | Q58: 0.02317356565 | R58: 0.02093139767 | S58: 0.02213258202 | T58: 0.02050675972 | U58: 0.0205094254 | V58: 0.02773027286 | W58: 0.02709239652 | X58: 0.02259044405 | Y58: 0.02567361117 | Z58: 0.003861005144 | AA58: 0.006856336213 | AB58: 0.03480652828 | AC58: 0.03238016379 | AD58: -0.0003275995245 | AE58: 0.03230111844 | AF58: 0.02885969015 | AG58: 0.02931199175 | AH58: 0.04010372388 | AI58: 0.04026899949 | AJ58: 0.02347040203 | AK58: 0.02243284401 | AL58: 0.02259763122 | AM58: 0.01658822186 | AN58: 0.02160195678 | AO58: 0.02690221085 | AP58: 0.03510225359 | AQ58: 0.03547184355 | AR58: 0.05370048158 | AS58: 0.01949287764 | AV58: =PRODUCT(N58:AS58+1) -> 2.238768208 | AW58: 0.02633849212
A59: 54 | B59: 0.0558568889 | C59: 0.03761904889 | D59: -0.01342262447 | E59: 0.03079705535 | F59: 0.03431486036 | G59: 0.02438737423 | H59: 0.01867879138 | I59: 0.015 | J59: 0.015 | K59: 0.013 | L59: 0.011 | M59: 0.011 | N59: 0.02623603596 | O59: 0.03304982841 | P59: 0.0305762213 | Q59: 0.02505255993 | R59: 0.04065742205 | S59: 0.04227051758 | T59: 0.04588443563 | U59: 0.05745947465 | V59: 0.05275096694 | W59: 0.03146073223 | X59: 0.05278128512 | Y59: 0.02957683312 | Z59: 0.04306565716 | AA59: 0.04666484805 | AB59: 0.05594182211 | AC59: 0.0641208131 | AD59: 0.04282842608 | AE59: 0.04414987898 | AF59: 0.03771976048 | AG59: 0.034652893 | AH59: 0.02870508009 | AI59: 0.04418862244 | AJ59: 0.04508751975 | AK59: 0.02490730327 | AL59: 0.0521456678 | AM59: 0.06337844622 | AN59: 0.05346925243 | AO59: 0.03774174327 | AP59: 0.06580807592 | AQ59: 0.04193589368 | AR59: 0.0316386931 | AS59: 0.0552184908 | AV59: =PRODUCT(N59:AS59+1) -> 3.858143608 | AW59: 0.04451680563
A60: 55 | B60: 0.0558568889 | C60: 0.03761904889 | D60: -0.01342262447 | E60: 0.03079705535 | F60: 0.03431486036 | G60: 0.02438737423 | H60: 0.01867879138 | I60: 0.015 | J60: 0.015 | K60: 0.013 | L60: 0.011 | M60: 0.011 | N60: 0.04098039293 | O60: 0.0327254875 | P60: 0.03777680237 | Q60: 0.02732390691 | R60: 0.03821951998 | S60: 0.02822541205 | T60: 0.02306960345 | U60: 0.03032509874 | V60: 0.04753095742 | W60: 0.03429615159 | X60: 0.04478843039 | Y60: 0.03951820245 | Z60: 0.01865701771 | AA60: 0.03240598857 | AB60: 0.05446812653 | AC60: 0.03520912697 | AD60: 0.02026032529 | AE60: 0.01919625259 | AF60: 0.03537528287 | AG60: 0.03839071279 | AH60: 0.03849971203 | AI60: 0.03305467204 | AJ60: 0.02776283824 | AK60: 0.02934287499 | AL60: 0.01816461569 | AM60: 0.01733838252 | AN60: 0.02844291324 | AO60: 0.04003537462 | AP60: 0.0511396203 | AQ60: 0.03981678593 | AR60: 0.02240667796 | AS60: 0.02074234677 | AV60: =PRODUCT(N60:AS60+1) -> 2.793745829 | AW60: 0.03369668983
A61: 56 | B61: 0.0558568889 | C61: 0.03761904889 | D61: -0.01342262447 | E61: 0.03079705535 | F61: 0.03431486036 | G61: 0.02438737423 | H61: 0.01867879138 | I61: 0.015 | J61: 0.015 | K61: 0.013 | L61: 0.011 | M61: 0.011 | N61: 0.01155400622 | O61: 0.03114226558 | P61: 0.0308515007 | Q61: 0.03138536664 | R61: 0.01252663054 | S61: 0.03644701323 | T61: 0.02034793992 | U61: 0.03485484524 | V61: 0.0446051435 | W61: 0.02773270368 | X61: 0.03522617687 | Y61: 0.03517698326 | Z61: 0.03970817274 | AA61: 0.04271243883 | AB61: 0.02159386776 | AC61: 0.03343827408 | AD61: 0.01205145952 | AE61: 0.03883935885 | AF61: 0.0507590256 | AG61: 0.05000507657 | AH61: 0.04076407705 | AI61: 0.04022342695 | AJ61: 0.05711521962 | AK61: 0.05133704459 | AL61: 0.05092753591 | AM61: 0.04939357764 | AN61: 0.04921016629 | AO61: 0.03713219974 | AP61: 0.03780152714 | AQ61: 0.04428346245 | AR61: 0.05485228056 | AS61: 0.03543356762 | AV61: =PRODUCT(N61:AS61+1) -> 3.20826441 | AW61: 0.03832018135
A62: 57 | B62: 0.0558568889 | C62: 0.03761904889 | D62: -0.01342262447 | E62: 0.03079705535 | F62: 0.03431486036 | G62: 0.02438737423 | H62: 0.01867879138 | I62: 0.015 | J62: 0.015 | K62: 0.013 | L62: 0.011 | M62: 0.011 | N62: 0.04271308187 | O62: 0.0334395716 | P62: 0.03690406975 | Q62: 0.03378028692 | R62: 0.01226981036 | S62: 0.02863484204 | T62: 0.02878782348 | U62: 0.03349947947 | V62: 0.03955776096 | W62: 0.02311289986 | X62: 0.02338922947 | Y62: 0.01483119259 | Z62: 0.0446403797 | AA62: 0.02645726357 | AB62: 0.02902431584 | AC62: 0.01415653755 | AD62: 0.05754264567 | AE62: 0.03285642122 | AF62: 0.03130467336 | AG62: 0.01022866363 | AH62: 0.015969822 | AI62: 0.02848837775 | AJ62: 0.02777171077 | AK62: 0.02538455531 | AL62: 0.02400798515 | AM62: 0.02239766348 | AN62: 0.0432626439 | AO62: 0.05223832401 | AP62: 0.05008551936 | AQ62: 0.04930018773 | AR62: 0.05298492158 | AS62: 0.03185222197 | AV62: =PRODUCT(N62:AS62+1) -> 2.72557828 | AW62: 0.03287330613
A63: 58 | B63: 0.0558568889 | C63: 0.03761904889 | D63: -0.01342262447 | E63: 0.03079705535 | F63: 0.03431486036 | G63: 0.02438737423 | H63: 0.01867879138 | I63: 0.015 | J63: 0.015 | K63: 0.013 | L63: 0.011 | M63: 0.011 | N63: 0.0294403036 | O63: 0.007265914017 | P63: 0.02334598738 | Q63: 0.02573641487 | R63: 0.02388288322 | S63: 0.02473158354 | T63: 0.0287169718 | U63: 0.0370001773 | V63: 0.0249694499 | W63: 0.04416371228 | X63: 0.0281502737 | Y63: 0.02098086526 | Z63: 0.02089463493 | AA63: 0.04043113301 | AB63: 0.04059678985 | AC63: 0.04551925108 | AD63: 0.03191858798 | AE63: 0.01702600432 | AF63: 0.01769872003 | AG63: 0.02140774297 | AH63: 0.02184119001 | AI63: 0.02047206607 | AJ63: 0.02660369211 | AK63: 0.02437447698 | AL63: 0.02702265183 | AM63: 0.01404844831 | AN63: 0.01613304126 | AO63: 0.03294514372 | AP63: 0.02752648419 | AQ63: 0.03519912524 | AR63: 0.01956566955 | AS63: 0.01023453205 | AV63: =PRODUCT(N63:AS63+1) -> 2.26602167 | AW63: 0.0267391707
A64: 59 | B64: 0.0558568889 | C64: 0.03761904889 | D64: -0.01342262447 | E64: 0.03079705535 | F64: 0.03431486036 | G64: 0.02438737423 | H64: 0.01867879138 | I64: 0.015 | J64: 0.015 | K64: 0.013 | L64: 0.011 | M64: 0.011 | N64: 0.02890669971 | O64: 0.02916548787 | P64: 0.0293609678 | Q64: 0.03101022842 | R64: 0.02495931814 | S64: 0.01992188295 | T64: 0.04812984605 | U64: 0.01837952602 | V64: 0.004570989249 | W64: 0.03507369197 | X64: 0.03565871842 | Y64: 0.03678523973 | Z64: 0.00817011984 | AA64: 0.03153698586 | AB64: 0.02677520366 | AC64: 0.02539338544 | AD64: 0.04068984432 | AE64: 0.04152756786 | AF64: 0.02763971584 | AG64: 0.03556822032 | AH64: 0.03559897881 | AI64: 0.03167845607 | AJ64: 0.022978973 | AK64: 0.01105510512 | AL64: 0.02857594781 | AM64: 0.03938787905 | AN64: 0.03769077024 | AO64: 0.03499566645 | AP64: 0.03422809475 | AQ64: 0.02041584627 | AR64: 0.06239307361 | AS64: 0.03251286104 | AV64: =PRODUCT(N64:AS64+1) -> 2.597263194 | AW64: 0.03126785921
A65: 60 | B65: 0.0558568889 | C65: 0.03761904889 | D65: -0.01342262447 | E65: 0.03079705535 | F65: 0.03431486036 | G65: 0.02438737423 | H65: 0.01867879138 | I65: 0.015 | J65: 0.015 | K65: 0.013 | L65: 0.011 | M65: 0.011 | N65: 0.03388575953 | O65: 0.02851810118 | P65: 0.03520461442 | Q65: 0.04158867527 | R65: 0.03222138389 | S65: 0.03045560154 | T65: 0.0503833516 | U65: 0.05799620064 | V65: 0.05004789698 | W65: 0.05453859025 | X65: 0.05427146473 | Y65: 0.05377713984 | Z65: 0.05091910854 | AA65: 0.03999953537 | AB65: 0.04099718586 | AC65: 0.03942247452 | AD65: 0.06637495354 | AE65: 0.04857413731 | AF65: 0.04776434524 | AG65: 0.03428987213 | AH65: 0.0337510106 | AI65: 0.03948190214 | AJ65: 0.03867581753 | AK65: 0.02699024519 | AL65: 0.0249111193 | AM65: 0.02629946888 | AN65: 0.02882484818 | AO65: 0.03419790227 | AP65: 0.02422417386 | AQ65: 0.02439044425 | AR65: 0.01122229669 | AS65: 0.04719068445 | AV65: =PRODUCT(N65:AS65+1) -> 3.405575065 | AW65: 0.04032116488
A66: 61 | B66: =B$2 -> 0.0558568889 | C66: 0.03761904889 | D66: -0.01342262447 | E66: 0.03079705535 | F66: 0.03431486036 | G66: 0.02438737423 | H66: 0.01867879138 | I66: 0.015 | J66: 0.015 | K66: 0.013 | L66: 0.011 | M66: 0.011 | N66: 0.0286186911 | O66: 0.04147878253 | P66: 0.02627285732 | Q66: 0.0261764935 | R66: 0.01391460465 | S66: 0.01381424687 | T66: 0.02738801333 | U66: 0.03298371486 | V66: 0.03298031974 | W66: 0.02876709584 | X66: 0.02066072817 | Y66: 0.01483105546 | Z66: 0.03900260678 | AA66: 0.02564540718 | AB66: 0.01917347276 | AC66: 0.003089049538 | AD66: 0.04667546859 | AE66: 0.05283270214 | AF66: 0.05316702846 | AG66: 0.039006706 | AH66: 0.03836265459 | AI66: 0.04290555492 | AJ66: 0.0418277325 | AK66: 0.04039063021 | AL66: 0.03660546445 | AM66: 0.04448878076 | AN66: 0.02814982133 | AO66: 0.03416302088 | AP66: 0.03254759431 | AQ66: 0.03293885021 | AR66: 0.04359446721 | AS66: 0.01478167241 | AV66: =PRODUCT(N66:AS66+1) -> 2.716366619 | AW66: 0.03276051476
A67: 62 | B67: 0.0558568889 | C67: 0.03761904889 | D67: -0.01342262447 | E67: 0.03079705535 | F67: 0.03431486036 | G67: 0.02438737423 | H67: 0.01867879138 | I67: 0.015 | J67: 0.015 | K67: 0.013 | L67: 0.011 | M67: 0.011 | N67: 0.04446252611 | O67: 0.02138970433 | P67: 0.04368080891 | Q67: 0.05683339284 | R67: 0.06047849207 | S67: 0.045070501 | T67: 0.04077000297 | U67: 0.04291783313 | V67: 0.03067360257 | W67: 0.0280687115 | X67: 0.04709845621 | Y67: 0.047412421 | Z67: 0.05334654924 | AA67: 0.03910822229 | AB67: 0.05422855154 | AC67: 0.05554511851 | AD67: 0.04400997246 | AE67: 0.03924827357 | AF67: 0.04135383103 | AG67: 0.03729210697 | AH67: 0.02877519029 | AI67: 0.02620963583 | AJ67: 0.01480617013 | AK67: 0.01890725092 | AL67: 0.04938946342 | AM67: 0.04850340605 | AN67: 0.04697452986 | AO67: 0.04662907888 | AP67: 0.0116377642 | AQ67: 0.02825690408 | AR67: 0.02974187163 | AS67: 0.03558465458 | AV67: =PRODUCT(N67:AS67+1) -> 3.428284252 | AW67: 0.04054422372
A68: 63 | B68: 0.0558568889 | C68: 0.03761904889 | D68: -0.01342262447 | E68: 0.03079705535 | F68: 0.03431486036 | G68: 0.02438737423 | H68: 0.01867879138 | I68: 0.015 | J68: 0.015 | K68: 0.013 | L68: 0.011 | M68: 0.011 | N68: 0.05802578927 | O68: 0.02376720458 | P68: 0.017770715 | Q68: 0.02835990077 | R68: 0.03583840054 | S68: 0.02334910057 | T68: 0.02227083531 | U68: 0.01623389787 | V68: 0.02395692244 | W68: 0.04025047469 | X68: 0.04149857402 | Y68: 0.04042035715 | Z68: 0.03402319741 | AA68: 0.0242032929 | AB68: 0.02622188229 | AC68: 0.01659225983 | AD68: 0.0459296181 | AE68: 0.03530769202 | AF68: 0.0233427325 | AG68: 0.02188310438 | AH68: 0.01431209295 | AI68: 0.008745541827 | AJ68: 0.01715073757 | AK68: 0.04186371778 | AL68: 0.0277322973 | AM68: 0.01015602652 | AN68: 0.01947319102 | AO68: 0.02250370423 | AP68: 0.01375845141 | AQ68: 0.007527966458 | AR68: 0.04512046102 | AS68: 0.03516966949 | AV68: =PRODUCT(N68:AS68+1) -> 2.33766359 | AW68: 0.02777060873
A69: 64 | B69: 0.0558568889 | C69: 0.03761904889 | D69: -0.01342262447 | E69: 0.03079705535 | F69: 0.03431486036 | G69: 0.02438737423 | H69: 0.01867879138 | I69: 0.015 | J69: 0.015 | K69: 0.013 | L69: 0.011 | M69: 0.011 | N69: 0.02151707293 | O69: 0.03567341313 | P69: 0.04123148083 | Q69: 0.03205233145 | R69: 0.01726644475 | S69: 0.03375427309 | T69: 0.0403965001 | U69: 0.03848353539 | V69: 0.03449511544 | W69: 0.02639100076 | X69: 0.02484599444 | Y69: 0.04023262331 | Z69: 0.03185575985 | AA69: 0.01696315371 | AB69: 0.01427508934 | AC69: 0.02612858212 | AD69: 0.02887492378 | AE69: 0.03708773236 | AF69: 0.03415171236 | AG69: 0.03401842311 | AH69: 0.02801558354 | AI69: 0.03775806735 | AJ69: 0.04228191165 | AK69: 0.04268392221 | AL69: 0.03428512833 | AM69: 0.03035736462 | AN69: 0.03358292435 | AO69: 0.02560859036 | AP69: 0.02897498157 | AQ69: 0.0490875124 | AR69: 0.03666025275 | AS69: 0.03797579055 | AV69: =PRODUCT(N69:AS69+1) -> 2.772041704 | AW69: 0.03343665912
A70: 65 | B70: 0.0558568889 | C70: 0.03761904889 | D70: -0.01342262447 | E70: 0.03079705535 | F70: 0.03431486036 | G70: 0.02438737423 | H70: 0.01867879138 | I70: 0.015 | J70: 0.015 | K70: 0.013 | L70: 0.011 | M70: 0.011 | N70: 0.04170707485 | O70: 0.03953695078 | P70: 0.05613901596 | Q70: 0.04277856728 | R70: 0.03793746746 | S70: 0.01666120412 | T70: 0.04073459113 | U70: 0.04014063727 | V70: 0.03520878732 | W70: 0.03512192893 | X70: 0.0491884581 | Y70: 0.03093868843 | Z70: 0.05937068992 | AA70: 0.03081386084 | AB70: 0.02768772267 | AC70: 0.03319780099 | AD70: 0.03656565961 | AE70: 0.04604391246 | AF70: 0.02315866217 | AG70: 0.02132562468 | AH70: 0.01919595734 | AI70: 0.01919082085 | AJ70: 0.02511244973 | AK70: 0.01652122547 | AL70: 0.01706120071 | AM70: 0.008786554346 | AN70: 0.03381538394 | AO70: 0.03552071294 | AP70: 0.0153996545 | AQ70: 0.03160821598 | AR70: 0.044121008 | AS70: 0.02865549313 | AV70: =PRODUCT(N70:AS70+1) -> 2.774806542 | AW70: 0.03346989311
A71: 66 | B71: 0.0558568889 | C71: 0.03761904889 | D71: -0.01342262447 | E71: 0.03079705535 | F71: 0.03431486036 | G71: 0.02438737423 | H71: 0.01867879138 | I71: 0.015 | J71: =I71 -> 0.015 | K71: 0.013 | L71: 0.011 | M71: =L71 -> 0.011 | N71: 0.03476373038 | O71: 0.03474012998 | P71: 0.04124871652 | Q71: 0.0410189032 | R71: 0.0361831987 | S71: 0.01857493645 | T71: 0.04498842871 | U71: 0.0207697157 | V71: 0.02055059325 | W71: 0.02694081216 | X71: 0.02291156704 | Y71: 0.01990028957 | Z71: 0.02909178009 | AA71: 0.01837848562 | AB71: 0.03271745564 | AC71: 0.03382976317 | AD71: 0.03832813294 | AE71: 0.03491176339 | AF71: 0.02076298968 | AG71: 0.01915298743 | AH71: 0.01857371045 | AI71: 0.02331796107 | AJ71: 0.00713456348 | AK71: 0.002690522033 | AL71: 0.02790475183 | AM71: 0.03729675686 | AN71: 0.03033812598 | AO71: 0.02786055236 | AP71: 0.0292184339 | AQ71: 0.0306736899 | AR71: 0.01961262001 | AS71: 0.02447534808 | AV71: =PRODUCT(N71:AS71+1) -> 2.353526227 | AW71: =AV71^(1/($AS$5-$N$5))-1 -> 0.02799484501
A72: 67 | B72: 0.0558568889 | C72: 0.03761904889 | D72: -0.01342262447 | E72: 0.03079705535 | F72: 0.03431486036 | G72: 0.02438737423 | H72: 0.01867879138 | I72: 0.015 | J72: 0.015 | K72: =K71 -> 0.013 | L72: 0.011 | M72: 0.011 | N72: 0.02475842535 | O72: 0.04372362582 | P72: 0.04270812066 | Q72: 0.03819935066 | R72: 0.05571214056 | S72: 0.03671254811 | T72: 0.03225654937 | U72: 0.03824911825 | V72: 0.03724895547 | W72: 0.06122957817 | X72: 0.04349389646 | Y72: 0.03334359976 | Z72: 0.01977120372 | AA72: 0.01826394044 | AB72: 0.04705928836 | AC72: 0.0425565751 | AD72: 0.02557650184 | AE72: 0.05614855632 | AF72: 0.05644867139 | AG72: 0.05637580615 | AH72: 0.02792851856 | AI72: 0.05468943137 | AJ72: 0.04910968388 | AK72: 0.05009739532 | AL72: 0.04480503628 | AM72: 0.04686155072 | AN72: 0.03867792825 | AO72: 0.0543003508 | AP72: 0.03502017834 | AQ72: 0.05838568294 | AR72: 0.05003164046 | AS72: 0.05187896823 | AV72: =PRODUCT(N72:AS72+1) -> 3.823254774 | AW72: 0.04421077193
A73: 68 | B73: 0.0558568889 | C73: 0.03761904889 | D73: -0.01342262447 | E73: 0.03079705535 | F73: 0.03431486036 | G73: 0.02438737423 | H73: 0.01867879138 | I73: 0.015 | J73: 0.015 | K73: 0.013 | L73: 0.011 | M73: 0.011 | N73: 0.01779293166 | O73: 0.008503833321 | P73: 0.04916295719 | Q73: 0.04043980682 | R73: 0.03943839796 | S73: 0.05485191549 | T73: 0.0366836359 | U73: 0.03681859118 | V73: 0.03662707295 | W73: 0.03721484562 | X73: 0.03529804199 | Y73: 0.02619745441 | Z73: 0.03153963793 | AA73: 0.04494380975 | AB73: 0.03732834925 | AC73: 0.02243903076 | AD73: 0.02762339901 | AE73: 0.03343456687 | AF73: 0.02025948207 | AG73: 0.02796963658 | AH73: 0.02859749315 | AI73: 0.02665773392 | AJ73: 0.02562950415 | AK73: 0.02513152904 | AL73: 0.02568964877 | AM73: 0.02444505461 | AN73: 0.01877791279 | AO73: 0.01929351052 | AP73: 0.03130153712 | AQ73: 0.03632488739 | AR73: 0.0419317449 | AS73: 0.03283584395 | AV73: =PRODUCT(N73:AS73+1) -> 2.676338299 | AW73: 0.0322660531
A74: 69 | B74: 0.0558568889 | C74: 0.03761904889 | D74: -0.01342262447 | E74: 0.03079705535 | F74: 0.03431486036 | G74: 0.02438737423 | H74: 0.01867879138 | I74: 0.015 | J74: 0.015 | K74: 0.013 | L74: 0.011 | M74: 0.011 | N74: 0.04648466126 | O74: 0.02422238305 | P74: 0.04387966848 | Q74: 0.04656465035 | R74: 0.03401828549 | S74: 0.01497944211 | T74: 0.02095112106 | U74: 0.0232418288 | V74: 0.01916578731 | W74: 0.03466084137 | X74: 0.03574464673 | Y74: 0.04069227975 | Z74: 0.0424904021 | AA74: 0.04419119199 | AB74: 0.0458489938 | AC74: 0.039201755 | AD74: 0.03547762298 | AE74: 0.02630433036 | AF74: 0.03519093903 | AG74: 0.03474740475 | AH74: 0.04474247474 | AI74: 0.022070532 | AJ74: 0.02416795272 | AK74: 0.02460674982 | AL74: 0.04774432385 | AM74: 0.04228397543 | AN74: 0.01940097091 | AO74: 0.03514290171 | AP74: 0.03915067941 | AQ74: 0.0334385848 | AR74: 0.03579662249 | AS74: 0.02401257421 | AV74: =PRODUCT(N74:AS74+1) -> 2.890487281 | AW74: 0.03483243935
A75: 70 | B75: 0.0558568889 | C75: 0.03761904889 | D75: -0.01342262447 | E75: 0.03079705535 | F75: 0.03431486036 | G75: 0.02438737423 | H75: 0.01867879138 | I75: 0.015 | J75: 0.015 | K75: 0.013 | L75: 0.011 | M75: 0.011 | N75: 0.008529186309 | O75: 0.04314641445 | P75: -0.003883532524 | Q75: 0.01391536672 | R75: 0.03559263898 | S75: 0.01579957194 | T75: 0.04180188389 | U75: 0.02912886771 | V75: 0.01604401249 | W75: 0.02362902921 | X75: 0.01288612807 | Y75: 0.01783557691 | Z75: 0.03229036751 | AA75: 0.03081867255 | AB75: 0.03747224023 | AC75: 0.04007341501 | AD75: 0.006671395039 | AE75: 0.03690484515 | AF75: 0.03748363544 | AG75: 0.03598231307 | AH75: 0.02445089835 | AI75: 0.03726592127 | AJ75: 0.03854064597 | AK75: 0.04899521053 | AL75: 0.04852890852 | AM75: 0.04515114383 | AN75: 0.03954540441 | AO75: 0.0406417064 | AP75: 0.01917648598 | AQ75: 0.05242559097 | AR75: 0.05692315092 | AS75: 0.04084796636 | AV75: =PRODUCT(N75:AS75+1) -> 2.680585316 | AW75: 0.0323188538
A76: 71 | B76: =B$2 -> 0.0558568889 | C76: 0.03761904889 | D76: -0.01342262447 | E76: 0.03079705535 | F76: 0.03431486036 | G76: 0.02438737423 | H76: 0.01867879138 | I76: 0.015 | J76: 0.015 | K76: 0.013 | L76: 0.011 | M76: 0.011 | N76: 0.02759253058 | O76: 0.03013907249 | P76: 0.02919948154 | Q76: 0.02932995798 | R76: 0.02216499232 | S76: 0.002820643501 | T76: 0.01696766626 | U76: 0.0108475293 | V76: 0.0188286336 | W76: 0.01749970041 | X76: 0.02455929216 | Y76: 0.02850449553 | Z76: 0.03147230717 | AA76: 0.03155219272 | AB76: 0.03206476688 | AC76: 0.03335785507 | AD76: 0.01266609762 | AE76: 0.03814354899 | AF76: 0.04962618828 | AG76: 0.04429939262 | AH76: 0.01580518526 | AI76: 0.01073633415 | AJ76: 0.02099628635 | AK76: 0.02400446494 | AL76: 0.03310097933 | AM76: 0.03491897352 | AN76: 0.02344352077 | AO76: 0.04172037701 | AP76: 0.04143499618 | AQ76: 0.03835364876 | AR76: 0.0243089269 | AS76: 0.02609916894 | AV76: =PRODUCT(N76:AS76+1) -> 2.347539097 | AW76: 0.02791038249
A77: 72 | B77: 0.0558568889 | C77: 0.03761904889 | D77: -0.01342262447 | E77: 0.03079705535 | F77: 0.03431486036 | G77: 0.02438737423 | H77: 0.01867879138 | I77: 0.015 | J77: 0.015 | K77: 0.013 | L77: 0.011 | M77: 0.011 | N77: 0.003542330012 | O77: 0.04833465099 | P77: 0.04626395348 | Q77: 0.02146929637 | R77: 0.02201880399 | S77: 0.0218734419 | T77: 0.02685643923 | U77: 0.02686784269 | V77: 0.03321846603 | W77: 0.01680535698 | X77: 0.0348281581 | Y77: 0.02360222724 | Z77: 0.03140559763 | AA77: 0.03236954147 | AB77: 0.04228401869 | AC77: 0.0417802795 | AD77: 0.01814822625 | AE77: 0.005312404851 | AF77: 0.02937062035 | AG77: 0.02416633771 | AH77: 0.02774755493 | AI77: 0.03538578121 | AJ77: 0.03400398951 | AK77: 0.02331428103 | AL77: 0.02583137526 | AM77: 0.02976904539 | AN77: 0.01318954634 | AO77: 0.04843000386 | AP77: 0.03647944795 | AQ77: 0.001630222319 | AR77: 0.02127560921 | AS77: 0.02334695025 | AV77: =PRODUCT(N77:AS77+1) -> 2.356638478 | AW77: 0.02803866851
A78: 73 | B78: 0.0558568889 | C78: 0.03761904889 | D78: -0.01342262447 | E78: 0.03079705535 | F78: 0.03431486036 | G78: 0.02438737423 | H78: 0.01867879138 | I78: 0.015 | J78: 0.015 | K78: 0.013 | L78: 0.011 | M78: 0.011 | N78: 0.01699070643 | O78: 0.01896914395 | P78: 0.03588973698 | Q78: 0.0253618245 | R78: 0.02635882032 | S78: 0.02792391237 | T78: 0.02893604244 | U78: 0.03023431889 | V78: 0.03287444039 | W78: 0.03082725141 | X78: 0.005943908581 | Y78: 0.0196867285 | Z78: 0.02083832859 | AA78: 0.02090051562 | AB78: 0.02209749342 | AC78: 0.04175002644 | AD78: 0.03600425233 | AE78: 0.02578489765 | AF78: 0.02825378577 | AG78: 0.02798595385 | AH78: 0.02977130672 | AI78: 0.04042621028 | AJ78: 0.05312477705 | AK78: 0.02003058404 | AL78: 0.0199549902 | AM78: 0.03190161243 | AN78: 0.04693917626 | AO78: 0.02905402672 | AP78: 0.01351177121 | AQ78: 0.02396996269 | AR78: 0.02039961456 | AS78: 0.007783529536 | AV78: =PRODUCT(N78:AS78+1) -> 2.334029683 | AW78: 0.02771903207
A79: 74 | B79: 0.0558568889 | C79: 0.03761904889 | D79: -0.01342262447 | E79: 0.03079705535 | F79: 0.03431486036 | G79: 0.02438737423 | H79: 0.01867879138 | I79: 0.015 | J79: 0.015 | K79: 0.013 | L79: 0.011 | M79: 0.011 | N79: 0.02796673461 | O79: 0.04115562845 | P79: 0.03962799237 | Q79: 0.03955239593 | R79: 0.03724516215 | S79: 0.03723162678 | T79: 0.04865610541 | U79: 0.04483982389 | V79: 0.04640570105 | W79: 0.04230566508 | X79: 0.04163817532 | Y79: 0.04336087122 | Z79: 0.02690230464 | AA79: 0.03042560246 | AB79: 0.02721446086 | AC79: 0.03886241548 | AD79: 0.02220979361 | AE79: 0.05335575529 | AF79: 0.04863652107 | AG79: 0.03589798341 | AH79: 0.03613342777 | AI79: 0.03596239772 | AJ79: 0.04730985752 | AK79: 0.04637737701 | AL79: 0.04733391667 | AM79: 0.03695397266 | AN79: 0.03745099631 | AO79: 0.05085832781 | AP79: 0.06856839128 | AQ79: 0.06699315995 | AR79: 0.04091199318 | AS79: 0.02941614949 | AV79: =PRODUCT(N79:AS79+1) -> 3.632254231 | AW79: 0.0424859277
A80: 75 | B80: 0.0558568889 | C80: 0.03761904889 | D80: -0.01342262447 | E80: 0.03079705535 | F80: 0.03431486036 | G80: 0.02438737423 | H80: 0.01867879138 | I80: 0.015 | J80: 0.015 | K80: 0.013 | L80: 0.011 | M80: 0.011 | N80: 0.02987481526 | O80: 0.03570528686 | P80: 0.03271284905 | Q80: 0.01460888763 | R80: 0.02720033044 | S80: 0.01695480638 | T80: 0.03815511035 | U80: 0.03218432925 | V80: 0.03640559894 | W80: 0.005675700976 | X80: 0.009925759921 | Y80: 0.03418634541 | Z80: 0.03110629087 | AA80: 0.01880746119 | AB80: 0.02069258972 | AC80: 0.02843955824 | AD80: 0.02657373462 | AE80: 0.02315270189 | AF80: 0.02989490399 | AG80: 0.02775109914 | AH80: 0.02662819254 | AI80: 0.05055531127 | AJ80: 0.02233725064 | AK80: 0.0187345557 | AL80: 0.04185732323 | AM80: 0.01232025575 | AN80: 0.03700219392 | AO80: 0.03184010214 | AP80: 0.03483495746 | AQ80: 0.03453435373 | AR80: 0.0357098746 | AS80: 0.02512255629 | AV80: =PRODUCT(N80:AS80+1) -> 2.40584361 | AW80: 0.02872418043
A81: 76 | B81: 0.0558568889 | C81: 0.03761904889 | D81: -0.01342262447 | E81: 0.03079705535 | F81: 0.03431486036 | G81: 0.02438737423 | H81: 0.01867879138 | I81: 0.015 | J81: 0.015 | K81: 0.013 | L81: 0.011 | M81: 0.011 | N81: 0.05257046454 | O81: 0.04340119519 | P81: 0.03730054499 | Q81: 0.02728601231 | R81: 0.05606738138 | S81: 0.04897926441 | T81: 0.05002708802 | U81: 0.06454113574 | V81: 0.06124141421 | W81: 0.05282644605 | X81: 0.03810373443 | Y81: 0.03544969511 | Z81: 0.0354562592 | AA81: 0.04146944439 | AB81: 0.04113143582 | AC81: 0.02822445804 | AD81: 0.04895322648 | AE81: 0.04594553846 | AF81: 0.01519584348 | AG81: 0.01241397285 | AH81: 0.01380334067 | AI81: 0.02673213732 | AJ81: 0.03681994759 | AK81: 0.04021033052 | AL81: 0.03672529638 | AM81: 0.03386130704 | AN81: 0.05050433781 | AO81: 0.02021041319 | AP81: 0.02296508718 | AQ81: 0.02280683727 | AR81: 0.03876113556 | AS81: 0.04630980369 | AV81: =PRODUCT(N81:AS81+1) -> 3.322653276 | AW81: 0.03949426484
A82: 77 | B82: 0.0558568889 | C82: 0.03761904889 | D82: -0.01342262447 | E82: 0.03079705535 | F82: 0.03431486036 | G82: 0.02438737423 | H82: 0.01867879138 | I82: 0.015 | J82: 0.015 | K82: 0.013 | L82: 0.011 | M82: 0.011 | N82: 0.02754642872 | O82: 0.02291990066 | P82: 0.01498766877 | Q82: 0.02576855677 | R82: 0.02399762872 | S82: 0.02393632521 | T82: 0.02918640417 | U82: 0.02955873614 | V82: 0.02423279169 | W82: 0.01300186353 | X82: 0.03606777161 | Y82: 0.03981814416 | Z82: 0.004899818232 | AA82: 0.02939147495 | AB82: 0.02265008956 | AC82: 0.01904902053 | AD82: 0.04267206304 | AE82: 0.02606016619 | AF82: 0.03901893148 | AG82: 0.03574430823 | AH82: 0.03456963082 | AI82: 0.02383960423 | AJ82: 0.02393015732 | AK82: 0.02314773079 | AL82: 0.02429885435 | AM82: 0.02520869107 | AN82: 0.03484433886 | AO82: 0.03321537773 | AP82: 0.04894178865 | AQ82: 0.01226589995 | AR82: 0.00662059746 | AS82: 0.01830951417 | AV82: =PRODUCT(N82:AS82+1) -> 2.287407938 | AW82: 0.02705033789
A83: 78 | B83: 0.0558568889 | C83: 0.03761904889 | D83: -0.01342262447 | E83: 0.03079705535 | F83: 0.03431486036 | G83: 0.02438737423 | H83: 0.01867879138 | I83: 0.015 | J83: 0.015 | K83: 0.013 | L83: 0.011 | M83: 0.011 | N83: 0.02063012828 | O83: 0.03575949317 | P83: 0.03636558734 | Q83: 0.02348421062 | R83: 0.02100399632 | S83: 0.02132299071 | T83: 0.02064994492 | U83: 0.01060831798 | V83: 0.009294119852 | W83: 0.01321642692 | X83: 0.01442030948 | Y83: 0.0140310202 | Z83: 0.02006131658 | AA83: 0.02484601809 | AB83: 0.004883268193 | AC83: 0.006758316218 | AD83: 0.03119768081 | AE83: 0.03324715294 | AF83: 0.04226970541 | AG83: 0.02534656686 | AH83: 0.0255823792 | AI83: 0.03917684053 | AJ83: 0.0282291268 | AK83: 0.0446515813 | AL83: 0.0360252414 | AM83: 0.03648837551 | AN83: 0.04003826626 | AO83: 0.030899435 | AP83: 0.03402099522 | AQ83: 0.0085260557 | AR83: 0.05991096307 | AS83: 0.04795503113 | AV83: =PRODUCT(N83:AS83+1) -> 2.332565104 | AW83: 0.02769822308
A84: 79 | B84: 0.0558568889 | C84: 0.03761904889 | D84: -0.01342262447 | E84: 0.03079705535 | F84: 0.03431486036 | G84: 0.02438737423 | H84: 0.01867879138 | I84: 0.015 | J84: 0.015 | K84: 0.013 | L84: 0.011 | M84: 0.011 | N84: 0.04573105812 | O84: 0.01997030906 | P84: 0.03260595295 | Q84: 0.04315749963 | R84: 0.04695187383 | S84: 0.04276976985 | T84: 0.04240304983 | U84: 0.06237465447 | V84: 0.06110920811 | W84: 0.0308382742 | X84: 0.03508981914 | Y84: 0.03467469115 | Z84: 0.03459792219 | AA84: 0.04116158928 | AB84: 0.03223792731 | AC84: 0.03897780031 | AD84: 0.0525750397 | AE84: 0.03705232583 | AF84: 0.03635112205 | AG84: 0.03681768868 | AH84: 0.03747616625 | AI84: 0.03782242537 | AJ84: 0.03727824552 | AK84: 0.04457828358 | AL84: 0.02075364479 | AM84: 0.03478081489 | AN84: 0.03838825219 | AO84: 0.03077422001 | AP84: 0.03203172329 | AQ84: 0.04342985307 | AR84: 0.04812515729 | AS84: 0.05796065675 | AV84: =PRODUCT(N84:AS84+1) -> 3.472649571 | AW84: 0.04097590244
A85: 80 | B85: 0.0558568889 | C85: 0.03761904889 | D85: -0.01342262447 | E85: 0.03079705535 | F85: 0.03431486036 | G85: 0.02438737423 | H85: 0.01867879138 | I85: 0.015 | J85: 0.015 | K85: 0.013 | L85: 0.011 | M85: 0.011 | N85: 0.02879482516 | O85: 0.04141675828 | P85: 0.02566376405 | Q85: 0.03049899641 | R85: 0.03922902819 | S85: 0.05096401787 | T85: 0.04610014655 | U85: 0.03476672463 | V85: 0.03168656903 | W85: 0.0428650834 | X85: 0.0292678016 | Y85: 0.05020695035 | Z85: 0.04652056426 | AA85: 0.0410962221 | AB85: 0.05748400271 | AC85: 0.04194429901 | AD85: 0.01892816036 | AE85: 0.04351303127 | AF85: 0.03698687015 | AG85: 0.04162376853 | AH85: 0.05275375957 | AI85: 0.05960772737 | AJ85: 0.04672055365 | AK85: 0.05484432248 | AL85: 0.04823217725 | AM85: 0.04019877186 | AN85: 0.04046987548 | AO85: 0.04133897276 | AP85: 0.03838150883 | AQ85: 0.04964278287 | AR85: 0.05360379096 | AS85: 0.04477186012 | AV85: =PRODUCT(N85:AS85+1) -> 3.747712058 | AW85: 0.04353876716
A86: 81 | B86: =B$2 -> 0.0558568889 | C86: 0.03761904889 | D86: -0.01342262447 | E86: 0.03079705535 | F86: 0.03431486036 | G86: 0.02438737423 | H86: 0.01867879138 | I86: 0.015 | J86: 0.015 | K86: 0.013 | L86: 0.011 | M86: 0.011 | N86: 0.03179703778 | O86: 0.01718255229 | P86: 0.02003027656 | Q86: 0.01856758363 | R86: 0.00702423729 | S86: 0.007063069426 | T86: 0.04544026105 | U86: 0.04553370217 | V86: 0.01099500321 | W86: 0.03448919036 | X86: 0.02657976773 | Y86: 0.01343052663 | Z86: 0.03139737591 | AA86: 0.03722544477 | AB86: 0.03826271238 | AC86: 0.028727553 | AD86: 0.02198111547 | AE86: 0.02215196873 | AF86: 0.02135989254 | AG86: 0.03025294103 | AH86: 0.02575937393 | AI86: 0.03376693096 | AJ86: 0.03747182718 | AK86: 0.02735431877 | AL86: 0.01942561095 | AM86: 0.01601431016 | AN86: 0.01005247616 | AO86: 0.03994706344 | AP86: 0.03653788308 | AQ86: 0.03652839036 | AR86: 0.02169476295 | AS86: 0.02383140918 | AV86: =PRODUCT(N86:AS86+1) -> 2.282814561 | AW86: 0.02698374302
A87: 82 | B87: 0.0558568889 | C87: 0.03761904889 | D87: -0.01342262447 | E87: 0.03079705535 | F87: 0.03431486036 | G87: 0.02438737423 | H87: 0.01867879138 | I87: 0.015 | J87: 0.015 | K87: 0.013 | L87: 0.011 | M87: 0.011 | N87: 0.04036678201 | O87: 0.0311344373 | P87: 0.03907399372 | Q87: 0.07243255097 | R87: 0.05135467478 | S87: 0.05196332795 | T87: 0.05267863183 | U87: 0.04663543429 | V87: 0.05776479218 | W87: 0.06152185692 | X87: 0.06566335965 | Y87: 0.06058382186 | Z87: 0.05909508223 | AA87: 0.06142519578 | AB87: 0.05207869034 | AC87: 0.04988833133 | AD87: 0.03508444407 | AE87: 0.040915636 | AF87: 0.03998011248 | AG87: 0.03284145472 | AH87: 0.01318343138 | AI87: 0.01379175165 | AJ87: 0.04637728998 | AK87: 0.04868567047 | AL87: 0.04056160568 | AM87: 0.0435286804 | AN87: 0.0377120044 | AO87: 0.02256979987 | AP87: 0.03689465762 | AQ87: 0.04221109586 | AR87: 0.046933231 | AS87: 0.05480848188 | AV87: =PRODUCT(N87:AS87+1) -> 4.117214361 | AW87: 0.04670890423
A88: 83 | B88: 0.0558568889 | C88: 0.03761904889 | D88: -0.01342262447 | E88: 0.03079705535 | F88: 0.03431486036 | G88: 0.02438737423 | H88: 0.01867879138 | I88: 0.015 | J88: 0.015 | K88: 0.013 | L88: 0.011 | M88: 0.011 | N88: 0.03097479242 | O88: 0.01771045266 | P88: 0.03038062323 | Q88: 0.03066151769 | R88: 0.0295010426 | S88: 0.03203579035 | T88: 0.03420717641 | U88: 0.03692286335 | V88: 0.02262669132 | W88: 0.02257353282 | X88: 0.02448403066 | Y88: 0.03268581974 | Z88: 0.03429330742 | AA88: 0.0467341472 | AB88: 0.0189536024 | AC88: 0.01591234478 | AD88: 0.02417642401 | AE88: 0.03225123187 | AF88: 0.03267755445 | AG88: 0.05181352524 | AH88: 0.04399802491 | AI88: 0.04454930664 | AJ88: 0.04457419369 | AK88: 0.04696749492 | AL88: 0.04709251585 | AM88: 0.02916725189 | AN88: 0.0587281617 | AO88: 0.03708756473 | AP88: 0.04776579461 | AQ88: 0.05219185164 | AR88: 0.02552897602 | AS88: 0.02987406195 | AV88: =PRODUCT(N88:AS88+1) -> 2.970053709 | AW88: 0.0357393143
A89: 84 | B89: 0.0558568889 | C89: 0.03761904889 | D89: -0.01342262447 | E89: 0.03079705535 | F89: 0.03431486036 | G89: 0.02438737423 | H89: 0.01867879138 | I89: 0.015 | J89: 0.015 | K89: 0.013 | L89: 0.011 | M89: 0.011 | N89: 0.01988389135 | O89: 0.03605353874 | P89: 0.03639289497 | Q89: 0.036465192 | R89: 0.03532543575 | S89: 0.04542816971 | T89: 0.02437518312 | U89: 0.0181794087 | V89: 0.03908963442 | W89: 0.01522310642 | X89: 0.0152193028 | Y89: 0.03037348472 | Z89: 0.03207467256 | AA89: 0.03050739872 | AB89: 0.02213878646 | AC89: 0.02699237239 | AD89: 0.02514538296 | AE89: 0.03872762325 | AF89: 0.04005327965 | AG89: 0.04901415627 | AH89: 0.05943102337 | AI89: 0.0352813277 | AJ89: 0.02037200529 | AK89: 0.02291133181 | AL89: 0.0332638309 | AM89: 0.04559828946 | AN89: 0.03612395438 | AO89: 0.0477990134 | AP89: 0.02896904204 | AQ89: 0.01810659217 | AR89: 0.03042234227 | AS89: 0.03269193716 | AV89: =PRODUCT(N89:AS89+1) -> 2.745199809 | AW89: 0.03311233547
A90: 85 | B90: 0.0558568889 | C90: 0.03761904889 | D90: -0.01342262447 | E90: 0.03079705535 | F90: 0.03431486036 | G90: 0.02438737423 | H90: 0.01867879138 | I90: 0.015 | J90: 0.015 | K90: 0.013 | L90: 0.011 | M90: 0.011 | N90: 0.01037513808 | O90: 0.03268485394 | P90: 0.04807772541 | Q90: 0.03272083164 | R90: 0.03226731776 | S90: 0.03235287885 | T90: 0.02810448284 | U90: 0.02428590064 | V90: 0.02673615985 | W90: 0.02841650218 | X90: 0.03739633565 | Y90: 0.03392580038 | Z90: 0.04560497158 | AA90: 0.03617995807 | AB90: 0.04029139488 | AC90: 0.03694758676 | AD90: 0.03222971734 | AE90: 0.0333990478 | AF90: 0.02442262002 | AG90: 0.02215978385 | AH90: 0.02181560552 | AI90: 0.03196323764 | AJ90: 0.02969308824 | AK90: 0.02823589859 | AL90: 0.02371195824 | AM90: 0.02661968964 | AN90: 0.01245116677 | AO90: 0.03113031989 | AP90: 0.03122293989 | AQ90: 0.03681174412 | AR90: 0.0393989527 | AS90: 0.02517840532 | AV90: =PRODUCT(N90:AS90+1) -> 2.61499696 | AW90: 0.03149425276
A91: 86 | B91: 0.0558568889 | C91: 0.03761904889 | D91: -0.01342262447 | E91: 0.03079705535 | F91: 0.03431486036 | G91: 0.02438737423 | H91: 0.01867879138 | I91: 0.015 | J91: 0.015 | K91: 0.013 | L91: 0.011 | M91: 0.011 | N91: 0.02602235675 | O91: 0.03548711318 | P91: 0.01849844736 | Q91: 0.01848879862 | R91: 0.01708098073 | S91: 0.00973408438 | T91: 0.01457771783 | U91: 0.01959646642 | V91: 0.01206252874 | W91: 0.02055463042 | X91: 0.01634730395 | Y91: 0.01342835369 | Z91: 0.03131700089 | AA91: 0.02219974292 | AB91: 0.01865085112 | AC91: 0.02511201513 | AD91: 0.02807237922 | AE91: 0.02816862595 | AF91: 0.03205455246 | AG91: 0.05071562742 | AH91: 0.05030290064 | AI91: 0.04594439871 | AJ91: 0.03705818252 | AK91: 0.0464011576 | AL91: 0.04157202161 | AM91: 0.04191929689 | AN91: 0.04574394731 | AO91: 0.05222354154 | AP91: 0.03328910729 | AQ91: 0.03880304412 | AR91: 0.049860039 | AS91: 0.05338223764 | AV91: =PRODUCT(N91:AS91+1) -> 2.65599565 | AW91: 0.03201201504
A92: 87 | B92: 0.0558568889 | C92: 0.03761904889 | D92: -0.01342262447 | E92: 0.03079705535 | F92: 0.03431486036 | G92: 0.02438737423 | H92: 0.01867879138 | I92: 0.015 | J92: 0.015 | K92: 0.013 | L92: 0.011 | M92: 0.011 | N92: 0.03513203094 | O92: 0.02560697042 | P92: 0.03755917975 | Q92: 0.02329945103 | R92: 0.02342054368 | S92: 0.02434135249 | T92: 0.03008017047 | U92: 0.01439213768 | V92: 0.0127165074 | W92: 0.02255186113 | X92: 0.01282641301 | Y92: 0.006460182429 | Z92: 0.03079654053 | AA92: 0.05113152985 | AB92: 0.02719230752 | AC92: 0.02805165184 | AD92: 0.01669518625 | AE92: 0.04010041872 | AF92: 0.03671870877 | AG92: 0.02327744802 | AH92: 0.0233313456 | AI92: 0.02065584198 | AJ92: 0.0489355235 | AK92: 0.04693176196 | AL92: 0.03359469675 | AM92: 0.02866015798 | AN92: 0.03404115152 | AO92: 0.02945945365 | AP92: 0.02513956145 | AQ92: 0.03054231893 | AR92: 0.03767127448 | AS92: 0.04822950321 | AV92: =PRODUCT(N92:AS92+1) -> 2.49566928 | AW92: 0.0299413273
A93: 88 | B93: 0.0558568889 | C93: 0.03761904889 | D93: -0.01342262447 | E93: 0.03079705535 | F93: 0.03431486036 | G93: 0.02438737423 | H93: 0.01867879138 | I93: 0.015 | J93: 0.015 | K93: 0.013 | L93: 0.011 | M93: 0.011 | N93: 0.03455087349 | O93: 0.04381632733 | P93: 0.05390913966 | Q93: 0.02199905707 | R93: 0.02213798532 | S93: 0.0387464419 | T93: 0.03278123872 | U93: 0.03379784219 | V93: 0.02859538375 | W93: 0.03004585735 | X93: 0.03311427713 | Y93: 0.01903045384 | Z93: 0.02013759065 | AA93: 0.03125540156 | AB93: 0.03677493285 | AC93: 0.0437065 | AD93: 0.04826869706 | AE93: 0.03220514655 | AF93: 0.03395474768 | AG93: 0.02886686266 | AH93: 0.02132547456 | AI93: 0.02136288801 | AJ93: 0.02158481983 | AK93: 0.02731659289 | AL93: 0.03379342421 | AM93: 0.03080388297 | AN93: 0.03138821859 | AO93: 0.02321408908 | AP93: 0.02099543198 | AQ93: 0.02525444375 | AR93: 0.038452862 | AS93: 0.03485709722 | AV93: =PRODUCT(N93:AS93+1) -> 2.669073921 | AW93: 0.03217555105
A94: 89 | B94: 0.0558568889 | C94: 0.03761904889 | D94: -0.01342262447 | E94: 0.03079705535 | F94: 0.03431486036 | G94: 0.02438737423 | H94: 0.01867879138 | I94: 0.015 | J94: 0.015 | K94: 0.013 | L94: 0.011 | M94: 0.011 | N94: 0.02006156697 | O94: 0.04600451423 | P94: 0.03597120833 | Q94: 0.01783035564 | R94: 0.03352715184 | S94: 0.03268001368 | T94: 0.03207674605 | U94: 0.02602755648 | V94: 0.02610615596 | W94: 0.01422118726 | X94: 0.0254632942 | Y94: 0.04849952919 | Z94: 0.01195905255 | AA94: 0.006979291097 | AB94: 0.04100643567 | AC94: 0.03205015644 | AD94: 0.02728564571 | AE94: 0.04885446587 | AF94: 0.01912810344 | AG94: 0.01911504255 | AH94: 0.0441076808 | AI94: 0.04093398558 | AJ94: 0.04637685103 | AK94: 0.02527409125 | AL94: 0.03571855747 | AM94: 0.03644653697 | AN94: 0.01102837281 | AO94: 0.04443679206 | AP94: 0.008252066312 | AQ94: 0.01770601932 | AR94: 0.01514423877 | AS94: 0.03159574545 | AV94: =PRODUCT(N94:AS94+1) -> 2.475772258 | AW94: 0.02967541846
A95: 90 | B95: 0.0558568889 | C95: 0.03761904889 | D95: -0.01342262447 | E95: 0.03079705535 | F95: 0.03431486036 | G95: 0.02438737423 | H95: 0.01867879138 | I95: 0.015 | J95: 0.015 | K95: 0.013 | L95: 0.011 | M95: 0.011 | N95: 0.03814765358 | O95: 0.02453401331 | P95: 0.03951865347 | Q95: 0.03828112857 | R95: 0.02989587196 | S95: 0.04015710174 | T95: 0.04005661098 | U95: 0.03073666758 | V95: 0.04922848848 | W95: 0.03945540356 | X95: 0.04559298965 | Y95: 0.04490130985 | Z95: 0.05282437298 | AA95: 0.04380824833 | AB95: 0.04269320267 | AC95: 0.03460332635 | AD95: 0.01867687486 | AE95: 0.04808718961 | AF95: 0.04272891519 | AG95: 0.03461054419 | AH95: 0.03544639243 | AI95: 0.04213444164 | AJ95: 0.0396411472 | AK95: 0.05036560806 | AL95: 0.05241879052 | AM95: 0.05379885228 | AN95: 0.05828584435 | AO95: 0.05995773075 | AP95: 0.05619731625 | AQ95: 0.06774380934 | AR95: 0.04988822791 | AS95: 0.04187149088 | AV95: =PRODUCT(N95:AS95+1) -> 3.878960389 | AW95: 0.04469813059
A96: 91 | B96: =B$2 -> 0.0558568889 | C96: 0.03761904889 | D96: -0.01342262447 | E96: 0.03079705535 | F96: 0.03431486036 | G96: 0.02438737423 | H96: 0.01867879138 | I96: 0.015 | J96: 0.015 | K96: 0.013 | L96: 0.011 | M96: 0.011 | N96: 0.03929197037 | O96: 0.02028408673 | P96: 0.04525607223 | Q96: 0.05379126241 | R96: 0.03525146179 | S96: 0.03531131747 | T96: 0.03589405923 | U96: 0.03141261971 | V96: 0.03304631476 | W96: 0.04577497744 | X96: 0.01959678601 | Y96: 0.02759829136 | Z96: 0.04419781177 | AA96: 0.0495615209 | AB96: 0.03418828133 | AC96: 0.05501199344 | AD96: 0.03857313477 | AE96: 0.02240615393 | AF96: 0.02246370924 | AG96: 0.0348468504 | AH96: 0.03566543591 | AI96: 0.01244776596 | AJ96: 0.027106206 | AK96: 0.0280212689 | AL96: 0.02807756358 | AM96: 0.02102342907 | AN96: 0.02188358331 | AO96: 0.01771887163 | AP96: 0.0395974112 | AQ96: 0.04020310706 | AR96: 0.03846456648 | AS96: 0.02437454741 | AV96: =PRODUCT(N96:AS96+1) -> 2.827983397 | AW96: 0.0341029321
A97: 92 | B97: 0.0558568889 | C97: 0.03761904889 | D97: -0.01342262447 | E97: 0.03079705535 | F97: 0.03431486036 | G97: 0.02438737423 | H97: 0.01867879138 | I97: 0.015 | J97: 0.015 | K97: 0.013 | L97: 0.011 | M97: 0.011 | N97: 0.02243333393 | O97: 0.04861372456 | P97: 0.03812774152 | Q97: 0.04111591551 | R97: 0.03109263099 | S97: 0.02924289851 | T97: 0.03565417103 | U97: 0.05020146887 | V97: 0.03963461783 | W97: 0.03835538848 | X97: 0.04637922562 | Y97: 0.04674802319 | Z97: 0.04513376297 | AA97: 0.04043167269 | AB97: 0.05332458494 | AC97: 0.05714526744 | AD97: 0.03405224129 | AE97: 0.04327253935 | AF97: 0.03135361453 | AG97: 0.0283008563 | AH97: 0.0297085133 | AI97: 0.03163962943 | AJ97: 0.0276925013 | AK97: 0.02767667095 | AL97: 0.02028435851 | AM97: 0.02319527688 | AN97: 0.03879344502 | AO97: 0.05145807013 | AP97: 0.0434971038 | AQ97: 0.03550947614 | AR97: 0.03398557702 | AS97: 0.05565676294 | AV97: =PRODUCT(N97:AS97+1) -> 3.305652646 | AW97: 0.03932226903
A98: 93 | B98: 0.0558568889 | C98: 0.03761904889 | D98: -0.01342262447 | E98: 0.03079705535 | F98: 0.03431486036 | G98: 0.02438737423 | H98: 0.01867879138 | I98: 0.015 | J98: 0.015 | K98: 0.013 | L98: 0.011 | M98: 0.011 | N98: 0.05060302581 | O98: 0.03496570034 | P98: 0.02768855023 | Q98: 0.03072378115 | R98: 0.02447647984 | S98: 0.02540869443 | T98: 0.02177356652 | U98: 0.04101215479 | V98: 0.02662722508 | W98: 0.0373322857 | X98: 0.0359134627 | Y98: 0.01541026168 | Z98: 0.02118463192 | AA98: 0.04060226819 | AB98: 0.04415097747 | AC98: 0.03286181321 | AD98: 0.03053785899 | AE98: 0.02998069377 | AF98: 0.02839475633 | AG98: 0.02132798464 | AH98: 0.04088291934 | AI98: 0.04151747279 | AJ98: 0.01470885082 | AK98: 0.01473180592 | AL98: 0.01466314183 | AM98: 0.01684541012 | AN98: 0.0226523723 | AO98: 0.03957085462 | AP98: 0.02350955418 | AQ98: 0.03863888182 | AR98: 0.04497266809 | AS98: 0.01648970202 | AV98: =PRODUCT(N98:AS98+1) -> 2.546658702 | AW98: 0.03061350835
A99: 94 | B99: 0.0558568889 | C99: 0.03761904889 | D99: -0.01342262447 | E99: 0.03079705535 | F99: 0.03431486036 | G99: 0.02438737423 | H99: 0.01867879138 | I99: 0.015 | J99: 0.015 | K99: 0.013 | L99: 0.011 | M99: 0.011 | N99: 0.02659424944 | O99: 0.01233976186 | P99: 0.03688675658 | Q99: 0.03882916434 | R99: 0.03470396088 | S99: 0.02125972278 | T99: 0.02660836118 | U99: 0.04249344144 | V99: 0.02719910465 | W99: 0.02711308398 | X99: 0.02367322761 | Y99: 0.04277405934 | Z99: 0.03820056254 | AA99: 0.03012099054 | AB99: 0.04213693985 | AC99: 0.04496687059 | AD99: 0.01698594451 | AE99: 0.05745643596 | AF99: 0.0509197733 | AG99: 0.04770239115 | AH99: 0.05895988169 | AI99: 0.01518339751 | AJ99: 0.03239600107 | AK99: 0.05414234659 | AL99: 0.04134592674 | AM99: 0.03972833692 | AN99: 0.03972389033 | AO99: 0.04468003401 | AP99: 0.01859874552 | AQ99: 0.03104836843 | AR99: 0.05060830823 | AS99: 0.04272680963 | AV99: =PRODUCT(N99:AS99+1) -> 3.112551771 | AW99: 0.03730623077
A100: 95 | B100: 0.0558568889 | C100: 0.03761904889 | D100: -0.01342262447 | E100: 0.03079705535 | F100: 0.03431486036 | G100: 0.02438737423 | H100: 0.01867879138 | I100: 0.015 | J100: 0.015 | K100: 0.013 | L100: 0.011 | M100: 0.011 | N100: 0.04777872496 | O100: 0.02053795636 | P100: 0.02079925115 | Q100: 0.02421190713 | R100: 0.03562988529 | S100: 0.03304671162 | T100: 0.03370367405 | U100: 0.02869483987 | V100: 0.04211631272 | W100: 0.04031368427 | X100: 0.01220288223 | Y100: 0.01096303031 | Z100: 0.02243362239 | AA100: 0.02872580188 | AB100: 0.02971483941 | AC100: 0.03050094231 | AD100: 0.03153242066 | AE100: 0.02708228944 | AF100: 0.02140838455 | AG100: 0.02731282125 | AH100: 0.0362779983 | AI100: 0.01186706099 | AJ100: 0.04498185913 | AK100: 0.0323316757 | AL100: 0.04118214823 | AM100: 0.0386633896 | AN100: 0.02527258964 | AO100: 0.02634442031 | AP100: 0.027592535 | AQ100: 0.04736963031 | AR100: 0.02008988939 | AS100: 0.02157995528 | AV100: =PRODUCT(N100:AS100+1) -> 2.527570332 | AW100: 0.03036340918
A101: 96 | B101: 0.0558568889 | C101: 0.03761904889 | D101: -0.01342262447 | E101: 0.03079705535 | F101: 0.03431486036 | G101: 0.02438737423 | H101: 0.01867879138 | I101: 0.015 | J101: 0.015 | K101: 0.013 | L101: 0.011 | M101: 0.011 | N101: 0.04000288489 | O101: 0.01150247185 | P101: 0.02473080235 | Q101: 0.03269228378 | R101: 0.03202458498 | S101: 0.04176507223 | T101: 0.03617001771 | U101: 0.04018986663 | V101: 0.02888291676 | W101: 0.03134648371 | X101: 0.04377048696 | Y101: 0.04133740013 | Z101: 0.04339283545 | AA101: 0.02229355657 | AB101: 0.02800092333 | AC101: 0.05215629441 | AD101: 0.03366379781 | AE101: 0.03736159087 | AF101: 0.0383545455 | AG101: 0.03703030698 | AH101: 0.0512409704 | AI101: 0.05116887122 | AJ101: 0.04496540369 | AK101: 0.05722124547 | AL101: 0.03610144364 | AM101: 0.03373407213 | AN101: 0.04778540231 | AO101: 0.05298316774 | AP101: 0.05298124288 | AQ101: 0.06018033789 | AR101: 0.04651183609 | AS101: 0.0486390755 | AV101: =PRODUCT(N101:AS101+1) -> 3.502793627 | AW101: 0.04126617241
A102: 97 | B102: 0.0558568889 | C102: 0.03761904889 | D102: -0.01342262447 | E102: 0.03079705535 | F102: 0.03431486036 | G102: 0.02438737423 | H102: 0.01867879138 | I102: 0.015 | J102: 0.015 | K102: 0.013 | L102: 0.011 | M102: 0.011 | N102: 0.04400860574 | O102: 0.02822431546 | P102: 0.02901749902 | Q102: 0.02537210966 | R102: 0.02564416506 | S102: 0.02473021823 | T102: 0.03427425011 | U102: 0.03629043725 | V102: 0.01886467428 | W102: 0.02940504195 | X102: 0.02427275818 | Y102: 0.009460553082 | Z102: 0.02278439969 | AA102: 0.03680165242 | AB102: 0.04649128979 | AC102: 0.01511576664 | AD102: 0.03292873905 | AE102: 0.04110672728 | AF102: 0.0261803346 | AG102: 0.02402998317 | AH102: 0.0255560779 | AI102: 0.01595763734 | AJ102: 0.04464854214 | AK102: 0.01922052413 | AL102: 0.02772710956 | AM102: 0.01996582418 | AN102: 0.01989572461 | AO102: 0.01573813604 | AP102: 0.01818980196 | AQ102: 0.03465718865 | AR102: 0.0317051144 | AS102: 0.02947058687 | AV102: =PRODUCT(N102:AS102+1) -> 2.374266513 | AW102: 0.02828583617
A103: 98 | B103: 0.0558568889 | C103: 0.03761904889 | D103: -0.01342262447 | E103: 0.03079705535 | F103: 0.03431486036 | G103: 0.02438737423 | H103: 0.01867879138 | I103: 0.015 | J103: 0.015 | K103: 0.013 | L103: 0.011 | M103: 0.011 | N103: 0.01640678356 | O103: 0.02325149894 | P103: 0.03578744564 | Q103: 0.03368468029 | R103: 0.03610077723 | S103: 0.03380376615 | T103: 0.03252592718 | U103: 0.05526905577 | V103: 0.04624882145 | W103: 0.04064977297 | X103: 0.04448309011 | Y103: 0.01910194143 | Z103: 0.03448066556 | AA103: 0.04735243403 | AB103: 0.04173962005 | AC103: 0.05011524075 | AD103: 0.02878142926 | AE103: 0.02820419904 | AF103: 0.02772137383 | AG103: 0.02835136813 | AH103: 0.02675633251 | AI103: 0.03451009528 | AJ103: 0.03174347265 | AK103: 0.03154589661 | AL103: 0.0390096426 | AM103: 0.03632319181 | AN103: 0.02770076273 | AO103: 0.02526399504 | AP103: 0.04081228572 | AQ103: 0.01547811291 | AR103: 0.01928711904 | AS103: 0.008767029181 | AV103: =PRODUCT(N103:AS103+1) -> 2.781713007 | AW103: 0.03355277064
A104: 99 | B104: 0.0558568889 | C104: 0.03761904889 | D104: -0.01342262447 | E104: 0.03079705535 | F104: 0.03431486036 | G104: 0.02438737423 | H104: 0.01867879138 | I104: 0.015 | J104: 0.015 | K104: 0.013 | L104: 0.011 | M104: 0.011 | N104: 0.01307300786 | O104: 0.03700775862 | P104: 0.0489778018 | Q104: 0.03845287361 | R104: 0.03417712724 | S104: 0.01964751247 | T104: 0.03424598607 | U104: 0.04553017749 | V104: 0.04959260493 | W104: 0.01655176202 | X104: 0.01671302052 | Y104: 0.02181134355 | Z104: 0.0248754445 | AA104: 0.02605400907 | AB104: 0.02996541413 | AC104: 0.02670839004 | AD104: 0.01999952307 | AE104: 0.01854346216 | AF104: 0.006968398986 | AG104: 0.006989330687 | AH104: 0.02306203756 | AI104: 0.02443190966 | AJ104: 0.02429552719 | AK104: 0.02923482981 | AL104: 0.02379902336 | AM104: 0.02199755902 | AN104: 0.01993896557 | AO104: 0.009934013803 | AP104: 0.03368614855 | AQ104: 0.02810250057 | AR104: 0.02789975573 | AS104: 0.04052436226 | AV104: =PRODUCT(N104:AS104+1) -> 2.293594399 | AW104: 0.0271398251
A105: 100 | B105: 0.0558568889 | C105: 0.03761904889 | D105: -0.01342262447 | E105: 0.03079705535 | F105: 0.03431486036 | G105: 0.02438737423 | H105: 0.01867879138 | I105: 0.015 | J105: 0.015 | K105: 0.013 | L105: 0.011 | M105: 0.011 | N105: 0.01838300229 | O105: 0.02270340537 | P105: 0.05680118507 | Q105: 0.05670658588 | R105: 0.05604527134 | S105: 0.03807851471 | T105: 0.05822503787 | U105: 0.05640963639 | V105: 0.04991723384 | W105: 0.05271469943 | X105: 0.04353977838 | Y105: 0.06692863244 | Z105: 0.05557135012 | AA105: 0.06249433794 | AB105: 0.04616536635 | AC105: 0.0475612106 | AD105: 0.05884800199 | AE105: 0.04323991553 | AF105: 0.02296081497 | AG105: 0.02320898259 | AH105: 0.02993972459 | AI105: 0.02695107924 | AJ105: 0.04692633878 | AK105: 0.03885987949 | AL105: 0.04764760289 | AM105: 0.05274307038 | AN105: 0.02821042452 | AO105: 0.02787458484 | AP105: 0.02701256972 | AQ105: 0.04389332029 | AR105: 0.04112385542 | AS105: 0.05344000289 | AV105: =PRODUCT(N105:AS105+1) -> 3.930206979 | AW105: 0.04514053306
A106: 101 | B106: =B$2 -> 0.0558568889 | C106: 0.03761904889 | D106: -0.01342262447 | E106: 0.03079705535 | F106: 0.03431486036 | G106: 0.02438737423 | H106: 0.01867879138 | I106: 0.015 | J106: 0.015 | K106: 0.013 | L106: 0.011 | M106: 0.011 | N106: 0.03322040171 | O106: 0.03983357283 | P106: 0.01456317513 | Q106: 0.0299008592 | R106: 0.03511040862 | S106: 0.01904731588 | T106: 0.01885476795 | U106: 0.01137493648 | V106: 0.03086920291 | W106: 0.02969624654 | X106: 0.03249591601 | Y106: 0.02765854685 | Z106: 0.03911707925 | AA106: 0.0194204846 | AB106: 0.01613096641 | AC106: 0.01349418197 | AD106: 0.008126586976 | AE106: 0.05564220487 | AF106: 0.05125921762 | AG106: 0.04413221771 | AH106: 0.04422576299 | AI106: 0.03567208943 | AJ106: 0.03556489126 | AK106: 0.0292902595 | AL106: 0.03020852798 | AM106: 0.04530495856 | AN106: 0.04597777738 | AO106: 0.05515048067 | AP106: 0.04174182583 | AQ106: 0.0295375738 | AR106: 0.01383710995 | AS106: 0.03785157062 | AV106: =PRODUCT(N106:AS106+1) -> 2.707791417 | AW106: 0.03265518329
A107: 102 | B107: 0.0558568889 | C107: 0.03761904889 | D107: -0.01342262447 | E107: 0.03079705535 | F107: 0.03431486036 | G107: 0.02438737423 | H107: 0.01867879138 | I107: 0.015 | J107: 0.015 | K107: 0.013 | L107: 0.011 | M107: 0.011 | N107: 0.0370869652 | O107: 0.02235343584 | P107: 0.04238671969 | Q107: 0.03738029497 | R107: 0.0463704866 | S107: 0.04353252572 | T107: 0.06044171639 | U107: 0.05624773697 | V107: 0.04456037018 | W107: 0.04439683812 | X107: 0.04924193782 | Y107: 0.05309612535 | Z107: 0.05189856641 | AA107: 0.05199085417 | AB107: 0.04143234796 | AC107: 0.06438770483 | AD107: 0.02694309151 | AE107: 0.03239834431 | AF107: 0.03575598234 | AG107: 0.04477745144 | AH107: 0.03168023755 | AI107: 0.02077648522 | AJ107: 0.01959261137 | AK107: 0.02137789841 | AL107: 0.04194650808 | AM107: 0.04906770829 | AN107: 0.04892151556 | AO107: 0.04570585733 | AP107: 0.02848313038 | AQ107: 0.03070017031 | AR107: 0.03719937093 | AS107: 0.003527840422 | AV107: =PRODUCT(N107:AS107+1) -> 3.451223991 | AW107: 0.04076810008
A108: 103 | B108: 0.0558568889 | C108: 0.03761904889 | D108: -0.01342262447 | E108: 0.03079705535 | F108: 0.03431486036 | G108: 0.02438737423 | H108: 0.01867879138 | I108: 0.015 | J108: 0.015 | K108: 0.013 | L108: 0.011 | M108: 0.011 | N108: 0.03158194379 | O108: 0.04386603145 | P108: 0.0338937676 | Q108: 0.03249627403 | R108: 0.03731802403 | S108: 0.02782046218 | T108: 0.03891174256 | U108: 0.03000219054 | V108: 0.02716531872 | W108: 0.01846715157 | X108: 0.01267697873 | Y108: 0.04048046626 | Z108: 0.04283891293 | AA108: 0.04142070566 | AB108: 0.04591520308 | AC108: 0.02880311232 | AD108: 0.02399509045 | AE108: 0.05155400049 | AF108: 0.04598922874 | AG108: 0.04598810659 | AH108: 0.05546082291 | AI108: 0.03607532011 | AJ108: 0.03999843621 | AK108: 0.0508820467 | AL108: 0.05433641037 | AM108: 0.04097024036 | AN108: 0.03403948002 | AO108: 0.03460672449 | AP108: 0.05726242162 | AQ108: 0.04955177101 | AR108: 0.04619161205 | AS108: 0.01843668619 | AV108: =PRODUCT(N108:AS108+1) -> 3.302088462 | AW108: 0.03928610156
A109: 104 | B109: 0.0558568889 | C109: 0.03761904889 | D109: -0.01342262447 | E109: 0.03079705535 | F109: 0.03431486036 | G109: 0.02438737423 | H109: 0.01867879138 | I109: 0.015 | J109: 0.015 | K109: 0.013 | L109: 0.011 | M109: 0.011 | N109: 0.0217276882 | O109: 0.03553038887 | P109: 0.03800964908 | Q109: 0.0362033402 | R109: 0.02301816186 | S109: 0.01850284324 | T109: 0.02125821573 | U109: 0.01756885792 | V109: 0.02141017809 | W109: 0.02080264044 | X109: 0.02814440043 | Y109: 0.02847984155 | Z109: 0.02700875651 | AA109: 0.02440192859 | AB109: 0.02498747275 | AC109: 0.02503771086 | AD109: 0.0309665456 | AE109: 0.0278716608 | AF109: 0.04377030231 | AG109: 0.02477648852 | AH109: 0.02182696184 | AI109: 0.02379441486 | AJ109: 0.0246866853 | AK109: 0.01677769825 | AL109: 0.02330525438 | AM109: 0.01852970295 | AN109: 0.02107618473 | AO109: 0.03218377018 | AP109: 0.03329771196 | AQ109: 0.03869304801 | AR109: 0.04162739262 | AS109: 0.03510331844 | AV109: =PRODUCT(N109:AS109+1) -> 2.358369139 | AW109: 0.02806301367
A110: 105 | B110: 0.0558568889 | C110: 0.03761904889 | D110: -0.01342262447 | E110: 0.03079705535 | F110: 0.03431486036 | G110: 0.02438737423 | H110: 0.01867879138 | I110: 0.015 | J110: 0.015 | K110: 0.013 | L110: 0.011 | M110: 0.011 | N110: 0.03292660224 | O110: 0.02097795957 | P110: 0.03810760413 | Q110: 0.02925209441 | R110: 0.01973221782 | S110: 0.02416515108 | T110: 0.01519575013 | U110: 0.04254305971 | V110: 0.02615802733 | W110: 0.02205774693 | X110: 0.04702075467 | Y110: 0.06186629256 | Z110: 0.0272727864 | AA110: 0.0270861898 | AB110: 0.03143730563 | AC110: 0.03224305439 | AD110: 0.01826875186 | AE110: 0.004606106894 | AF110: 0.007222913801 | AG110: 0.0175305244 | AH110: 0.01801240842 | AI110: 0.01736029409 | AJ110: 0.02199158241 | AK110: 0.03009355187 | AL110: 0.02906967461 | AM110: 0.03220560739 | AN110: 0.03333177565 | AO110: 0.03443780776 | AP110: 0.03641886406 | AQ110: 0.009840551321 | AR110: 0.004768623275 | AS110: 0.01703217035 | AV110: =PRODUCT(N110:AS110+1) -> 2.264692928 | AW110: 0.02671974404
A111: 106 | B111: 0.0558568889 | C111: 0.03761904889 | D111: -0.01342262447 | E111: 0.03079705535 | F111: 0.03431486036 | G111: 0.02438737423 | H111: 0.01867879138 | I111: 0.015 | J111: 0.015 | K111: 0.013 | L111: 0.011 | M111: 0.011 | N111: 0.03083715166 | O111: 0.02109153525 | P111: 0.008616009985 | Q111: 0.02601455866 | R111: 0.02274129044 | S111: 0.01757902236 | T111: 0.01960533165 | U111: 0.03101348341 | V111: 0.0216809486 | W111: 0.02149350982 | X111: 0.02804679905 | Y111: 0.02004403702 | Z111: 0.01475296906 | AA111: 0.02456314942 | AB111: 0.02082278943 | AC111: 0.002851164668 | AD111: 0.01563739836 | AE111: 0.0210112291 | AF111: 0.01540572625 | AG111: 0.050167253 | AH111: 0.03506361476 | AI111: 0.01944756094 | AJ111: 0.02383102519 | AK111: 0.03752179227 | AL111: 0.03963855886 | AM111: 0.03963258202 | AN111: 0.03750072577 | AO111: 0.0362720764 | AP111: 0.03556114627 | AQ111: 0.04917782146 | AR111: 0.01315928906 | AS111: 0.02773093718 | AV111: =PRODUCT(N111:AS111+1) -> 2.26185269 | AW111: 0.02667818176
A112: 107 | B112: 0.0558568889 | C112: 0.03761904889 | D112: -0.01342262447 | E112: 0.03079705535 | F112: 0.03431486036 | G112: 0.02438737423 | H112: 0.01867879138 | I112: 0.015 | J112: 0.015 | K112: 0.013 | L112: 0.011 | M112: 0.011 | N112: 0.04064714549 | O112: 0.05290780873 | P112: 0.05213818771 | Q112: 0.05479574441 | R112: 0.03070465489 | S112: 0.03069346913 | T112: 0.02816339439 | U112: 0.04537271334 | V112: 0.0412054721 | W112: 0.05535195671 | X112: 0.05574099813 | Y112: 0.03872732231 | Z112: 0.03465462209 | AA112: 0.0348735007 | AB112: 0.02809800231 | AC112: 0.04572518415 | AD112: 0.06245588705 | AE112: 0.04609321873 | AF112: 0.04622044082 | AG112: 0.05206029109 | AH112: 0.05892154492 | AI112: 0.05097162468 | AJ112: 0.03571708657 | AK112: 0.03585789574 | AL112: 0.0360566599 | AM112: 0.03819024076 | AN112: 0.03846420713 | AO112: 0.05615688989 | AP112: 0.05422668464 | AQ112: 0.04983859867 | AR112: 0.0500521214 | AS112: 0.02647017289 | AV112: =PRODUCT(N112:AS112+1) -> 3.959085503 | AW112: 0.04538738307
A113: 108 | B113: 0.0558568889 | C113: 0.03761904889 | D113: -0.01342262447 | E113: 0.03079705535 | F113: 0.03431486036 | G113: 0.02438737423 | H113: 0.01867879138 | I113: 0.015 | J113: 0.015 | K113: 0.013 | L113: 0.011 | M113: 0.011 | N113: 0.03256930325 | O113: 0.02711608581 | P113: 0.03168509384 | Q113: 0.05149293135 | R113: 0.05132616827 | S113: 0.05207110652 | T113: 0.04024557417 | U113: 0.03246815319 | V113: 0.0339109085 | W113: 0.03348126524 | X113: 0.05554080361 | Y113: 0.04800937479 | Z113: 0.03724319303 | AA113: 0.03951720994 | AB113: 0.04539655467 | AC113: 0.0427586119 | AD113: 0.04383698493 | AE113: 0.03020813334 | AF113: 0.05770990221 | AG113: 0.04108199344 | AH113: 0.0512360029 | AI113: 0.06213912219 | AJ113: 0.0619847828 | AK113: 0.04381956309 | AL113: 0.05024907902 | AM113: 0.05043354029 | AN113: 0.03959531637 | AO113: 0.02760626958 | AP113: 0.04275120858 | AQ113: 0.04986321513 | AR113: 0.05646710876 | AS113: 0.07300393166 | AV113: =PRODUCT(N113:AS113+1) -> 4.070498433 | AW113: 0.04632367309
A114: 109 | B114: 0.0558568889 | C114: 0.03761904889 | D114: -0.01342262447 | E114: 0.03079705535 | F114: 0.03431486036 | G114: 0.02438737423 | H114: 0.01867879138 | I114: 0.015 | J114: 0.015 | K114: 0.013 | L114: 0.011 | M114: 0.011 | N114: 0.03718370411 | O114: 0.01727307324 | P114: 0.02185680842 | Q114: 0.04024848623 | R114: 0.0445749024 | S114: 0.04941495951 | T114: 0.04942183157 | U114: 0.04527989486 | V114: 0.03748647691 | W114: 0.01979371611 | X114: 0.05218022354 | Y114: 0.03032257844 | Z114: 0.03274800829 | AA114: 0.0274623485 | AB114: 0.03816114488 | AC114: 0.04367796948 | AD114: 0.03068874636 | AE114: 0.02930929856 | AF114: 0.02950237279 | AG114: 0.03140853618 | AH114: 0.02509214354 | AI114: 0.04504451465 | AJ114: 0.03755369046 | AK114: 0.03501236874 | AL114: 0.03734664382 | AM114: 0.03944055069 | AN114: 0.03236187803 | AO114: 0.01810908511 | AP114: 0.01514626127 | AQ114: 0.02086855452 | AR114: 0.02299897963 | AS114: 0.05735034093 | AV114: =PRODUCT(N114:AS114+1) -> 2.92797459 | AW114: 0.03526267926
A115: 110 | B115: 0.0558568889 | C115: 0.03761904889 | D115: -0.01342262447 | E115: 0.03079705535 | F115: 0.03431486036 | G115: 0.02438737423 | H115: 0.01867879138 | I115: 0.015 | J115: 0.015 | K115: 0.013 | L115: 0.011 | M115: 0.011 | N115: 0.02375366041 | O115: 0.04300884577 | P115: 0.02562279461 | Q115: 0.02343699745 | R115: 0.02630453952 | S115: 0.02954191262 | T115: 0.02015659239 | U115: 0.02663576752 | V115: 0.04477985064 | W115: 0.03860224763 | X115: 0.03652322055 | Y115: 0.02655746436 | Z115: 0.02374657644 | AA115: 0.0183555525 | AB115: 0.01577108103 | AC115: 0.01195548518 | AD115: 0.02384559612 | AE115: 0.02385200413 | AF115: 0.02681862482 | AG115: 0.02203632092 | AH115: 0.004798128818 | AI115: 0.03113816112 | AJ115: 0.02112254318 | AK115: 0.02314724324 | AL115: 0.03456594017 | AM115: 0.0442569128 | AN115: 0.01522802598 | AO115: 0.01745777265 | AP115: 0.02905422155 | AQ115: 0.02828971469 | AR115: 0.04060294123 | AS115: 0.03877559786 | AV115: =PRODUCT(N115:AS115+1) -> 2.332763506 | AW115: 0.02770104274
A116: 111 | B116: =B$2 -> 0.0558568889 | C116: 0.03761904889 | D116: -0.01342262447 | E116: 0.03079705535 | F116: 0.03431486036 | G116: 0.02438737423 | H116: 0.01867879138 | I116: 0.015 | J116: 0.015 | K116: 0.013 | L116: 0.011 | M116: 0.011 | N116: 0.04026213905 | O116: 0.0317737354 | P116: 0.008712809012 | Q116: 0.01576879352 | R116: 0.02124456236 | S116: 0.02214142116 | T116: 0.0268495968 | U116: 0.008695506697 | V116: 0.03809861924 | W116: 0.01579641973 | X116: 0.01002655583 | Y116: 0.0232186866 | Z116: 0.02284494147 | AA116: 0.02533626789 | AB116: 0.02156510427 | AC116: 0.03451699003 | AD116: 0.04257911199 | AE116: 0.02785149718 | AF116: 0.03606821415 | AG116: 0.03022382721 | AH116: 0.03316512117 | AI116: 0.03012289031 | AJ116: 0.03018556556 | AK116: 0.04443012933 | AL116: 0.03069571828 | AM116: 0.05443943916 | AN116: 0.06301905825 | AO116: 0.02548674195 | AP116: 0.04563200827 | AQ116: 0.0393994876 | AR116: 0.04856971357 | AS116: 0.04888751868 | AV116: =PRODUCT(N116:AS116+1) -> 2.66408111 | AW116: 0.03211321062
A117: 112 | B117: 0.0558568889 | C117: 0.03761904889 | D117: -0.01342262447 | E117: 0.03079705535 | F117: 0.03431486036 | G117: 0.02438737423 | H117: 0.01867879138 | I117: 0.015 | J117: 0.015 | K117: 0.013 | L117: 0.011 | M117: 0.011 | N117: 0.04277290614 | O117: 0.01648748807 | P117: 0.01564186912 | Q117: 0.002307049906 | R117: 0.03146096238 | S117: 0.02104807739 | T117: 0.0187048412 | U117: 0.02852500463 | V117: 0.02080037667 | W117: 0.02084501672 | X117: 0.01120682618 | Y117: 0.03704878166 | Z117: 0.03593089521 | AA117: 0.02774372792 | AB117: 0.03806118321 | AC117: 0.05572615239 | AD117: 0.04034186429 | AE117: 0.02713199359 | AF117: 0.01476967971 | AG117: 0.02390353082 | AH117: 0.0315008448 | AI117: 0.02676014963 | AJ117: 0.02708206341 | AK117: 0.006617217395 | AL117: 0.006673086479 | AM117: 0.02287726963 | AN117: 0.02958190242 | AO117: 0.02089281876 | AP117: 0.03605438916 | AQ117: 0.03609236629 | AR117: 0.01307333258 | AS117: -0.005774341315 | AV117: =PRODUCT(N117:AS117+1) -> 2.15984157 | AW117: 0.02515091364
A118: 113 | B118: 0.0558568889 | C118: 0.03761904889 | D118: -0.01342262447 | E118: 0.03079705535 | F118: 0.03431486036 | G118: 0.02438737423 | H118: 0.01867879138 | I118: 0.015 | J118: 0.015 | K118: 0.013 | L118: 0.011 | M118: 0.011 | N118: 0.03749069708 | O118: 0.04777934929 | P118: 0.03108990207 | Q118: 0.02994643635 | R118: 0.0301649613 | S118: 0.04858620455 | T118: 0.04137344098 | U118: 0.03436412551 | V118: 0.03453363298 | W118: 0.02412343215 | X118: 0.0249795529 | Y118: 0.02841123999 | Z118: 0.02688213313 | AA118: 0.02611935627 | AB118: 0.02274846581 | AC118: 0.03269601399 | AD118: 0.01395062501 | AE118: 0.01367087651 | AF118: 0.02035767191 | AG118: 0.02382971502 | AH118: 0.01927065866 | AI118: 0.03105389702 | AJ118: 0.03208727385 | AK118: 0.04675020482 | AL118: 0.0190449208 | AM118: 0.01713492376 | AN118: 0.01743397099 | AO118: 0.02098075345 | AP118: 0.03026473149 | AQ118: 0.039426252 | AR118: 0.02507079895 | AS118: 0.02521031995 | AV118: =PRODUCT(N118:AS118+1) -> 2.466176569 | AW118: 0.02954643918
A119: 114 | B119: 0.0558568889 | C119: 0.03761904889 | D119: -0.01342262447 | E119: 0.03079705535 | F119: 0.03431486036 | G119: 0.02438737423 | H119: 0.01867879138 | I119: 0.015 | J119: 0.015 | K119: 0.013 | L119: 0.011 | M119: 0.011 | N119: 0.02828820706 | O119: 0.03660940496 | P119: 0.05532957548 | Q119: 0.0343271226 | R119: 0.02616905199 | S119: 0.02976474436 | T119: 0.03480369038 | U119: 0.03120335725 | V119: 0.0367101134 | W119: 0.03910574558 | X119: 0.01341108652 | Y119: 0.01545332445 | Z119: 0.04488070783 | AA119: 0.03944128657 | AB119: 0.05681554797 | AC119: 0.02096607081 | AD119: 0.01946649898 | AE119: 0.03968918587 | AF119: 0.06578874405 | AG119: 0.04700048018 | AH119: 0.04653528255 | AI119: 0.04667863467 | AJ119: 0.03755979795 | AK119: 0.0368507009 | AL119: 0.04110270258 | AM119: 0.03908906526 | AN119: 0.04431984084 | AO119: 0.07216689721 | AP119: 0.06231228206 | AQ119: 0.05516680867 | AR119: 0.05268325287 | AS119: 0.0294792145 | AV119: =PRODUCT(N119:AS119+1) -> 3.495401759 | AW119: 0.04119521732
A120: 115 | B120: 0.0558568889 | C120: 0.03761904889 | D120: -0.01342262447 | E120: 0.03079705535 | F120: 0.03431486036 | G120: 0.02438737423 | H120: 0.01867879138 | I120: 0.015 | J120: 0.015 | K120: 0.013 | L120: 0.011 | M120: 0.011 | N120: 0.04046471628 | O120: 0.02397755138 | P120: 0.02511323865 | Q120: 0.04460778386 | R120: 0.04191707245 | S120: 0.03750040689 | T120: 0.04586059067 | U120: 0.02790142166 | V120: 0.0368284427 | W120: 0.03916116081 | X120: 0.03983875865 | Y120: 0.04491890871 | Z120: 0.04780394973 | AA120: 0.04766577415 | AB120: 0.03958129393 | AC120: 0.04223617189 | AD120: 0.03468134164 | AE120: 0.03885633777 | AF120: 0.01906803963 | AG120: 0.01908598163 | AH120: 0.02889418817 | AI120: 0.03689799561 | AJ120: 0.03921505238 | AK120: 0.02521949702 | AL120: 0.02016194466 | AM120: 0.0143080782 | AN120: 0.03375863723 | AO120: 0.04322701495 | AP120: 0.03065154075 | AQ120: 0.05165162395 | AR120: 0.02917540825 | AS120: 0.03678195998 | AV120: =PRODUCT(N120:AS120+1) -> 3.023138828 | AW120: 0.03633137848
A121: 116 | B121: 0.0558568889 | C121: 0.03761904889 | D121: -0.01342262447 | E121: 0.03079705535 | F121: 0.03431486036 | G121: 0.02438737423 | H121: 0.01867879138 | I121: 0.015 | J121: 0.015 | K121: 0.013 | L121: 0.011 | M121: 0.011 | N121: 0.03992409028 | O121: 0.01661413203 | P121: 0.02116437994 | Q121: 0.02648022445 | R121: 0.03864105287 | S121: 0.041405988 | T121: 0.05418675039 | U121: 0.049185968 | V121: 0.04115386846 | W121: 0.03269337387 | X121: 0.05998472438 | Y121: 0.05071472258 | Z121: 0.03576387268 | AA121: 0.03659482965 | AB121: 0.0303617921 | AC121: 0.05353639646 | AD121: 0.05810539494 | AE121: 0.04739171149 | AF121: 0.03543330658 | AG121: 0.03535671769 | AH121: 0.03502644132 | AI121: 0.03544556828 | AJ121: 0.02576795117 | AK121: 0.03255199135 | AL121: 0.01586233989 | AM121: 0.02046900369 | AN121: 0.03294635865 | AO121: 0.02943536493 | AP121: 0.02205954936 | AQ121: 0.04013271583 | AR121: 0.03910834619 | AS121: 0.02876132355 | AV121: =PRODUCT(N121:AS121+1) -> 3.125945102 | AW121: 0.03744991684
A122: 117 | B122: 0.0558568889 | C122: 0.03761904889 | D122: -0.01342262447 | E122: 0.03079705535 | F122: 0.03431486036 | G122: 0.02438737423 | H122: 0.01867879138 | I122: 0.015 | J122: 0.015 | K122: 0.013 | L122: 0.011 | M122: 0.011 | N122: 0.01660172573 | O122: 0.02957318934 | P122: 0.02648103547 | Q122: 0.04232534104 | R122: 0.02767025589 | S122: 0.02999103462 | T122: 0.03344126766 | U122: 0.04420506773 | V122: 0.02431674327 | W122: 0.02536318488 | X122: 0.02209676293 | Y122: 0.04629014792 | Z122: 0.02480822673 | AA122: 0.02876938355 | AB122: 0.03957041014 | AC122: 0.04193991381 | AD122: 0.01166373156 | AE122: 0.01171511749 | AF122: 0.01020994045 | AG122: 0.02087149825 | AH122: 0.01878206925 | AI122: 0.03043670513 | AJ122: 0.03266442903 | AK122: 0.03898499878 | AL122: 0.0240542177 | AM122: 0.01516801905 | AN122: 0.01740006581 | AO122: 0.02632826063 | AP122: 0.03808747277 | AQ122: 0.05135427005 | AR122: 0.01787450609 | AS122: 0.02285334053 | AV122: =PRODUCT(N122:AS122+1) -> 2.406092341 | AW122: 0.0287276111
A123: 118 | B123: 0.0558568889 | C123: 0.03761904889 | D123: -0.01342262447 | E123: 0.03079705535 | F123: 0.03431486036 | G123: 0.02438737423 | H123: 0.01867879138 | I123: 0.015 | J123: 0.015 | K123: 0.013 | L123: 0.011 | M123: 0.011 | N123: 0.03865904662 | O123: 0.02002650087 | P123: 0.03256222892 | Q123: 0.03786347764 | R123: 0.02902185519 | S123: 0.009748012364 | T123: 0.03173727854 | U123: 0.03503802442 | V123: 0.005842000742 | W123: 0.02268391685 | X123: 0.01802614032 | Y123: 0.04152744093 | Z123: 0.05211440463 | AA123: 0.04468677087 | AB123: 0.02821524308 | AC123: 0.041922465 | AD123: 0.03493891875 | AE123: 0.03106331735 | AF123: 0.02736217931 | AG123: 0.02530862846 | AH123: 0.03831008337 | AI123: 0.02094145371 | AJ123: 0.01994871553 | AK123: 0.02830561495 | AL123: 0.03063324855 | AM123: 0.03552456722 | AN123: 0.02273433175 | AO123: 0.01580184938 | AP123: 0.01794346291 | AQ123: 0.01534075998 | AR123: 0.01427055673 | AS123: 0.007043453656 | AV123: =PRODUCT(N123:AS123+1) -> 2.366758206 | AW123: 0.02818077793
A124: 119 | B124: 0.0558568889 | C124: 0.03761904889 | D124: -0.01342262447 | E124: 0.03079705535 | F124: 0.03431486036 | G124: 0.02438737423 | H124: 0.01867879138 | I124: 0.015 | J124: 0.015 | K124: 0.013 | L124: 0.011 | M124: 0.011 | N124: 0.01148372568 | O124: 0.03262634741 | P124: 0.03772793994 | Q124: 0.03815248363 | R124: 0.006735411396 | S124: 0.01056072694 | T124: 0.006434294337 | U124: 0.02360100982 | V124: 0.01487202236 | W124: 0.02613561238 | X124: 0.02618960603 | Y124: 0.01235381493 | Z124: 0.02138808188 | AA124: 0.0119214259 | AB124: 0.03826628696 | AC124: 0.04057221661 | AD124: 0.02716134099 | AE124: 0.03961899557 | AF124: 0.04166071545 | AG124: 0.03673713485 | AH124: 0.04091219225 | AI124: 0.03895923444 | AJ124: 0.03901219906 | AK124: 0.03370704914 | AL124: 0.03180865784 | AM124: 0.0338583433 | AN124: 0.02820006672 | AO124: 0.02896797331 | AP124: 0.02776623707 | AQ124: 0.01433174945 | AR124: 0.02042188984 | AS124: 0.02855491933 | AV124: =PRODUCT(N124:AS124+1) -> 2.356649699 | AW124: 0.02803882641
A125: 120 | B125: 0.0558568889 | C125: 0.03761904889 | D125: -0.01342262447 | E125: 0.03079705535 | F125: 0.03431486036 | G125: 0.02438737423 | H125: 0.01867879138 | I125: 0.015 | J125: 0.015 | K125: 0.013 | L125: 0.011 | M125: 0.011 | N125: 0.02175316151 | O125: 0.02214967566 | P125: 0.04331497249 | Q125: 0.04099884377 | R125: 0.03383299102 | S125: 0.03768648879 | T125: 0.02897672944 | U125: 0.03644518267 | V125: 0.02432491347 | W125: 0.02930496147 | X125: 0.03065730782 | Y125: 0.03425522312 | Z125: 0.03881739315 | AA125: 0.03603407468 | AB125: 0.02118153072 | AC125: 0.03156258773 | AD125: 0.03144267702 | AE125: 0.02658907662 | AF125: 0.0409955916 | AG125: 0.04289982997 | AH125: 0.0364732353 | AI125: 0.02978832078 | AJ125: 0.04247135956 | AK125: 0.02746810816 | AL125: 0.04271384951 | AM125: 0.04578411527 | AN125: 0.03770321989 | AO125: 0.05474610815 | AP125: 0.05706879785 | AQ125: 0.0495648031 | AR125: 0.05086231843 | AS125: 0.07762339732 | AV125: =PRODUCT(N125:AS125+1) -> 3.258784123 | AW125: 0.03884362825
... 156 more rows

Sheet COM_S
J1: =MAX(J$6:J$1005) -> 0.6418637967 | K1: =MAX(K$6:K$1005) -> 0.6471557375 | L1: 0.6522352377 | M1: 0.6550100987 | N1: 0.6550259946 | O1: 0.6545307241 | P1: 0.6571527649 | Q1: 0.6610177803 | R1: 0.6673129523 | S1: 0.6696466793 | T1: 0.6759418513 | U1: 0.6743141333 | V1: 0.6783502628 | W1: 0.6821611916 | X1: 0.689202283 | Y1: 0.6955595196 | Z1: 0.6951486365 | AA1: 0.6947377534 | AB1: 0.6943268703 | AC1: 0.6939159872 | AD1: 0.6935051042 | AE1: 0.697055666 | AF1: 0.7039325093 | AG1: 0.7035955159 | AH1: 0.7101409894 | AI1: 0.7178407304 | AJ1: 0.722862209 | AK1: 0.7262618377 | AL1: 0.7331890321 | AM1: 0.7379266447 | AN1: 0.7357342867 | AO1: 0.7335419287 | AP1: 0.7369038037 | AQ1: 0.7404222749 | AR1: 0.7445082363 | AS1: 0.7413803611 | AT1: 0.7454663225
J2: =MEDIAN(J$6:J$1005) -> 0.6399943356 | K2: =MEDIAN(K$6:K$1005) -> 0.6404235628 | L2: 0.6408478705 | M2: 0.6411811165 | N2: 0.641594803 | O2: 0.6421479577 | P2: 0.6426331976 | Q2: 0.6426066948 | R2: 0.6429251518 | S2: 0.6429023798 | T2: 0.6432745295 | U2: 0.6435999098 | V2: 0.643991045 | W2: 0.6438895089 | X2: 0.6440103208 | Y2: 0.6449623658 | Z2: 0.6457660185 | AA2: 0.6463392953 | AB2: 0.646852657 | AC2: 0.6466629748 | AD2: 0.646972059 | AE2: 0.6475546824 | AF2: 0.648802281 | AG2: 0.6477536476 | AH2: 0.6481772335 | AI2: 0.6474458012 | AJ2: 0.6473664524 | AK2: 0.6470532874 | AL2: 0.6483010266 | AM2: 0.6480725132 | AN2: 0.6491862356 | AO2: 0.6500211216 | AP2: 0.6502437629 | AQ2: 0.650070183 | AR2: 0.6528564177 | AS2: 0.6540352947 | AT2: 0.6548347321
J3: =MIN(J$6:J$1005) -> 0.6380848332 | K3: =MIN(K$6:K$1005) -> 0.6331739939 | L3: 0.6278576275 | M3: 0.6261409799 | N3: 0.6265718417 | O3: 0.6267217774 | P3: 0.6243104338 | Q3: 0.6191372887 | R3: 0.6167187713 | S3: 0.6116322765 | T3: 0.6088827517 | U3: 0.6058666876 | V3: 0.6028506235 | W3: 0.5998345594 | X3: 0.5974964077 | Y3: 0.5938024313 | Z3: 0.5934047108 | AA3: 0.5922587035 | AB3: 0.5901309065 | AC3: 0.586357438 | AD3: 0.5855890968 | AE3: 0.582354264 | AF3: 0.5747569742 | AG3: 0.5714268284 | AH3: 0.5729517978 | AI3: 0.564766537 | AJ3: 0.5650723939 | AK3: 0.5582134163 | AL3: 0.5615071734 | AM3: 0.5531970531 | AN3: 0.5481158083 | AO3: 0.5447856626 | AP3: 0.5342416802 | AQ3: 0.5381253711 | AR3: 0.5418691715 | AS3: 0.5386789163 | AT3: 0.5350761013
A4: =Index!B40 -> SIM_COM_S
B5: 2006 | C5: 2007 | D5: 2008 | E5: 2009 | F5: 2010 | G5: 2011 | H5: 2012 | I5: 2013 | J5: 2014 | K5: =J5+1 -> 2015 | L5: =K5+1 -> 2016 | M5: 2017 | N5: 2018 | O5: 2019 | P5: 2020 | Q5: 2021 | R5: 2022 | S5: 2023 | T5: 2024 | U5: 2025 | V5: 2026 | W5: 2027 | X5: 2028 | Y5: 2029 | Z5: 2030 | AA5: 2031 | AB5: 2032 | AC5: 2033 | AD5: 2034 | AE5: 2035 | AF5: 2036 | AG5: 2037 | AH5: 2038 | AI5: 2039 | AJ5: 2040 | AK5: 2041 | AL5: 2042 | AM5: 2043 | AN5: 2044 | AO5: 2045 | AP5: 2046 | AQ5: 2047 | AR5: 2048 | AS5: 2049 | AT5: 2050
A6: 1 | B6: =TRANSPOSE(StatsSA!AB44:AB51) -> 0.6113437377 | C6: 0.6140640707 | D6: 0.619045789 | E6: 0.6336691149 | F6: 0.6301574199 | G6: 0.6341800746 | H6: 0.6388045378 | I6: 0.6399160956 | J6: =AVERAGE(J7:J1005) -> 0.6399774984 | K6: =AVERAGE(K7:K1005) -> 0.6403453068 | L6: 0.6406975132 | M6: 0.6409717087 | N6: 0.6411741343 | O6: 0.6415357019 | P6: 0.6418473426 | Q6: 0.6421109191 | R6: 0.6422872564 | S6: 0.6425468675 | T6: 0.6428064785 | U6: 0.6431890172 | V6: 0.6433455275 | W6: 0.6436210002 | X6: 0.6438131992 | Y6: 0.6443186657 | Z6: 0.6446456887 | AA6: 0.6449171959 | AB6: 0.6452045648 | AC6: 0.6453412481 | AD6: 0.645648444 | AE6: 0.6459199513 | AF6: 0.6461565635 | AG6: 0.6460249017 | AH6: 0.6464275982 | AI6: 0.6467436421 | AJ6: 0.6467997278 | AK6: 0.6472024243 | AL6: 0.6474606997 | AM6: 0.6476973119 | AN6: 0.6479844715 | AO6: 0.6483077364 | AP6: 0.6482988326 | AQ6: 0.6487304134 | AR6: 0.6491836573 | AS6: 0.6498390908 | AT6: 0.6501190294
A7: =A6+1 -> 2 | B7: =B6 -> 0.6113437377 | C7: =C6 -> 0.6140640707 | D7: 0.619045789 | E7: 0.6336691149 | F7: 0.6301574199 | G7: 0.6341800746 | H7: 0.6388045378 | I7: 0.6399160956 | J7: 0.6400953738 | K7: 0.637944002 | L7: 0.6389099415 | M7: 0.6429931924 | N7: 0.6408418205 | O7: 0.6449250714 | P7: 0.6458910109 | Q7: 0.6429995163 | R7: 0.6480309117 | S7: 0.649100862 | T7: 0.6462093675 | U7: 0.6472793178 | V7: 0.6443878233 | W7: 0.6494192186 | X7: 0.6544506139 | Y7: 0.6555205643 | Z7: 0.6526290697 | AA7: 0.6536990201 | AB7: 0.6547689705 | AC7: 0.6558389209 | AD7: 0.6608703162 | AE7: 0.6619402666 | AF7: 0.6570384705 | AG7: 0.6593505111 | AH7: 0.654448715 | AI7: 0.6567607555 | AJ7: 0.6518589594 | AK7: 0.654171 | AL7: 0.6636968772 | AM7: 0.6587950811 | AN7: 0.6611071217 | AO7: 0.6706329988 | AP7: 0.680158876 | AQ7: 0.6896847532 | AR7: 0.6919967938 | AS7: 0.6943088343 | AT7: 0.6966208749
A8: =A7+1 -> 3 | B8: =B7 -> 0.6113437377 | C8: =C7 -> 0.6140640707 | D8: =D7 -> 0.619045789 | E8: =E7 -> 0.6336691149 | F8: =F7 -> 0.6301574199 | G8: =G7 -> 0.6341800746 | H8: =H7 -> 0.6388045378 | I8: =I7 -> 0.6399160956 | J8: 0.6410019773 | K8: 0.6446821001 | L8: 0.6421276002 | M8: 0.6426904117 | N8: 0.6463705345 | O8: 0.6438160346 | P8: 0.6443788461 | Q8: 0.6507942201 | R8: 0.657209594 | S8: 0.6557020781 | T8: 0.6541945622 | U8: 0.6606099361 | V8: 0.6670253101 | W8: 0.6694792391 | X8: 0.6758946131 | Y8: 0.6783485421 | Z8: 0.6808024712 | AA8: 0.6792949552 | AB8: 0.6817488842 | AC8: 0.6802413683 | AD8: 0.6787338524 | AE8: 0.6811877814 | AF8: 0.6803082714 | AG8: 0.6794287614 | AH8: 0.6785492514 | AI8: 0.6704559047 | AJ8: 0.6767902314 | AK8: 0.6686968847 | AL8: 0.6606035381 | AM8: 0.6669378647 | AN8: 0.6588445181 | AO8: 0.6651788447 | AP8: 0.6715131713 | AQ8: 0.6778474979 | AR8: 0.6697541513 | AS8: 0.6688746413 | AT8: 0.6679951313
A9: 4 | B9: 0.6113437377 | C9: 0.6140640707 | D9: 0.619045789 | E9: 0.6336691149 | F9: 0.6301574199 | G9: 0.6341800746 | H9: 0.6388045378 | I9: 0.6399160956 | J9: 0.640888233 | K9: 0.6426209027 | L9: 0.6412362611 | M9: 0.6429689308 | N9: 0.6478189119 | O9: 0.6495515816 | P9: 0.6512842513 | Q9: 0.6563391159 | R9: 0.6613939805 | S9: 0.6664488451 | T9: 0.6675422647 | U9: 0.6646742394 | V9: 0.6618062141 | W9: 0.6589381887 | X9: 0.6600316084 | Y9: 0.6571635831 | Z9: 0.6582570027 | AA9: 0.6633118673 | AB9: 0.6683667319 | AC9: 0.6654987065 | AD9: 0.6665921262 | AE9: 0.6676855458 | AF9: 0.6620211779 | AG9: 0.6563568099 | AH9: 0.6579062786 | AI9: 0.6594557473 | AJ9: 0.6537913794 | AK9: 0.655340848 | AL9: 0.6496764801 | AM9: 0.6584397854 | AN9: 0.6527754175 | AO9: 0.6615387228 | AP9: 0.6630881915 | AQ9: 0.6718514968 | AR9: 0.6806148022 | AS9: 0.6893781075 | AT9: 0.6909275762
A10: 5 | B10: 0.6113437377 | C10: 0.6140640707 | D10: 0.619045789 | E10: 0.6336691149 | F10: 0.6301574199 | G10: 0.6341800746 | H10: 0.6388045378 | I10: 0.6399160956 | J10: 0.6401436624 | K10: 0.6422709962 | L10: 0.64439833 | M10: 0.6465256638 | N10: 0.651770309 | O10: 0.6507803314 | P10: 0.6529076652 | Q10: 0.6538332956 | R10: 0.6587203709 | S10: 0.6596460013 | T10: 0.6566101867 | U10: 0.6535743721 | V10: 0.6584614475 | W10: 0.6593870778 | X10: 0.6642741532 | Y10: 0.6612383386 | Z10: 0.6661254139 | AA10: 0.6710124893 | AB10: 0.6679766747 | AC10: 0.6649408601 | AD10: 0.6658664905 | AE10: 0.6667921209 | AF10: 0.6696438247 | AG10: 0.6724955286 | AH10: 0.6753472325 | AI10: 0.6854127731 | AJ10: 0.6954783136 | AK10: 0.6983300175 | AL10: 0.708395558 | AM10: 0.7184610986 | AN10: 0.7285266391 | AO10: 0.7241645064 | AP10: 0.7198023736 | AQ10: 0.7154402409 | AR10: 0.7110781081 | AS10: 0.7067159754 | AT10: 0.7095676793
A11: 6 | B11: 0.6113437377 | C11: 0.6140640707 | D11: 0.619045789 | E11: 0.6336691149 | F11: 0.6301574199 | G11: 0.6341800746 | H11: 0.6388045378 | I11: 0.6399160956 | J11: 0.6414594616 | K11: 0.6471557375 | L11: 0.6466173907 | M11: 0.6491963552 | N11: 0.6517753197 | O11: 0.6543542842 | P11: 0.6569332488 | Q11: 0.6555200885 | R11: 0.6541069283 | S11: 0.652693768 | T11: 0.6552420527 | U11: 0.6577903374 | V11: 0.6643000671 | W11: 0.6708097967 | X11: 0.6733580814 | Y11: 0.6719449212 | Z11: 0.6705317609 | AA11: 0.6770414906 | AB11: 0.6835512203 | AC11: 0.6900609499 | AD11: 0.6926092346 | AE11: 0.6951575193 | AF11: 0.690946057 | AG11: 0.7011622679 | AH11: 0.7041646422 | AI11: 0.6999531798 | AJ11: 0.6957417175 | AK11: 0.6987440918 | AL11: 0.7017464661 | AM11: 0.6975350037 | AN11: 0.700537378 | AO11: 0.7107535889 | AP11: 0.7137559632 | AQ11: 0.7239721741 | AR11: 0.7341883851 | AS11: 0.7371907594 | AT11: 0.7401931336
A12: 7 | B12: 0.6113437377 | C12: 0.6140640707 | D12: 0.619045789 | E12: 0.6336691149 | F12: 0.6301574199 | G12: 0.6341800746 | H12: 0.6388045378 | I12: 0.6399160956 | J12: 0.6400210458 | K12: 0.6374608132 | L12: 0.638017892 | M12: 0.6416922822 | N12: 0.642249361 | O12: 0.6428064398 | P12: 0.6433635186 | Q12: 0.650672992 | R12: 0.6540210204 | S12: 0.6534076038 | T12: 0.6567556322 | U12: 0.6640651055 | V12: 0.663451689 | W12: 0.6667997173 | X12: 0.6661863008 | Y12: 0.6734957741 | Z12: 0.6808052475 | AA12: 0.6881147208 | AB12: 0.6914627492 | AC12: 0.6908493326 | AD12: 0.6902359161 | AE12: 0.6935839445 | AF12: 0.6981400272 | AG12: 0.6954822732 | AH12: 0.6856106827 | AI12: 0.6829529287 | AJ12: 0.6875090114 | AK12: 0.6848512575 | AL12: 0.6821935036 | AM12: 0.6795357496 | AN12: 0.6768779957 | AO12: 0.6814340784 | AP12: 0.6787763245 | AQ12: 0.6689047339 | AR12: 0.6590331433 | AS12: 0.6563753894 | AT12: 0.6537176355
A13: 8 | B13: 0.6113437377 | C13: 0.6140640707 | D13: 0.619045789 | E13: 0.6336691149 | F13: 0.6301574199 | G13: 0.6341800746 | H13: 0.6388045378 | I13: 0.6399160956 | J13: 0.6401466678 | K13: 0.640248656 | L13: 0.6403506442 | M13: 0.6404526324 | N13: 0.6405546206 | O13: 0.6406566087 | P13: 0.6407585969 | Q13: 0.6444963505 | R13: 0.644272659 | S13: 0.6480104125 | T13: 0.6438252761 | U13: 0.6396401398 | V13: 0.6433778933 | W13: 0.6391927569 | X13: 0.6429305104 | Y13: 0.6466682639 | Z13: 0.6464445725 | AA13: 0.6422594361 | AB13: 0.6459971896 | AC13: 0.6418120532 | AD13: 0.6376269168 | AE13: 0.6374032254 | AF13: 0.6374441818 | AG13: 0.6374851381 | AH13: 0.6303122579 | AI13: 0.6231393776 | AJ13: 0.623180334 | AK13: 0.6232212903 | AL13: 0.6304760833 | AM13: 0.6377308763 | AN13: 0.6449856693 | AO13: 0.6450266257 | AP13: 0.6378537454 | AQ13: 0.6451085384 | AR13: 0.6379356582 | AS13: 0.6379766145 | AT13: 0.6380175709
A14: 9 | B14: 0.6113437377 | C14: 0.6140640707 | D14: 0.619045789 | E14: 0.6336691149 | F14: 0.6301574199 | G14: 0.6341800746 | H14: 0.6388045378 | I14: 0.6399160956 | J14: 0.6403800531 | K14: 0.6385604847 | L14: 0.6398582277 | M14: 0.6442732821 | N14: 0.645571025 | O14: 0.646868768 | P14: 0.648166511 | Q14: 0.6530482968 | R14: 0.6500071927 | S14: 0.6469660886 | T14: 0.6518478743 | U14: 0.6567296601 | V14: 0.6616114459 | W14: 0.6585703418 | X14: 0.6634521276 | Y14: 0.6643724684 | Z14: 0.6692542542 | AA14: 0.6662131501 | AB14: 0.6671334909 | AC14: 0.6640923868 | AD14: 0.6610512827 | AE14: 0.6619716235 | AF14: 0.6709670371 | AG14: 0.6727486141 | AH14: 0.6745301911 | AI14: 0.6763117681 | AJ14: 0.6780933451 | AK14: 0.6798749221 | AL14: 0.681656499 | AM14: 0.6762242394 | AN14: 0.6707919797 | AO14: 0.6653597201 | AP14: 0.6599274604 | AQ14: 0.6689228741 | AR14: 0.6779182877 | AS14: 0.6869137013 | AT14: 0.6886952783
A15: 10 | B15: 0.6113437377 | C15: 0.6140640707 | D15: 0.619045789 | E15: 0.6336691149 | F15: 0.6301574199 | G15: 0.6341800746 | H15: 0.6388045378 | I15: 0.6399160956 | J15: 0.6417571559 | K15: 0.638376055 | L15: 0.6412295769 | M15: 0.6440830987 | N15: 0.6438193092 | O15: 0.6404382084 | P15: 0.6401744189 | Q15: 0.6466562213 | R15: 0.6452151339 | S15: 0.6477354914 | T15: 0.6502558489 | U15: 0.6527762064 | V15: 0.6592580089 | W15: 0.6578169214 | X15: 0.656375834 | Y15: 0.6549347465 | Z15: 0.661416549 | AA15: 0.6639369065 | AB15: 0.670418709 | AC15: 0.6729390665 | AD15: 0.675459424 | AE15: 0.6779797815 | AF15: 0.6696947828 | AG15: 0.6758374573 | AH15: 0.6819801319 | AI15: 0.6809089698 | AJ15: 0.6870516443 | AK15: 0.6787666456 | AL15: 0.6704816469 | AM15: 0.6621966481 | AN15: 0.6683393227 | AO15: 0.6744819972 | AP15: 0.6734108352 | AQ15: 0.6723396731 | AR15: 0.6640546743 | AS15: 0.6629835123 | AT15: 0.6619123502
A16: 11 | B16: 0.6113437377 | C16: 0.6140640707 | D16: 0.619045789 | E16: 0.6336691149 | F16: 0.6301574199 | G16: 0.6341800746 | H16: 0.6388045378 | I16: 0.6399160956 | J16: 0.6399520789 | K16: 0.641804996 | L16: 0.6374232904 | M16: 0.6392762075 | N16: 0.6380118132 | O16: 0.6336301076 | P16: 0.6323657133 | Q16: 0.633044759 | R16: 0.6297623596 | S16: 0.6225185153 | T16: 0.6231975609 | U16: 0.6238766065 | V16: 0.6205942072 | W16: 0.6212732528 | X16: 0.6140294085 | Y16: 0.6107470091 | Z16: 0.6035031648 | AA16: 0.5962593205 | AB16: 0.5969383661 | AC16: 0.5896945218 | AD16: 0.5864121225 | AE16: 0.5831297231 | AF16: 0.5902544152 | AG16: 0.5901652707 | AH16: 0.5828622895 | AI16: 0.5899869816 | AJ16: 0.5826840005 | AK16: 0.5825948559 | AL16: 0.589719548 | AM16: 0.5896304035 | AN16: 0.589541259 | AO16: 0.5894521144 | AP16: 0.5965768065 | AQ16: 0.5892738254 | AR16: 0.5891846808 | AS16: 0.5818816996 | AT16: 0.5817925551
A17: 12 | B17: 0.6113437377 | C17: 0.6140640707 | D17: 0.619045789 | E17: 0.6336691149 | F17: 0.6301574199 | G17: 0.6341800746 | H17: 0.6388045378 | I17: 0.6399160956 | J17: 0.6404007341 | K17: 0.6411387507 | L17: 0.6418767672 | M17: 0.6426147838 | N17: 0.6464701118 | O17: 0.644090817 | P17: 0.6448288336 | Q17: 0.64176573 | R17: 0.6426640713 | S17: 0.6435624126 | T17: 0.640499309 | U17: 0.6374362054 | V17: 0.6383345467 | W17: 0.639232888 | X17: 0.6361697844 | Y17: 0.6410295707 | Z17: 0.641927912 | AA17: 0.6467876983 | AB17: 0.6516474846 | AC17: 0.6565072709 | AD17: 0.6574056122 | AE17: 0.6583039536 | AF17: 0.6594621097 | AG17: 0.6678341024 | AH17: 0.6689922585 | AI17: 0.6773642513 | AJ17: 0.6713085707 | AK17: 0.6796805635 | AL17: 0.6808387196 | AM17: 0.6892107123 | AN17: 0.6831550318 | AO17: 0.6915270245 | AP17: 0.6926851806 | AQ17: 0.6866295001 | AR17: 0.6805738196 | AS17: 0.674518139 | AT17: 0.6756762951
A18: 13 | B18: 0.6113437377 | C18: 0.6140640707 | D18: 0.619045789 | E18: 0.6336691149 | F18: 0.6301574199 | G18: 0.6341800746 | H18: 0.6388045378 | I18: 0.6399160956 | J18: 0.6416356681 | K18: 0.6394874453 | L18: 0.6373392225 | M18: 0.6383083111 | N18: 0.6423947111 | O18: 0.6464811111 | P18: 0.6474501997 | Q18: 0.6510140606 | R18: 0.6506164765 | S18: 0.6541803374 | T18: 0.6537827533 | U18: 0.6494237243 | V18: 0.6450646953 | W18: 0.6407056663 | X18: 0.6442695272 | Y18: 0.6399104981 | Z18: 0.6395129141 | AA18: 0.63911533 | AB18: 0.6426791909 | AC18: 0.6422816068 | AD18: 0.6418840228 | AE18: 0.6414864387 | AF18: 0.6369699906 | AG18: 0.6324535424 | AH18: 0.6279370942 | AI18: 0.6306344827 | AJ18: 0.6333318712 | AK18: 0.628815423 | AL18: 0.6315128115 | AM18: 0.6342102 | AN18: 0.6369075885 | AO18: 0.6468188136 | AP18: 0.649516202 | AQ18: 0.6594274272 | AR18: 0.6693386523 | AS18: 0.6792498774 | AT18: 0.6819472659
A19: 14 | B19: 0.6113437377 | C19: 0.6140640707 | D19: 0.619045789 | E19: 0.6336691149 | F19: 0.6301574199 | G19: 0.6341800746 | H19: 0.6388045378 | I19: 0.6399160956 | J19: 0.6407209054 | K19: 0.6439020207 | L19: 0.6470831359 | M19: 0.6471469397 | N19: 0.6440934322 | O19: 0.6410399247 | P19: 0.6411037285 | Q19: 0.6368480224 | R19: 0.6325923163 | S19: 0.6322980552 | T19: 0.635965239 | U19: 0.6396324228 | V19: 0.6393381617 | W19: 0.6430053455 | X19: 0.6387496394 | Y19: 0.6344939333 | Z19: 0.6341996722 | AA19: 0.637866856 | AB19: 0.6375725949 | AC19: 0.6372783337 | AD19: 0.6369840726 | AE19: 0.6366898114 | AF19: 0.6444985621 | AG19: 0.6450934762 | AH19: 0.6384745537 | AI19: 0.6318556311 | AJ19: 0.6396643818 | AK19: 0.6402592959 | AL19: 0.64085421 | AM19: 0.641449124 | AN19: 0.6492578748 | AO19: 0.6498527888 | AP19: 0.6432338663 | AQ19: 0.651042617 | AR19: 0.6516375311 | AS19: 0.6450186085 | AT19: 0.6456135226
A20: 15 | B20: 0.6113437377 | C20: 0.6140640707 | D20: 0.619045789 | E20: 0.6336691149 | F20: 0.6301574199 | G20: 0.6341800746 | H20: 0.6388045378 | I20: 0.6399160956 | J20: 0.6405211251 | K20: 0.6411324819 | L20: 0.6386265272 | M20: 0.639237884 | N20: 0.6429665521 | O20: 0.6435779089 | P20: 0.6441892657 | Q20: 0.6443435414 | R20: 0.6405363723 | S20: 0.6367292031 | T20: 0.6329220339 | U20: 0.6330763097 | V20: 0.6371920304 | W20: 0.6413077511 | X20: 0.6454234719 | Y20: 0.6495391926 | Z20: 0.6457320234 | AA20: 0.6458862992 | AB20: 0.6500020199 | AC20: 0.6501562957 | AD20: 0.6463491265 | AE20: 0.6465034023 | AF20: 0.6467169585 | AG20: 0.6469305148 | AH20: 0.647144071 | AI20: 0.6473576273 | AJ20: 0.6475711835 | AK20: 0.6549985764 | AL20: 0.6552121326 | AM20: 0.6482118522 | AN20: 0.6556392451 | AO20: 0.6558528013 | AP20: 0.6488525209 | AQ20: 0.6490660772 | AR20: 0.6492796334 | AS20: 0.6494931897 | AT20: 0.6497067459
A21: 16 | B21: 0.6113437377 | C21: 0.6140640707 | D21: 0.619045789 | E21: 0.6336691149 | F21: 0.6301574199 | G21: 0.6341800746 | H21: 0.6388045378 | I21: 0.6399160956 | J21: 0.6414476873 | K21: 0.6432321336 | L21: 0.6418992684 | M21: 0.6468010261 | N21: 0.6454681609 | O21: 0.6503699186 | P21: 0.6521543648 | Q21: 0.6510269707 | R21: 0.6459381316 | S21: 0.6487721824 | T21: 0.6476447882 | U21: 0.646517394 | V21: 0.6414285549 | W21: 0.6363397158 | X21: 0.6391737666 | Y21: 0.6340849275 | Z21: 0.6329575333 | AA21: 0.6318301392 | AB21: 0.63466419 | AC21: 0.6335367958 | AD21: 0.6363708466 | AE21: 0.6352434525 | AF21: 0.6339067653 | AG21: 0.6325700781 | AH21: 0.6384472276 | AI21: 0.6371105404 | AJ21: 0.6502015265 | AK21: 0.6632925126 | AL21: 0.669169662 | AM21: 0.6822606481 | AN21: 0.6953516342 | AO21: 0.6940149471 | AP21: 0.6926782599 | AQ21: 0.705769246 | AR21: 0.7116463954 | AS21: 0.7175235449 | AT21: 0.7234006944
A22: 17 | B22: 0.6113437377 | C22: 0.6140640707 | D22: 0.619045789 | E22: 0.6336691149 | F22: 0.6301574199 | G22: 0.6341800746 | H22: 0.6388045378 | I22: 0.6399160956 | J22: 0.6389606514 | K22: 0.6386723369 | L22: 0.635266711 | M22: 0.6349783964 | N22: 0.6378073933 | O22: 0.6375190787 | P22: 0.6372307642 | Q22: 0.6349413614 | R22: 0.6366134036 | S22: 0.6343240008 | T22: 0.6280731531 | U22: 0.6297451953 | V22: 0.6314172375 | W22: 0.6291278347 | X22: 0.622876987 | Y22: 0.6166261392 | Z22: 0.6143367365 | AA22: 0.6120473337 | AB22: 0.6097579309 | AC22: 0.6035070832 | AD22: 0.6051791254 | AE22: 0.6028897226 | AF22: 0.6084692753 | AG22: 0.6140488279 | AH22: 0.6196283806 | AI22: 0.6179940966 | AJ22: 0.609145976 | AK22: 0.6002978554 | AL22: 0.6058774081 | AM22: 0.6042431241 | AN22: 0.6026088402 | AO22: 0.5937607195 | AP22: 0.5849125989 | AQ22: 0.583278315 | AR22: 0.5888578676 | AS22: 0.580009747 | AT22: 0.5783754631
A23: 18 | B23: 0.6113437377 | C23: 0.6140640707 | D23: 0.619045789 | E23: 0.6336691149 | F23: 0.6301574199 | G23: 0.6341800746 | H23: 0.6388045378 | I23: 0.6399160956 | J23: 0.6406924176 | K23: 0.6418118248 | L23: 0.6398139207 | M23: 0.640933328 | N23: 0.6451700466 | O23: 0.6462894539 | P23: 0.6474088611 | Q23: 0.647579214 | R23: 0.6477495668 | S23: 0.6518813646 | T23: 0.6520517174 | U23: 0.6522220703 | V23: 0.6484309781 | W23: 0.6525627759 | X23: 0.6527331288 | Y23: 0.6529034816 | Z23: 0.6491123895 | AA23: 0.6492827423 | AB23: 0.6534145401 | AC23: 0.649623448 | AD23: 0.6497938008 | AE23: 0.6499641537 | AF23: 0.6376595884 | AG23: 0.6253550231 | AH23: 0.6274781312 | AI23: 0.6223874025 | AJ23: 0.6172966739 | AK23: 0.6049921086 | AL23: 0.5926875434 | AM23: 0.5948106514 | AN23: 0.5825060861 | AO23: 0.5846291942 | AP23: 0.5795384655 | AQ23: 0.5816615735 | AR23: 0.5837846816 | AS23: 0.5786939529 | AT23: 0.5736032243
A24: 19 | B24: 0.6113437377 | C24: 0.6140640707 | D24: 0.619045789 | E24: 0.6336691149 | F24: 0.6301574199 | G24: 0.6341800746 | H24: 0.6388045378 | I24: 0.6399160956 | J24: 0.6391745032 | K24: 0.6354148843 | L24: 0.6347725768 | M24: 0.6341302693 | N24: 0.6366052732 | O24: 0.6359629657 | P24: 0.6353206582 | Q24: 0.6321964675 | R24: 0.6290722769 | S24: 0.6259480862 | T24: 0.6307467854 | U24: 0.6355454847 | V24: 0.6403441839 | W24: 0.6451428832 | X24: 0.6420186925 | Y24: 0.6468173917 | Z24: 0.6436932011 | AA24: 0.6405690104 | AB24: 0.6453677096 | AC24: 0.6501664089 | AD24: 0.6470422182 | AE24: 0.6478794725 | AF24: 0.6407543429 | AG24: 0.6480568865 | AH24: 0.6481455935 | AI24: 0.6554481372 | AJ24: 0.6627506808 | AK24: 0.6628393878 | AL24: 0.6557142582 | AM24: 0.6558029652 | AN24: 0.6486778355 | AO24: 0.6415527059 | AP24: 0.6344275763 | AQ24: 0.6417301199 | AR24: 0.6490326635 | AS24: 0.6491213705 | AT24: 0.6492100775
A25: 20 | B25: 0.6113437377 | C25: 0.6140640707 | D25: 0.619045789 | E25: 0.6336691149 | F25: 0.6301574199 | G25: 0.6341800746 | H25: 0.6388045378 | I25: 0.6399160956 | J25: 0.639717164 | K25: 0.6371377009 | L25: 0.6407928605 | M25: 0.6444480202 | N25: 0.6449858685 | O25: 0.6424064054 | P25: 0.6429442536 | Q25: 0.6469899301 | R25: 0.6431127166 | S25: 0.6471583931 | T25: 0.6432811796 | U25: 0.647326856 | V25: 0.6474110875 | W25: 0.6435338741 | X25: 0.6475795505 | Y25: 0.6516252269 | Z25: 0.6477480135 | AA25: 0.6438708 | AB25: 0.6439550315 | AC25: 0.640077818 | AD25: 0.6441234945 | AE25: 0.644207726 | AF25: 0.6526280488 | AG25: 0.6610483716 | AH25: 0.6550410211 | AI25: 0.6562475073 | AJ25: 0.6574539934 | AK25: 0.6658743162 | AL25: 0.6670808024 | AM25: 0.6682872886 | AN25: 0.6622799381 | AO25: 0.6634864242 | AP25: 0.6646929104 | AQ25: 0.6731132332 | AR25: 0.6671058827 | AS25: 0.6610985323 | AT25: 0.6623050184
A26: 21 | B26: 0.6113437377 | C26: 0.6140640707 | D26: 0.619045789 | E26: 0.6336691149 | F26: 0.6301574199 | G26: 0.6341800746 | H26: 0.6388045378 | I26: 0.6399160956 | J26: 0.640173246 | K26: 0.641087975 | L26: 0.6388853925 | M26: 0.6429174328 | N26: 0.6407148504 | O26: 0.6447468907 | P26: 0.6456616196 | Q26: 0.6460646425 | R26: 0.6504291102 | S26: 0.6468706881 | T26: 0.6472737109 | U26: 0.6437152887 | V26: 0.6441183116 | W26: 0.6405598894 | X26: 0.6409629122 | Y26: 0.641365935 | Z26: 0.6417689578 | AA26: 0.6461334256 | AB26: 0.6465364484 | AC26: 0.6469394712 | AD26: 0.651303939 | AE26: 0.6517069618 | AF26: 0.6479328615 | AG26: 0.6513725979 | AH26: 0.6620261709 | AI26: 0.6654659072 | AJ26: 0.6689056436 | AK26: 0.67234538 | AL26: 0.6757851163 | AM26: 0.672011016 | AN26: 0.682664589 | AO26: 0.693318162 | AP26: 0.6895440617 | AQ26: 0.6929837981 | AR26: 0.7036373711 | AS26: 0.6998632708 | AT26: 0.7033030072
A27: 22 | B27: 0.6113437377 | C27: 0.6140640707 | D27: 0.619045789 | E27: 0.6336691149 | F27: 0.6301574199 | G27: 0.6341800746 | H27: 0.6388045378 | I27: 0.6399160956 | J27: 0.6391006426 | K27: 0.6421778666 | L27: 0.6421377793 | M27: 0.6452150033 | N27: 0.6420576046 | O27: 0.6389002058 | P27: 0.6388601185 | Q27: 0.6338709747 | R27: 0.6328432759 | S27: 0.6357770221 | T27: 0.6347493233 | U27: 0.6337216245 | V27: 0.6287324807 | W27: 0.6316662269 | X27: 0.6266770831 | Y27: 0.6256493843 | Z27: 0.6246216855 | AA27: 0.6275554317 | AB27: 0.6265277329 | AC27: 0.629461479 | AD27: 0.6244723353 | AE27: 0.6234446365 | AF27: 0.6233358283 | AG27: 0.6232270202 | AH27: 0.623118212 | AI27: 0.6157955672 | AJ27: 0.615686759 | AK27: 0.6083641142 | AL27: 0.6154691427 | AM27: 0.6225741711 | AN27: 0.622465363 | AO27: 0.6223565548 | AP27: 0.61503391 | AQ27: 0.6149251018 | AR27: 0.6148162937 | AS27: 0.6219213221 | AT27: 0.621812514
A28: 23 | B28: 0.6113437377 | C28: 0.6140640707 | D28: 0.619045789 | E28: 0.6336691149 | F28: 0.6301574199 | G28: 0.6341800746 | H28: 0.6388045378 | I28: 0.6399160956 | J28: 0.6404825717 | K28: 0.6397335758 | L28: 0.6421018912 | M28: 0.6475875181 | N28: 0.6530731449 | O28: 0.652324149 | P28: 0.6546924644 | Q28: 0.6593479179 | R28: 0.6600419264 | S28: 0.6646973798 | T28: 0.6614299433 | U28: 0.6581625069 | V28: 0.6548950704 | W28: 0.6516276339 | X28: 0.6523216424 | Y28: 0.6569770958 | Z28: 0.6616325493 | AA28: 0.6583651128 | AB28: 0.6630205662 | AC28: 0.6637145747 | AD28: 0.6644085832 | AE28: 0.6651025917 | AF28: 0.6667869667 | AG28: 0.6684713418 | AH28: 0.6629418802 | AI28: 0.6646262552 | AJ28: 0.6590967936 | AK28: 0.653567332 | AL28: 0.6624655437 | AM28: 0.6641499188 | AN28: 0.6730481304 | AO28: 0.6819463421 | AP28: 0.6764168805 | AQ28: 0.6708874189 | AR28: 0.6797856306 | AS28: 0.6886838423 | AT28: 0.6903682173
A29: 24 | B29: 0.6113437377 | C29: 0.6140640707 | D29: 0.619045789 | E29: 0.6336691149 | F29: 0.6301574199 | G29: 0.6341800746 | H29: 0.6388045378 | I29: 0.6399160956 | J29: 0.6389639719 | K29: 0.6383194186 | L29: 0.634557554 | M29: 0.6370303121 | N29: 0.6395030701 | O29: 0.6357412055 | P29: 0.6350966522 | Q29: 0.6370658564 | R29: 0.6350736156 | S29: 0.6330813748 | T29: 0.6390120239 | U29: 0.6409812281 | V29: 0.6429504323 | W29: 0.6449196364 | X29: 0.6468888406 | Y29: 0.6528194897 | Z29: 0.6587501389 | AA29: 0.660719343 | AB29: 0.6587271022 | AC29: 0.6567348615 | AD29: 0.6626655106 | AE29: 0.6646347148 | AF29: 0.6624307943 | AG29: 0.6602268739 | AH29: 0.6580229535 | AI29: 0.6630328697 | AJ29: 0.6680427859 | AK29: 0.6658388655 | AL29: 0.6636349451 | AM29: 0.6614310247 | AN29: 0.6520132676 | AO29: 0.6425955106 | AP29: 0.6331777535 | AQ29: 0.6381876698 | AR29: 0.6359837493 | AS29: 0.6337798289 | AT29: 0.6315759085
A30: 25 | B30: 0.6113437377 | C30: 0.6140640707 | D30: 0.619045789 | E30: 0.6336691149 | F30: 0.6301574199 | G30: 0.6341800746 | H30: 0.6388045378 | I30: 0.6399160956 | J30: 0.6400141954 | K30: 0.6422863973 | L30: 0.6445585993 | M30: 0.6468308012 | N30: 0.6459856917 | O30: 0.651375205 | P30: 0.6536474069 | Q30: 0.6535512387 | R30: 0.6574165155 | S30: 0.6612817923 | T30: 0.6611856241 | U30: 0.657128011 | V30: 0.6530703978 | W30: 0.6490127847 | X30: 0.6528780615 | Y30: 0.6488204483 | Z30: 0.6487242802 | AA30: 0.648628112 | AB30: 0.6485319438 | AC30: 0.6523972206 | AD30: 0.6523010524 | AE30: 0.6522048842 | AF30: 0.65133951 | AG30: 0.6432602991 | AH30: 0.6351810882 | AI30: 0.6415295506 | AJ30: 0.6406641763 | AK30: 0.6325849654 | AL30: 0.6245057545 | AM30: 0.6308542169 | AN30: 0.6372026793 | AO30: 0.6363373051 | AP30: 0.6282580942 | AQ30: 0.6346065566 | AR30: 0.6337411823 | AS30: 0.6400896447 | AT30: 0.6392242705
A31: 26 | B31: 0.6113437377 | C31: 0.6140640707 | D31: 0.619045789 | E31: 0.6336691149 | F31: 0.6301574199 | G31: 0.6341800746 | H31: 0.6388045378 | I31: 0.6399160956 | J31: 0.6410326279 | K31: 0.6412107426 | L31: 0.6445061687 | M31: 0.6478015947 | N31: 0.644862398 | O31: 0.6419232013 | P31: 0.642101316 | Q31: 0.6408736697 | R31: 0.6436074684 | S31: 0.6384183772 | T31: 0.6411521758 | U31: 0.6438859745 | V31: 0.6426583282 | W31: 0.637469237 | X31: 0.6322801457 | Y31: 0.6270910545 | Z31: 0.6298248532 | AA31: 0.6325586519 | AB31: 0.6313310056 | AC31: 0.6261419143 | AD31: 0.624914268 | AE31: 0.6236866218 | AF31: 0.6273492131 | AG31: 0.6165841312 | AH31: 0.6202467226 | AI31: 0.6166954773 | AJ31: 0.6203580687 | AK31: 0.62402066 | AL31: 0.6132555781 | AM31: 0.6097043329 | AN31: 0.6061530876 | AO31: 0.6098156789 | AP31: 0.6062644337 | AQ31: 0.5954993518 | AR31: 0.5847342698 | AS31: 0.5739691879 | AT31: 0.5704179427
A32: 27 | B32: 0.6113437377 | C32: 0.6140640707 | D32: 0.619045789 | E32: 0.6336691149 | F32: 0.6301574199 | G32: 0.6341800746 | H32: 0.6388045378 | I32: 0.6399160956 | J32: 0.6400216403 | K32: 0.6448814212 | L32: 0.649741202 | M32: 0.6483663601 | N32: 0.6469915182 | O32: 0.6487339877 | P32: 0.6504764571 | Q32: 0.6519387577 | R32: 0.6494396134 | S32: 0.6548633589 | T32: 0.6563256595 | U32: 0.6538265151 | V32: 0.6592502607 | W32: 0.6567511163 | X32: 0.6621748619 | Y32: 0.6675986074 | Z32: 0.6650994631 | AA32: 0.6626003187 | AB32: 0.6680240643 | AC32: 0.6734478098 | AD32: 0.6709486654 | AE32: 0.672410966 | AF32: 0.6626072343 | AG32: 0.6600173391 | AH32: 0.6502136073 | AI32: 0.6476237122 | AJ32: 0.6522476537 | AK32: 0.6568715952 | AL32: 0.6614955367 | AM32: 0.6661194781 | AN32: 0.6563157464 | AO32: 0.6465120146 | AP32: 0.6439221194 | AQ32: 0.6485460609 | AR32: 0.6459561658 | AS32: 0.636152434 | AT32: 0.6335625388
A33: 28 | B33: 0.6113437377 | C33: 0.6140640707 | D33: 0.619045789 | E33: 0.6336691149 | F33: 0.6301574199 | G33: 0.6341800746 | H33: 0.6388045378 | I33: 0.6399160956 | J33: 0.6412391975 | K33: 0.6397904879 | L33: 0.6383417784 | M33: 0.6431276916 | N33: 0.6479136048 | O33: 0.6495822066 | P33: 0.6512508085 | Q33: 0.6526470548 | R33: 0.6580047461 | S33: 0.6633624374 | T33: 0.6607972388 | U33: 0.66615493 | V33: 0.6635897314 | W33: 0.6610245328 | X33: 0.6584593342 | Y33: 0.6598555805 | Z33: 0.6652132718 | AA33: 0.6626480732 | AB33: 0.6680057644 | AC33: 0.6654405658 | AD33: 0.6707982571 | AE33: 0.6721945034 | AF33: 0.6651213549 | AG33: 0.6724758797 | AH33: 0.6798304045 | AI33: 0.6799710926 | AJ33: 0.6873256174 | AK33: 0.6802524689 | AL33: 0.6731793204 | AM33: 0.6733200086 | AN33: 0.6806745333 | AO33: 0.6880290581 | AP33: 0.6809559096 | AQ33: 0.6810965977 | AR33: 0.6812372859 | AS33: 0.6741641374 | AT33: 0.6743048255
A34: 29 | B34: 0.6113437377 | C34: 0.6140640707 | D34: 0.619045789 | E34: 0.6336691149 | F34: 0.6301574199 | G34: 0.6341800746 | H34: 0.6388045378 | I34: 0.6399160956 | J34: 0.6390534213 | K34: 0.6442898042 | L34: 0.6495261871 | M34: 0.6485279472 | N34: 0.6475297073 | O34: 0.6496487788 | P34: 0.6517678503 | Q34: 0.6561120156 | R34: 0.656494736 | S34: 0.6568774563 | T34: 0.6532987317 | U34: 0.657642897 | V34: 0.6540641724 | W34: 0.6584083376 | X34: 0.6627525029 | Y34: 0.6591737783 | Z34: 0.6555950537 | AA34: 0.655977774 | AB34: 0.6603219393 | AC34: 0.6607046597 | AD34: 0.657125935 | AE34: 0.6575086554 | AF34: 0.6670472337 | AG34: 0.6621581387 | AH34: 0.6572690437 | AI34: 0.6523799488 | AJ34: 0.6474908538 | AK34: 0.6570294321 | AL34: 0.6521403371 | AM34: 0.6544650788 | AN34: 0.6640036571 | AO34: 0.6735422354 | AP34: 0.6686531404 | AQ34: 0.6709778821 | AR34: 0.6805164604 | AS34: 0.6900550387 | AT34: 0.6923797803
A35: 30 | B35: 0.6113437377 | C35: 0.6140640707 | D35: 0.619045789 | E35: 0.6336691149 | F35: 0.6301574199 | G35: 0.6341800746 | H35: 0.6388045378 | I35: 0.6399160956 | J35: 0.6394731295 | K35: 0.6429232788 | L35: 0.6401388053 | M35: 0.6435889546 | N35: 0.6408044811 | O35: 0.641137319 | P35: 0.6414701569 | Q35: 0.639188922 | R35: 0.640869132 | S35: 0.6465107869 | T35: 0.6442295519 | U35: 0.641948317 | V35: 0.6475899719 | W35: 0.6532316269 | X35: 0.6588732818 | Y35: 0.6645149368 | Z35: 0.6701565917 | AA35: 0.6718368017 | AB35: 0.6695555668 | AC35: 0.6672743318 | AD35: 0.6649930969 | AE35: 0.6666733069 | AF35: 0.6714501836 | AG35: 0.6690132238 | AH35: 0.666576264 | AI35: 0.6569254675 | AJ35: 0.6617023443 | AK35: 0.6592653844 | AL35: 0.649614588 | AM35: 0.6399637915 | AN35: 0.6447406683 | AO35: 0.6350898718 | AP35: 0.6398667486 | AQ35: 0.6446436254 | AR35: 0.6422066655 | AS35: 0.6325558691 | AT35: 0.6301189092
A36: 31 | B36: 0.6113437377 | C36: 0.6140640707 | D36: 0.619045789 | E36: 0.6336691149 | F36: 0.6301574199 | G36: 0.6341800746 | H36: 0.6388045378 | I36: 0.6399160956 | J36: 0.6405568529 | K36: 0.6441709601 | L36: 0.6415504446 | M36: 0.638929929 | N36: 0.6425440363 | O36: 0.6430408321 | P36: 0.6435376279 | Q36: 0.6412177176 | R36: 0.6428592523 | S36: 0.6445007869 | T36: 0.6461423216 | U36: 0.6477838563 | V36: 0.6454639459 | W36: 0.6431440356 | X36: 0.6408241253 | Y36: 0.64246566 | Z36: 0.6441071947 | AA36: 0.6497101743 | AB36: 0.6553131539 | AC36: 0.6609161335 | AD36: 0.6665191131 | AE36: 0.6681606477 | AF36: 0.6620274605 | AG36: 0.6558942733 | AH36: 0.6569749228 | AI36: 0.6652694089 | AJ36: 0.6663500583 | AK36: 0.6674307077 | AL36: 0.6612975205 | AM36: 0.66237817 | AN36: 0.6562449828 | AO36: 0.6573256322 | AP36: 0.6584062816 | AQ36: 0.6667007677 | AR36: 0.6749952538 | AS36: 0.6832897399 | AT36: 0.6843703893
A37: 32 | B37: 0.6113437377 | C37: 0.6140640707 | D37: 0.619045789 | E37: 0.6336691149 | F37: 0.6301574199 | G37: 0.6341800746 | H37: 0.6388045378 | I37: 0.6399160956 | J37: 0.6392242777 | K37: 0.6427060964 | L37: 0.6461879152 | M37: 0.6434351111 | N37: 0.6406823071 | O37: 0.6410468144 | P37: 0.6414113218 | Q37: 0.6445321244 | R37: 0.639730037 | S37: 0.6388893946 | T37: 0.6380487522 | U37: 0.6332466649 | V37: 0.6363674674 | W37: 0.6315653801 | X37: 0.6267632927 | Y37: 0.6259226504 | Z37: 0.6290434529 | AA37: 0.6242413656 | AB37: 0.6234007232 | AC37: 0.6265215257 | AD37: 0.6296423283 | AE37: 0.6288016859 | AF37: 0.6366835297 | AG37: 0.6445653734 | AH37: 0.6380195439 | AI37: 0.638687551 | AJ37: 0.6393555581 | AK37: 0.6328097286 | AL37: 0.6334777357 | AM37: 0.6341457428 | AN37: 0.6275999133 | AO37: 0.6282679204 | AP37: 0.6289359275 | AQ37: 0.622390098 | AR37: 0.6302719417 | AS37: 0.6381537855 | AT37: 0.6388217926
A38: 33 | B38: 0.6113437377 | C38: 0.6140640707 | D38: 0.619045789 | E38: 0.6336691149 | F38: 0.6301574199 | G38: 0.6341800746 | H38: 0.6388045378 | I38: 0.6399160956 | J38: 0.6394144526 | K38: 0.6373233599 | L38: 0.6414668899 | M38: 0.64561042 | N38: 0.6435193272 | O38: 0.6445455459 | P38: 0.6455717646 | Q38: 0.6510286736 | R38: 0.6564855827 | S38: 0.6540196019 | T38: 0.651553621 | U38: 0.6530490851 | V38: 0.6505831043 | W38: 0.6560400133 | X38: 0.6535740325 | Y38: 0.6511080516 | Z38: 0.6565649607 | AA38: 0.6580604248 | AB38: 0.6595558889 | AC38: 0.665012798 | AD38: 0.6665082621 | AE38: 0.6680037262 | AF38: 0.6699058154 | AG38: 0.6718079047 | AH38: 0.6592823207 | AI38: 0.6467567366 | AJ38: 0.6486588259 | AK38: 0.6361332418 | AL38: 0.6308214944 | AM38: 0.625509747 | AN38: 0.612984163 | AO38: 0.6076724156 | AP38: 0.6095745048 | AQ38: 0.6114765941 | AR38: 0.59895101 | AS38: 0.5936392626 | AT38: 0.5883275152
A39: 34 | B39: 0.6113437377 | C39: 0.6140640707 | D39: 0.619045789 | E39: 0.6336691149 | F39: 0.6301574199 | G39: 0.6341800746 | H39: 0.6388045378 | I39: 0.6399160956 | J39: 0.6409968112 | K39: 0.6401128733 | L39: 0.636111624 | M39: 0.6352276861 | N39: 0.6374610596 | O39: 0.6365771217 | P39: 0.6356931838 | Q39: 0.6409120146 | R39: 0.6382079555 | S39: 0.6434267862 | T39: 0.644684172 | U39: 0.6499030028 | V39: 0.6551218336 | W39: 0.6524177744 | X39: 0.6576366052 | Y39: 0.662855436 | Z39: 0.6641128218 | AA39: 0.6614087626 | AB39: 0.6587047035 | AC39: 0.6560006443 | AD39: 0.6532965852 | AE39: 0.654553971 | AF39: 0.6484153415 | AG39: 0.6494905486 | AH39: 0.6577795924 | AI39: 0.6660686361 | AJ39: 0.6599300066 | AK39: 0.6537913771 | AL39: 0.6620804208 | AM39: 0.6703694646 | AN39: 0.6642308351 | AO39: 0.6580922056 | AP39: 0.6663812493 | AQ39: 0.6602426198 | AR39: 0.6685316636 | AS39: 0.6696068707 | AT39: 0.6706820778
A40: 35 | B40: 0.6113437377 | C40: 0.6140640707 | D40: 0.619045789 | E40: 0.6336691149 | F40: 0.6301574199 | G40: 0.6341800746 | H40: 0.6388045378 | I40: 0.6399160956 | J40: 0.6400739062 | K40: 0.6376210514 | L40: 0.6414028193 | M40: 0.6420672759 | N40: 0.6396144212 | O40: 0.6433961891 | P40: 0.6440606457 | Q40: 0.6481810717 | R40: 0.6523014977 | S40: 0.6524604787 | T40: 0.6565809046 | U40: 0.6527784407 | V40: 0.6489759767 | W40: 0.6451735128 | X40: 0.6413710488 | Y40: 0.6375685849 | Z40: 0.6337661209 | AA40: 0.6339251019 | AB40: 0.6380455279 | AC40: 0.6421659539 | AD40: 0.6462863798 | AE40: 0.6464453608 | AF40: 0.6457508572 | AG40: 0.6450563536 | AH40: 0.6371480134 | AI40: 0.6436673464 | AJ40: 0.6501866795 | AK40: 0.6494921758 | AL40: 0.6487976722 | AM40: 0.6481031686 | AN40: 0.6546225017 | AO40: 0.6539279981 | AP40: 0.6532334945 | AQ40: 0.6453251542 | AR40: 0.637416814 | AS40: 0.6367223104 | AT40: 0.6360278067
A41: 36 | B41: 0.6113437377 | C41: 0.6140640707 | D41: 0.619045789 | E41: 0.6336691149 | F41: 0.6301574199 | G41: 0.6341800746 | H41: 0.6388045378 | I41: 0.6399160956 | J41: 0.6395219103 | K41: 0.6355045372 | L41: 0.6346044754 | M41: 0.636821725 | N41: 0.6328043518 | O41: 0.6350216014 | P41: 0.6341215396 | Q41: 0.6366053585 | R41: 0.6311662875 | S41: 0.6257272164 | T41: 0.6202881454 | U41: 0.6148490744 | V41: 0.6173328933 | W41: 0.6198167122 | X41: 0.6183390861 | Y41: 0.620822905 | Z41: 0.6193452789 | AA41: 0.6178676529 | AB41: 0.6203514718 | AC41: 0.6149124007 | AD41: 0.6134347747 | AE41: 0.6119571486 | AF41: 0.6120476966 | AG41: 0.6265659179 | AH41: 0.6266564658 | AI41: 0.6411746871 | AJ41: 0.6484790717 | AK41: 0.6485696197 | AL41: 0.6558740044 | AM41: 0.6559645524 | AN41: 0.6704827736 | AO41: 0.6705733216 | AP41: 0.6778777063 | AQ41: 0.6923959275 | AR41: 0.7069141488 | AS41: 0.7142185334 | AT41: 0.7215229181
A42: 37 | B42: 0.6113437377 | C42: 0.6140640707 | D42: 0.619045789 | E42: 0.6336691149 | F42: 0.6301574199 | G42: 0.6341800746 | H42: 0.6388045378 | I42: 0.6399160956 | J42: 0.6402886101 | K42: 0.6444513929 | L42: 0.6454968643 | M42: 0.6434250243 | N42: 0.647587807 | O42: 0.6455159671 | P42: 0.6465614384 | Q42: 0.6489201202 | R42: 0.643355912 | S42: 0.6417531487 | T42: 0.6441118305 | U42: 0.6425090672 | V42: 0.636944859 | W42: 0.6353420958 | X42: 0.6297778876 | Y42: 0.6281751244 | Z42: 0.6226109162 | AA42: 0.6249695979 | AB42: 0.6273282796 | AC42: 0.6257255164 | AD42: 0.6241227532 | AE42: 0.6225199899 | AF42: 0.6347192995 | AG42: 0.6324909358 | AH42: 0.6302625721 | AI42: 0.6352480451 | AJ42: 0.6330196814 | AK42: 0.6380051543 | AL42: 0.6429906273 | AM42: 0.6479761002 | AN42: 0.6601754098 | AO42: 0.6579470461 | AP42: 0.6701463557 | AQ42: 0.667917992 | AR42: 0.6801173016 | AS42: 0.6923166112 | AT42: 0.6973020842
A43: 38 | B43: 0.6113437377 | C43: 0.6140640707 | D43: 0.619045789 | E43: 0.6336691149 | F43: 0.6301574199 | G43: 0.6341800746 | H43: 0.6388045378 | I43: 0.6399160956 | J43: 0.6405102247 | K43: 0.644804705 | L43: 0.645981874 | M43: 0.6440417316 | N43: 0.6421015891 | O43: 0.6463960695 | P43: 0.6475732384 | Q43: 0.647184209 | R43: 0.6467951795 | S43: 0.650367595 | T43: 0.6460171206 | U43: 0.6495895361 | V43: 0.6452390617 | W43: 0.6408885873 | X43: 0.6444610028 | Y43: 0.6480334183 | Z43: 0.6436829439 | AA43: 0.6472553594 | AB43: 0.6468663299 | AC43: 0.6464773004 | AD43: 0.642126826 | AE43: 0.6417377966 | AF43: 0.6450742705 | AG43: 0.6484107444 | AH43: 0.6517472183 | AI43: 0.6550836922 | AJ43: 0.6656340027 | AK43: 0.6689704766 | AL43: 0.6650931139 | AM43: 0.6684295878 | AN43: 0.6789798984 | AO43: 0.6823163723 | AP43: 0.6784390095 | AQ43: 0.6817754834 | AR43: 0.6851119573 | AS43: 0.6884484312 | AT43: 0.6917849052
A44: 39 | B44: 0.6113437377 | C44: 0.6140640707 | D44: 0.619045789 | E44: 0.6336691149 | F44: 0.6301574199 | G44: 0.6341800746 | H44: 0.6388045378 | I44: 0.6399160956 | J44: 0.6403018737 | K44: 0.6426216347 | L44: 0.6418240842 | M44: 0.6379092223 | N44: 0.6339943605 | O44: 0.6363141214 | P44: 0.6355165709 | Q44: 0.63822392 | R44: 0.6369698242 | S44: 0.6396771732 | T44: 0.6423845223 | U44: 0.6450918714 | V44: 0.6477992205 | W44: 0.6465451246 | X44: 0.6492524737 | Y44: 0.6440369329 | Z44: 0.6388213921 | AA44: 0.6336058513 | AB44: 0.6283903104 | AC44: 0.6231747696 | AD44: 0.6179592288 | AE44: 0.6167051329 | AF44: 0.61809476 | AG44: 0.6194843871 | AH44: 0.6136601775 | AI44: 0.6222636412 | AJ44: 0.6164394317 | AK44: 0.6178290588 | AL44: 0.6120048492 | AM44: 0.6206083129 | AN44: 0.62199794 | AO44: 0.6306014038 | AP44: 0.6392048675 | AQ44: 0.6405944946 | AR44: 0.6419841217 | AS44: 0.6361599121 | AT44: 0.6375495392
A45: 40 | B45: 0.6113437377 | C45: 0.6140640707 | D45: 0.619045789 | E45: 0.6336691149 | F45: 0.6301574199 | G45: 0.6341800746 | H45: 0.6388045378 | I45: 0.6399160956 | J45: 0.6418637967 | K45: 0.6405167486 | L45: 0.6422870119 | M45: 0.6440572753 | N45: 0.6489448499 | O45: 0.6507151133 | P45: 0.6524853766 | Q45: 0.6566547702 | R45: 0.6568627189 | S45: 0.6570706676 | T45: 0.6572786163 | U45: 0.6574865649 | V45: 0.6537330687 | W45: 0.6579024623 | X45: 0.654148966 | Y45: 0.6543569147 | Z45: 0.6506034185 | AA45: 0.6508113671 | AB45: 0.6510193158 | AC45: 0.6512272645 | AD45: 0.6553966582 | AE45: 0.6556046068 | AF45: 0.6674379666 | AG45: 0.6720574896 | AH45: 0.6838908493 | AI45: 0.6885103724 | AJ45: 0.6859160588 | AK45: 0.6905355819 | AL45: 0.6879412684 | AM45: 0.6997746281 | AN45: 0.7116079878 | AO45: 0.7234413475 | AP45: 0.7208470339 | AQ45: 0.7182527204 | AR45: 0.7156584068 | AS45: 0.7202779299 | AT45: 0.724897453
A46: 41 | B46: 0.6113437377 | C46: 0.6140640707 | D46: 0.619045789 | E46: 0.6336691149 | F46: 0.6301574199 | G46: 0.6341800746 | H46: 0.6388045378 | I46: 0.6399160956 | J46: 0.6395576332 | K46: 0.6388337502 | L46: 0.6412271786 | M46: 0.6373859843 | N46: 0.6335447899 | O46: 0.6359382184 | P46: 0.6352143354 | Q46: 0.635145045 | R46: 0.6350757545 | S46: 0.6389679091 | T46: 0.6428600636 | U46: 0.6388293282 | V46: 0.6387600378 | W46: 0.6386907473 | X46: 0.6346600119 | Y46: 0.6385521665 | Z46: 0.638482876 | AA46: 0.6344521406 | AB46: 0.6343828502 | AC46: 0.6303521148 | AD46: 0.6342442694 | AE46: 0.6341749789 | AF46: 0.6379681942 | AG46: 0.6345475728 | AH46: 0.638340788 | AI46: 0.6349201666 | AJ46: 0.6314995452 | AK46: 0.6208650872 | AL46: 0.6102306292 | AM46: 0.6068100078 | AN46: 0.5961755497 | AO46: 0.599968765 | AP46: 0.6037619802 | AQ46: 0.5931275222 | AR46: 0.5897069008 | AS46: 0.5862862794 | AT46: 0.582865658
A47: 42 | B47: 0.6113437377 | C47: 0.6140640707 | D47: 0.619045789 | E47: 0.6336691149 | F47: 0.6301574199 | G47: 0.6341800746 | H47: 0.6388045378 | I47: 0.6399160956 | J47: 0.6403674241 | K47: 0.6375124161 | L47: 0.6377747195 | M47: 0.6349197115 | N47: 0.6382993263 | O47: 0.6416789411 | P47: 0.6419412445 | Q47: 0.6453502004 | R47: 0.6447977114 | S47: 0.6482066673 | T47: 0.6476541782 | U47: 0.6431402442 | V47: 0.6425877552 | W47: 0.6420352662 | X47: 0.6375213322 | Y47: 0.6409302881 | Z47: 0.644339244 | AA47: 0.6477481999 | AB47: 0.6432342659 | AC47: 0.638720332 | AD47: 0.634206398 | AE47: 0.6336539089 | AF47: 0.6375790704 | AG47: 0.6342903952 | AH47: 0.6310017201 | AI47: 0.6349268816 | AJ47: 0.638852043 | AK47: 0.6283495312 | AL47: 0.6178470194 | AM47: 0.6145583443 | AN47: 0.6040558325 | AO47: 0.6007671573 | AP47: 0.5974784822 | AQ47: 0.594189807 | AR47: 0.5836872952 | AS47: 0.5876124567 | AT47: 0.5843237815
A48: 43 | B48: 0.6113437377 | C48: 0.6140640707 | D48: 0.619045789 | E48: 0.6336691149 | F48: 0.6301574199 | G48: 0.6341800746 | H48: 0.6388045378 | I48: 0.6399160956 | J48: 0.6390622213 | K48: 0.6367495387 | L48: 0.6375541676 | M48: 0.635241485 | N48: 0.6391634252 | O48: 0.6430853654 | P48: 0.6438899943 | Q48: 0.6414905702 | R48: 0.6351297011 | S48: 0.6287688321 | T48: 0.622407963 | U48: 0.6239699839 | V48: 0.6176091148 | W48: 0.6191711357 | X48: 0.6207331566 | Y48: 0.6183337325 | Z48: 0.6198957534 | AA48: 0.6174963293 | AB48: 0.6150969052 | AC48: 0.6087360361 | AD48: 0.610298057 | AE48: 0.6078986329 | AF48: 0.6049487466 | AG48: 0.6019988603 | AH48: 0.6062628106 | AI48: 0.610526761 | AJ48: 0.6075768747 | AK48: 0.5974131517 | AL48: 0.6016771021 | AM48: 0.5915133792 | AN48: 0.5813496562 | AO48: 0.5783997699 | AP48: 0.5826637203 | AQ48: 0.5869276706 | AR48: 0.5767639477 | AS48: 0.5666002247 | AT48: 0.5636503384
A49: 44 | B49: 0.6113437377 | C49: 0.6140640707 | D49: 0.619045789 | E49: 0.6336691149 | F49: 0.6301574199 | G49: 0.6341800746 | H49: 0.6388045378 | I49: 0.6399160956 | J49: 0.6394101717 | K49: 0.6412387542 | L49: 0.6430673366 | M49: 0.6480132304 | N49: 0.6467245015 | O49: 0.6485530839 | P49: 0.6503816664 | Q49: 0.6521963156 | R49: 0.6540109648 | S49: 0.6518641691 | T49: 0.6576402633 | U49: 0.6634163575 | V49: 0.6691924516 | W49: 0.6670456559 | X49: 0.6648988602 | Y49: 0.6667135094 | Z49: 0.6724896036 | AA49: 0.6743042528 | AB49: 0.6721574571 | AC49: 0.6779335513 | AD49: 0.6757867556 | AE49: 0.6776014048 | AF49: 0.6794416056 | AG49: 0.6884956429 | AH49: 0.6903358437 | AI49: 0.6849622078 | AJ49: 0.6868024086 | AK49: 0.695856446 | AL49: 0.7049104834 | AM49: 0.6995368475 | AN49: 0.7085908849 | AO49: 0.7104310856 | AP49: 0.7050574498 | AQ49: 0.7141114872 | AR49: 0.7087378513 | AS49: 0.7033642154 | AT49: 0.7052044162
A50: 45 | B50: 0.6113437377 | C50: 0.6140640707 | D50: 0.619045789 | E50: 0.6336691149 | F50: 0.6301574199 | G50: 0.6341800746 | H50: 0.6388045378 | I50: 0.6399160956 | J50: 0.6397506575 | K50: 0.6406986894 | L50: 0.6416467213 | M50: 0.6394774418 | N50: 0.634190851 | O50: 0.6289042601 | P50: 0.6267349806 | Q50: 0.6202926919 | R50: 0.621773293 | S50: 0.6192924492 | T50: 0.6207730503 | U50: 0.6143307616 | V50: 0.6158113627 | W50: 0.6133305189 | X50: 0.61481112 | Y50: 0.6083688313 | Z50: 0.6098494324 | AA50: 0.6073685886 | AB50: 0.6009262998 | AC50: 0.5944840111 | AD50: 0.5920031673 | AE50: 0.5895223235 | AF50: 0.5932889415 | AG50: 0.5898417229 | AH50: 0.5791806677 | AI50: 0.5685196125 | AJ50: 0.5650723939 | AK50: 0.568839012 | AL50: 0.5653917934 | AM50: 0.5691584115 | AN50: 0.5729250296 | AO50: 0.5622639743 | AP50: 0.5588167558 | AQ50: 0.5481557005 | AR50: 0.544708482 | AS50: 0.5412612634 | AT50: 0.5378140448
A51: 46 | B51: 0.6113437377 | C51: 0.6140640707 | D51: 0.619045789 | E51: 0.6336691149 | F51: 0.6301574199 | G51: 0.6341800746 | H51: 0.6388045378 | I51: 0.6399160956 | J51: 0.6387343504 | K51: 0.6434125595 | L51: 0.6449734571 | M51: 0.6434170434 | N51: 0.6418606297 | O51: 0.6465388388 | P51: 0.6480997365 | Q51: 0.6426070067 | R51: 0.6450371669 | S51: 0.6395444372 | T51: 0.6419745974 | U51: 0.6364818676 | V51: 0.6349505829 | W51: 0.637380743 | X51: 0.6398109032 | Y51: 0.6343181735 | Z51: 0.6327868887 | AA51: 0.627294159 | AB51: 0.6297243191 | AC51: 0.6242315894 | AD51: 0.6266617496 | AE51: 0.6251304648 | AF51: 0.6138386017 | AG51: 0.6097605752 | AH51: 0.6128963853 | AI51: 0.6088183588 | AJ51: 0.6119541689 | AK51: 0.6078761424 | AL51: 0.5965842793 | AM51: 0.5925062528 | AN51: 0.5956420629 | AO51: 0.5987778731 | AP51: 0.5874860099 | AQ51: 0.5834079834 | AR51: 0.5721161203 | AS51: 0.5680380938 | AT51: 0.5639600673
A52: 47 | B52: 0.6113437377 | C52: 0.6140640707 | D52: 0.619045789 | E52: 0.6336691149 | F52: 0.6301574199 | G52: 0.6341800746 | H52: 0.6388045378 | I52: 0.6399160956 | J52: 0.6387841926 | K52: 0.6388097631 | L52: 0.6357180221 | M52: 0.638860904 | N52: 0.6388864745 | O52: 0.6389120449 | P52: 0.6389376154 | Q52: 0.6431630423 | R52: 0.6434270243 | S52: 0.6436910063 | T52: 0.6399935434 | U52: 0.6402575254 | V52: 0.6444829523 | W52: 0.6407854893 | X52: 0.6370880264 | Y52: 0.6373520084 | Z52: 0.6336545454 | AA52: 0.6378799724 | AB52: 0.6421053993 | AC52: 0.6423693813 | AD52: 0.6426333633 | AE52: 0.6428973453 | AF52: 0.6357560089 | AG52: 0.6286146724 | AH52: 0.6359010093 | AI52: 0.6287596728 | AJ52: 0.628832173 | AK52: 0.6361185099 | AL52: 0.6289771735 | AM52: 0.6362635103 | AN52: 0.6291221739 | AO52: 0.6364085107 | AP52: 0.6364810109 | AQ52: 0.6365535111 | AR52: 0.6366260113 | AS52: 0.6439123482 | AT52: 0.6439848484
A53: 48 | B53: 0.6113437377 | C53: 0.6140640707 | D53: 0.619045789 | E53: 0.6336691149 | F53: 0.6301574199 | G53: 0.6341800746 | H53: 0.6388045378 | I53: 0.6399160956 | J53: 0.6403437861 | K53: 0.6425872626 | L53: 0.6385961163 | M53: 0.6377222814 | N53: 0.6399657579 | O53: 0.6359746116 | P53: 0.6351007767 | Q53: 0.6363083241 | R53: 0.6335544266 | S53: 0.6347619739 | T53: 0.6399309663 | U53: 0.6411385137 | V53: 0.6383846161 | W53: 0.6395921635 | X53: 0.6368382659 | Y53: 0.6420072582 | Z53: 0.6471762506 | AA53: 0.644422353 | AB53: 0.6456299004 | AC53: 0.6468374478 | AD53: 0.6520064401 | AE53: 0.6532139875 | AF53: 0.6584705885 | AG53: 0.6492995162 | AH53: 0.6473422806 | AI53: 0.6525988816 | AJ53: 0.6434278093 | AK53: 0.634256737 | AL53: 0.6322995014 | AM53: 0.6303422657 | AN53: 0.6211711935 | AO53: 0.6264277945 | AP53: 0.6244705588 | AQ53: 0.6225133232 | AR53: 0.6277699242 | AS53: 0.6258126886 | AT53: 0.6238554529
A54: 49 | B54: 0.6113437377 | C54: 0.6140640707 | D54: 0.619045789 | E54: 0.6336691149 | F54: 0.6301574199 | G54: 0.6341800746 | H54: 0.6388045378 | I54: 0.6399160956 | J54: 0.6406898021 | K54: 0.6418696429 | L54: 0.6399321723 | M54: 0.6442293245 | N54: 0.6454091653 | O54: 0.6465890061 | P54: 0.6477688469 | Q54: 0.6490797908 | R54: 0.6464292898 | S54: 0.6437787887 | T54: 0.6450897326 | U54: 0.6464006766 | V54: 0.6477116205 | W54: 0.6450611194 | X54: 0.6424106184 | Y54: 0.6476830073 | Z54: 0.6489939512 | AA54: 0.6503048951 | AB54: 0.655577284 | AC54: 0.6608496729 | AD54: 0.6661220617 | AE54: 0.6674330057 | AF54: 0.6673289503 | AG54: 0.6744387315 | AH54: 0.6743346761 | AI54: 0.6670167841 | AJ54: 0.6741265654 | AK54: 0.6668086734 | AL54: 0.666704618 | AM54: 0.6666005626 | AN54: 0.6592826706 | AO54: 0.6591786152 | AP54: 0.6518607232 | AQ54: 0.6589705045 | AR54: 0.6588664491 | AS54: 0.6659762303 | AT54: 0.6658721749
A55: 50 | B55: 0.6113437377 | C55: 0.6140640707 | D55: 0.619045789 | E55: 0.6336691149 | F55: 0.6301574199 | G55: 0.6341800746 | H55: 0.6388045378 | I55: 0.6399160956 | J55: 0.6408562874 | K55: 0.6382881073 | L55: 0.6419545499 | M55: 0.6393863698 | N55: 0.639935501 | O55: 0.6436019436 | P55: 0.6441510749 | Q55: 0.646000072 | R55: 0.6518105141 | S55: 0.6576209562 | T55: 0.6634313982 | U55: 0.6613189504 | V55: 0.6631679475 | W55: 0.6650169447 | X55: 0.6629044968 | Y55: 0.660792049 | Z55: 0.6586796012 | AA55: 0.6644900433 | AB55: 0.6623775954 | AC55: 0.6642265926 | AD55: 0.6700370347 | AE55: 0.6718860318 | AF55: 0.6674152992 | AG55: 0.6701584032 | AH55: 0.6729015072 | AI55: 0.6828584479 | AJ55: 0.6928153886 | AK55: 0.688344656 | AL55: 0.6838739234 | AM55: 0.6938308641 | AN55: 0.7037878047 | AO55: 0.6993170721 | AP55: 0.7020601762 | AQ55: 0.6975894436 | AR55: 0.7003325476 | AS55: 0.7102894883 | AT55: 0.7130325923
A56: 51 | B56: 0.6113437377 | C56: 0.6140640707 | D56: 0.619045789 | E56: 0.6336691149 | F56: 0.6301574199 | G56: 0.6341800746 | H56: 0.6388045378 | I56: 0.6399160956 | J56: 0.6409204883 | K56: 0.6382032878 | L56: 0.6354860874 | M56: 0.6390035097 | N56: 0.6394036206 | O56: 0.6429210429 | P56: 0.6433211538 | Q56: 0.6454958071 | R56: 0.6397475704 | S56: 0.6379607787 | T56: 0.6322125421 | U56: 0.6343871954 | V56: 0.6365618487 | W56: 0.630813612 | X56: 0.6290268203 | Y56: 0.6272400287 | Z56: 0.621491792 | AA56: 0.6236664453 | AB56: 0.6258410986 | AC56: 0.620092862 | AD56: 0.6183060703 | AE56: 0.6165192786 | AF56: 0.6216756016 | AG56: 0.6268319246 | AH56: 0.6247744109 | AI56: 0.6371445706 | AJ56: 0.6495147302 | AK56: 0.6618848898 | AL56: 0.6670412128 | AM56: 0.6794113724 | AN56: 0.6845676954 | AO56: 0.6825101818 | AP56: 0.6876665048 | AQ56: 0.6856089911 | AR56: 0.6835514775 | AS56: 0.6887078005 | AT56: 0.6938641235
A57: 52 | B57: 0.6113437377 | C57: 0.6140640707 | D57: 0.619045789 | E57: 0.6336691149 | F57: 0.6301574199 | G57: 0.6341800746 | H57: 0.6388045378 | I57: 0.6399160956 | J57: 0.639365466 | K57: 0.6418263242 | L57: 0.6411698709 | M57: 0.6373961063 | N57: 0.6336223417 | O57: 0.6360831998 | P57: 0.6354267465 | Q57: 0.6338725174 | R57: 0.6402411782 | S57: 0.6386869491 | T57: 0.63713272 | U57: 0.6395399359 | V57: 0.6459085967 | W57: 0.6443543676 | X57: 0.6428001384 | Y57: 0.6491687992 | Z57: 0.65553746 | AA57: 0.6579446759 | AB57: 0.6603518917 | AC57: 0.6627591076 | AD57: 0.6691277684 | AE57: 0.6715349842 | AF57: 0.6582960276 | AG57: 0.6450570709 | AH57: 0.6390319508 | AI57: 0.6402206674 | AJ57: 0.6341955474 | AK57: 0.635384264 | AL57: 0.6365729806 | AM57: 0.6233340239 | AN57: 0.6245227405 | AO57: 0.6184976205 | AP57: 0.6052586638 | AQ57: 0.5992335438 | AR57: 0.5859945871 | AS57: 0.5871833037 | AT57: 0.5811581837
A58: 53 | B58: 0.6113437377 | C58: 0.6140640707 | D58: 0.619045789 | E58: 0.6336691149 | F58: 0.6301574199 | G58: 0.6341800746 | H58: 0.6388045378 | I58: 0.6399160956 | J58: 0.6392366482 | K58: 0.6395945956 | L58: 0.639952543 | M58: 0.6403104904 | N58: 0.6406684378 | O58: 0.6410263852 | P58: 0.6413843326 | Q58: 0.6409200961 | R58: 0.6404558596 | S58: 0.643953068 | T58: 0.6395273865 | U58: 0.6390631499 | V58: 0.6385989134 | W58: 0.6341732319 | X58: 0.6376704403 | Y58: 0.6411676488 | Z58: 0.6446648572 | AA58: 0.6481620656 | AB58: 0.6437363841 | AC58: 0.6393107026 | AD58: 0.6348850211 | AE58: 0.6344207846 | AF58: 0.6269874925 | AG58: 0.6267680371 | AH58: 0.6193347451 | AI58: 0.6119014531 | AJ58: 0.6116819977 | AK58: 0.6186763789 | AL58: 0.6184569235 | AM58: 0.6254513048 | AN58: 0.6180180127 | AO58: 0.6177985573 | AP58: 0.6175791019 | AQ58: 0.6173596465 | AR58: 0.6243540278 | AS58: 0.631348409 | AT58: 0.6311289536
A59: 54 | B59: 0.6113437377 | C59: 0.6140640707 | D59: 0.619045789 | E59: 0.6336691149 | F59: 0.6301574199 | G59: 0.6341800746 | H59: 0.6388045378 | I59: 0.6399160956 | J59: 0.6385895059 | K59: 0.6423802671 | L59: 0.6399364055 | M59: 0.6406098553 | N59: 0.6381659937 | O59: 0.6419567548 | P59: 0.6426302046 | Q59: 0.638947562 | R59: 0.6352649194 | S59: 0.6315822769 | T59: 0.6278996343 | U59: 0.6242169917 | V59: 0.628457239 | W59: 0.6287360413 | X59: 0.6250533987 | Y59: 0.6292936461 | Z59: 0.6335338934 | AA59: 0.6377741407 | AB59: 0.6380529431 | AC59: 0.6422931904 | AD59: 0.6465334377 | AE59: 0.6468122401 | AF59: 0.6541351584 | AG59: 0.6542442401 | AH59: 0.6543533219 | AI59: 0.6616762402 | AJ59: 0.6545714853 | AK59: 0.654680567 | AL59: 0.6547896487 | AM59: 0.6548987305 | AN59: 0.6477939755 | AO59: 0.6479030573 | AP59: 0.648012139 | AQ59: 0.6481212207 | AR59: 0.6482303024 | AS59: 0.6483393841 | AT59: 0.6484484658
A60: 55 | B60: 0.6113437377 | C60: 0.6140640707 | D60: 0.619045789 | E60: 0.6336691149 | F60: 0.6301574199 | G60: 0.6341800746 | H60: 0.6388045378 | I60: 0.6399160956 | J60: 0.6383517587 | K60: 0.6381727992 | L60: 0.6411111511 | M60: 0.6409321915 | N60: 0.6376359206 | O60: 0.6374569611 | P60: 0.6372780015 | Q60: 0.632944619 | R60: 0.6365341263 | S60: 0.6322007437 | T60: 0.6318288061 | U60: 0.6274954236 | V60: 0.627123486 | W60: 0.6307129933 | X60: 0.6303410557 | Y60: 0.6299691181 | Z60: 0.6295971805 | AA60: 0.6331866878 | AB60: 0.6328147502 | AC60: 0.6324428126 | AD60: 0.632070875 | AE60: 0.6316989373 | AF60: 0.6259496778 | AG60: 0.6346280916 | AH60: 0.6433065053 | AI60: 0.6447710824 | AJ60: 0.6534494962 | AK60: 0.6621279099 | AL60: 0.663592487 | AM60: 0.6650570641 | AN60: 0.6665216412 | AO60: 0.6607723817 | AP60: 0.6550231222 | AQ60: 0.6564876993 | AR60: 0.6579522764 | AS60: 0.6522030168 | AT60: 0.6536675939
A61: 56 | B61: 0.6113437377 | C61: 0.6140640707 | D61: 0.619045789 | E61: 0.6336691149 | F61: 0.6301574199 | G61: 0.6341800746 | H61: 0.6388045378 | I61: 0.6399160956 | J61: 0.6408264261 | K61: 0.642954248 | L61: 0.64508207 | M61: 0.6440925805 | N61: 0.6493377138 | O61: 0.6514655357 | P61: 0.6535933577 | Q61: 0.65527329 | R61: 0.6569532224 | S61: 0.6546717097 | T61: 0.660313087 | U61: 0.6619930194 | V61: 0.6636729517 | W61: 0.669314329 | X61: 0.6670328164 | Y61: 0.6647513038 | Z61: 0.6664312362 | AA61: 0.6720726135 | AB61: 0.6737525458 | AC61: 0.6754324782 | AD61: 0.6771124105 | AE61: 0.6787923428 | AF61: 0.6752687779 | AG61: 0.6645313764 | AH61: 0.6682216481 | AI61: 0.6574842466 | AJ61: 0.6467468451 | AK61: 0.6360094435 | AL61: 0.6324858786 | AM61: 0.6217484771 | AN61: 0.6254387488 | AO61: 0.6147013473 | AP61: 0.618391619 | AQ61: 0.6220818907 | AR61: 0.6257721625 | AS61: 0.6294624342 | AT61: 0.6259388693
A62: 57 | B62: 0.6113437377 | C62: 0.6140640707 | D62: 0.619045789 | E62: 0.6336691149 | F62: 0.6301574199 | G62: 0.6341800746 | H62: 0.6388045378 | I62: 0.6399160956 | J62: 0.6384903603 | K62: 0.6331739939 | L62: 0.6278576275 | M62: 0.6287758838 | N62: 0.6265768287 | O62: 0.6274950851 | P62: 0.62529603 | Q62: 0.6285084107 | R62: 0.6237979015 | S62: 0.6230488372 | T62: 0.6262612179 | U62: 0.6294735986 | V62: 0.6326859792 | W62: 0.631936915 | X62: 0.6272264057 | Y62: 0.6225158965 | Z62: 0.6217668322 | AA62: 0.617056323 | AB62: 0.6123458138 | AC62: 0.6155581945 | AD62: 0.6148091302 | AE62: 0.6140600659 | AF62: 0.6208118993 | AG62: 0.6131360594 | AH62: 0.6054602194 | AI62: 0.5977843795 | AJ62: 0.5901085396 | AK62: 0.5896465364 | AL62: 0.5963983697 | AM62: 0.6031502031 | AN62: 0.5954743632 | AO62: 0.6022261965 | AP62: 0.6017641933 | AQ62: 0.6085160266 | AR62: 0.6080540234 | AS62: 0.6075920201 | AT62: 0.6071300168
A63: 58 | B63: 0.6113437377 | C63: 0.6140640707 | D63: 0.619045789 | E63: 0.6336691149 | F63: 0.6301574199 | G63: 0.6341800746 | H63: 0.6388045378 | I63: 0.6399160956 | J63: 0.6407293917 | K63: 0.645991114 | L63: 0.6450182134 | M63: 0.6440453128 | N63: 0.6461897237 | O63: 0.6514514459 | P63: 0.6535958567 | Q63: 0.6525953185 | R63: 0.6515947803 | S63: 0.6545556871 | T63: 0.6495937039 | U63: 0.6525546107 | V63: 0.6515540724 | W63: 0.6505535342 | X63: 0.653514441 | Y63: 0.6525139028 | Z63: 0.6515133646 | AA63: 0.6544742713 | AB63: 0.6495122882 | AC63: 0.644550305 | AD63: 0.6395883219 | AE63: 0.6385877837 | AF63: 0.6372801115 | AG63: 0.643186276 | AH63: 0.6346647672 | AI63: 0.6405709317 | AJ63: 0.6392632596 | AK63: 0.6451694241 | AL63: 0.6510755886 | AM63: 0.6569817531 | AN63: 0.6628879176 | AO63: 0.6543664088 | AP63: 0.6458449 | AQ63: 0.6373233912 | AR63: 0.6288018824 | AS63: 0.6202803736 | AT63: 0.6189727015
A64: 59 | B64: 0.6113437377 | C64: 0.6140640707 | D64: 0.619045789 | E64: 0.6336691149 | F64: 0.6301574199 | G64: 0.6341800746 | H64: 0.6388045378 | I64: 0.6399160956 | J64: 0.6387784955 | K64: 0.6363671519 | L64: 0.6308384969 | M64: 0.6315444647 | N64: 0.629133121 | O64: 0.6267217774 | P64: 0.6243104338 | Q64: 0.6191372887 | R64: 0.6218870336 | S64: 0.6246367784 | T64: 0.6273865232 | U64: 0.6222133781 | V64: 0.6249631229 | W64: 0.6197899779 | X64: 0.6146168328 | Y64: 0.6094436877 | Z64: 0.6082319875 | AA64: 0.6109817324 | AB64: 0.6058085873 | AC64: 0.6045968871 | AD64: 0.607346632 | AE64: 0.6061349318 | AF64: 0.6039581662 | AG64: 0.6089952372 | AH64: 0.6068184716 | AI64: 0.6118555426 | AJ64: 0.609678777 | AK64: 0.6075020113 | AL64: 0.6125390824 | AM64: 0.6103623167 | AN64: 0.6009717145 | AO64: 0.5915811122 | AP64: 0.5894043466 | AQ64: 0.5800137443 | AR64: 0.5778369787 | AS64: 0.5756602131 | AT64: 0.5734834474
A65: 60 | B65: 0.6113437377 | C65: 0.6140640707 | D65: 0.619045789 | E65: 0.6336691149 | F65: 0.6301574199 | G65: 0.6341800746 | H65: 0.6388045378 | I65: 0.6399160956 | J65: 0.638815358 | K65: 0.6415903016 | L65: 0.6381306225 | M65: 0.6377882547 | N65: 0.6343285756 | O65: 0.6371035192 | P65: 0.6367611514 | Q65: 0.6302340251 | R65: 0.6276683438 | S65: 0.6251026624 | T65: 0.6185755362 | U65: 0.6160098548 | V65: 0.6094827285 | W65: 0.6069170472 | X65: 0.6003899209 | Y65: 0.6017856845 | Z65: 0.5992200032 | AA65: 0.5966543218 | AB65: 0.5980500855 | AC65: 0.5994458491 | AD65: 0.6008416127 | AE65: 0.5982759314 | AF65: 0.6024108587 | AG65: 0.5993319494 | AH65: 0.6106807134 | AI65: 0.6148156408 | AJ65: 0.6261644048 | AK65: 0.6375131688 | AL65: 0.6344342595 | AM65: 0.6457830235 | AN65: 0.6571317875 | AO65: 0.6612667148 | AP65: 0.6581878055 | AQ65: 0.6623227329 | AR65: 0.6592438236 | AS65: 0.6561649143 | AT65: 0.6602998417
A66: 61 | B66: 0.6113437377 | C66: 0.6140640707 | D66: 0.619045789 | E66: 0.6336691149 | F66: 0.6301574199 | G66: 0.6341800746 | H66: 0.6388045378 | I66: 0.6399160956 | J66: 0.6398589478 | K66: 0.6343936736 | L66: 0.6320457108 | M66: 0.6328150593 | N66: 0.6304670965 | O66: 0.6281191337 | P66: 0.6257711709 | Q66: 0.628899708 | R66: 0.6320282451 | S66: 0.6351567822 | T66: 0.6343238743 | U66: 0.6334909665 | V66: 0.6326580586 | W66: 0.6357865957 | X66: 0.6309922429 | Y66: 0.63412078 | Z66: 0.6332878721 | AA66: 0.6284935193 | AB66: 0.6236991665 | AC66: 0.6189048137 | AD66: 0.6141104609 | AE66: 0.613277553 | AF66: 0.6077728496 | AG66: 0.6094819828 | AH66: 0.611191116 | AI66: 0.6129002492 | AJ66: 0.6146093824 | AK66: 0.6091046789 | AL66: 0.6180276488 | AM66: 0.6269506186 | AN66: 0.6286597518 | AO66: 0.6375827216 | AP66: 0.6392918548 | AQ66: 0.6337871514 | AR66: 0.6354962846 | AS66: 0.6372054178 | AT66: 0.638914551
A67: 62 | B67: 0.6113437377 | C67: 0.6140640707 | D67: 0.619045789 | E67: 0.6336691149 | F67: 0.6301574199 | G67: 0.6341800746 | H67: 0.6388045378 | I67: 0.6399160956 | J67: 0.6400666895 | K67: 0.6358556283 | L67: 0.6316445671 | M67: 0.6305508174 | N67: 0.632574379 | O67: 0.6345979406 | P67: 0.6335041908 | Q67: 0.6344392324 | R67: 0.639335719 | S67: 0.6363093157 | T67: 0.6332829124 | U67: 0.6302565091 | V67: 0.6311915507 | W67: 0.6281651474 | X67: 0.6251387441 | Y67: 0.6300352307 | Z67: 0.6309702723 | AA67: 0.6358667589 | AB67: 0.6407632455 | AC67: 0.6416982871 | AD67: 0.6465947737 | AE67: 0.6475298154 | AF67: 0.6479073646 | AG67: 0.6554987505 | AH67: 0.6558762997 | AI67: 0.6490400123 | AJ67: 0.6422037249 | AK67: 0.6353674375 | AL67: 0.6357449868 | AM67: 0.6289086994 | AN67: 0.6292862486 | AO67: 0.6368776345 | AP67: 0.6444690204 | AQ67: 0.6520604063 | AR67: 0.6524379555 | AS67: 0.6528155047 | AT67: 0.653193054
A68: 63 | B68: 0.6113437377 | C68: 0.6140640707 | D68: 0.619045789 | E68: 0.6336691149 | F68: 0.6301574199 | G68: 0.6341800746 | H68: 0.6388045378 | I68: 0.6399160956 | J68: 0.6386296302 | K68: 0.639872486 | L68: 0.6411153419 | M68: 0.6454755092 | N68: 0.6436010536 | O68: 0.6448439095 | P68: 0.6460867654 | Q68: 0.646488848 | R68: 0.6429294856 | S68: 0.6393701232 | T68: 0.6437336508 | U68: 0.6441357334 | V68: 0.644537816 | W68: 0.6409784536 | X68: 0.6453419811 | Y68: 0.6457440637 | Z68: 0.6501075913 | AA68: 0.6544711188 | AB68: 0.6509117565 | AC68: 0.6473523941 | AD68: 0.6517159216 | AE68: 0.6521180042 | AF68: 0.6477675628 | AG68: 0.6434171214 | AH68: 0.6462805167 | AI68: 0.6491439119 | AJ68: 0.6447934705 | AK68: 0.6404430292 | AL68: 0.6360925878 | AM68: 0.6461698197 | AN68: 0.6490332149 | AO68: 0.6591104468 | AP68: 0.6691876787 | AQ68: 0.6792649106 | AR68: 0.6821283058 | AS68: 0.6922055377 | AT68: 0.6950689329
A69: 64 | B69: 0.6113437377 | C69: 0.6140640707 | D69: 0.619045789 | E69: 0.6336691149 | F69: 0.6301574199 | G69: 0.6341800746 | H69: 0.6388045378 | I69: 0.6399160956 | J69: 0.6398434912 | K69: 0.6442026083 | L69: 0.645444414 | M69: 0.6466862197 | N69: 0.644810714 | O69: 0.6460525197 | P69: 0.6472943254 | Q69: 0.6468744214 | R69: 0.6424930724 | S69: 0.6460346134 | T69: 0.6456147093 | U69: 0.6412333604 | V69: 0.6408134564 | W69: 0.6443549973 | X69: 0.6399736484 | Y69: 0.6395537443 | Z69: 0.6391338403 | AA69: 0.6387139363 | AB69: 0.6382940323 | AC69: 0.6418355733 | AD69: 0.6414156693 | AE69: 0.6409957653 | AF69: 0.6489981205 | AG69: 0.6570004757 | AH69: 0.6577889943 | AI69: 0.6513636763 | AJ69: 0.6521521949 | AK69: 0.6457268769 | AL69: 0.6393015588 | AM69: 0.6328762408 | AN69: 0.6408785961 | AO69: 0.6488809513 | AP69: 0.6496694699 | AQ69: 0.6504579885 | AR69: 0.6512465071 | AS69: 0.6520350257 | AT69: 0.6528235443
A70: 65 | B70: 0.6113437377 | C70: 0.6140640707 | D70: 0.619045789 | E70: 0.6336691149 | F70: 0.6301574199 | G70: 0.6341800746 | H70: 0.6388045378 | I70: 0.6399160956 | J70: 0.6402575655 | K70: 0.6408456846 | L70: 0.6383164923 | M70: 0.6389046114 | N70: 0.6394927305 | O70: 0.643198161 | P70: 0.6437862801 | Q70: 0.6435522883 | R70: 0.6472797415 | S70: 0.6510071947 | T70: 0.6507732028 | U70: 0.650539211 | V70: 0.6503052192 | W70: 0.6461097825 | X70: 0.6419143457 | Y70: 0.6456417989 | Z70: 0.649369252 | AA70: 0.6530967052 | AB70: 0.6489012684 | AC70: 0.6447058317 | AD70: 0.6405103949 | AE70: 0.6402764031 | AF70: 0.648978995 | AG70: 0.657681587 | AH70: 0.6663841789 | AI70: 0.6678729342 | AJ70: 0.6621478529 | AK70: 0.6636366081 | AL70: 0.6651253634 | AM70: 0.6594002821 | AN70: 0.6536752008 | AO70: 0.6551639561 | AP70: 0.663866548 | AQ70: 0.6653553033 | AR70: 0.6596302219 | AS70: 0.6611189772 | AT70: 0.6626077325
A71: 66 | B71: 0.6113437377 | C71: 0.6140640707 | D71: 0.619045789 | E71: 0.6336691149 | F71: 0.6301574199 | G71: 0.6341800746 | H71: 0.6388045378 | I71: 0.6399160956 | J71: 0.6397462348 | K71: 0.6372434277 | L71: 0.6378579319 | M71: 0.6384724361 | N71: 0.6422042517 | O71: 0.642818756 | P71: 0.6434332602 | Q71: 0.6431648904 | R71: 0.6468579656 | S71: 0.6426281509 | T71: 0.6423597812 | U71: 0.6460528564 | V71: 0.6418230416 | W71: 0.6375932269 | X71: 0.6412863021 | Y71: 0.6449793773 | Z71: 0.6447110076 | AA71: 0.6404811928 | AB71: 0.6402128231 | AC71: 0.6359830084 | AD71: 0.6396760836 | AE71: 0.6394077138 | AF71: 0.639731442 | AG71: 0.6400551701 | AH71: 0.6331650616 | AI71: 0.6334887898 | AJ71: 0.633812518 | AK71: 0.6269224095 | AL71: 0.620032301 | AM71: 0.6275698658 | AN71: 0.6351074306 | AO71: 0.6426449954 | AP71: 0.6357548869 | AQ71: 0.6360786151 | AR71: 0.6436161799 | AS71: 0.643939908 | AT71: 0.6442636362
A72: =A71+1 -> 67 | B72: =B71 -> 0.6113437377 | C72: =C71 -> 0.6140640707 | D72: =D71 -> 0.619045789 | E72: =E71 -> 0.6336691149 | F72: =F71 -> 0.6301574199 | G72: =G71 -> 0.6341800746 | H72: =H71 -> 0.6388045378 | I72: =I71 -> 0.6399160956 | J72: 0.6387253482 | K72: 0.6369972476 | L72: 0.6383864585 | M72: 0.6366583579 | N72: 0.6411648802 | O72: 0.6456714024 | P72: 0.6470606133 | Q72: 0.6395454665 | R72: 0.6359917646 | S72: 0.6363995077 | T72: 0.6328458059 | U72: 0.6253306591 | V72: 0.6257384022 | W72: 0.6261461454 | X72: 0.6225924435 | Y72: 0.6150772967 | Z72: 0.6075621499 | AA72: 0.607969893 | AB72: 0.6083776362 | AC72: 0.6048239343 | AD72: 0.5973087875 | AE72: 0.5937550857 | AF72: 0.5861402586 | AG72: 0.5857392681 | AH72: 0.5925521142 | AI72: 0.5993649604 | AJ72: 0.6061778065 | AK72: 0.5985629794 | AL72: 0.5909481523 | AM72: 0.5905471618 | AN72: 0.5973600079 | AO72: 0.6041728541 | AP72: 0.5965580269 | AQ72: 0.6033708731 | AR72: 0.595756046 | AS72: 0.5881412188 | AT72: 0.5877402283
A73: 68 | B73: 0.6113437377 | C73: 0.6140640707 | D73: 0.619045789 | E73: 0.6336691149 | F73: 0.6301574199 | G73: 0.6341800746 | H73: 0.6388045378 | I73: 0.6399160956 | J73: 0.6386923534 | K73: 0.635278155 | L73: 0.6318639566 | M73: 0.634684381 | N73: 0.6375048054 | O73: 0.6372079184 | P73: 0.6369110314 | Q73: 0.6375788728 | R73: 0.6342852692 | S73: 0.6309916656 | T73: 0.6356209519 | U73: 0.6362887933 | V73: 0.6409180796 | W73: 0.641585921 | X73: 0.6422537624 | Y73: 0.6389601588 | Z73: 0.6396280002 | AA73: 0.6442572865 | AB73: 0.6409636829 | AC73: 0.6455929693 | AD73: 0.6462608106 | AE73: 0.646928652 | AF73: 0.6489892072 | AG73: 0.6582635991 | AH73: 0.667537991 | AI73: 0.6768123829 | AJ73: 0.6716591015 | AK73: 0.6809334933 | AL73: 0.6757802119 | AM73: 0.6706269305 | AN73: 0.6654736491 | AO73: 0.6603203677 | AP73: 0.6695947596 | AQ73: 0.6716553148 | AR73: 0.6737158701 | AS73: 0.6757764253 | AT73: 0.6778369805
A74: 69 | B74: 0.6113437377 | C74: 0.6140640707 | D74: 0.619045789 | E74: 0.6336691149 | F74: 0.6301574199 | G74: 0.6341800746 | H74: 0.6388045378 | I74: 0.6399160956 | J74: 0.6418142287 | K74: 0.6428455889 | L74: 0.6469942604 | M74: 0.6449083093 | N74: 0.6459396695 | O74: 0.6469710297 | P74: 0.6480023899 | Q74: 0.6535008087 | R74: 0.6550377826 | S74: 0.6526133116 | T74: 0.6581117304 | U74: 0.6556872594 | V74: 0.6572242333 | W74: 0.6587612072 | X74: 0.6642596261 | Y74: 0.6657966 | Z74: 0.6673335739 | AA74: 0.6688705478 | AB74: 0.6743689667 | AC74: 0.6719444956 | AD74: 0.6695200245 | AE74: 0.6710569985 | AF74: 0.6698037685 | AG74: 0.6685505384 | AH74: 0.6672973084 | AI74: 0.6660440784 | AJ74: 0.6647908484 | AK74: 0.6563237818 | AL74: 0.6478567152 | AM74: 0.6393896485 | AN74: 0.6453502552 | AO74: 0.6440970252 | AP74: 0.6356299585 | AQ74: 0.6415905652 | AR74: 0.6475511718 | AS74: 0.6535117784 | AT74: 0.6522585484
A75: 70 | B75: 0.6113437377 | C75: 0.6140640707 | D75: 0.619045789 | E75: 0.6336691149 | F75: 0.6301574199 | G75: 0.6341800746 | H75: 0.6388045378 | I75: 0.6399160956 | J75: 0.6384542534 | K75: 0.6333289777 | L75: 0.6344383246 | M75: 0.6324303603 | N75: 0.6304223959 | O75: 0.6284144315 | P75: 0.6264064671 | Q75: 0.6214270927 | R75: 0.6243706082 | S75: 0.6193912338 | T75: 0.6223347493 | U75: 0.6173553749 | V75: 0.6163374455 | W75: 0.615319516 | X75: 0.6103401417 | Y75: 0.6132836572 | Z75: 0.6083042828 | AA75: 0.6072863533 | AB75: 0.6102298689 | AC75: 0.6131733844 | AD75: 0.6121554549 | AE75: 0.6111375255 | AF75: 0.6111067101 | AG75: 0.6182897313 | AH75: 0.6182589159 | AI75: 0.6110142639 | AJ75: 0.6037696119 | AK75: 0.5965249598 | AL75: 0.5892803078 | AM75: 0.5820356558 | AN75: 0.589218677 | AO75: 0.5964016983 | AP75: 0.5963708829 | AQ75: 0.5963400675 | AR75: 0.6035230887 | AS75: 0.61070611 | AT75: 0.6106752946
A76: 71 | B76: 0.6113437377 | C76: 0.6140640707 | D76: 0.619045789 | E76: 0.6336691149 | F76: 0.6301574199 | G76: 0.6341800746 | H76: 0.6388045378 | I76: 0.6399160956 | J76: 0.6387293756 | K76: 0.638339787 | L76: 0.6379501984 | M76: 0.6406779211 | N76: 0.6402883325 | O76: 0.6367814325 | P76: 0.6363918439 | Q76: 0.6303268591 | R76: 0.6282233194 | S76: 0.6221583346 | T76: 0.6160933499 | U76: 0.6100283651 | V76: 0.6118862703 | W76: 0.6137441755 | X76: 0.6156020806 | Y76: 0.6174599858 | Z76: 0.615356446 | AA76: 0.6172143512 | AB76: 0.6151108114 | AC76: 0.6090458266 | AD76: 0.6069422869 | AE76: 0.6048387471 | AF76: 0.6024864549 | AG76: 0.6073479993 | AH76: 0.6049957071 | AI76: 0.6170710882 | AJ76: 0.6147187961 | AK76: 0.6123665039 | AL76: 0.6172280483 | AM76: 0.6293034294 | AN76: 0.6413788105 | AO76: 0.6390265183 | AP76: 0.6511018994 | AQ76: 0.6487496072 | AR76: 0.6608249883 | AS76: 0.6729003694 | AT76: 0.6777619139
A77: 72 | B77: 0.6113437377 | C77: 0.6140640707 | D77: 0.619045789 | E77: 0.6336691149 | F77: 0.6301574199 | G77: 0.6341800746 | H77: 0.6388045378 | I77: 0.6399160956 | J77: 0.6399793798 | K77: 0.6432388461 | L77: 0.6402636896 | M77: 0.6435231558 | N77: 0.6436653107 | O77: 0.6406901542 | P77: 0.6408323091 | Q77: 0.6445947232 | R77: 0.6404342475 | S77: 0.6441966616 | T77: 0.6439976308 | U77: 0.639837155 | V77: 0.6435995692 | W77: 0.6394390934 | X77: 0.6432015076 | Y77: 0.6390410318 | Z77: 0.638842001 | AA77: 0.6426044151 | AB77: 0.6384439394 | AC77: 0.6382449086 | AD77: 0.6380458778 | AE77: 0.6378468469 | AF77: 0.647958579 | AG77: 0.658070311 | AH77: 0.6537543697 | AI77: 0.6566522651 | AJ77: 0.6523363239 | AK77: 0.6552342193 | AL77: 0.650918278 | AM77: 0.6538161734 | AN77: 0.6639279054 | AO77: 0.6740396375 | AP77: 0.6697236962 | AQ77: 0.6726215916 | AR77: 0.6683056503 | AS77: 0.6784173824 | AT77: 0.6813152777
A78: 73 | B78: 0.6113437377 | C78: 0.6140640707 | D78: 0.619045789 | E78: 0.6336691149 | F78: 0.6301574199 | G78: 0.6341800746 | H78: 0.6388045378 | I78: 0.6399160956 | J78: 0.6400131107 | K78: 0.637732092 | L78: 0.6385683846 | M78: 0.6394046773 | N78: 0.6433582813 | O78: 0.644194574 | P78: 0.6450308667 | Q78: 0.6490872713 | R78: 0.649182231 | S78: 0.6532386357 | T78: 0.6533335954 | U78: 0.6494671101 | V78: 0.6535235148 | W78: 0.6536184745 | X78: 0.6537134342 | Y78: 0.649846949 | Z78: 0.6499419087 | AA78: 0.6539983133 | AB78: 0.654093273 | AC78: 0.6502267878 | AD78: 0.6463603025 | AE78: 0.6464552622 | AF78: 0.6381204179 | AG78: 0.6369994102 | AH78: 0.6430922391 | AI78: 0.6347573948 | AJ78: 0.633636387 | AK78: 0.6253015427 | AL78: 0.6313943716 | AM78: 0.6302733639 | AN78: 0.6363661928 | AO78: 0.6280313485 | AP78: 0.6341241774 | AQ78: 0.6402170063 | AR78: 0.631882162 | AS78: 0.6307611543 | AT78: 0.6296401466
A79: 74 | B79: 0.6113437377 | C79: 0.6140640707 | D79: 0.619045789 | E79: 0.6336691149 | F79: 0.6301574199 | G79: 0.6341800746 | H79: 0.6388045378 | I79: 0.6399160956 | J79: 0.6397152883 | K79: 0.638542078 | L79: 0.6342515564 | M79: 0.6299610348 | N79: 0.6319051359 | O79: 0.633849237 | P79: 0.6326760268 | Q79: 0.6309716934 | R79: 0.6371902499 | S79: 0.6394473615 | T79: 0.6417044731 | U79: 0.6479230296 | V79: 0.6462186962 | W79: 0.6445143629 | X79: 0.6507329194 | Y79: 0.6569514759 | Z79: 0.6592085875 | AA79: 0.6614656991 | AB79: 0.6676842556 | AC79: 0.6659799222 | AD79: 0.6642755889 | AE79: 0.6665327004 | AF79: 0.6557580177 | AG79: 0.6521971716 | AH79: 0.6486363255 | AI79: 0.6522893161 | AJ79: 0.64872847 | AK79: 0.6523814605 | AL79: 0.6416067778 | AM79: 0.6380459317 | AN79: 0.6344850856 | AO79: 0.6381380762 | AP79: 0.6345772301 | AQ79: 0.631016384 | AR79: 0.6202417013 | AS79: 0.6166808552 | AT79: 0.6131200091
A80: 75 | B80: 0.6113437377 | C80: 0.6140640707 | D80: 0.619045789 | E80: 0.6336691149 | F80: 0.6301574199 | G80: 0.6341800746 | H80: 0.6388045378 | I80: 0.6399160956 | J80: 0.6394464677 | K80: 0.6359504038 | L80: 0.6355716513 | M80: 0.6320755874 | N80: 0.6348141462 | O80: 0.6375527051 | P80: 0.6371739526 | Q80: 0.634021634 | R80: 0.6308693153 | S80: 0.6316784417 | T80: 0.632487568 | U80: 0.6372581393 | V80: 0.6380672657 | W80: 0.634914947 | X80: 0.6396855183 | Y80: 0.6444560896 | Z80: 0.645265216 | AA80: 0.6460743423 | AB80: 0.6468834686 | AC80: 0.647692595 | AD80: 0.6485017213 | AE80: 0.6493108476 | AF80: 0.6398625247 | AG80: 0.6376280384 | AH80: 0.6426073887 | AI80: 0.647586739 | AJ80: 0.6381384161 | AK80: 0.6286900931 | AL80: 0.6264556068 | AM80: 0.6242211205 | AN80: 0.6219866342 | AO80: 0.6197521479 | AP80: 0.6103038249 | AQ80: 0.6152831752 | AR80: 0.6202625256 | AS80: 0.6180280392 | AT80: 0.6157935529
A81: 76 | B81: 0.6113437377 | C81: 0.6140640707 | D81: 0.619045789 | E81: 0.6336691149 | F81: 0.6301574199 | G81: 0.6341800746 | H81: 0.6388045378 | I81: 0.6399160956 | J81: 0.6409210502 | K81: 0.6428882592 | L81: 0.6479727796 | M81: 0.6468226773 | N81: 0.6487898863 | O81: 0.6507570953 | P81: 0.6527243043 | Q81: 0.6507226153 | R81: 0.6566438162 | S81: 0.6586035721 | T81: 0.664524773 | U81: 0.670445974 | V81: 0.6684442849 | W81: 0.6743654859 | X81: 0.6802866868 | Y81: 0.6822464427 | Z81: 0.6802447537 | AA81: 0.6782430647 | AB81: 0.6762413757 | AC81: 0.6742396867 | AD81: 0.6801608876 | AE81: 0.6821206436 | AF81: 0.6785057087 | AG81: 0.6676769372 | AH81: 0.6640620023 | AI81: 0.667660904 | AJ81: 0.6640459691 | AK81: 0.6676448709 | AL81: 0.6712437726 | AM81: 0.6604150011 | AN81: 0.6640139028 | AO81: 0.6676128046 | AP81: 0.656784033 | AQ81: 0.6531690981 | AR81: 0.6423403266 | AS81: 0.6315115551 | AT81: 0.6278966202
A82: 77 | B82: 0.6113437377 | C82: 0.6140640707 | D82: 0.619045789 | E82: 0.6336691149 | F82: 0.6301574199 | G82: 0.6341800746 | H82: 0.6388045378 | I82: 0.6399160956 | J82: 0.6415350395 | K82: 0.6440039837 | L82: 0.646472928 | M82: 0.6458245609 | N82: 0.6420588824 | O82: 0.6382932039 | P82: 0.6376448368 | Q82: 0.6350929507 | R82: 0.6325410645 | S82: 0.6379120682 | T82: 0.6353601821 | U82: 0.6407311858 | V82: 0.6381792996 | W82: 0.6395888584 | X82: 0.6449598622 | Y82: 0.6503308659 | Z82: 0.6477789797 | AA82: 0.6452270935 | AB82: 0.6466366523 | AC82: 0.6520076561 | AD82: 0.6573786598 | AE82: 0.6587882186 | AF82: 0.6619556977 | AG82: 0.6651231767 | AH82: 0.6610768192 | AI82: 0.6642442982 | AJ82: 0.6601979407 | AK82: 0.6561515831 | AL82: 0.6665328988 | AM82: 0.6769142145 | AN82: 0.6872955302 | AO82: 0.6832491727 | AP82: 0.6792028151 | AQ82: 0.6895841308 | AR82: 0.6927516099 | AS82: 0.7031329256 | AT82: 0.7063004046
A83: 78 | B83: 0.6113437377 | C83: 0.6140640707 | D83: 0.619045789 | E83: 0.6336691149 | F83: 0.6301574199 | G83: 0.6341800746 | H83: 0.6388045378 | I83: 0.6399160956 | J83: 0.6413850954 | K83: 0.6457726353 | L83: 0.6501601751 | M83: 0.6483130923 | N83: 0.6464660094 | O83: 0.6477362379 | P83: 0.6490064664 | Q83: 0.6491167928 | R83: 0.6531885641 | S83: 0.6572603354 | T83: 0.6534092168 | U83: 0.6535195432 | V83: 0.6536298696 | W83: 0.6577016409 | X83: 0.6578119673 | Y83: 0.6618837386 | Z83: 0.661994065 | AA83: 0.6581429464 | AB83: 0.6582532728 | AC83: 0.6544021542 | AD83: 0.6505510356 | AE83: 0.650661362 | AF83: 0.653903323 | AG83: 0.657145284 | AH83: 0.660387245 | AI83: 0.663629206 | AJ83: 0.6740850036 | AK83: 0.670113128 | AL83: 0.6805689256 | AM83: 0.6910247232 | AN83: 0.7014805209 | AO83: 0.6975086452 | AP83: 0.7007506062 | AQ83: 0.6967787306 | AR83: 0.6928068549 | AS83: 0.6960488159 | AT83: 0.6992907769
A84: 79 | B84: 0.6113437377 | C84: 0.6140640707 | D84: 0.619045789 | E84: 0.6336691149 | F84: 0.6301574199 | G84: 0.6341800746 | H84: 0.6388045378 | I84: 0.6399160956 | J84: 0.6414707488 | K84: 0.6439888937 | L84: 0.6465070386 | M84: 0.6521424949 | N84: 0.6515433285 | O84: 0.6540614734 | P84: 0.6565796183 | Q84: 0.6548209123 | R84: 0.6530622063 | S84: 0.6513035003 | T84: 0.6535062392 | U84: 0.6517475332 | V84: 0.6539502721 | W84: 0.660114456 | X84: 0.662317195 | Y84: 0.6684813789 | Z84: 0.6746455628 | AA84: 0.6728868568 | AB84: 0.6790510407 | AC84: 0.6852152246 | AD84: 0.6874179635 | AE84: 0.6896207024 | AF84: 0.6914119217 | AG84: 0.7004169776 | AH84: 0.6949943602 | AI84: 0.6895717428 | AJ84: 0.6985767987 | AK84: 0.7075818546 | AL84: 0.7021592372 | AM84: 0.6967366199 | AN84: 0.7057416758 | AO84: 0.7003190584 | AP84: 0.694896441 | AQ84: 0.7039014969 | AR84: 0.7129065528 | AS84: 0.7146977721 | AT84: 0.7164889913
A85: 80 | B85: 0.6113437377 | C85: 0.6140640707 | D85: 0.619045789 | E85: 0.6336691149 | F85: 0.6301574199 | G85: 0.6341800746 | H85: 0.6388045378 | I85: 0.6399160956 | J85: 0.6385821925 | K85: 0.6347437583 | L85: 0.630905324 | M85: 0.6333015125 | N85: 0.635697701 | O85: 0.6349765782 | P85: 0.6342554553 | Q85: 0.6327004532 | R85: 0.6351068962 | S85: 0.6335518941 | T85: 0.6280354471 | U85: 0.63044189 | V85: 0.6328483329 | W85: 0.6352547758 | X85: 0.6376612187 | Y85: 0.6400676616 | Z85: 0.6345512146 | AA85: 0.6290347676 | AB85: 0.6235183206 | AC85: 0.6180018735 | AD85: 0.6124854265 | AE85: 0.6109304245 | AF85: 0.6025744769 | AG85: 0.5942185294 | AH85: 0.5858625818 | AI85: 0.5775066343 | AJ85: 0.58357836 | AK85: 0.5824362491 | AL85: 0.5885079748 | AM85: 0.5801520272 | AN85: 0.5862237529 | AO85: 0.5778678054 | AP85: 0.5839395311 | AQ85: 0.5900112568 | AR85: 0.5888691459 | AS85: 0.5949408716 | AT85: 0.5937987607
A86: 81 | B86: 0.6113437377 | C86: 0.6140640707 | D86: 0.619045789 | E86: 0.6336691149 | F86: 0.6301574199 | G86: 0.6341800746 | H86: 0.6388045378 | I86: 0.6399160956 | J86: 0.6400503969 | K86: 0.6377216809 | L86: 0.6353929649 | M86: 0.6392988716 | N86: 0.6432047783 | O86: 0.6439933737 | P86: 0.644781969 | Q86: 0.6493365307 | R86: 0.6459682026 | S86: 0.6465613193 | T86: 0.6471544361 | U86: 0.6437861079 | V86: 0.6443792247 | W86: 0.6449723415 | X86: 0.6455654583 | Y86: 0.6421971301 | Z86: 0.6427902469 | AA86: 0.6394219187 | AB86: 0.6439764805 | AC86: 0.6485310422 | AD86: 0.6530856039 | AE86: 0.6536787207 | AF86: 0.6631011997 | AG86: 0.6725236787 | AH86: 0.6675184844 | AI86: 0.6697271267 | AJ86: 0.6647219324 | AK86: 0.6669305748 | AL86: 0.6691392171 | AM86: 0.6641340228 | AN86: 0.6735565018 | AO86: 0.6685513075 | AP86: 0.6779737865 | AQ86: 0.6729685922 | AR86: 0.6823910711 | AS86: 0.6845997135 | AT86: 0.6868083558
A87: 82 | B87: 0.6113437377 | C87: 0.6140640707 | D87: 0.619045789 | E87: 0.6336691149 | F87: 0.6301574199 | G87: 0.6341800746 | H87: 0.6388045378 | I87: 0.6399160956 | J87: 0.6409036424 | K87: 0.637187208 | L87: 0.6397053963 | M87: 0.6391062733 | N87: 0.6385071503 | O87: 0.6379080273 | P87: 0.6373089043 | Q87: 0.6383105772 | R87: 0.643273695 | S87: 0.640313923 | T87: 0.6452770409 | U87: 0.6462787138 | V87: 0.6472803867 | W87: 0.6443206146 | X87: 0.6413608426 | Y87: 0.6463239605 | Z87: 0.6512870783 | AA87: 0.6522887513 | AB87: 0.6532904242 | AC87: 0.6542920971 | AD87: 0.651332325 | AE87: 0.652333998 | AF87: 0.6437247903 | AG87: 0.6495432559 | AH87: 0.6481478848 | AI87: 0.6539663504 | AJ87: 0.6525709794 | AK87: 0.6439617717 | AL87: 0.6497802373 | AM87: 0.6483848663 | AN87: 0.6542033319 | AO87: 0.6528079608 | AP87: 0.6514125898 | AQ87: 0.6428033821 | AR87: 0.6341941744 | AS87: 0.6327988034 | AT87: 0.6314034323
A88: 83 | B88: 0.6113437377 | C88: 0.6140640707 | D88: 0.619045789 | E88: 0.6336691149 | F88: 0.6301574199 | G88: 0.6341800746 | H88: 0.6388045378 | I88: 0.6399160956 | J88: 0.6389964034 | K88: 0.6440822837 | L88: 0.6429335412 | M88: 0.6449021101 | N88: 0.6468706791 | O88: 0.648839248 | P88: 0.6508078169 | Q88: 0.6557914825 | R88: 0.6568137032 | S88: 0.6538744789 | T88: 0.6509352546 | U88: 0.6479960303 | V88: 0.6450568061 | W88: 0.6460790267 | X88: 0.6431398024 | Y88: 0.6441620231 | Z88: 0.6491456887 | AA88: 0.6541293544 | AB88: 0.655151575 | AC88: 0.6601352406 | AD88: 0.6651189063 | AE88: 0.6661411269 | AF88: 0.6743292109 | AG88: 0.6680896215 | AH88: 0.6762777054 | AI88: 0.670038116 | AJ88: 0.6637985267 | AK88: 0.6647727739 | AL88: 0.6657470212 | AM88: 0.6739351051 | AN88: 0.6749093524 | AO88: 0.668669763 | AP88: 0.6696440103 | AQ88: 0.6778320942 | AR88: 0.6788063415 | AS88: 0.6797805887 | AT88: 0.680754836
A89: 84 | B89: 0.6113437377 | C89: 0.6140640707 | D89: 0.619045789 | E89: 0.6336691149 | F89: 0.6301574199 | G89: 0.6341800746 | H89: 0.6388045378 | I89: 0.6399160956 | J89: 0.6405417044 | K89: 0.64287372 | L89: 0.6420884242 | M89: 0.6413031285 | N89: 0.6374005213 | O89: 0.6366152256 | P89: 0.6358299298 | Q89: 0.6364172306 | R89: 0.6409659763 | S89: 0.645514722 | T89: 0.6421405778 | U89: 0.6427278786 | V89: 0.6472766243 | W89: 0.6439024802 | X89: 0.6484512259 | Y89: 0.6490385267 | Z89: 0.6496258274 | AA89: 0.6502131282 | AB89: 0.646838984 | AC89: 0.6434648398 | AD89: 0.6440521406 | AE89: 0.6446394414 | AF89: 0.636234302 | AG89: 0.6350429993 | AH89: 0.6266378599 | AI89: 0.6182327205 | AJ89: 0.6242552545 | AK89: 0.6230639517 | AL89: 0.6146588124 | AM89: 0.6134675096 | AN89: 0.6194900435 | AO89: 0.6255125775 | AP89: 0.6243212747 | AQ89: 0.6159161354 | AR89: 0.6219386693 | AS89: 0.6279612032 | AT89: 0.6267699004
A90: 85 | B90: 0.6113437377 | C90: 0.6140640707 | D90: 0.619045789 | E90: 0.6336691149 | F90: 0.6301574199 | G90: 0.6341800746 | H90: 0.6388045378 | I90: 0.6399160956 | J90: 0.6404226009 | K90: 0.6442978425 | L90: 0.6450557727 | M90: 0.6426963915 | N90: 0.6403370103 | O90: 0.6442122519 | P90: 0.644970182 | Q90: 0.6384862531 | R90: 0.6320023241 | S90: 0.6255183951 | T90: 0.626957356 | U90: 0.624434872 | V90: 0.621912388 | W90: 0.619389904 | X90: 0.61686742 | Y90: 0.610383491 | Z90: 0.6118224519 | AA90: 0.6092999679 | AB90: 0.6107389288 | AC90: 0.6121778898 | AD90: 0.6096554057 | AE90: 0.6071329217 | AF90: 0.6050943251 | AG90: 0.6102695652 | AH90: 0.6082309686 | AI90: 0.606192372 | AJ90: 0.6185814487 | AK90: 0.6165428521 | AL90: 0.6289319288 | AM90: 0.6268933322 | AN90: 0.6392824089 | AO90: 0.6444576489 | AP90: 0.649632889 | AQ90: 0.6620219657 | AR90: 0.6671972057 | AS90: 0.6795862824 | AT90: 0.6847615225
A91: 86 | B91: 0.6113437377 | C91: 0.6140640707 | D91: 0.619045789 | E91: 0.6336691149 | F91: 0.6301574199 | G91: 0.6341800746 | H91: 0.6388045378 | I91: 0.6399160956 | J91: 0.6384644912 | K91: 0.6372727896 | L91: 0.6423157108 | M91: 0.6442413205 | N91: 0.6430496189 | O91: 0.64809254 | P91: 0.6500181498 | Q91: 0.648232482 | R91: 0.6464468143 | S91: 0.6406997016 | T91: 0.6389140338 | U91: 0.641089811 | V91: 0.6393041432 | W91: 0.6414799204 | X91: 0.6396942527 | Y91: 0.6418700299 | Z91: 0.6400843621 | AA91: 0.6343372494 | AB91: 0.6325515816 | AC91: 0.6268044689 | AD91: 0.6250188011 | AE91: 0.6232331334 | AF91: 0.6189538197 | AG91: 0.6074606694 | AH91: 0.5959675191 | AI91: 0.5916882054 | AJ91: 0.5874088918 | AK91: 0.5903434147 | AL91: 0.5788502644 | AM91: 0.5673571141 | AN91: 0.5702916371 | AO91: 0.5732261601 | AP91: 0.5617330098 | AQ91: 0.5646675327 | AR91: 0.5603882191 | AS91: 0.5633227421 | AT91: 0.5590434284
A92: 87 | B92: 0.6113437377 | C92: 0.6140640707 | D92: 0.619045789 | E92: 0.6336691149 | F92: 0.6301574199 | G92: 0.6341800746 | H92: 0.6388045378 | I92: 0.6399160956 | J92: 0.6404877038 | K92: 0.6392147454 | L92: 0.6379417869 | M92: 0.6397861399 | N92: 0.63539587 | O92: 0.6341229116 | P92: 0.6328499531 | Q92: 0.6319815917 | R92: 0.6271517853 | S92: 0.6262834239 | T92: 0.6293765074 | U92: 0.624546701 | V92: 0.6276397846 | W92: 0.6307328681 | X92: 0.6338259516 | Y92: 0.6329575902 | Z92: 0.6281277838 | AA92: 0.6272594224 | AB92: 0.622429616 | AC92: 0.6215612546 | AD92: 0.6206928932 | AE92: 0.6198245318 | AF92: 0.6212427734 | AG92: 0.6154471784 | AH92: 0.61686542 | AI92: 0.611069825 | AJ92: 0.6124880666 | AK92: 0.6211201448 | AL92: 0.6153245498 | AM92: 0.6167427914 | AN92: 0.6181610331 | AO92: 0.6267931113 | AP92: 0.6282113529 | AQ92: 0.6296295946 | AR92: 0.6310478362 | AS92: 0.6396799144 | AT92: 0.6410981561
A93: 88 | B93: 0.6113437377 | C93: 0.6140640707 | D93: 0.619045789 | E93: 0.6336691149 | F93: 0.6301574199 | G93: 0.6341800746 | H93: 0.6388045378 | I93: 0.6399160956 | J93: 0.6401178146 | K93: 0.6400055399 | L93: 0.6398932653 | M93: 0.6397809906 | N93: 0.6427860273 | O93: 0.6395564413 | P93: 0.6394441666 | Q93: 0.6422424722 | R93: 0.6450407779 | S93: 0.6478390836 | T93: 0.6506373892 | U93: 0.6534356949 | V93: 0.6562340005 | W93: 0.6590323062 | X93: 0.6618306119 | Y93: 0.6606674726 | Z93: 0.6674272232 | AA93: 0.6702255289 | AB93: 0.6730238345 | AC93: 0.6758221402 | AD93: 0.6786204458 | AE93: 0.6814187515 | AF93: 0.6825484439 | AG93: 0.6908919729 | AH93: 0.6920216653 | AI93: 0.6931513577 | AJ93: 0.6942810502 | AK93: 0.6954107426 | AL93: 0.696540435 | AM93: 0.6904562907 | AN93: 0.6987998198 | AO93: 0.7071433488 | AP93: 0.7010592046 | AQ93: 0.7094027336 | AR93: 0.7033185894 | AS93: 0.6972344452 | AT93: 0.6983641376
A94: 89 | B94: 0.6113437377 | C94: 0.6140640707 | D94: 0.619045789 | E94: 0.6336691149 | F94: 0.6301574199 | G94: 0.6341800746 | H94: 0.6388045378 | I94: 0.6399160956 | J94: 0.6388416061 | K94: 0.6382240739 | L94: 0.6407238531 | M94: 0.640106321 | N94: 0.6363714774 | O94: 0.6357539453 | P94: 0.6351364131 | Q94: 0.6408861126 | R94: 0.6466358121 | S94: 0.6523855116 | T94: 0.6502123212 | U94: 0.6520005758 | V94: 0.6498273854 | W94: 0.6555770849 | X94: 0.6534038945 | Y94: 0.6551921491 | Z94: 0.6530189587 | AA94: 0.6508457682 | AB94: 0.6526340228 | AC94: 0.6544222774 | AD94: 0.6601719769 | AE94: 0.6619602314 | AF94: 0.6558642107 | AG94: 0.64976819 | AH94: 0.6364583326 | AI94: 0.6375761485 | AJ94: 0.6242662912 | AK94: 0.6109564338 | AL94: 0.6120742497 | AM94: 0.6131920656 | AN94: 0.6070960449 | AO94: 0.6082138608 | AP94: 0.6093316767 | AQ94: 0.5960218194 | AR94: 0.582711962 | AS94: 0.5766159413 | AT94: 0.5705199206
A95: 90 | B95: 0.6113437377 | C95: 0.6140640707 | D95: 0.619045789 | E95: 0.6336691149 | F95: 0.6301574199 | G95: 0.6341800746 | H95: 0.6388045378 | I95: 0.6399160956 | J95: 0.6400870224 | K95: 0.6400620927 | L95: 0.6369198516 | M95: 0.636894922 | N95: 0.6368699923 | O95: 0.639962374 | P95: 0.6399374443 | Q95: 0.6434071941 | R95: 0.6389540539 | S95: 0.6424238037 | T95: 0.6458935534 | U95: 0.6454018582 | V95: 0.644910163 | W95: 0.6404570229 | X95: 0.6399653277 | Y95: 0.6355121875 | Z95: 0.6389819373 | AA95: 0.6384902421 | AB95: 0.6379985469 | AC95: 0.6335454067 | AD95: 0.6330537115 | AE95: 0.6325620163 | AF95: 0.6379556677 | AG95: 0.6505631558 | AH95: 0.6487429707 | AI95: 0.6541366221 | AJ95: 0.6523164369 | AK95: 0.6504962518 | AL95: 0.6486760666 | AM95: 0.6468558814 | AN95: 0.6594633695 | AO95: 0.6720708576 | AP95: 0.6846783457 | AQ95: 0.6972858338 | AR95: 0.7026794852 | AS95: 0.7080731367 | AT95: 0.7134667881
A96: 91 | B96: 0.6113437377 | C96: 0.6140640707 | D96: 0.619045789 | E96: 0.6336691149 | F96: 0.6301574199 | G96: 0.6341800746 | H96: 0.6388045378 | I96: 0.6399160956 | J96: 0.639959631 | K96: 0.641049625 | L96: 0.6452569304 | M96: 0.643229613 | N96: 0.6443196071 | O96: 0.6454096011 | P96: 0.6464995951 | Q96: 0.6449006071 | R96: 0.6472630641 | S96: 0.649625521 | T96: 0.644065088 | U96: 0.646427545 | V96: 0.6487900019 | W96: 0.6511524589 | X96: 0.6495534708 | Y96: 0.6439930379 | Z96: 0.6384326049 | AA96: 0.6368336169 | AB96: 0.6312731839 | AC96: 0.625712751 | AD96: 0.6241137629 | AE96: 0.6225147749 | AF96: 0.6314364066 | AG96: 0.6259303651 | AH96: 0.6276381601 | AI96: 0.6365597918 | AJ96: 0.6454814235 | AK96: 0.6544030553 | AL96: 0.6488970137 | AM96: 0.6578186454 | AN96: 0.6667402771 | AO96: 0.6612342355 | AP96: 0.655728194 | AQ96: 0.6502221524 | AR96: 0.6519299475 | AS96: 0.6464239059 | AT96: 0.648131701
A97: 92 | B97: 0.6113437377 | C97: 0.6140640707 | D97: 0.619045789 | E97: 0.6336691149 | F97: 0.6301574199 | G97: 0.6341800746 | H97: 0.6388045378 | I97: 0.6399160956 | J97: 0.6390820976 | K97: 0.6404021852 | L97: 0.6386049615 | M97: 0.6368077377 | N97: 0.6412451367 | O97: 0.6456825357 | P97: 0.6470026233 | Q97: 0.6483975723 | R97: 0.6497925213 | S97: 0.6511874703 | T97: 0.6486209744 | U97: 0.6460544784 | V97: 0.6474494274 | W97: 0.6448829315 | X97: 0.6462778805 | Y97: 0.6516342744 | Z97: 0.6490677785 | AA97: 0.6544241724 | AB97: 0.6597805664 | AC97: 0.6651369603 | AD97: 0.6665319093 | AE97: 0.6679268583 | AF97: 0.6595949047 | AG97: 0.6656906244 | AH97: 0.6573586708 | AI97: 0.6562405539 | AJ97: 0.6479086003 | AK97: 0.6467904833 | AL97: 0.6384585298 | AM97: 0.6301265762 | AN97: 0.6362222958 | AO97: 0.6423180155 | AP97: 0.6484137352 | AQ97: 0.6545094549 | AR97: 0.6606051746 | AS97: 0.652273221 | AT97: 0.651155104
A98: 93 | B98: 0.6113437377 | C98: 0.6140640707 | D98: 0.619045789 | E98: 0.6336691149 | F98: 0.6301574199 | G98: 0.6341800746 | H98: 0.6388045378 | I98: 0.6399160956 | J98: 0.6397596545 | K98: 0.6419033947 | L98: 0.6409298235 | M98: 0.6430735636 | N98: 0.6483346152 | O98: 0.6504783554 | P98: 0.6526220956 | Q98: 0.6486770923 | R98: 0.644732089 | S98: 0.6487099757 | T98: 0.6447649724 | U98: 0.6447814141 | V98: 0.6408364109 | W98: 0.6448142975 | X98: 0.6448307392 | Y98: 0.640885736 | Z98: 0.6448636226 | AA98: 0.6488415093 | AB98: 0.644896506 | AC98: 0.6488743926 | AD98: 0.6528522793 | AE98: 0.652868721 | AF98: 0.6464246054 | AG98: 0.6471943264 | AH98: 0.655177884 | AI98: 0.655947605 | AJ98: 0.6495034894 | AK98: 0.6502732104 | AL98: 0.658256768 | AM98: 0.6518126524 | AN98: 0.6525823734 | AO98: 0.6461382577 | AP98: 0.6396941421 | AQ98: 0.6476776997 | AR98: 0.6556612574 | AS98: 0.663644815 | AT98: 0.664414536
A99: 94 | B99: 0.6113437377 | C99: 0.6140640707 | D99: 0.619045789 | E99: 0.6336691149 | F99: 0.6301574199 | G99: 0.6341800746 | H99: 0.6388045378 | I99: 0.6399160956 | J99: 0.6384470003 | K99: 0.6406019132 | L99: 0.642756826 | M99: 0.6417944275 | N99: 0.6470666518 | O99: 0.6492215647 | P99: 0.6513764775 | Q99: 0.6483546292 | R99: 0.6453327808 | S99: 0.6383494875 | T99: 0.6353276391 | U99: 0.6362672357 | V99: 0.6332453873 | W99: 0.626262094 | X99: 0.6232402456 | Y99: 0.6241798422 | Z99: 0.6211579938 | AA99: 0.6141747005 | AB99: 0.6151142971 | AC99: 0.6081310038 | AD99: 0.6090706003 | AE99: 0.606048752 | AF99: 0.5956402812 | AG99: 0.5852318104 | AH99: 0.5820371762 | AI99: 0.5716287054 | AJ99: 0.5756479079 | AK99: 0.5796671104 | AL99: 0.5692586396 | AM99: 0.5732778421 | AN99: 0.5700832079 | AO99: 0.5596747371 | AP99: 0.556480103 | AQ99: 0.5532854688 | AR99: 0.5573046713 | AS99: 0.5613238738 | AT99: 0.5581292396
A100: 95 | B100: 0.6113437377 | C100: 0.6140640707 | D100: 0.619045789 | E100: 0.6336691149 | F100: 0.6301574199 | G100: 0.6341800746 | H100: 0.6388045378 | I100: 0.6399160956 | J100: 0.6393659057 | K100: 0.640984682 | L100: 0.639486147 | M100: 0.637987612 | N100: 0.6333717656 | O100: 0.6318732306 | P100: 0.6303746955 | Q100: 0.6246464532 | R100: 0.6268411007 | S100: 0.6211128583 | T100: 0.6233075058 | U100: 0.6215407084 | V100: 0.619773911 | W100: 0.6219685585 | X100: 0.6202017611 | Y100: 0.6184349636 | Z100: 0.6166681662 | AA100: 0.6149013688 | AB100: 0.6091731264 | AC100: 0.607406329 | AD100: 0.6056395315 | AE100: 0.6038727341 | AF100: 0.6138469457 | AG100: 0.6166073206 | AH100: 0.6121538589 | AI100: 0.6149142338 | AJ100: 0.6176746087 | AK100: 0.6204349836 | AL100: 0.6159815219 | AM100: 0.6187418968 | AN100: 0.6142884351 | AO100: 0.6242626466 | AP100: 0.6198091849 | AQ100: 0.6225695598 | AR100: 0.6325437714 | AS100: 0.6425179829 | AT100: 0.6452783578
A101: 96 | B101: 0.6113437377 | C101: 0.6140640707 | D101: 0.619045789 | E101: 0.6336691149 | F101: 0.6301574199 | G101: 0.6341800746 | H101: 0.6388045378 | I101: 0.6399160956 | J101: 0.6388223101 | K101: 0.6368178464 | L101: 0.6410480056 | M101: 0.6452781648 | N101: 0.6432737011 | O101: 0.6443865489 | P101: 0.6454993967 | Q101: 0.6386731588 | R101: 0.6397698108 | S101: 0.6369050178 | T101: 0.6380016698 | U101: 0.6390983219 | V101: 0.6322720839 | W101: 0.625445846 | X101: 0.626542498 | Y101: 0.6197162601 | Z101: 0.6128900222 | AA101: 0.6100252293 | AB101: 0.6111218813 | AC101: 0.6042956434 | AD101: 0.6053922954 | AE101: 0.6025275024 | AF101: 0.6075653573 | AG101: 0.6053893756 | AH101: 0.6104272304 | AI101: 0.622678922 | AJ101: 0.6205029402 | AK101: 0.6183269584 | AL101: 0.6161509767 | AM101: 0.6284026682 | AN101: 0.6406543597 | AO101: 0.6529060512 | AP101: 0.6651577428 | AQ101: 0.662981761 | AR101: 0.6680196159 | AS101: 0.6730574708 | AT101: 0.6780953256
A102: 97 | B102: 0.6113437377 | C102: 0.6140640707 | D102: 0.619045789 | E102: 0.6336691149 | F102: 0.6301574199 | G102: 0.6341800746 | H102: 0.6388045378 | I102: 0.6399160956 | J102: 0.6401281412 | K102: 0.638109208 | L102: 0.6423248976 | M102: 0.6434232759 | N102: 0.6445216541 | O102: 0.6456200324 | P102: 0.6467184106 | Q102: 0.6455467443 | R102: 0.6404136331 | S102: 0.6432034118 | T102: 0.6420317456 | U102: 0.6408600793 | V102: 0.6396884131 | W102: 0.6345553019 | X102: 0.6333836356 | Y102: 0.6282505244 | Z102: 0.6310403031 | AA102: 0.6338300818 | AB102: 0.6366198605 | AC102: 0.6354481942 | AD102: 0.630315083 | AE102: 0.6291434168 | AF102: 0.6399256375 | AG102: 0.636280185 | AH102: 0.6470624057 | AI102: 0.6506307898 | AJ102: 0.6614130105 | AK102: 0.657767558 | AL102: 0.6613359421 | AM102: 0.6576904896 | AN102: 0.654045037 | AO102: 0.6503995845 | AP102: 0.6539679686 | AQ102: 0.6647501893 | AR102: 0.6683185734 | AS102: 0.6791007942 | AT102: 0.6826691783
A103: 98 | B103: 0.6113437377 | C103: 0.6140640707 | D103: 0.619045789 | E103: 0.6336691149 | F103: 0.6301574199 | G103: 0.6341800746 | H103: 0.6388045378 | I103: 0.6399160956 | J103: 0.6404846281 | K103: 0.6441833937 | L103: 0.6447648478 | M103: 0.6422289906 | N103: 0.6396931333 | O103: 0.6433918989 | P103: 0.643973353 | Q103: 0.6476414793 | R103: 0.6513096055 | S103: 0.6470548419 | T103: 0.6428000783 | U103: 0.6464682045 | V103: 0.6461748858 | W103: 0.6498430121 | X103: 0.6535111384 | Y103: 0.6492563748 | Z103: 0.6450016111 | AA103: 0.6407468475 | AB103: 0.6364920838 | AC103: 0.6401602101 | AD103: 0.6398668914 | AE103: 0.6395735727 | AF103: 0.6467689556 | AG103: 0.6467505019 | AH103: 0.6395182115 | AI103: 0.6394997577 | AJ103: 0.6466951406 | AK103: 0.6466766868 | AL103: 0.6538720697 | AM103: 0.6466397793 | AN103: 0.6394074889 | AO103: 0.6393890352 | AP103: 0.6393705814 | AQ103: 0.6465659643 | AR103: 0.6465475105 | AS103: 0.6393152201 | AT103: 0.6392967664
A104: 99 | B104: 0.6113437377 | C104: 0.6140640707 | D104: 0.619045789 | E104: 0.6336691149 | F104: 0.6301574199 | G104: 0.6341800746 | H104: 0.6388045378 | I104: 0.6399160956 | J104: 0.6395312607 | K104: 0.6365603393 | L104: 0.6335894178 | M104: 0.6368531191 | N104: 0.6401168204 | O104: 0.6402632103 | P104: 0.6404096002 | Q104: 0.6372528955 | R104: 0.6340961908 | S104: 0.6349009311 | T104: 0.6396671163 | U104: 0.6404718565 | V104: 0.6452380417 | W104: 0.6500042269 | X104: 0.6547704121 | Y104: 0.6555751524 | Z104: 0.6563798926 | AA104: 0.6532231879 | AB104: 0.6500664832 | AC104: 0.6508712235 | AD104: 0.6516759637 | AE104: 0.652480704 | AF104: 0.652982442 | AG104: 0.6534841801 | AH104: 0.6539859181 | AI104: 0.6617014928 | AJ104: 0.6549893942 | AK104: 0.6482772956 | AL104: 0.641565197 | AM104: 0.6492807717 | AN104: 0.6569963464 | AO104: 0.6574980845 | AP104: 0.6507859859 | AQ104: 0.6585015606 | AR104: 0.6662171353 | AS104: 0.6595050367 | AT104: 0.6600067747
A105: 100 | B105: 0.6113437377 | C105: 0.6140640707 | D105: 0.619045789 | E105: 0.6336691149 | F105: 0.6301574199 | G105: 0.6341800746 | H105: 0.6388045378 | I105: 0.6399160956 | J105: 0.6388538363 | K105: 0.6444140185 | L105: 0.6437395778 | M105: 0.6430651372 | N105: 0.6486253193 | O105: 0.65106819 | P105: 0.6535110608 | Q105: 0.6554677815 | R105: 0.6534630572 | S105: 0.655419778 | T105: 0.6613379436 | U105: 0.6632946644 | V105: 0.66921283 | W105: 0.6711695508 | X105: 0.6731262715 | Y105: 0.6711215472 | Z105: 0.669116823 | AA105: 0.6671120988 | AB105: 0.6730302644 | AC105: 0.6789484301 | AD105: 0.6809051508 | AE105: 0.6828618716 | AF105: 0.685168835 | AG105: 0.6946896351 | AH105: 0.6897827619 | AI105: 0.6920897254 | AJ105: 0.6943966888 | AK105: 0.6967036523 | AL105: 0.7062244524 | AM105: 0.7013175792 | AN105: 0.696410706 | AO105: 0.6915038328 | AP105: 0.7010246329 | AQ105: 0.7033315964 | AR105: 0.7128523965 | AS105: 0.71515936 | AT105: 0.7174663234
A106: 101 | B106: 0.6113437377 | C106: 0.6140640707 | D106: 0.619045789 | E106: 0.6336691149 | F106: 0.6301574199 | G106: 0.6341800746 | H106: 0.6388045378 | I106: 0.6399160956 | J106: 0.6405131545 | K106: 0.638202316 | L106: 0.6358914775 | M106: 0.6398152618 | N106: 0.6437390461 | O106: 0.644545519 | P106: 0.6453519919 | Q106: 0.6496050853 | R106: 0.6498967338 | S106: 0.6501883822 | T106: 0.6504800307 | U106: 0.6468102342 | V106: 0.6471018827 | W106: 0.6434320862 | X106: 0.6476851796 | Y106: 0.6479768281 | Z106: 0.6443070316 | AA106: 0.6406372352 | AB106: 0.6409288836 | AC106: 0.6451819771 | AD106: 0.6494350705 | AE106: 0.649726719 | AF106: 0.650743643 | AG106: 0.651760567 | AH106: 0.6455636544 | AI106: 0.6465805784 | AJ106: 0.6475975024 | AK106: 0.655828263 | AL106: 0.656845187 | AM106: 0.6506482744 | AN106: 0.6516651984 | AO106: 0.6454682858 | AP106: 0.6392713732 | AQ106: 0.6475021338 | AR106: 0.6557328945 | AS106: 0.6639636551 | AT106: 0.6649805791
A107: 102 | B107: 0.6113437377 | C107: 0.6140640707 | D107: 0.619045789 | E107: 0.6336691149 | F107: 0.6301574199 | G107: 0.6341800746 | H107: 0.6388045378 | I107: 0.6399160956 | J107: 0.6394898793 | K107: 0.6357287625 | L107: 0.635084957 | M107: 0.6375584629 | N107: 0.6400319688 | O107: 0.636270852 | P107: 0.6356270465 | Q107: 0.6327850551 | R107: 0.6339045086 | S107: 0.6350239621 | T107: 0.6361434157 | U107: 0.6333014242 | V107: 0.6383823227 | W107: 0.6434632212 | X107: 0.6406212298 | Y107: 0.6457021283 | Z107: 0.6428601368 | AA107: 0.6479410353 | AB107: 0.6490604889 | AC107: 0.6501799424 | AD107: 0.6512993959 | AE107: 0.6524188495 | AF107: 0.6496311693 | AG107: 0.6396296525 | AH107: 0.6368419724 | AI107: 0.6340542922 | AJ107: 0.6384804487 | AK107: 0.6356927685 | AL107: 0.6256912517 | AM107: 0.6301174082 | AN107: 0.6273297281 | AO107: 0.6245420479 | AP107: 0.6217543677 | AQ107: 0.6189666876 | AR107: 0.6089651708 | AS107: 0.6133913273 | AT107: 0.6106036471
A108: 103 | B108: 0.6113437377 | C108: 0.6140640707 | D108: 0.619045789 | E108: 0.6336691149 | F108: 0.6301574199 | G108: 0.6341800746 | H108: 0.6388045378 | I108: 0.6399160956 | J108: 0.6396366575 | K108: 0.6358610099 | L108: 0.6352026736 | M108: 0.6376616488 | N108: 0.6338860012 | O108: 0.6363449763 | P108: 0.6356866401 | Q108: 0.6320138128 | R108: 0.6323024305 | S108: 0.6365524931 | T108: 0.6408025557 | U108: 0.6371297285 | V108: 0.6413797911 | W108: 0.6456298537 | X108: 0.6419570264 | Y108: 0.6422456441 | Z108: 0.6385728168 | AA108: 0.6388614345 | AB108: 0.6351886072 | AC108: 0.6394386698 | AD108: 0.6397272875 | AE108: 0.6400159051 | AF108: 0.6362569929 | AG108: 0.6469257539 | AH108: 0.6431668416 | AI108: 0.646621766 | AJ108: 0.657290527 | AK108: 0.6535316148 | AL108: 0.6569865392 | AM108: 0.6676553002 | AN108: 0.6711102246 | AO108: 0.6817789856 | AP108: 0.6780200733 | AQ108: 0.6814749977 | AR108: 0.6849299221 | AS108: 0.6883848465 | AT108: 0.6918397709
A109: 104 | B109: 0.6113437377 | C109: 0.6140640707 | D109: 0.619045789 | E109: 0.6336691149 | F109: 0.6301574199 | G109: 0.6341800746 | H109: 0.6388045378 | I109: 0.6399160956 | J109: 0.6395209354 | K109: 0.634621023 | L109: 0.6328384221 | M109: 0.6310558211 | N109: 0.6323905315 | O109: 0.6306079306 | P109: 0.6288253296 | Q109: 0.6238175106 | R109: 0.6227711366 | S109: 0.6256862076 | T109: 0.6286012786 | U109: 0.6315163495 | V109: 0.6344314205 | W109: 0.6373464915 | X109: 0.6363001175 | Y109: 0.6352537435 | Z109: 0.6302459245 | AA109: 0.6252381056 | AB109: 0.6202302866 | AC109: 0.6191839126 | AD109: 0.6141760937 | AE109: 0.6131297197 | AF109: 0.6122488695 | AG109: 0.6113680193 | AH109: 0.6249148424 | AI109: 0.6384616655 | AJ109: 0.6520084886 | AK109: 0.6583414751 | AL109: 0.6646744615 | AM109: 0.6637936114 | AN109: 0.6701265978 | AO109: 0.6692457476 | AP109: 0.6755787341 | AQ109: 0.6819117206 | AR109: 0.6954585437 | AS109: 0.7017915301 | AT109: 0.7081245166
A110: 105 | B110: 0.6113437377 | C110: 0.6140640707 | D110: 0.619045789 | E110: 0.6336691149 | F110: 0.6301574199 | G110: 0.6341800746 | H110: 0.6388045378 | I110: 0.6399160956 | J110: 0.6409474816 | K110: 0.6383163639 | L110: 0.641919869 | M110: 0.6424060627 | N110: 0.6428922564 | O110: 0.6433784501 | P110: 0.6438646438 | Q110: 0.6423656628 | R110: 0.6448281267 | S110: 0.6433291457 | T110: 0.6457916096 | U110: 0.6522155185 | V110: 0.6507165375 | W110: 0.6571404464 | X110: 0.6596029103 | Y110: 0.6620653743 | Z110: 0.6605663933 | AA110: 0.6669903022 | AB110: 0.6654913211 | AC110: 0.67191523 | AD110: 0.6783391389 | AE110: 0.6808016029 | AF110: 0.6730100292 | AG110: 0.6724322922 | AH110: 0.6790683919 | AI110: 0.6784906549 | AJ110: 0.6851267545 | AK110: 0.6773351809 | AL110: 0.6695436072 | AM110: 0.6689658702 | AN110: 0.6756019699 | AO110: 0.6822380695 | AP110: 0.6816603325 | AQ110: 0.6738687589 | AR110: 0.6660771853 | AS110: 0.6727132849 | AT110: 0.6721355479
A111: 106 | B111: 0.6113437377 | C111: 0.6140640707 | D111: 0.619045789 | E111: 0.6336691149 | F111: 0.6301574199 | G111: 0.6341800746 | H111: 0.6388045378 | I111: 0.6399160956 | J111: 0.6384810363 | K111: 0.633491439 | L111: 0.6347364643 | M111: 0.6328641783 | N111: 0.6309918923 | O111: 0.6291196063 | P111: 0.6272473203 | Q111: 0.6266712172 | R111: 0.6260951141 | S111: 0.625519011 | T111: 0.6289043528 | U111: 0.6283282497 | V111: 0.6237907016 | W111: 0.6192531535 | X111: 0.6226384953 | Y111: 0.6181009473 | Z111: 0.6175248441 | AA111: 0.616948741 | AB111: 0.6203340828 | AC111: 0.6197579797 | AD111: 0.6191818766 | AE111: 0.6186057735 | AF111: 0.6077395134 | AG111: 0.60408709 | AH111: 0.6004346665 | AI111: 0.6039960797 | AJ111: 0.6075574929 | AK111: 0.6111189061 | AL111: 0.6002526461 | AM111: 0.589386386 | AN111: 0.5785201259 | AO111: 0.5748677025 | AP111: 0.5640014424 | AQ111: 0.5675628556 | AR111: 0.5639104322 | AS111: 0.5674718454 | AT111: 0.5638194219
A112: 107 | B112: 0.6113437377 | C112: 0.6140640707 | D112: 0.619045789 | E112: 0.6336691149 | F112: 0.6301574199 | G112: 0.6341800746 | H112: 0.6388045378 | I112: 0.6399160956 | J112: 0.6408859022 | K112: 0.6464988091 | L112: 0.6489944045 | M112: 0.6546073113 | N112: 0.6539855954 | O112: 0.6533638794 | P112: 0.6558594749 | Q112: 0.652774541 | R112: 0.6536510521 | S112: 0.6545275631 | T112: 0.6593655192 | U112: 0.6642034752 | V112: 0.6611185413 | W112: 0.6619950524 | X112: 0.6628715635 | Y112: 0.6677095195 | Z112: 0.6646245856 | AA112: 0.6615396517 | AB112: 0.6663776078 | AC112: 0.6672541188 | AD112: 0.6681306299 | AE112: 0.669007141 | AF112: 0.6638232776 | AG112: 0.6730670875 | AH112: 0.6678832241 | AI112: 0.677127034 | AJ112: 0.6863708439 | AK112: 0.6884008172 | AL112: 0.6904307904 | AM112: 0.685246927 | AN112: 0.6872769003 | AO112: 0.6893068735 | AP112: 0.6913368468 | AQ112: 0.69336682 | AR112: 0.6881829567 | AS112: 0.6974267665 | AT112: 0.6994567398
A113: 108 | B113: 0.6113437377 | C113: 0.6140640707 | D113: 0.619045789 | E113: 0.6336691149 | F113: 0.6301574199 | G113: 0.6341800746 | H113: 0.6388045378 | I113: 0.6399160956 | J113: 0.6412994927 | K113: 0.6375599012 | L113: 0.6400549325 | M113: 0.6394326524 | N113: 0.6388103723 | O113: 0.6381880921 | P113: 0.637565812 | Q113: 0.6412296293 | R113: 0.6409320016 | S113: 0.6366729289 | T113: 0.6363753012 | U113: 0.6321162285 | V113: 0.6278571558 | W113: 0.6275595281 | X113: 0.6272619004 | Y113: 0.6309257176 | Z113: 0.6345895349 | AA113: 0.6303304622 | AB113: 0.6300328345 | AC113: 0.6336966517 | AD113: 0.633399024 | AE113: 0.6331013963 | AF113: 0.637674155 | AG113: 0.6350330771 | AH113: 0.6251781625 | AI113: 0.6225370845 | AJ113: 0.6271098432 | AK113: 0.6316826019 | AL113: 0.6290415239 | AM113: 0.6336142826 | AN113: 0.6381870413 | AO113: 0.6283321267 | AP113: 0.6184772121 | AQ113: 0.6086222975 | AR113: 0.598767383 | AS113: 0.596126305 | AT113: 0.5934852271
A114: 109 | B114: 0.6113437377 | C114: 0.6140640707 | D114: 0.619045789 | E114: 0.6336691149 | F114: 0.6301574199 | G114: 0.6341800746 | H114: 0.6388045378 | I114: 0.6399160956 | J114: 0.6395080113 | K114: 0.6372474752 | L114: 0.6381042505 | M114: 0.6420783372 | N114: 0.6398178011 | O114: 0.6437918877 | P114: 0.644648663 | Q114: 0.6473191381 | R114: 0.6460281682 | S114: 0.6486986433 | T114: 0.6434462284 | U114: 0.6461167035 | V114: 0.6408642887 | W114: 0.6395733188 | X114: 0.634320904 | Y114: 0.6369913791 | Z114: 0.6317389642 | AA114: 0.6304479943 | AB114: 0.6251955795 | AC114: 0.6239046096 | AD114: 0.6265750847 | AE114: 0.6252841148 | AF114: 0.6287137737 | AG114: 0.6177157593 | AH114: 0.6139315815 | AI114: 0.6101474037 | AJ114: 0.6063632259 | AK114: 0.6025790481 | AL114: 0.5915810337 | AM114: 0.5877968559 | AN114: 0.5840126781 | AO114: 0.5802285003 | AP114: 0.5836581592 | AQ114: 0.5798739814 | AR114: 0.5833036402 | AS114: 0.5723056258 | AT114: 0.568521448
A115: 110 | B115: 0.6113437377 | C115: 0.6140640707 | D115: 0.619045789 | E115: 0.6336691149 | F115: 0.6301574199 | G115: 0.6341800746 | H115: 0.6388045378 | I115: 0.6399160956 | J115: 0.6410345939 | K115: 0.6410698304 | L115: 0.641105067 | M115: 0.6411403036 | N115: 0.6411755401 | O115: 0.6412107767 | P115: 0.6412460132 | Q115: 0.6372170848 | R115: 0.6411110463 | S115: 0.6410435629 | T115: 0.6409760794 | U115: 0.640908596 | V115: 0.6408411125 | W115: 0.6407736291 | X115: 0.6446675906 | Y115: 0.6406386622 | Z115: 0.6445326237 | AA115: 0.6405036953 | AB115: 0.6404362118 | AC115: 0.6364072834 | AD115: 0.6403012449 | AE115: 0.6402337615 | AF115: 0.6399791463 | AG115: 0.6325106945 | AH115: 0.6250422427 | AI115: 0.6320014642 | AJ115: 0.6389606857 | AK115: 0.6314922339 | AL115: 0.6384514553 | AM115: 0.6381968402 | AN115: 0.637942225 | AO115: 0.6449014465 | AP115: 0.6446468313 | AQ115: 0.6443922162 | AR115: 0.6369237643 | AS115: 0.6366691492 | AT115: 0.636414534
A116: 111 | B116: 0.6113437377 | C116: 0.6140640707 | D116: 0.619045789 | E116: 0.6336691149 | F116: 0.6301574199 | G116: 0.6341800746 | H116: 0.6388045378 | I116: 0.6399160956 | J116: 0.6401073935 | K116: 0.6371634631 | L116: 0.6404541555 | M116: 0.6406275365 | N116: 0.6376836062 | O116: 0.6409742986 | P116: 0.6411476796 | Q116: 0.6338775052 | R116: 0.6305687758 | S116: 0.6272600464 | T116: 0.623951317 | U116: 0.6246040326 | V116: 0.6212953031 | W116: 0.6140251288 | X116: 0.6067549544 | Y116: 0.60740767 | Z116: 0.6001374956 | AA116: 0.5928673212 | AB116: 0.5935200368 | AC116: 0.5941727523 | AD116: 0.5948254679 | AE116: 0.5915167385 | AF116: 0.6010065624 | AG116: 0.596068713 | AH116: 0.5983447002 | AI116: 0.6078345241 | AJ116: 0.6028966747 | AK116: 0.5979588254 | AL116: 0.593020976 | AM116: 0.5880831266 | AN116: 0.5903591139 | AO116: 0.5998489378 | AP116: 0.602124925 | AQ116: 0.6116147489 | AR116: 0.6211045728 | AS116: 0.6233805601 | AT116: 0.6256565473
A117: 112 | B117: 0.6113437377 | C117: 0.6140640707 | D117: 0.619045789 | E117: 0.6336691149 | F117: 0.6301574199 | G117: 0.6341800746 | H117: 0.6388045378 | I117: 0.6399160956 | J117: 0.6409101029 | K117: 0.6430725064 | L117: 0.64523491 | M117: 0.6411626908 | N117: 0.6402077829 | O117: 0.6361355637 | P117: 0.6351806559 | Q117: 0.6385259979 | R117: 0.63394845 | S117: 0.637293792 | T117: 0.636677689 | U117: 0.6321001411 | V117: 0.6314840381 | W117: 0.6269064902 | X117: 0.6302518322 | Y117: 0.6335971742 | Z117: 0.6369425161 | AA117: 0.6323649682 | AB117: 0.6277874203 | AC117: 0.6232098724 | AD117: 0.6265552144 | AE117: 0.6259391114 | AF117: 0.6204057978 | AG117: 0.6220863208 | AH117: 0.6237668438 | AI117: 0.6182335301 | AJ117: 0.6199140531 | AK117: 0.6288084128 | AL117: 0.6232750991 | AM117: 0.6177417855 | AN117: 0.6266361451 | AO117: 0.6355305047 | AP117: 0.6444248644 | AQ117: 0.6388915507 | AR117: 0.6477859104 | AS117: 0.6494664334 | AT117: 0.6511469564
A118: 113 | B118: 0.6113437377 | C118: 0.6140640707 | D118: 0.619045789 | E118: 0.6336691149 | F118: 0.6301574199 | G118: 0.6341800746 | H118: 0.6388045378 | I118: 0.6399160956 | J118: 0.6400760185 | K118: 0.6437988803 | L118: 0.6475217421 | M118: 0.6450099811 | N118: 0.6424982201 | O118: 0.6431037705 | P118: 0.643709321 | Q118: 0.6404653933 | R118: 0.6451443556 | S118: 0.6458618729 | T118: 0.6465793902 | U118: 0.6472969075 | V118: 0.6480144248 | W118: 0.6487319421 | X118: 0.6534109044 | Y118: 0.6580898667 | Z118: 0.654845939 | AA118: 0.6516020114 | AB118: 0.6483580837 | AC118: 0.653037046 | AD118: 0.6537545633 | AE118: 0.6544720806 | AF118: 0.6508190855 | AG118: 0.6471660903 | AH118: 0.6579407684 | AI118: 0.6542877733 | AJ118: 0.6578486148 | AK118: 0.6614094562 | AL118: 0.6649702977 | AM118: 0.6685311392 | AN118: 0.6793058173 | AO118: 0.6900804954 | AP118: 0.6864275003 | AQ118: 0.6972021784 | AR118: 0.7007630199 | AS118: 0.7043238614 | AT118: 0.7078847028
A119: 114 | B119: 0.6113437377 | C119: 0.6140640707 | D119: 0.619045789 | E119: 0.6336691149 | F119: 0.6301574199 | G119: 0.6341800746 | H119: 0.6388045378 | I119: 0.6399160956 | J119: 0.6403642892 | K119: 0.645585319 | L119: 0.6445717261 | M119: 0.6435581332 | N119: 0.6456618517 | O119: 0.6508828816 | P119: 0.6529866001 | Q119: 0.6563942574 | R119: 0.6518790248 | S119: 0.6473637922 | T119: 0.6507714495 | U119: 0.6541791069 | V119: 0.6575867642 | W119: 0.6530715316 | X119: 0.652517744 | Y119: 0.6519639563 | Z119: 0.6474487237 | AA119: 0.6468949361 | AB119: 0.6503025934 | AC119: 0.6497488058 | AD119: 0.6452335732 | AE119: 0.6446797856 | AF119: 0.6408299416 | AG119: 0.6514077709 | AH119: 0.6475579269 | AI119: 0.6581357562 | AJ119: 0.6542859122 | AK119: 0.6504360682 | AL119: 0.6538000608 | AM119: 0.6643778901 | AN119: 0.6749557194 | AO119: 0.6783197121 | AP119: 0.6744698681 | AQ119: 0.6778338607 | AR119: 0.6811978534 | AS119: 0.6917756827 | AT119: 0.6951396753
A120: 115 | B120: 0.6113437377 | C120: 0.6140640707 | D120: 0.619045789 | E120: 0.6336691149 | F120: 0.6301574199 | G120: 0.6341800746 | H120: 0.6388045378 | I120: 0.6399160956 | J120: 0.640152649 | K120: 0.6383604181 | L120: 0.6396854986 | M120: 0.6410105791 | N120: 0.6361010368 | O120: 0.6311914945 | P120: 0.6293992636 | Q120: 0.6346976455 | R120: 0.6320731374 | S120: 0.6294486294 | T120: 0.6268241213 | U120: 0.6281610583 | V120: 0.6294979952 | W120: 0.6347963771 | X120: 0.636133314 | Y120: 0.6414316959 | Z120: 0.6467300777 | AA120: 0.6441055697 | AB120: 0.6454425066 | AC120: 0.6467794435 | AD120: 0.6481163804 | AE120: 0.6494533174 | AF120: 0.6456244987 | AG120: 0.6345818433 | AH120: 0.6379668612 | AI120: 0.6341380425 | AJ120: 0.6303092238 | AK120: 0.6192665685 | AL120: 0.6154377497 | AM120: 0.6188227677 | AN120: 0.614993949 | AO120: 0.6111651302 | AP120: 0.6001224749 | AQ120: 0.6035074928 | AR120: 0.5924648375 | AS120: 0.5958498554 | AT120: 0.5920210367
A121: 116 | B121: 0.6113437377 | C121: 0.6140640707 | D121: 0.619045789 | E121: 0.6336691149 | F121: 0.6301574199 | G121: 0.6341800746 | H121: 0.6388045378 | I121: 0.6399160956 | J121: 0.6396649922 | K121: 0.6371606548 | L121: 0.6377736287 | M121: 0.641503914 | N121: 0.642116888 | O121: 0.6427298619 | P121: 0.6433428359 | Q121: 0.6399267934 | R121: 0.636510751 | S121: 0.6330947085 | T121: 0.6336401111 | U121: 0.6381469585 | V121: 0.6347309161 | W121: 0.6352763186 | X121: 0.6358217211 | Y121: 0.6363671236 | Z121: 0.6329510812 | AA121: 0.6374579287 | AB121: 0.6419647761 | AC121: 0.6464716236 | AD121: 0.6509784711 | AE121: 0.6515238736 | AF121: 0.6469889782 | AG121: 0.6424540828 | AH121: 0.6379191875 | AI121: 0.6405981287 | AJ121: 0.6504909066 | AK121: 0.6531698479 | AL121: 0.6630626258 | AM121: 0.6657415671 | AN121: 0.6612066717 | AO121: 0.663885613 | AP121: 0.6737783909 | AQ121: 0.6836711688 | AR121: 0.68635011 | AS121: 0.6890290513 | AT121: 0.6917079925
A122: 117 | B122: 0.6113437377 | C122: 0.6140640707 | D122: 0.619045789 | E122: 0.6336691149 | F122: 0.6301574199 | G122: 0.6341800746 | H122: 0.6388045378 | I122: 0.6399160956 | J122: 0.6387630626 | K122: 0.6436011259 | L122: 0.6422045665 | M122: 0.6439253185 | N122: 0.6456460705 | O122: 0.6473668225 | P122: 0.6490875745 | Q122: 0.6465042214 | R122: 0.6518437583 | S122: 0.6492604053 | T122: 0.6545999422 | U122: 0.6599394791 | V122: 0.665279016 | W122: 0.6626956629 | X122: 0.6601123099 | Y122: 0.6575289569 | Z122: 0.6628684938 | AA122: 0.6642465857 | AB122: 0.6616632327 | AC122: 0.6670027696 | AD122: 0.6683808615 | AE122: 0.6697589534 | AF122: 0.6692646806 | AG122: 0.6687704078 | AH122: 0.6610622983 | AI122: 0.6605680255 | AJ122: 0.652859916 | AK122: 0.6451518065 | AL122: 0.6446575337 | AM122: 0.6441632608 | AN122: 0.643668988 | AO122: 0.6503885518 | AP122: 0.649894279 | AQ122: 0.6566138428 | AR122: 0.65611957 | AS122: 0.6628391338 | AT122: 0.6623448609
A123: 118 | B123: 0.6113437377 | C123: 0.6140640707 | D123: 0.619045789 | E123: 0.6336691149 | F123: 0.6301574199 | G123: 0.6341800746 | H123: 0.6388045378 | I123: 0.6399160956 | J123: 0.6397029114 | K123: 0.6366816114 | L123: 0.6367776227 | M123: 0.636873634 | N123: 0.6400869567 | O123: 0.640182968 | P123: 0.6402789794 | Q123: 0.6428796728 | R123: 0.6454803662 | S123: 0.6441196147 | T123: 0.6427588632 | U123: 0.6453595566 | V123: 0.6439988051 | W123: 0.6426380536 | X123: 0.649200192 | Y123: 0.6557623304 | Z123: 0.6623244688 | AA123: 0.6609637173 | AB123: 0.6675258557 | AC123: 0.6740879941 | AD123: 0.6766886875 | AE123: 0.679289381 | AF123: 0.6704858996 | AG123: 0.6616824183 | AH123: 0.652878937 | AI123: 0.6512892924 | AJ123: 0.6496996477 | AK123: 0.648110003 | AL123: 0.6465203584 | AM123: 0.637716877 | AN123: 0.643341069 | AO123: 0.6417514243 | AP123: 0.6401617797 | AQ123: 0.6457859716 | AR123: 0.6514101636 | AS123: 0.6570343556 | AT123: 0.6554447109
A124: 119 | B124: 0.6113437377 | C124: 0.6140640707 | D124: 0.619045789 | E124: 0.6336691149 | F124: 0.6301574199 | G124: 0.6341800746 | H124: 0.6388045378 | I124: 0.6399160956 | J124: 0.6403287864 | K124: 0.6445646291 | L124: 0.6425658491 | M124: 0.6468016918 | N124: 0.6479202231 | O124: 0.645921443 | P124: 0.6470399744 | Q124: 0.6489796691 | R124: 0.6509193639 | S124: 0.6488976137 | T124: 0.6468758635 | U124: 0.6448541133 | V124: 0.6467938081 | W124: 0.6487335029 | X124: 0.6427503077 | Y124: 0.6367671126 | Z124: 0.6387068073 | AA124: 0.6327236122 | AB124: 0.626740417 | AC124: 0.6207572219 | AD124: 0.6187354717 | AE124: 0.6167137215 | AF124: 0.6222894243 | AG124: 0.6206512904 | AH124: 0.6117993199 | AI124: 0.6029473494 | AJ124: 0.6085230522 | AK124: 0.5996710817 | AL124: 0.5980329479 | AM124: 0.6036086507 | AN124: 0.5947566802 | AO124: 0.5859047097 | AP124: 0.5914804125 | AQ124: 0.5898422786 | AR124: 0.5882041447 | AS124: 0.5937798475 | AT124: 0.5921417137
A125: 120 | B125: 0.6113437377 | C125: 0.6140640707 | D125: 0.619045789 | E125: 0.6336691149 | F125: 0.6301574199 | G125: 0.6341800746 | H125: 0.6388045378 | I125: 0.6399160956 | J125: 0.6403892073 | K125: 0.6378653761 | L125: 0.6415761677 | M125: 0.6421696479 | N125: 0.6427631281 | O125: 0.6433566083 | P125: 0.6439500885 | Q125: 0.642333971 | R125: 0.6407178536 | S125: 0.6391017362 | T125: 0.6454085087 | U125: 0.6517152811 | V125: 0.6500991637 | W125: 0.6564059362 | X125: 0.6587512637 | Y125: 0.6650580362 | Z125: 0.6674033637 | AA125: 0.6697486912 | AB125: 0.6720940188 | AC125: 0.6704779013 | AD125: 0.6767846738 | AE125: 0.6791300013 | AF125: 0.6716571109 | AG125: 0.6786118936 | AH125: 0.6711390032 | AI125: 0.6636661127 | AJ125: 0.6706208955 | AK125: 0.6703618416 | AL125: 0.6628889511 | AM125: 0.6698437339 | AN125: 0.6695846801 | AO125: 0.6693256262 | AP125: 0.676280409 | AQ125: 0.6688075185 | AR125: 0.6757623013 | AS125: 0.6755032474 | AT125: 0.6752441936
... 156 more rows

Sheet POP
B2: =AVERAGE(B6:B1005) -> 50688.53882 | C2: =AVERAGE(C6:C1005) -> 51148.87147 | D2: 51613.38469 | E2: 52082.11642 | F2: 52555.10498 | G2: 53032.38903 | H2: 53514.00759 | I2: 54000 | J2: 54490.406 | K2: 54918.911 | L2: 55347.41599 | M2: 55775.92099 | N2: 56204.42598 | O2: 56632.93098 | P2: 56985.18873 | Q2: 57337.44648 | R2: 57689.70423 | S2: 58041.96198 | T2: 58394.21972 | U2: 58716.14698 | V2: 59038.07424 | W2: 59360.0015 | X2: 59681.92875 | Y2: 60003.85601 | Z2: 60308.97848 | AA2: 60614.10095 | AB2: 60919.22342 | AC2: 61224.34589 | AD2: 61529.46836 | AE2: 61817.63405 | AF2: 62105.79973 | AG2: 62393.96541 | AH2: 62682.1311 | AI2: 62970.29678 | AJ2: 63241.10108 | AK2: 63511.90538 | AL2: 63782.70968 | AM2: 64053.51398 | AN2: 64324.31828 | AO2: 64573.62885 | AP2: 64822.93942 | AQ2: 65072.24998 | AR2: 65321.56055 | AS2: 65570.87112
C3: =C2/B2-1 -> 0.009081592593 | D3: =D2/C2-1 -> 0.009081592593 | E3: 0.009081592593 | F3: 0.009081592593 | G3: 0.009081592593 | H3: 0.009081592593 | I3: 0.009081592593 | J3: 0.009081592593 | K3: 0.00786386132 | L3: 0.007802503514 | M3: 0.007742095784 | N3: 0.007682616235 | O3: 0.007624043631 | P3: 0.006220016214 | Q3: 0.006181566767 | R3: 0.006143589761 | S3: 0.006106076528 | T3: 0.006069018637 | U3: 0.005512998696 | V3: 0.005482772182 | W3: 0.005452875304 | X3: 0.005423302714 | Y3: 0.00539404915 | Z3: 0.005085047711 | AA3: 0.00505932082 | AB3: 0.005033852943 | AC3: 0.005008640189 | AD3: 0.004983678735 | AE3: 0.004683376777 | AF3: 0.004661545005 | AG3: 0.004639915831 | AH3: 0.004618486441 | AI3: 0.004597254086 | AJ3: 0.004300508549 | AK3: 0.004282093373 | AL3: 0.004263835228 | AM3: 0.004245732127 | AN3: 0.0042277821 | AO3: 0.003875836932 | AP3: 0.003860872818 | AQ3: 0.00384602381 | AR3: 0.003831288578 | AS3: 0.003816665838
A4: =Index!B41 -> SIM_POP
B5: 2007 | C5: 2008 | D5: 2009 | E5: 2010 | F5: 2011 | G5: 2012 | H5: 2013 | I5: 2014 | J5: 2015 | K5: 2016 | L5: 2017 | M5: 2018 | N5: 2019 | O5: 2020 | P5: 2021 | Q5: 2022 | R5: 2023 | S5: 2024 | T5: 2025 | U5: 2026 | V5: 2027 | W5: 2028 | X5: 2029 | Y5: 2030 | Z5: 2031 | AA5: 2032 | AB5: 2033 | AC5: 2034 | AD5: 2035 | AE5: 2036 | AF5: 2037 | AG5: 2038 | AH5: 2039 | AI5: 2040 | AJ5: 2041 | AK5: 2042 | AL5: 2043 | AM5: 2044 | AN5: 2045 | AO5: 2046 | AP5: 2047 | AQ5: 2048 | AR5: 2049 | AS5: 2050
A6: 1 | B6: =C6/D6*C6 -> 50688.53882 | C6: 51148.87147 | D6: 51613.38469 | E6: 52082.11642 | F6: 52555.10498 | G6: =H2/I2*H2 -> 53032.38903 | H6: =I2/J2*I2 -> 53514.00759 | I6: 54000 | J6: 54490.406 | K6: 54880.7176 | L6: 55271.02921 | M6: 55661.34081 | N6: 56051.65242 | O6: 56441.96402 | P6: 56751.39038 | Q6: 57060.81673 | R6: 57370.24308 | S6: 57679.66944 | T6: 57989.09579 | U6: 58272.88158 | V6: 58556.66736 | W6: 58840.45314 | X6: 59124.23893 | Y6: 59408.02471 | Z6: 59674.00887 | AA6: 59939.99302 | AB6: 60205.97718 | AC6: 60471.96133 | AD6: 60737.94549 | AE6: 60974.46437 | AF6: 61210.98326 | AG6: 61447.50214 | AH6: 61684.02103 | AI6: 61920.53991 | AJ6: 62221.35872 | AK6: 62522.17753 | AL6: 62822.99633 | AM6: 63123.81514 | AN6: 63424.63394 | AO6: 63698.89915 | AP6: 63973.16436 | AQ6: 64247.42957 | AR6: 64521.69478 | AS6: 64795.95998
A7: =A6+1 -> 2 | B7: =B6 -> 50688.53882 | C7: =C6 -> 51148.87147 | D7: 51613.38469 | E7: 52082.11642 | F7: 52555.10498 | G7: 53032.38903 | H7: 53514.00759 | I7: 54000 | J7: 54490.406 | K7: 54832.81222 | L7: 55175.21844 | M7: 55517.62465 | N7: 55860.03087 | O7: 56202.43709 | P7: 56495.90178 | Q7: 56789.36647 | R7: 57082.83116 | S7: 57376.29585 | T7: 57669.76054 | U7: 57915.84143 | V7: 58161.92233 | W7: 58408.00323 | X7: 58654.08413 | Y7: 58900.16502 | Z7: 59233.87218 | AA7: 59567.57934 | AB7: 59901.2865 | AC7: 60234.99365 | AD7: 60568.70081 | AE7: 60751.38893 | AF7: 60934.07704 | AG7: 61116.76516 | AH7: 61299.45327 | AI7: 61482.14139 | AJ7: 61545.6567 | AK7: 61609.17201 | AL7: 61672.68732 | AM7: 61736.20263 | AN7: 61799.71795 | AO7: 61889.91426 | AP7: 61980.11058 | AQ7: 62070.30689 | AR7: 62160.50321 | AS7: 62250.69953
A8: =A7+1 -> 3 | B8: =B7 -> 50688.53882 | C8: 51148.87147 | D8: 51613.38469 | E8: 52082.11642 | F8: 52555.10498 | G8: 53032.38903 | H8: 53514.00759 | I8: 54000 | J8: 54490.406 | K8: 54867.7749 | L8: 55245.14379 | M8: 55622.51269 | N8: 55999.88159 | O8: 56377.25048 | P8: 56778.26848 | Q8: 57179.28647 | R8: 57580.30447 | S8: 57981.32246 | T8: 58382.34046 | U8: 58724.57959 | V8: 59066.81872 | W8: 59409.05785 | X8: 59751.29698 | Y8: 60093.53611 | Z8: 60233.734 | AA8: 60373.93189 | AB8: 60514.12978 | AC8: 60654.32768 | AD8: 60794.52557 | AE8: 60926.04719 | AF8: 61057.56881 | AG8: 61189.09043 | AH8: 61320.61205 | AI8: 61452.13367 | AJ8: 61534.15916 | AK8: 61616.18466 | AL8: 61698.21015 | AM8: 61780.23564 | AN8: 61862.26113 | AO8: 61987.1416 | AP8: 62112.02206 | AQ8: 62236.90252 | AR8: 62361.78299 | AS8: 62486.66345
A9: 4 | B9: 50688.53882 | C9: 51148.87147 | D9: 51613.38469 | E9: 52082.11642 | F9: 52555.10498 | G9: 53032.38903 | H9: 53514.00759 | I9: 54000 | J9: 54490.406 | K9: 54855.79782 | L9: 55221.18964 | M9: 55586.58146 | N9: 55951.97328 | O9: 56317.3651 | P9: 56670.89048 | Q9: 57024.41587 | R9: 57377.94125 | S9: 57731.46663 | T9: 58084.99202 | U9: 58317.71112 | V9: 58550.43022 | W9: 58783.14932 | X9: 59015.86842 | Y9: 59248.58752 | Z9: 59660.12516 | AA9: 60071.6628 | AB9: 60483.20044 | AC9: 60894.73809 | AD9: 61306.27573 | AE9: 61618.72263 | AF9: 61931.16954 | AG9: 62243.61644 | AH9: 62556.06335 | AI9: 62868.51025 | AJ9: 63144.57217 | AK9: 63420.63409 | AL9: 63696.69601 | AM9: 63972.75792 | AN9: 64248.81984 | AO9: 64424.04779 | AP9: 64599.27575 | AQ9: 64774.5037 | AR9: 64949.73165 | AS9: 65124.9596
A10: 5 | B10: 50688.53882 | C10: 51148.87147 | D10: 51613.38469 | E10: 52082.11642 | F10: 52555.10498 | G10: 53032.38903 | H10: 53514.00759 | I10: 54000 | J10: 54490.406 | K10: 55096.40232 | L10: 55702.39863 | M10: 56308.39495 | N10: 56914.39127 | O10: 57520.38759 | P10: 57932.98039 | Q10: 58345.57318 | R10: 58758.16598 | S10: 59170.75878 | T10: 59583.35158 | U10: 59825.42088 | V10: 60067.49017 | W10: 60309.55947 | X10: 60551.62877 | Y10: 60793.69807 | Z10: 61046.7893 | AA10: 61299.88053 | AB10: 61552.97176 | AC10: 61806.06299 | AD10: 62059.15421 | AE10: 62225.07572 | AF10: 62390.99723 | AG10: 62556.91874 | AH10: 62722.84024 | AI10: 62888.76175 | AJ10: 63032.96989 | AK10: 63177.17802 | AL10: 63321.38616 | AM10: 63465.59429 | AN10: 63609.80243 | AO10: 63832.42768 | AP10: 64055.05294 | AQ10: 64277.67819 | AR10: 64500.30345 | AS10: 64722.9287
A11: 6 | B11: 50688.53882 | C11: 51148.87147 | D11: 51613.38469 | E11: 52082.11642 | F11: 52555.10498 | G11: 53032.38903 | H11: 53514.00759 | I11: 54000 | J11: 54490.406 | K11: 55112.97693 | L11: 55735.54786 | M11: 56358.11879 | N11: 56980.68973 | O11: 57603.26066 | P11: 58293.04011 | Q11: 58982.81956 | R11: 59672.59901 | S11: 60362.37846 | T11: 61052.15791 | U11: 61725.09086 | V11: 62398.02381 | W11: 63070.95676 | X11: 63743.88971 | Y11: 64416.82266 | Z11: 65165.07036 | AA11: 65913.31806 | AB11: 66661.56576 | AC11: 67409.81346 | AD11: 68158.06116 | AE11: 68908.91996 | AF11: 69659.77876 | AG11: 70410.63755 | AH11: 71161.49635 | AI11: 71912.35515 | AJ11: 72592.81372 | AK11: 73273.27229 | AL11: 73953.73087 | AM11: 74634.18944 | AN11: 75314.64801 | AO11: 75957.06659 | AP11: 76599.48517 | AQ11: 77241.90375 | AR11: 77884.32233 | AS11: 78526.74091
A12: 7 | B12: 50688.53882 | C12: 51148.87147 | D12: 51613.38469 | E12: 52082.11642 | F12: 52555.10498 | G12: 53032.38903 | H12: 53514.00759 | I12: 54000 | J12: 54490.406 | K12: 54882.01844 | L12: 55273.63088 | M12: 55665.24333 | N12: 56056.85577 | O12: 56448.46821 | P12: 56786.81312 | Q12: 57125.15803 | R12: 57463.50294 | S12: 57801.84785 | T12: 58140.19276 | U12: 58545.27202 | V12: 58950.35128 | W12: 59355.43053 | X12: 59760.50979 | Y12: 60165.58905 | Z12: 60518.75883 | AA12: 60871.9286 | AB12: 61225.09838 | AC12: 61578.26815 | AD12: 61931.43793 | AE12: 62129.38306 | AF12: 62327.3282 | AG12: 62525.27333 | AH12: 62723.21847 | AI12: 62921.1636 | AJ12: 63152.10584 | AK12: 63383.04808 | AL12: 63613.99032 | AM12: 63844.93256 | AN12: 64075.8748 | AO12: 64315.5912 | AP12: 64555.3076 | AQ12: 64795.024 | AR12: 65034.74039 | AS12: 65274.45679
A13: 8 | B13: 50688.53882 | C13: 51148.87147 | D13: 51613.38469 | E13: 52082.11642 | F13: 52555.10498 | G13: 53032.38903 | H13: 53514.00759 | I13: 54000 | J13: 54490.406 | K13: 54946.41741 | L13: 55402.42882 | M13: 55858.44024 | N13: 56314.45165 | O13: 56770.46306 | P13: 57182.69623 | Q13: 57594.9294 | R13: 58007.16256 | S13: 58419.39573 | T13: 58831.6289 | U13: 59310.59409 | V13: 59789.55927 | W13: 60268.52446 | X13: 60747.48964 | Y13: 61226.45483 | Z13: 61424.19696 | AA13: 61621.9391 | AB13: 61819.68124 | AC13: 62017.42338 | AD13: 62215.16552 | AE13: 62360.25844 | AF13: 62505.35135 | AG13: 62650.44427 | AH13: 62795.53718 | AI13: 62940.6301 | AJ13: 62989.96618 | AK13: 63039.30226 | AL13: 63088.63834 | AM13: 63137.97442 | AN13: 63187.3105 | AO13: 63250.69182 | AP13: 63314.07313 | AQ13: 63377.45444 | AR13: 63440.83576 | AS13: 63504.21707
A14: 9 | B14: 50688.53882 | C14: 51148.87147 | D14: 51613.38469 | E14: 52082.11642 | F14: 52555.10498 | G14: 53032.38903 | H14: 53514.00759 | I14: 54000 | J14: 54490.406 | K14: 54953.7897 | L14: 55417.17339 | M14: 55880.55709 | N14: 56343.94079 | O14: 56807.32448 | P14: 57231.8018 | Q14: 57656.27912 | R14: 58080.75643 | S14: 58505.23375 | T14: 58929.71107 | U14: 59243.32168 | V14: 59556.9323 | W14: 59870.54291 | X14: 60184.15353 | Y14: 60497.76414 | Z14: 60744.04227 | AA14: 60990.32039 | AB14: 61236.59852 | AC14: 61482.87664 | AD14: 61729.15477 | AE14: 62016.65061 | AF14: 62304.14644 | AG14: 62591.64228 | AH14: 62879.13812 | AI14: 63166.63396 | AJ14: 63449.89895 | AK14: 63733.16393 | AL14: 64016.42892 | AM14: 64299.6939 | AN14: 64582.95888 | AO14: 64750.81014 | AP14: 64918.6614 | AQ14: 65086.51266 | AR14: 65254.36392 | AS14: 65422.21517
A15: 10 | B15: 50688.53882 | C15: 51148.87147 | D15: 51613.38469 | E15: 52082.11642 | F15: 52555.10498 | G15: 53032.38903 | H15: 53514.00759 | I15: 54000 | J15: 54490.406 | K15: 54888.22603 | L15: 55286.04605 | M15: 55683.86608 | N15: 56081.68611 | O15: 56479.50613 | P15: 56878.5338 | Q15: 57277.56147 | R15: 57676.58913 | S15: 58075.6168 | T15: 58474.64446 | U15: 58919.56306 | V15: 59364.48165 | W15: 59809.40025 | X15: 60254.31884 | Y15: 60699.23744 | Z15: 61163.89466 | AA15: 61628.55188 | AB15: 62093.20911 | AC15: 62557.86633 | AD15: 63022.52356 | AE15: 63498.10515 | AF15: 63973.68675 | AG15: 64449.26835 | AH15: 64924.84995 | AI15: 65400.43155 | AJ15: 65811.44543 | AK15: 66222.4593 | AL15: 66633.47318 | AM15: 67044.48706 | AN15: 67455.50093 | AO15: 67954.02393 | AP15: 68452.54692 | AQ15: 68951.06991 | AR15: 69449.59291 | AS15: 69948.1159
A16: 11 | B16: 50688.53882 | C16: 51148.87147 | D16: 51613.38469 | E16: 52082.11642 | F16: 52555.10498 | G16: 53032.38903 | H16: 53514.00759 | I16: 54000 | J16: 54490.406 | K16: 55027.37897 | L16: 55564.35194 | M16: 56101.32491 | N16: 56638.29789 | O16: 57175.27086 | P16: 57695.4015 | Q16: 58215.53215 | R16: 58735.6628 | S16: 59255.79344 | T16: 59775.92409 | U16: 60131.5466 | V16: 60487.16911 | W16: 60842.79163 | X16: 61198.41414 | Y16: 61554.03665 | Z16: 61874.91234 | AA16: 62195.78802 | AB16: 62516.6637 | AC16: 62837.53938 | AD16: 63158.41506 | AE16: 63497.7722 | AF16: 63837.12935 | AG16: 64176.48649 | AH16: 64515.84364 | AI16: 64855.20078 | AJ16: 65299.55909 | AK16: 65743.91739 | AL16: 66188.27569 | AM16: 66632.63399 | AN16: 67076.9923 | AO16: 67508.69548 | AP16: 67940.39865 | AQ16: 68372.10183 | AR16: 68803.80501 | AS16: 69235.50819
A17: 12 | B17: 50688.53882 | C17: 51148.87147 | D17: 51613.38469 | E17: 52082.11642 | F17: 52555.10498 | G17: 53032.38903 | H17: 53514.00759 | I17: 54000 | J17: 54490.406 | K17: 55028.11547 | L17: 55565.82494 | M17: 56103.53442 | N17: 56641.24389 | O17: 57178.95336 | P17: 57483.64346 | Q17: 57788.33356 | R17: 58093.02367 | S17: 58397.71377 | T17: 58702.40387 | U17: 58741.83434 | V17: 58781.26482 | W17: 58820.69529 | X17: 58860.12576 | Y17: 58899.55624 | Z17: 58901.64389 | AA17: 58903.73154 | AB17: 58905.8192 | AC17: 58907.90685 | AD17: 58909.9945 | AE17: 58892.76248 | AF17: 58875.53045 | AG17: 58858.29843 | AH17: 58841.0664 | AI17: 58823.83437 | AJ17: 58736.97464 | AK17: 58650.11491 | AL17: 58563.25518 | AM17: 58476.39545 | AN17: 58389.53572 | AO17: 58259.69487 | AP17: 58129.85403 | AQ17: 58000.01319 | AR17: 57870.17234 | AS17: 57740.3315
A18: 13 | B18: 50688.53882 | C18: 51148.87147 | D18: 51613.38469 | E18: 52082.11642 | F18: 52555.10498 | G18: 53032.38903 | H18: 53514.00759 | I18: 54000 | J18: 54490.406 | K18: 54678.76561 | L18: 54867.12523 | M18: 55055.48484 | N18: 55243.84445 | O18: 55432.20406 | P18: 55518.65801 | Q18: 55605.11195 | R18: 55691.5659 | S18: 55778.01984 | T18: 55864.47379 | U18: 56000.90033 | V18: 56137.32687 | W18: 56273.75341 | X18: 56410.17995 | Y18: 56546.60649 | Z18: 56701.87231 | AA18: 56857.13814 | AB18: 57012.40396 | AC18: 57167.66978 | AD18: 57322.9356 | AE18: 57473.35622 | AF18: 57623.77684 | AG18: 57774.19745 | AH18: 57924.61807 | AI18: 58075.03869 | AJ18: 58236.77863 | AK18: 58398.51857 | AL18: 58560.2585 | AM18: 58721.99844 | AN18: 58883.73838 | AO18: 58968.23389 | AP18: 59052.72941 | AQ18: 59137.22492 | AR18: 59221.72044 | AS18: 59306.21595
A19: 14 | B19: 50688.53882 | C19: 51148.87147 | D19: 51613.38469 | E19: 52082.11642 | F19: 52555.10498 | G19: 53032.38903 | H19: 53514.00759 | I19: 54000 | J19: 54490.406 | K19: 54912.15374 | L19: 55333.90147 | M19: 55755.64921 | N19: 56177.39695 | O19: 56599.14468 | P19: 56954.82876 | Q19: 57310.51284 | R19: 57666.19692 | S19: 58021.881 | T19: 58377.56508 | U19: 58590.04464 | V19: 58802.5242 | W19: 59015.00377 | X19: 59227.48333 | Y19: 59439.96289 | Z19: 59741.68565 | AA19: 60043.40841 | AB19: 60345.13117 | AC19: 60646.85394 | AD19: 60948.5767 | AE19: 61344.62709 | AF19: 61740.67749 | AG19: 62136.72789 | AH19: 62532.77829 | AI19: 62928.82869 | AJ19: 63301.15049 | AK19: 63673.47229 | AL19: 64045.79409 | AM19: 64418.11589 | AN19: 64790.43769 | AO19: 65170.34655 | AP19: 65550.25541 | AQ19: 65930.16427 | AR19: 66310.07313 | AS19: 66689.98198
A20: 15 | B20: 50688.53882 | C20: 51148.87147 | D20: 51613.38469 | E20: 52082.11642 | F20: 52555.10498 | G20: 53032.38903 | H20: 53514.00759 | I20: 54000 | J20: 54490.406 | K20: 55044.01184 | L20: 55597.61768 | M20: 56151.22353 | N20: 56704.82937 | O20: 57258.43521 | P20: 57940.83176 | Q20: 58623.2283 | R20: 59305.62485 | S20: 59988.0214 | T20: 60670.41795 | U20: 61416.73889 | V20: 62163.05984 | W20: 62909.38079 | X20: 63655.70174 | Y20: 64402.02269 | Z20: 65149.23726 | AA20: 65896.45184 | AB20: 66643.66641 | AC20: 67390.88099 | AD20: 68138.09556 | AE20: 68744.53526 | AF20: 69350.97496 | AG20: 69957.41465 | AH20: 70563.85435 | AI20: 71170.29405 | AJ20: 71707.4983 | AK20: 72244.70255 | AL20: 72781.9068 | AM20: 73319.11105 | AN20: 73856.3153 | AO20: 74310.73036 | AP20: 74765.14541 | AQ20: 75219.56047 | AR20: 75673.97553 | AS20: 76128.39058
A21: 16 | B21: 50688.53882 | C21: 51148.87147 | D21: 51613.38469 | E21: 52082.11642 | F21: 52555.10498 | G21: 53032.38903 | H21: 53514.00759 | I21: 54000 | J21: 54490.406 | K21: 55012.94988 | L21: 55535.49376 | M21: 56058.03764 | N21: 56580.58152 | O21: 57103.1254 | P21: 57693.745 | Q21: 58284.36459 | R21: 58874.98419 | S21: 59465.60378 | T21: 60056.22338 | U21: 60529.87526 | V21: 61003.52714 | W21: 61477.17902 | X21: 61950.8309 | Y21: 62424.48278 | Z21: 62961.80933 | AA21: 63499.13589 | AB21: 64036.46244 | AC21: 64573.789 | AD21: 65111.11555 | AE21: 65562.32259 | AF21: 66013.52962 | AG21: 66464.73666 | AH21: 66915.94369 | AI21: 67367.15073 | AJ21: 67806.79444 | AK21: 68246.43815 | AL21: 68686.08187 | AM21: 69125.72558 | AN21: 69565.36929 | AO21: 70008.85382 | AP21: 70452.33835 | AQ21: 70895.82288 | AR21: 71339.30741 | AS21: 71782.79194
A22: 17 | B22: 50688.53882 | C22: 51148.87147 | D22: 51613.38469 | E22: 52082.11642 | F22: 52555.10498 | G22: 53032.38903 | H22: 53514.00759 | I22: 54000 | J22: 54490.406 | K22: 54793.88985 | L22: 55097.37369 | M22: 55400.85754 | N22: 55704.34139 | O22: 56007.82523 | P22: 56272.07102 | Q22: 56536.31682 | R22: 56800.56261 | S22: 57064.8084 | T22: 57329.05419 | U22: 57506.73026 | V22: 57684.40633 | W22: 57862.0824 | X22: 58039.75846 | Y22: 58217.43453 | Z22: 58405.60842 | AA22: 58593.78232 | AB22: 58781.95621 | AC22: 58970.1301 | AD22: 59158.304 | AE22: 59267.86242 | AF22: 59377.42084 | AG22: 59486.97926 | AH22: 59596.53768 | AI22: 59706.09609 | AJ22: 59853.14404 | AK22: 60000.19198 | AL22: 60147.23992 | AM22: 60294.28786 | AN22: 60441.3358 | AO22: 60535.90249 | AP22: 60630.46917 | AQ22: 60725.03586 | AR22: 60819.60255 | AS22: 60914.16923
A23: 18 | B23: 50688.53882 | C23: 51148.87147 | D23: 51613.38469 | E23: 52082.11642 | F23: 52555.10498 | G23: 53032.38903 | H23: 53514.00759 | I23: 54000 | J23: 54490.406 | K23: 55009.91861 | L23: 55529.43123 | M23: 56048.94384 | N23: 56568.45646 | O23: 57087.96907 | P23: 57583.23631 | Q23: 58078.50354 | R23: 58573.77077 | S23: 59069.038 | T23: 59564.30523 | U23: 59849.8387 | V23: 60135.37217 | W23: 60420.90564 | X23: 60706.43911 | Y23: 60991.97258 | Z23: 61231.20383 | AA23: 61470.43509 | AB23: 61709.66634 | AC23: 61948.8976 | AD23: 62188.12886 | AE23: 62407.23852 | AF23: 62626.34818 | AG23: 62845.45784 | AH23: 63064.5675 | AI23: 63283.67717 | AJ23: 63557.32271 | AK23: 63830.96825 | AL23: 64104.61379 | AM23: 64378.25933 | AN23: 64651.90487 | AO23: 64833.45239 | AP23: 65014.99991 | AQ23: 65196.54743 | AR23: 65378.09495 | AS23: 65559.64247
A24: 19 | B24: =B23 -> 50688.53882 | C24: 51148.87147 | D24: 51613.38469 | E24: 52082.11642 | F24: 52555.10498 | G24: 53032.38903 | H24: 53514.00759 | I24: 54000 | J24: 54490.406 | K24: 54958.20756 | L24: 55426.00913 | M24: 55893.81069 | N24: 56361.61226 | O24: 56829.41382 | P24: 57153.36008 | Q24: 57477.30634 | R24: 57801.2526 | S24: 58125.19886 | T24: 58449.14513 | U24: 58816.9966 | V24: 59184.84807 | W24: 59552.69955 | X24: 59920.55102 | Y24: 60288.40249 | Z24: 60632.87714 | AA24: 60977.35178 | AB24: 61321.82643 | AC24: 61666.30108 | AD24: 62010.77572 | AE24: 62328.43999 | AF24: 62646.10426 | AG24: 62963.76853 | AH24: 63281.43279 | AI24: 63599.09706 | AJ24: 63898.29087 | AK24: 64197.48467 | AL24: 64496.67848 | AM24: 64795.87228 | AN24: 65095.06609 | AO24: 65373.41844 | AP24: 65651.77079 | AQ24: 65930.12313 | AR24: 66208.47548 | AS24: 66486.82783
A25: 20 | B25: 50688.53882 | C25: 51148.87147 | D25: 51613.38469 | E25: 52082.11642 | F25: 52555.10498 | G25: 53032.38903 | H25: 53514.00759 | I25: 54000 | J25: 54490.406 | K25: 54966.6258 | L25: 55442.8456 | M25: 55919.06539 | N25: 56395.28519 | O25: 56871.50499 | P25: 57315.71571 | Q25: 57759.92643 | R25: 58204.13715 | S25: 58648.34787 | T25: 59092.55859 | U25: 59419.08596 | V25: 59745.61333 | W25: 60072.1407 | X25: 60398.66807 | Y25: 60725.19544 | Z25: 60980.07867 | AA25: 61234.9619 | AB25: 61489.84513 | AC25: 61744.72836 | AD25: 61999.6116 | AE25: 62177.99871 | AF25: 62356.38582 | AG25: 62534.77293 | AH25: 62713.16004 | AI25: 62891.54715 | AJ25: 62934.59159 | AK25: 62977.63603 | AL25: 63020.68047 | AM25: 63063.72491 | AN25: 63106.76935 | AO25: 63123.86788 | AP25: 63140.96642 | AQ25: 63158.06495 | AR25: 63175.16349 | AS25: 63192.26202
A26: 21 | B26: 50688.53882 | C26: 51148.87147 | D26: 51613.38469 | E26: 52082.11642 | F26: 52555.10498 | G26: 53032.38903 | H26: 53514.00759 | I26: 54000 | J26: 54490.406 | K26: 54810.92877 | L26: 55131.45155 | M26: 55451.97432 | N26: 55772.4971 | O26: 56093.01987 | P26: 56349.77081 | Q26: 56606.52175 | R26: 56863.27269 | S26: 57120.02362 | T26: 57376.77456 | U26: 57685.73876 | V26: 57994.70297 | W26: 58303.66717 | X26: 58612.63137 | Y26: 58921.59557 | Z26: 59418.51428 | AA26: 59915.43299 | AB26: 60412.35169 | AC26: 60909.2704 | AD26: 61406.18911 | AE26: 61878.32845 | AF26: 62350.46779 | AG26: 62822.60712 | AH26: 63294.74646 | AI26: 63766.8858 | AJ26: 64282.47345 | AK26: 64798.06109 | AL26: 65313.64874 | AM26: 65829.23638 | AN26: 66344.82403 | AO26: 66919.8452 | AP26: 67494.86636 | AQ26: 68069.88753 | AR26: 68644.90869 | AS26: 69219.92986
A27: 22 | B27: 50688.53882 | C27: 51148.87147 | D27: 51613.38469 | E27: 52082.11642 | F27: 52555.10498 | G27: 53032.38903 | H27: 53514.00759 | I27: 54000 | J27: 54490.406 | K27: 54792.07515 | L27: 55093.7443 | M27: 55395.41344 | N27: 55697.08259 | O27: 55998.75174 | P27: 56362.85943 | Q27: 56726.96711 | R27: 57091.0748 | S27: 57455.18248 | T27: 57819.29017 | U27: 58211.95991 | V27: 58604.62964 | W27: 58997.29938 | X27: 59389.96912 | Y27: 59782.63886 | Z27: 60163.84234 | AA27: 60545.04583 | AB27: 60926.24931 | AC27: 61307.45279 | AD27: 61688.65627 | AE27: 62029.30089 | AF27: 62369.9455 | AG27: 62710.59012 | AH27: 63051.23473 | AI27: 63391.87935 | AJ27: 63949.53329 | AK27: 64507.18724 | AL27: 65064.84119 | AM27: 65622.49513 | AN27: 66180.14908 | AO27: 66812.90945 | AP27: 67445.66982 | AQ27: 68078.43019 | AR27: 68711.19056 | AS27: 69343.95093
A28: 23 | B28: 50688.53882 | C28: 51148.87147 | D28: 51613.38469 | E28: 52082.11642 | F28: 52555.10498 | G28: 53032.38903 | H28: 53514.00759 | I28: 54000 | J28: 54490.406 | K28: 54986.81392 | L28: 55483.22183 | M28: 55979.62975 | N28: 56476.03766 | O28: 56972.44558 | P28: 57429.27915 | Q28: 57886.11271 | R28: 58342.94628 | S28: 58799.77985 | T28: 59256.61341 | U28: 59485.9933 | V28: 59715.37319 | W28: 59944.75308 | X28: 60174.13297 | Y28: 60403.51286 | Z28: 60533.62498 | AA28: 60663.7371 | AB28: 60793.84922 | AC28: 60923.96134 | AD28: 61054.07346 | AE28: 61301.97677 | AF28: 61549.88008 | AG28: 61797.78339 | AH28: 62045.6867 | AI28: 62293.59001 | AJ28: 62547.03787 | AK28: 62800.48573 | AL28: 63053.93358 | AM28: 63307.38144 | AN28: 63560.8293 | AO28: 63787.52783 | AP28: 64014.22636 | AQ28: 64240.92489 | AR28: 64467.62342 | AS28: 64694.32195
A29: 24 | B29: 50688.53882 | C29: 51148.87147 | D29: 51613.38469 | E29: 52082.11642 | F29: 52555.10498 | G29: 53032.38903 | H29: 53514.00759 | I29: 54000 | J29: 54490.406 | K29: 54919.67798 | L29: 55348.94997 | M29: 55778.22195 | N29: 56207.49393 | O29: 56636.76591 | P29: 57083.15403 | Q29: 57529.54214 | R29: 57975.93026 | S29: 58422.31838 | T29: 58868.70649 | U29: 59293.80309 | V29: 59718.89968 | W29: 60143.99628 | X29: 60569.09288 | Y29: 60994.18947 | Z29: 61576.47897 | AA29: 62158.76847 | AB29: 62741.05797 | AC29: 63323.34747 | AD29: 63905.63697 | AE29: 64397.86531 | AF29: 64890.09365 | AG29: 65382.32198 | AH29: 65874.55032 | AI29: 66366.77866 | AJ29: 66963.48679 | AK29: 67560.19493 | AL29: 68156.90307 | AM29: 68753.6112 | AN29: 69350.31934 | AO29: 69778.87283 | AP29: 70207.42632 | AQ29: 70635.97981 | AR29: 71064.5333 | AS29: 71493.0868
A30: 25 | B30: 50688.53882 | C30: 51148.87147 | D30: 51613.38469 | E30: 52082.11642 | F30: 52555.10498 | G30: 53032.38903 | H30: 53514.00759 | I30: 54000 | J30: 54490.406 | K30: 55035.91733 | L30: 55581.42867 | M30: 56126.94 | N30: 56672.45133 | O30: 57217.96266 | P30: 57701.62115 | Q30: 58185.27963 | R30: 58668.93811 | S30: 59152.59659 | T30: 59636.25508 | U30: 60165.31773 | V30: 60694.38037 | W30: 61223.44302 | X30: 61752.50567 | Y30: 62281.56832 | Z30: 62929.34483 | AA30: 63577.12133 | AB30: 64224.89784 | AC30: 64872.67435 | AD30: 65520.45085 | AE30: 66221.35453 | AF30: 66922.2582 | AG30: 67623.16188 | AH30: 68324.06555 | AI30: 69024.96923 | AJ30: 69797.78774 | AK30: 70570.60624 | AL30: 71343.42475 | AM30: 72116.24326 | AN30: 72889.06176 | AO30: 73591.50833 | AP30: 74293.9549 | AQ30: 74996.40146 | AR30: 75698.84803 | AS30: 76401.29459
A31: 26 | B31: 50688.53882 | C31: 51148.87147 | D31: 51613.38469 | E31: 52082.11642 | F31: 52555.10498 | G31: 53032.38903 | H31: 53514.00759 | I31: 54000 | J31: 54490.406 | K31: 54916.72309 | L31: 55343.04018 | M31: 55769.35726 | N31: 56195.67435 | O31: 56621.99144 | P31: 56980.03439 | Q31: 57338.07735 | R31: 57696.12031 | S31: 58054.16326 | T31: 58412.20622 | U31: 58672.55958 | V31: 58932.91294 | W31: 59193.2663 | X31: 59453.61966 | Y31: 59713.97302 | Z31: 59941.98884 | AA31: 60170.00465 | AB31: 60398.02046 | AC31: 60626.03628 | AD31: 60854.05209 | AE31: 60976.99487 | AF31: 61099.93765 | AG31: 61222.88043 | AH31: 61345.82321 | AI31: 61468.76599 | AJ31: 61491.45302 | AK31: 61514.14006 | AL31: 61536.82709 | AM31: 61559.51412 | AN31: 61582.20115 | AO31: 61597.11835 | AP31: 61612.03555 | AQ31: 61626.95275 | AR31: 61641.86995 | AS31: 61656.78715
A32: 27 | B32: 50688.53882 | C32: 51148.87147 | D32: 51613.38469 | E32: 52082.11642 | F32: 52555.10498 | G32: 53032.38903 | H32: 53514.00759 | I32: 54000 | J32: 54490.406 | K32: 54886.15568 | L32: 55281.90535 | M32: 55677.65503 | N32: 56073.4047 | O32: 56469.15438 | P32: 56656.05397 | Q32: 56842.95357 | R32: 57029.85316 | S32: 57216.75275 | T32: 57403.65235 | U32: 57729.96984 | V32: 58056.28734 | W32: 58382.60483 | X32: 58708.92232 | Y32: 59035.23982 | Z32: 59432.08289 | AA32: 59828.92596 | AB32: 60225.76903 | AC32: 60622.61211 | AD32: 61019.45518 | AE32: 61474.74588 | AF32: 61930.03658 | AG32: 62385.32728 | AH32: 62840.61798 | AI32: 63295.90868 | AJ32: 63664.23593 | AK32: 64032.56317 | AL32: 64400.89042 | AM32: 64769.21766 | AN32: 65137.5449 | AO32: 65541.91386 | AP32: 65946.28281 | AQ32: 66350.65176 | AR32: 66755.02071 | AS32: 67159.38967
A33: 28 | B33: 50688.53882 | C33: 51148.87147 | D33: 51613.38469 | E33: 52082.11642 | F33: 52555.10498 | G33: 53032.38903 | H33: 53514.00759 | I33: 54000 | J33: 54490.406 | K33: 54991.51202 | L33: 55492.61805 | M33: 55993.72407 | N33: 56494.8301 | O33: 56995.93612 | P33: 57477.07116 | Q33: 57958.2062 | R33: 58439.34123 | S33: 58920.47627 | T33: 59401.6113 | U33: 59824.30188 | V33: 60246.99245 | W33: 60669.68303 | X33: 61092.3736 | Y33: 61515.06418 | Z33: 61734.12157 | AA33: 61953.17897 | AB33: 62172.23637 | AC33: 62391.29377 | AD33: 62610.35117 | AE33: 62849.47986 | AF33: 63088.60856 | AG33: 63327.73725 | AH33: 63566.86595 | AI33: 63805.99465 | AJ33: 63818.33798 | AK33: 63830.68132 | AL33: 63843.02465 | AM33: 63855.36799 | AN33: 63867.71132 | AO33: 63824.3805 | AP33: 63781.04967 | AQ33: 63737.71885 | AR33: 63694.38802 | AS33: 63651.0572
A34: 29 | B34: 50688.53882 | C34: 51148.87147 | D34: 51613.38469 | E34: 52082.11642 | F34: 52555.10498 | G34: 53032.38903 | H34: 53514.00759 | I34: 54000 | J34: 54490.406 | K34: 54913.32991 | L34: 55336.25381 | M34: 55759.17772 | N34: 56182.10162 | O34: 56605.02553 | P34: 56926.19711 | Q34: 57247.3687 | R34: 57568.54029 | S34: 57889.71187 | T34: 58210.88346 | U34: 58509.29494 | V34: 58807.70642 | W34: 59106.1179 | X34: 59404.52938 | Y34: 59702.94086 | Z34: 60238.56763 | AA34: 60774.19439 | AB34: 61309.82116 | AC34: 61845.44793 | AD34: 62381.07469 | AE34: 62791.06689 | AF34: 63201.0591 | AG34: 63611.0513 | AH34: 64021.0435 | AI34: 64431.0357 | AJ34: 64744.39066 | AK34: 65057.74562 | AL34: 65371.10057 | AM34: 65684.45553 | AN34: 65997.81049 | AO34: 66488.85494 | AP34: 66979.89939 | AQ34: 67470.94384 | AR34: 67961.98829 | AS34: 68453.03274
A35: 30 | B35: 50688.53882 | C35: 51148.87147 | D35: 51613.38469 | E35: 52082.11642 | F35: 52555.10498 | G35: 53032.38903 | H35: 53514.00759 | I35: 54000 | J35: 54490.406 | K35: 54688.88025 | L35: 54887.35449 | M35: 55085.82874 | N35: 55284.30299 | O35: 55482.77724 | P35: 55588.49492 | Q35: 55694.21261 | R35: 55799.93029 | S35: 55905.64798 | T35: 56011.36567 | U35: 56224.90661 | V35: 56438.44755 | W35: 56651.98849 | X35: 56865.52943 | Y35: 57079.07037 | Z35: 57128.26936 | AA35: 57177.46836 | AB35: 57226.66736 | AC35: 57275.86635 | AD35: 57325.06535 | AE35: 57439.44112 | AF35: 57553.8169 | AG35: 57668.19267 | AH35: 57782.56845 | AI35: 57896.94422 | AJ35: 57897.46545 | AK35: 57897.98669 | AL35: 57898.50792 | AM35: 57899.02915 | AN35: 57899.55038 | AO35: 57818.92724 | AP35: 57738.3041 | AQ35: 57657.68096 | AR35: 57577.05782 | AS35: 57496.43468
A36: 31 | B36: 50688.53882 | C36: 51148.87147 | D36: 51613.38469 | E36: 52082.11642 | F36: 52555.10498 | G36: 53032.38903 | H36: 53514.00759 | I36: 54000 | J36: 54490.406 | K36: 54975.10084 | L36: 55459.79568 | M36: 55944.49052 | N36: 56429.18536 | O36: 56913.8802 | P36: 57382.60816 | Q36: 57851.33612 | R36: 58320.06408 | S36: 58788.79203 | T36: 59257.51999 | U36: 59735.74252 | V36: 60213.96505 | W36: 60692.18758 | X36: 61170.4101 | Y36: 61648.63263 | Z36: 61987.81727 | AA36: 62327.0019 | AB36: 62666.18654 | AC36: 63005.37118 | AD36: 63344.55581 | AE36: 63702.55973 | AF36: 64060.56365 | AG36: 64418.56757 | AH36: 64776.57149 | AI36: 65134.57541 | AJ36: 65526.33319 | AK36: 65918.09097 | AL36: 66309.84875 | AM36: 66701.60653 | AN36: 67093.3643 | AO36: 67535.49009 | AP36: 67977.61588 | AQ36: 68419.74167 | AR36: 68861.86745 | AS36: 69303.99324
A37: 32 | B37: 50688.53882 | C37: 51148.87147 | D37: 51613.38469 | E37: 52082.11642 | F37: 52555.10498 | G37: 53032.38903 | H37: 53514.00759 | I37: 54000 | J37: 54490.406 | K37: 54832.36868 | L37: 55174.33136 | M37: 55516.29404 | N37: 55858.25673 | O37: 56200.21941 | P37: 56425.79529 | Q37: 56651.37117 | R37: 56876.94706 | S37: 57102.52294 | T37: 57328.09882 | U37: 57483.0812 | V37: 57638.06358 | W37: 57793.04596 | X37: 57948.02834 | Y37: 58103.01072 | Z37: 58079.94157 | AA37: 58056.87241 | AB37: 58033.80325 | AC37: 58010.73409 | AD37: 57987.66494 | AE37: 58056.07276 | AF37: 58124.48058 | AG37: 58192.88841 | AH37: 58261.29623 | AI37: 58329.70405 | AJ37: 58387.79844 | AK37: 58445.89282 | AL37: 58503.98721 | AM37: 58562.08159 | AN37: 58620.17598 | AO37: 58723.84616 | AP37: 58827.51634 | AQ37: 58931.18653 | AR37: 59034.85671 | AS37: 59138.52689
A38: 33 | B38: 50688.53882 | C38: 51148.87147 | D38: 51613.38469 | E38: 52082.11642 | F38: 52555.10498 | G38: 53032.38903 | H38: 53514.00759 | I38: 54000 | J38: 54490.406 | K38: 54866.19017 | L38: 55241.97434 | M38: 55617.7585 | N38: 55993.54267 | O38: 56369.32684 | P38: 56561.80088 | Q38: 56754.27493 | R38: 56946.74897 | S38: 57139.22301 | T38: 57331.69706 | U38: 57528.39506 | V38: 57725.09306 | W38: 57921.79106 | X38: 58118.48906 | Y38: 58315.18707 | Z38: 58447.16551 | AA38: 58579.14396 | AB38: 58711.12241 | AC38: 58843.10086 | AD38: 58975.07931 | AE38: 59234.96408 | AF38: 59494.84886 | AG38: 59754.73364 | AH38: 60014.61842 | AI38: 60274.5032 | AJ38: 60447.77516 | AK38: 60621.04711 | AL38: 60794.31907 | AM38: 60967.59103 | AN38: 61140.86298 | AO38: 61310.30494 | AP38: 61479.74689 | AQ38: 61649.18885 | AR38: 61818.6308 | AS38: 61988.07276
A39: 34 | B39: 50688.53882 | C39: 51148.87147 | D39: 51613.38469 | E39: 52082.11642 | F39: 52555.10498 | G39: 53032.38903 | H39: 53514.00759 | I39: 54000 | J39: 54490.406 | K39: 54955.91962 | L39: 55421.43325 | M39: 55886.94687 | N39: 56352.46049 | O39: 56817.97412 | P39: 57164.81159 | Q39: 57511.64905 | R39: 57858.48652 | S39: 58205.32399 | T39: 58552.16146 | U39: 58883.52349 | V39: 59214.88552 | W39: 59546.24755 | X39: 59877.60958 | Y39: 60208.97161 | Z39: 60600.55729 | AA39: 60992.14298 | AB39: 61383.72866 | AC39: 61775.31434 | AD39: 62166.90003 | AE39: 62493.51304 | AF39: 62820.12605 | AG39: 63146.73906 | AH39: 63473.35206 | AI39: 63799.96507 | AJ39: 63980.90365 | AK39: 64161.84223 | AL39: 64342.7808 | AM39: 64523.71938 | AN39: 64704.65796 | AO39: 64937.82169 | AP39: 65170.98542 | AQ39: 65404.14915 | AR39: 65637.31288 | AS39: 65870.47661
A40: 35 | B40: =B39 -> 50688.53882 | C40: 51148.87147 | D40: 51613.38469 | E40: 52082.11642 | F40: 52555.10498 | G40: 53032.38903 | H40: 53514.00759 | I40: 54000 | J40: 54490.406 | K40: 54860.03076 | L40: 55229.65553 | M40: 55599.28029 | N40: 55968.90505 | O40: 56338.52982 | P40: 56662.53397 | Q40: 56986.53813 | R40: 57310.54229 | S40: 57634.54644 | T40: 57958.5506 | U40: 58256.08076 | V40: 58553.61093 | W40: 58851.14109 | X40: 59148.67126 | Y40: 59446.20142 | Z40: 59726.80708 | AA40: 60007.41274 | AB40: 60288.01839 | AC40: 60568.62405 | AD40: 60849.22971 | AE40: 61118.24775 | AF40: 61387.2658 | AG40: 61656.28384 | AH40: 61925.30189 | AI40: 62194.31993 | AJ40: 62451.60288 | AK40: 62708.88582 | AL40: 62966.16876 | AM40: 63223.4517 | AN40: 63480.73465 | AO40: 63610.44872 | AP40: 63740.16278 | AQ40: 63869.87685 | AR40: 63999.59092 | AS40: 64129.30499
A41: 36 | B41: 50688.53882 | C41: 51148.87147 | D41: 51613.38469 | E41: 52082.11642 | F41: 52555.10498 | G41: 53032.38903 | H41: 53514.00759 | I41: 54000 | J41: 54490.406 | K41: 54974.9803 | L41: 55459.5546 | M41: 55944.1289 | N41: 56428.70319 | O41: 56913.27749 | P41: 57332.32537 | Q41: 57751.37325 | R41: 58170.42112 | S41: 58589.469 | T41: 59008.51688 | U41: 59439.419 | V41: 59870.32113 | W41: 60301.22325 | X41: 60732.12538 | Y41: 61163.0275 | Z41: 61584.44905 | AA41: 62005.87059 | AB41: 62427.29214 | AC41: 62848.71369 | AD41: 63270.13523 | AE41: 63715.77893 | AF41: 64161.42263 | AG41: 64607.06633 | AH41: 65052.71003 | AI41: 65498.35373 | AJ41: 65841.24549 | AK41: 66184.13726 | AL41: 66527.02902 | AM41: 66869.92079 | AN41: 67212.81255 | AO41: 67514.6255 | AP41: 67816.43844 | AQ41: 68118.25139 | AR41: 68420.06434 | AS41: 68721.87729
A42: 37 | B42: 50688.53882 | C42: 51148.87147 | D42: 51613.38469 | E42: 52082.11642 | F42: 52555.10498 | G42: 53032.38903 | H42: 53514.00759 | I42: 54000 | J42: 54490.406 | K42: 54855.50899 | L42: 55220.61197 | M42: 55585.71496 | N42: 55950.81795 | O42: 56315.92093 | P42: 56562.75693 | Q42: 56809.59292 | R42: 57056.42891 | S42: 57303.26491 | T42: 57550.1009 | U42: 57811.29089 | V42: 58072.48088 | W42: 58333.67087 | X42: 58594.86086 | Y42: 58856.05085 | Z42: 59219.52387 | AA42: 59582.99688 | AB42: 59946.46989 | AC42: 60309.9429 | AD42: 60673.41591 | AE42: 60981.58903 | AF42: 61289.76214 | AG42: 61597.93525 | AH42: 61906.10836 | AI42: 62214.28147 | AJ42: 62642.40793 | AK42: 63070.53439 | AL42: 63498.66084 | AM42: 63926.7873 | AN42: 64354.91375 | AO42: 64792.74495 | AP42: 65230.57614 | AQ42: 65668.40733 | AR42: 66106.23852 | AS42: 66544.06971
A43: 38 | B43: 50688.53882 | C43: 51148.87147 | D43: 51613.38469 | E43: 52082.11642 | F43: 52555.10498 | G43: 53032.38903 | H43: 53514.00759 | I43: 54000 | J43: 54490.406 | K43: 54920.21955 | L43: 55350.0331 | M43: 55779.84665 | N43: 56209.6602 | O43: 56639.47375 | P43: 57109.97507 | Q43: 57580.47639 | R43: 58050.97771 | S43: 58521.47903 | T43: 58991.98035 | U43: 59190.98944 | V43: 59389.99854 | W43: 59589.00763 | X43: 59788.01673 | Y43: 59987.02582 | Z43: 60086.82712 | AA43: 60186.62841 | AB43: 60286.4297 | AC43: 60386.231 | AD43: 60486.03229 | AE43: 60566.94045 | AF43: 60647.84861 | AG43: 60728.75678 | AH43: 60809.66494 | AI43: 60890.5731 | AJ43: 61054.56851 | AK43: 61218.56393 | AL43: 61382.55934 | AM43: 61546.55475 | AN43: 61710.55016 | AO43: 61886.04778 | AP43: 62061.54539 | AQ43: 62237.043 | AR43: 62412.54061 | AS43: 62588.03822
A44: 39 | B44: 50688.53882 | C44: 51148.87147 | D44: 51613.38469 | E44: 52082.11642 | F44: 52555.10498 | G44: 53032.38903 | H44: 53514.00759 | I44: 54000 | J44: 54490.406 | K44: 54944.44035 | L44: 55398.47471 | M44: 55852.50906 | N44: 56306.54341 | O44: 56760.57776 | P44: 57301.94598 | Q44: 57843.3142 | R44: 58384.68241 | S44: 58926.05063 | T44: 59467.41884 | U44: 60020.84975 | V44: 60574.28065 | W44: 61127.71155 | X44: 61681.14245 | Y44: 62234.57336 | Z44: 62738.65578 | AA44: 63242.7382 | AB44: 63746.82063 | AC44: 64250.90305 | AD44: 64754.98548 | AE44: 65294.99831 | AF44: 65835.01114 | AG44: 66375.02397 | AH44: 66915.0368 | AI44: 67455.04963 | AJ44: 67852.55894 | AK44: 68250.06825 | AL44: 68647.57755 | AM44: 69045.08686 | AN44: 69442.59617 | AO44: 69762.05883 | AP44: 70081.52148 | AQ44: 70400.98413 | AR44: 70720.44679 | AS44: 71039.90944
A45: 40 | B45: 50688.53882 | C45: 51148.87147 | D45: 51613.38469 | E45: 52082.11642 | F45: 52555.10498 | G45: 53032.38903 | H45: 53514.00759 | I45: 54000 | J45: 54490.406 | K45: 54857.32915 | L45: 55224.25229 | M45: 55591.17544 | N45: 55958.09858 | O45: 56325.02173 | P45: 56683.17675 | Q45: 57041.33178 | R45: 57399.48681 | S45: 57757.64184 | T45: 58115.79687 | U45: 58307.56121 | V45: 58499.32555 | W45: 58691.08989 | X45: 58882.85423 | Y45: 59074.61857 | Z45: 59131.48326 | AA45: 59188.34796 | AB45: 59245.21266 | AC45: 59302.07736 | AD45: 59358.94206 | AE45: 59373.70531 | AF45: 59388.46856 | AG45: 59403.23182 | AH45: 59417.99507 | AI45: 59432.75832 | AJ45: 59509.13968 | AK45: 59585.52104 | AL45: 59661.90239 | AM45: 59738.28375 | AN45: 59814.66511 | AO45: 59859.3297 | AP45: 59903.9943 | AQ45: 59948.65889 | AR45: 59993.32349 | AS45: 60037.98808
A46: 41 | B46: 50688.53882 | C46: 51148.87147 | D46: 51613.38469 | E46: 52082.11642 | F46: 52555.10498 | G46: 53032.38903 | H46: 53514.00759 | I46: 54000 | J46: 54490.406 | K46: 54957.76094 | L46: 55425.11588 | M46: 55892.47081 | N46: 56359.82575 | O46: 56827.18069 | P46: 57218.40084 | Q46: 57609.621 | R46: 58000.84115 | S46: 58392.0613 | T46: 58783.28146 | U46: 59069.02442 | V46: 59354.76739 | W46: 59640.51036 | X46: 59926.25333 | Y46: 60211.9963 | Z46: 60376.22117 | AA46: 60540.44604 | AB46: 60704.67091 | AC46: 60868.89578 | AD46: 61033.12065 | AE46: 61098.8719 | AF46: 61164.62316 | AG46: 61230.37441 | AH46: 61296.12567 | AI46: 61361.87692 | AJ46: 61537.08514 | AK46: 61712.29336 | AL46: 61887.50159 | AM46: 62062.70981 | AN46: 62237.91803 | AO46: 62492.2341 | AP46: 62746.55017 | AQ46: 63000.86624 | AR46: 63255.18231 | AS46: 63509.49839
A47: 42 | B47: 50688.53882 | C47: 51148.87147 | D47: 51613.38469 | E47: 52082.11642 | F47: 52555.10498 | G47: 53032.38903 | H47: 53514.00759 | I47: 54000 | J47: 54490.406 | K47: 54996.17625 | L47: 55501.9465 | M47: 56007.71676 | N47: 56513.48701 | O47: 57019.25726 | P47: 57464.66356 | Q47: 57910.06986 | R47: 58355.47617 | S47: 58800.88247 | T47: 59246.28877 | U47: 59596.63814 | V47: 59946.98752 | W47: 60297.3369 | X47: 60647.68627 | Y47: 60998.03565 | Z47: 61343.58927 | AA47: 61689.14289 | AB47: 62034.69651 | AC47: 62380.25013 | AD47: 62725.80375 | AE47: 63130.71798 | AF47: 63535.63221 | AG47: 63940.54643 | AH47: 64345.46066 | AI47: 64750.37489 | AJ47: 65268.51506 | AK47: 65786.65522 | AL47: 66304.79538 | AM47: 66822.93555 | AN47: 67341.07571 | AO47: 67742.5347 | AP47: 68143.99369 | AQ47: 68545.45269 | AR47: 68946.91168 | AS47: 69348.37067
A48: 43 | B48: 50688.53882 | C48: 51148.87147 | D48: 51613.38469 | E48: 52082.11642 | F48: 52555.10498 | G48: 53032.38903 | H48: 53514.00759 | I48: 54000 | J48: 54490.406 | K48: 55068.80882 | L48: 55647.21164 | M48: 56225.61446 | N48: 56804.01728 | O48: 57382.4201 | P48: 57937.26715 | Q48: 58492.1142 | R48: 59046.96125 | S48: 59601.8083 | T48: 60156.65535 | U48: 60571.25467 | V48: 60985.85399 | W48: 61400.45331 | X48: 61815.05262 | Y48: 62229.65194 | Z48: 62601.29327 | AA48: 62972.93459 | AB48: 63344.57592 | AC48: 63716.21725 | AD48: 64087.85857 | AE48: 64319.86047 | AF48: 64551.86237 | AG48: 64783.86427 | AH48: 65015.86616 | AI48: 65247.86806 | AJ48: 65443.63667 | AK48: 65639.40528 | AL48: 65835.17388 | AM48: 66030.94249 | AN48: 66226.7111 | AO48: 66522.35876 | AP48: 66818.00643 | AQ48: 67113.65409 | AR48: 67409.30175 | AS48: 67704.94942
A49: 44 | B49: 50688.53882 | C49: 51148.87147 | D49: 51613.38469 | E49: 52082.11642 | F49: 52555.10498 | G49: 53032.38903 | H49: 53514.00759 | I49: 54000 | J49: 54490.406 | K49: 54874.88745 | L49: 55259.3689 | M49: 55643.85035 | N49: 56028.33179 | O49: 56412.81324 | P49: 56975.64881 | Q49: 57538.48437 | R49: 58101.31994 | S49: 58664.1555 | T49: 59226.99107 | U49: 59664.31042 | V49: 60101.62977 | W49: 60538.94913 | X49: 60976.26848 | Y49: 61413.58783 | Z49: 61712.48097 | AA49: 62011.37412 | AB49: 62310.26726 | AC49: 62609.1604 | AD49: 62908.05354 | AE49: 63074.05549 | AF49: 63240.05744 | AG49: 63406.0594 | AH49: 63572.06135 | AI49: 63738.0633 | AJ49: 63854.19819 | AK49: 63970.33309 | AL49: 64086.46798 | AM49: 64202.60288 | AN49: 64318.73777 | AO49: 64332.45883 | AP49: 64346.17989 | AQ49: 64359.90095 | AR49: 64373.62201 | AS49: 64387.34307
A50: 45 | B50: 50688.53882 | C50: 51148.87147 | D50: 51613.38469 | E50: 52082.11642 | F50: 52555.10498 | G50: 53032.38903 | H50: 53514.00759 | I50: 54000 | J50: 54490.406 | K50: 54797.93669 | L50: 55105.46737 | M50: 55412.99806 | N50: 55720.52875 | O50: 56028.05943 | P50: 56102.26408 | Q50: 56176.46874 | R50: 56250.67339 | S50: 56324.87804 | T50: 56399.08269 | U50: 56386.82181 | V50: 56374.56092 | W50: 56362.30003 | X50: 56350.03915 | Y50: 56337.77826 | Z50: 56317.6597 | AA50: 56297.54114 | AB50: 56277.42257 | AC50: 56257.30401 | AD50: 56237.18545 | AE50: 56185.69229 | AF50: 56134.19913 | AG50: 56082.70597 | AH50: 56031.2128 | AI50: 55979.71964 | AJ50: 55847.93317 | AK50: 55716.1467 | AL50: 55584.36024 | AM50: 55452.57377 | AN50: 55320.7873 | AO50: 55159.8742 | AP50: 54998.96111 | AQ50: 54838.04802 | AR50: 54677.13493 | AS50: 54516.22183
A51: 46 | B51: 50688.53882 | C51: 51148.87147 | D51: 51613.38469 | E51: 52082.11642 | F51: 52555.10498 | G51: 53032.38903 | H51: 53514.00759 | I51: 54000 | J51: 54490.406 | K51: 54892.87153 | L51: 55295.33705 | M51: 55697.80258 | N51: 56100.26811 | O51: 56502.73364 | P51: 56827.2611 | Q51: 57151.78857 | R51: 57476.31603 | S51: 57800.8435 | T51: 58125.37096 | U51: 58419.08174 | V51: 58712.79251 | W51: 59006.50329 | X51: 59300.21406 | Y51: 59593.92484 | Z51: 59944.33652 | AA51: 60294.74821 | AB51: 60645.1599 | AC51: 60995.57159 | AD51: 61345.98328 | AE51: 61698.68892 | AF51: 62051.39456 | AG51: 62404.1002 | AH51: 62756.80585 | AI51: 63109.51149 | AJ51: 63427.11299 | AK51: 63744.7145 | AL51: 64062.316 | AM51: 64379.9175 | AN51: 64697.519 | AO51: 65018.59953 | AP51: 65339.68005 | AQ51: 65660.76058 | AR51: 65981.8411 | AS51: 66302.92163
A52: 47 | B52: 50688.53882 | C52: 51148.87147 | D52: 51613.38469 | E52: 52082.11642 | F52: 52555.10498 | G52: 53032.38903 | H52: 53514.00759 | I52: 54000 | J52: 54490.406 | K52: 55004.02084 | L52: 55517.63568 | M52: 56031.25052 | N52: 56544.86536 | O52: 57058.4802 | P52: 57431.6616 | Q52: 57804.84299 | R52: 58178.02439 | S52: 58551.20579 | T52: 58924.38719 | U52: 59242.38699 | V52: 59560.38679 | W52: 59878.38659 | X52: 60196.38638 | Y52: 60514.38618 | Z52: 60823.89858 | AA52: 61133.41099 | AB52: 61442.92339 | AC52: 61752.43579 | AD52: 62061.94819 | AE52: 62426.00676 | AF52: 62790.06532 | AG52: 63154.12389 | AH52: 63518.18246 | AI52: 63882.24102 | AJ52: 64137.03352 | AK52: 64391.82601 | AL52: 64646.61851 | AM52: 64901.411 | AN52: 65156.20349 | AO52: 65254.73717 | AP52: 65353.27086 | AQ52: 65451.80454 | AR52: 65550.33822 | AS52: 65648.8719
A53: 48 | B53: 50688.53882 | C53: 51148.87147 | D53: 51613.38469 | E53: 52082.11642 | F53: 52555.10498 | G53: 53032.38903 | H53: 53514.00759 | I53: 54000 | J53: 54490.406 | K53: 55033.72986 | L53: 55577.05372 | M53: 56120.37757 | N53: 56663.70143 | O53: 57207.02529 | P53: 57607.81566 | Q53: 58008.60603 | R53: 58409.39639 | S53: 58810.18676 | T53: 59210.97713 | U53: 59641.02671 | V53: 60071.07629 | W53: 60501.12587 | X53: 60931.17546 | Y53: 61361.22504 | Z53: 61743.27079 | AA53: 62125.31655 | AB53: 62507.3623 | AC53: 62889.40806 | AD53: 63271.45381 | AE53: 63628.86597 | AF53: 63986.27812 | AG53: 64343.69028 | AH53: 64701.10243 | AI53: 65058.51459 | AJ53: 65426.63312 | AK53: 65794.75164 | AL53: 66162.87017 | AM53: 66530.9887 | AN53: 66899.10723 | AO53: 67191.71539 | AP53: 67484.32355 | AQ53: 67776.93171 | AR53: 68069.53987 | AS53: 68362.14803
A54: 49 | B54: 50688.53882 | C54: 51148.87147 | D54: 51613.38469 | E54: 52082.11642 | F54: 52555.10498 | G54: 53032.38903 | H54: 53514.00759 | I54: 54000 | J54: 54490.406 | K54: 54801.96505 | L54: 55113.5241 | M54: 55425.08315 | N54: 55736.6422 | O54: 56048.20125 | P54: 56436.72974 | Q54: 56825.25824 | R54: 57213.78673 | S54: 57602.31523 | T54: 57990.84373 | U54: 58496.49607 | V54: 59002.14841 | W54: 59507.80075 | X54: 60013.45309 | Y54: 60519.10543 | Z54: 61037.40541 | AA54: 61555.70539 | AB54: 62074.00537 | AC54: 62592.30535 | AD54: 63110.60533 | AE54: 63436.23089 | AF54: 63761.85644 | AG54: 64087.482 | AH54: 64413.10755 | AI54: 64738.73311 | AJ54: 64954.90335 | AK54: 65171.07359 | AL54: 65387.24383 | AM54: 65603.41407 | AN54: 65819.58431 | AO54: 66096.66943 | AP54: 66373.75454 | AQ54: 66650.83966 | AR54: 66927.92478 | AS54: 67205.0099
